Workbook

Sheet General Headers Index
A1: GENERAL HEADERS FOR FILING
A3: COMPANY: | B3: COLUMBIA GAS OF KENTUCKY, INC.
A5: CASE NUMBER: | B5: CASE NO. 2026 - 00099
A7: BASE PERIOD : | B7: 2026-08-31
B8: FOR THE TWELVE MONTHS ENDED AUGUST 31, 2026
B9: ="BASE PERIOD: TWELVE MONTHS ENDED AUGUST 31, 2026" -> BASE PERIOD: TWELVE MONTHS ENDED AUGUST 31, 2026
B10: AS OF AUGUST 31, 2026
B11: BASE PERIOD 09/30/2025 TO 08/31/2026
B12: FOR THE BASE PERIOD AUGUST 31, 2026
B13: SEPTEMBER 2025 TO AUGUST 2026
A15: FORECASTED PERIOD: | B15: 2027-12-31
B16: FOR THE TWELVE MONTHS ENDED DECEMBER 31, 2027
B17: ="FORECASTED TEST PERIOD: TWELVE MONTHS ENDED DECEMBER 31, 2027" -> FORECASTED TEST PERIOD: TWELVE MONTHS ENDED DECEMBER 31, 2027
B18: AS OF DECEMBER 31, 2027
B19: FORECASTED TEST PERIOD 12/31/2026 to 12/31/2027
B20: JANUARY 2027 TO DECEMBER 2027
A22: COMBINED BASE AND FORECAST PERIOD | B22: FOR THE BASE PERIOD TME AUGUST 31, 2026 AND FORECAST PERIOD TME DECEMBER 31, 2027
B23: FOR THE TWELVE MONTHS ENDED AUGUST 31, 2026 AND THE TWELVE MONTHS ENDED DECEMBER 31, 2027
B24: FROM JANUARY 01, 2025 THROUGH DECEMBER 31, 2027
B25: FROM JANUARY 01, 2026 THROUGH DECEMBER 31, 2027
A27: LAST MONTH OF ACTUALS | B27: AS OF FEBRUARY 28, 2026
A28: FORECASTED PLANT DETAIL FOR: | B28: FROM FEBRUARY 28, 2026 THROUGH DECEMBER 31, 2027
A30: 13 MONTH PERIOD | B30: FORECASTED PERIOD THIRTEEN MONTH AVERAGE DECEMBER 31, 2027
B31: 13 MONTH AVG - FORECAST PERIOD 12/31/2026 TO 12/31/2027
A33: DATA PERIOD: | B33: DATA:___X___BASE PERIOD_______FORECASTED PERIOD
B34: DATA:_______BASE PERIOD___X___FORECASTED PERIOD
B35: DATA:___X___BASE PERIOD___X___FORECASTED PERIOD
A37: TYPE OF FILING | B37: TYPE OF FILING:___X___ORIGINAL_______UPDATED
B38: TYPE OF FILING:_______ORIGINAL___X___UPDATED
A40: REFERENCE | B40: WORKPAPER REFERENCE NO(S):
A42: WITNESSES:
A43: INDEX A : FINANCIAL SUMMARY | B43: N. DAVIS
A44: INDEX A : SCH A TO SCH M RECON | B44: J. C. WOZNIAK
A45: INDEX A : SCH A TO SCH M RECON | B45: R. AMEN
A46: INDEX B : RATE BASE SUMMARY | B46: L. BLACK
A47: INDEX B : DEFERRED CREDITS AND ADIT TABS | B47: G. GODE
A48: INDEX B : CWC - LEAD LAG STUDY | B48: K. L. JOHNSON
A49: INDEX C : OPERATING INCOME SUMMARY | B49: =+B43 -> N. DAVIS
A50: INDEX C : OPERATING INCOME SUMMARY | B50: C. INSCHO
A51: INDEX D : ADJUSTMENTS TO OPERATING INCOME | B51: =+B49 -> N. DAVIS
A52: INDEX D : D-2.1 | B52: =$B$44 -> J. C. WOZNIAK
A53: INDEX D : D-2.2 | B53: =$B$50 -> C. INSCHO
A54: INDEX D : D-2.2 | B54: =B47 -> G. GODE
A55: INDEX D : D-2.3 | B55: =+B52 -> J. C. WOZNIAK
A56: INDEX D : D-2.4 | B56: =+B53 -> C. INSCHO
A57: INDEX D : D-2.5 | B57: =+B56 -> C. INSCHO
A58: INDEX D : D-2.6 | B58: =+B52 -> J. C. WOZNIAK
A59: INDEX D : D-2.7 | B59: =B43 -> N. DAVIS
A60: INDEX D : D-2.7 | B60: =B53 -> C. INSCHO
A61: INDEX D : D-2.7 | B61: =B52 -> J. C. WOZNIAK
A62: INDEX D : D-2.7 | B62: G. JONDA
A63: INDEX D : D-2.7 | B63: =$B$47 -> G. GODE
A64: INDEX E : FEDERAL AND STATE INCOME TAX | B64: =+B47 -> G. GODE
A65: INDEX F : OTHER EXPENSES | B65: =+B43 -> N. DAVIS
B66: =+B53 -> C. INSCHO
B67: =$B$62 -> G. JONDA
A68: INDEX G : PAYROLL COST ANALYSIS | B68: =+B43 -> N. DAVIS
B69: =+B57 -> C. INSCHO
B70: B. OWENS
A71: INDEX H : GROSS CONVERSION FACTOR | B71: =+B49 -> N. DAVIS
A72: INDEX I : STATISTICAL DATA | B72: =+B43 -> N. DAVIS
B73: =+B66 -> C. INSCHO
B74: =+B58 -> J. C. WOZNIAK
A75: INDEX J : COST OF CAPITAL | B75: V. V. REA
A76: INDEX K : COMPARATIVE FINANCIAL DATA | B76: =+B43 -> N. DAVIS
B77: =+B46 -> L. BLACK
B78: =+B53 -> C. INSCHO
B79: =+B75 -> V. V. REA
A80: INDEX L : RATES AND TARIFFS | B80: J. COOPER
A81: INDEX M : REVENUE SUMMARY | B81: =+B52 -> J. C. WOZNIAK

Sheet INPUT - BPtoFTP O&M Alloc Pivot
A1: D-2.2 Adjustments: | B1: =+'D-2.4'!G16+'D-2.4'!G22+'D-2.4'!G29+'D-2.4'!G35+'D-2.4'!G41+'D-2.4'!G47+'D-2.4'!G53+'D-2.4'!G59+'D-2.4'!G65+'D-2.4'!G71+'D-2.4'!G89+'D-2.4'!G97+'D-2.4'!G103+'D-2.4'!G109+'D-2.4'!G116+'D-2.4'!G122+'D-2.4'!G128 -> -1468197.878 | D1: D-2.2 Adjustments: | E1: =B1 -> -1468197.878
A2: Check to Acct. Alloc. Pivot Below: | B2: =+B1-_xlfn.XLOOKUP("Grand Total",A9:A98,B9:B98) -> 0 | D2: Check to Acct. Alloc. Pivot Below: | E2: =+E1-_xlfn.XLOOKUP("Grand Total",D9:D98,E9:E98) -> 0
A3: Pivot from Tab: | B3: INPUT - BP to FTP O&M Allocates
A4: By Account | D4: By Cost Category
A6: Cost Element Category | B6: (Multiple Items) | D6: FERC Account | E6: (Multiple Items)
A8: Row Labels | B8: Sum of Total BP to FTP Adjustments | D8: Row Labels | E8: Sum of Total BP to FTP Adjustments | F8: Check to Tab "INPUT - BP & FTP O&M by CE":
A9: 500 | B9: -0.02795935557 | D9: 401K | E9: 26082.70707 | F9: =IF(D9="Uncollectible Accounts - Gas Cost",_xlfn.XLOOKUP("Uncollectible-Gas Cost",'WPD-2.4.B FTP O&M by Category'!$B$17:$B$54,'WPD-2.4.B FTP O&M by Category'!$T$17:$T$54,0),IF(D9="Uncollectible Accounts - Non-Gas Cost",_xlfn.XLOOKUP("Uncollectible-Non-Gas Cost",'WPD-2.4.B FTP O&M by Category'!$B$17:$B$54,'WPD-2.4.B FTP O&M by Category'!$T$17:$T$54,0),_xlfn.XLOOKUP(D9,'WPD-2.4.B FTP O&M by Category'!$B$17:$B$54,'WPD-2.4.B FTP O&M by Category'!$T$17:$T$54,0))) -> 26082.70707 | G9: =ROUND(E9-F9,0) -> 0 | I9: 3.237801138e-10
A10: 505 | B10: 0.02 | D10: Advertising Expense | E10: -10814.2 | F10: =IF(D10="Uncollectible Accounts - Gas Cost",_xlfn.XLOOKUP("Uncollectible-Gas Cost",'WPD-2.4.B FTP O&M by Category'!$B$17:$B$54,'WPD-2.4.B FTP O&M by Category'!$T$17:$T$54,0),IF(D10="Uncollectible Accounts - Non-Gas Cost",_xlfn.XLOOKUP("Uncollectible-Non-Gas Cost",'WPD-2.4.B FTP O&M by Category'!$B$17:$B$54,'WPD-2.4.B FTP O&M by Category'!$T$17:$T$54,0),_xlfn.XLOOKUP(D10,'WPD-2.4.B FTP O&M by Category'!$B$17:$B$54,'WPD-2.4.B FTP O&M by Category'!$T$17:$T$54,0))) -> -10814.2 | G10: =ROUND(E10-F10,0) -> 0 | I10: 0
A11: 535 | B11: 0 | D11: Amortizations | E11: 0 | F11: =IF(D11="Uncollectible Accounts - Gas Cost",_xlfn.XLOOKUP("Uncollectible-Gas Cost",'WPD-2.4.B FTP O&M by Category'!$B$17:$B$54,'WPD-2.4.B FTP O&M by Category'!$T$17:$T$54,0),IF(D11="Uncollectible Accounts - Non-Gas Cost",_xlfn.XLOOKUP("Uncollectible-Non-Gas Cost",'WPD-2.4.B FTP O&M by Category'!$B$17:$B$54,'WPD-2.4.B FTP O&M by Category'!$T$17:$T$54,0),_xlfn.XLOOKUP(D11,'WPD-2.4.B FTP O&M by Category'!$B$17:$B$54,'WPD-2.4.B FTP O&M by Category'!$T$17:$T$54,0))) -> 0 | G11: 0 | I11: 0
A12: 548 | B12: -2.29 | D12: Audit Fees | E12: 9583.52146 | F12: =IF(D12="Uncollectible Accounts - Gas Cost",_xlfn.XLOOKUP("Uncollectible-Gas Cost",'WPD-2.4.B FTP O&M by Category'!$B$17:$B$54,'WPD-2.4.B FTP O&M by Category'!$T$17:$T$54,0),IF(D12="Uncollectible Accounts - Non-Gas Cost",_xlfn.XLOOKUP("Uncollectible-Non-Gas Cost",'WPD-2.4.B FTP O&M by Category'!$B$17:$B$54,'WPD-2.4.B FTP O&M by Category'!$T$17:$T$54,0),_xlfn.XLOOKUP(D12,'WPD-2.4.B FTP O&M by Category'!$B$17:$B$54,'WPD-2.4.B FTP O&M by Category'!$T$17:$T$54,0))) -> 9583.52146 | G12: 0 | I12: 0
A13: 552 | B13: 0 | D13: Charitable Contributions | E13: 0 | F13: =IF(D13="Uncollectible Accounts - Gas Cost",_xlfn.XLOOKUP("Uncollectible-Gas Cost",'WPD-2.4.B FTP O&M by Category'!$B$17:$B$54,'WPD-2.4.B FTP O&M by Category'!$T$17:$T$54,0),IF(D13="Uncollectible Accounts - Non-Gas Cost",_xlfn.XLOOKUP("Uncollectible-Non-Gas Cost",'WPD-2.4.B FTP O&M by Category'!$B$17:$B$54,'WPD-2.4.B FTP O&M by Category'!$T$17:$T$54,0),_xlfn.XLOOKUP(D13,'WPD-2.4.B FTP O&M by Category'!$B$17:$B$54,'WPD-2.4.B FTP O&M by Category'!$T$17:$T$54,0))) -> 0 | G13: 0 | I13: 0
A14: 557 | B14: 7.105427358e-15 | D14: Clearing Accounts | E14: 260489.2292 | F14: =IF(D14="Uncollectible Accounts - Gas Cost",_xlfn.XLOOKUP("Uncollectible-Gas Cost",'WPD-2.4.B FTP O&M by Category'!$B$17:$B$54,'WPD-2.4.B FTP O&M by Category'!$T$17:$T$54,0),IF(D14="Uncollectible Accounts - Non-Gas Cost",_xlfn.XLOOKUP("Uncollectible-Non-Gas Cost",'WPD-2.4.B FTP O&M by Category'!$B$17:$B$54,'WPD-2.4.B FTP O&M by Category'!$T$17:$T$54,0),_xlfn.XLOOKUP(D14,'WPD-2.4.B FTP O&M by Category'!$B$17:$B$54,'WPD-2.4.B FTP O&M by Category'!$T$17:$T$54,0))) -> 260489.2292 | G14: 0 | I14: 0
A15: 569 | B15: 0 | D15: Commission Fees | E15: -34621.71 | F15: =IF(D15="Uncollectible Accounts - Gas Cost",_xlfn.XLOOKUP("Uncollectible-Gas Cost",'WPD-2.4.B FTP O&M by Category'!$B$17:$B$54,'WPD-2.4.B FTP O&M by Category'!$T$17:$T$54,0),IF(D15="Uncollectible Accounts - Non-Gas Cost",_xlfn.XLOOKUP("Uncollectible-Non-Gas Cost",'WPD-2.4.B FTP O&M by Category'!$B$17:$B$54,'WPD-2.4.B FTP O&M by Category'!$T$17:$T$54,0),_xlfn.XLOOKUP(D15,'WPD-2.4.B FTP O&M by Category'!$B$17:$B$54,'WPD-2.4.B FTP O&M by Category'!$T$17:$T$54,0))) -> -34621.71 | G15: 0 | I15: 0
A16: 582 | B16: 0 | D16: Corporate Insurance | E16: 46702.54939 | F16: =IF(D16="Uncollectible Accounts - Gas Cost",_xlfn.XLOOKUP("Uncollectible-Gas Cost",'WPD-2.4.B FTP O&M by Category'!$B$17:$B$54,'WPD-2.4.B FTP O&M by Category'!$T$17:$T$54,0),IF(D16="Uncollectible Accounts - Non-Gas Cost",_xlfn.XLOOKUP("Uncollectible-Non-Gas Cost",'WPD-2.4.B FTP O&M by Category'!$B$17:$B$54,'WPD-2.4.B FTP O&M by Category'!$T$17:$T$54,0),_xlfn.XLOOKUP(D16,'WPD-2.4.B FTP O&M by Category'!$B$17:$B$54,'WPD-2.4.B FTP O&M by Category'!$T$17:$T$54,0))) -> 46702.54939 | G16: 0 | I16: 2.110027708e-10
A17: 588 | B17: 0 | D17: Corporate Service Bill | E17: -1155903.196 | F17: =IF(D17="Uncollectible Accounts - Gas Cost",_xlfn.XLOOKUP("Uncollectible-Gas Cost",'WPD-2.4.B FTP O&M by Category'!$B$17:$B$54,'WPD-2.4.B FTP O&M by Category'!$T$17:$T$54,0),IF(D17="Uncollectible Accounts - Non-Gas Cost",_xlfn.XLOOKUP("Uncollectible-Non-Gas Cost",'WPD-2.4.B FTP O&M by Category'!$B$17:$B$54,'WPD-2.4.B FTP O&M by Category'!$T$17:$T$54,0),_xlfn.XLOOKUP(D17,'WPD-2.4.B FTP O&M by Category'!$B$17:$B$54,'WPD-2.4.B FTP O&M by Category'!$T$17:$T$54,0))) -> -1155903.196 | G17: 0 | I17: -2.793967724e-09
A18: 594 | B18: 0 | D18: Dues & Donations | E18: 5747.31 | F18: =IF(D18="Uncollectible Accounts - Gas Cost",_xlfn.XLOOKUP("Uncollectible-Gas Cost",'WPD-2.4.B FTP O&M by Category'!$B$17:$B$54,'WPD-2.4.B FTP O&M by Category'!$T$17:$T$54,0),IF(D18="Uncollectible Accounts - Non-Gas Cost",_xlfn.XLOOKUP("Uncollectible-Non-Gas Cost",'WPD-2.4.B FTP O&M by Category'!$B$17:$B$54,'WPD-2.4.B FTP O&M by Category'!$T$17:$T$54,0),_xlfn.XLOOKUP(D18,'WPD-2.4.B FTP O&M by Category'!$B$17:$B$54,'WPD-2.4.B FTP O&M by Category'!$T$17:$T$54,0))) -> 5747.31 | G18: 0 | I18: 1.455191523e-11
A19: 742 | B19: 0 | D19: Employee Expenses | E19: 45436.55797 | F19: =IF(D19="Uncollectible Accounts - Gas Cost",_xlfn.XLOOKUP("Uncollectible-Gas Cost",'WPD-2.4.B FTP O&M by Category'!$B$17:$B$54,'WPD-2.4.B FTP O&M by Category'!$T$17:$T$54,0),IF(D19="Uncollectible Accounts - Non-Gas Cost",_xlfn.XLOOKUP("Uncollectible-Non-Gas Cost",'WPD-2.4.B FTP O&M by Category'!$B$17:$B$54,'WPD-2.4.B FTP O&M by Category'!$T$17:$T$54,0),_xlfn.XLOOKUP(D19,'WPD-2.4.B FTP O&M by Category'!$B$17:$B$54,'WPD-2.4.B FTP O&M by Category'!$T$17:$T$54,0))) -> 45436.55797 | G19: =ROUND(E19-F19,0) -> 0 | I19: 0
A20: 764 | B20: 0 | D20: Employees' Insurance Plans | E20: 115285.506 | F20: =IF(D20="Uncollectible Accounts - Gas Cost",_xlfn.XLOOKUP("Uncollectible-Gas Cost",'WPD-2.4.B FTP O&M by Category'!$B$17:$B$54,'WPD-2.4.B FTP O&M by Category'!$T$17:$T$54,0),IF(D20="Uncollectible Accounts - Non-Gas Cost",_xlfn.XLOOKUP("Uncollectible-Non-Gas Cost",'WPD-2.4.B FTP O&M by Category'!$B$17:$B$54,'WPD-2.4.B FTP O&M by Category'!$T$17:$T$54,0),_xlfn.XLOOKUP(D20,'WPD-2.4.B FTP O&M by Category'!$B$17:$B$54,'WPD-2.4.B FTP O&M by Category'!$T$17:$T$54,0))) -> 115285.506 | G20: 0 | I20: 3.637978807e-10
A21: 807 | B21: 151979.1793 | D21: Energy Assistance Program Tracker | E21: -1688.873955 | F21: =IF(D21="Uncollectible Accounts - Gas Cost",_xlfn.XLOOKUP("Uncollectible-Gas Cost",'WPD-2.4.B FTP O&M by Category'!$B$17:$B$54,'WPD-2.4.B FTP O&M by Category'!$T$17:$T$54,0),IF(D21="Uncollectible Accounts - Non-Gas Cost",_xlfn.XLOOKUP("Uncollectible-Non-Gas Cost",'WPD-2.4.B FTP O&M by Category'!$B$17:$B$54,'WPD-2.4.B FTP O&M by Category'!$T$17:$T$54,0),_xlfn.XLOOKUP(D21,'WPD-2.4.B FTP O&M by Category'!$B$17:$B$54,'WPD-2.4.B FTP O&M by Category'!$T$17:$T$54,0))) -> -1688.873955 | G21: 0 | I21: 0
A22: 818 | B22: 0 | D22: Incentive Compensation | E22: -473288.1406 | F22: =IF(D22="Uncollectible Accounts - Gas Cost",_xlfn.XLOOKUP("Uncollectible-Gas Cost",'WPD-2.4.B FTP O&M by Category'!$B$17:$B$54,'WPD-2.4.B FTP O&M by Category'!$T$17:$T$54,0),IF(D22="Uncollectible Accounts - Non-Gas Cost",_xlfn.XLOOKUP("Uncollectible-Non-Gas Cost",'WPD-2.4.B FTP O&M by Category'!$B$17:$B$54,'WPD-2.4.B FTP O&M by Category'!$T$17:$T$54,0),_xlfn.XLOOKUP(D22,'WPD-2.4.B FTP O&M by Category'!$B$17:$B$54,'WPD-2.4.B FTP O&M by Category'!$T$17:$T$54,0))) -> -473288.1406 | G22: 0 | I22: 0
A23: 823 | B23: 0 | D23: Injuries & Damages | E23: 72679.44214 | F23: =IF(D23="Uncollectible Accounts - Gas Cost",_xlfn.XLOOKUP("Uncollectible-Gas Cost",'WPD-2.4.B FTP O&M by Category'!$B$17:$B$54,'WPD-2.4.B FTP O&M by Category'!$T$17:$T$54,0),IF(D23="Uncollectible Accounts - Non-Gas Cost",_xlfn.XLOOKUP("Uncollectible-Non-Gas Cost",'WPD-2.4.B FTP O&M by Category'!$B$17:$B$54,'WPD-2.4.B FTP O&M by Category'!$T$17:$T$54,0),_xlfn.XLOOKUP(D23,'WPD-2.4.B FTP O&M by Category'!$B$17:$B$54,'WPD-2.4.B FTP O&M by Category'!$T$17:$T$54,0))) -> 72679.44214 | G23: 0 | I23: 0
A24: 825 | B24: 0 | D24: Labor | E24: -449236.584 | F24: =IF(D24="Uncollectible Accounts - Gas Cost",_xlfn.XLOOKUP("Uncollectible-Gas Cost",'WPD-2.4.B FTP O&M by Category'!$B$17:$B$54,'WPD-2.4.B FTP O&M by Category'!$T$17:$T$54,0),IF(D24="Uncollectible Accounts - Non-Gas Cost",_xlfn.XLOOKUP("Uncollectible-Non-Gas Cost",'WPD-2.4.B FTP O&M by Category'!$B$17:$B$54,'WPD-2.4.B FTP O&M by Category'!$T$17:$T$54,0),_xlfn.XLOOKUP(D24,'WPD-2.4.B FTP O&M by Category'!$B$17:$B$54,'WPD-2.4.B FTP O&M by Category'!$T$17:$T$54,0))) -> -449236.584 | G24: 0 | I24: -7.566995919e-10
A25: 834 | B25: 0 | D25: Leases Building & Land | E25: -25760.44512 | F25: =IF(D25="Uncollectible Accounts - Gas Cost",_xlfn.XLOOKUP("Uncollectible-Gas Cost",'WPD-2.4.B FTP O&M by Category'!$B$17:$B$54,'WPD-2.4.B FTP O&M by Category'!$T$17:$T$54,0),IF(D25="Uncollectible Accounts - Non-Gas Cost",_xlfn.XLOOKUP("Uncollectible-Non-Gas Cost",'WPD-2.4.B FTP O&M by Category'!$B$17:$B$54,'WPD-2.4.B FTP O&M by Category'!$T$17:$T$54,0),_xlfn.XLOOKUP(D25,'WPD-2.4.B FTP O&M by Category'!$B$17:$B$54,'WPD-2.4.B FTP O&M by Category'!$T$17:$T$54,0))) -> -25760.44512 | G25: 0 | I25: 2.910383046e-11
A26: 840 | B26: 0 | D26: Leases Other | E26: -1122.2782 | F26: =IF(D26="Uncollectible Accounts - Gas Cost",_xlfn.XLOOKUP("Uncollectible-Gas Cost",'WPD-2.4.B FTP O&M by Category'!$B$17:$B$54,'WPD-2.4.B FTP O&M by Category'!$T$17:$T$54,0),IF(D26="Uncollectible Accounts - Non-Gas Cost",_xlfn.XLOOKUP("Uncollectible-Non-Gas Cost",'WPD-2.4.B FTP O&M by Category'!$B$17:$B$54,'WPD-2.4.B FTP O&M by Category'!$T$17:$T$54,0),_xlfn.XLOOKUP(D26,'WPD-2.4.B FTP O&M by Category'!$B$17:$B$54,'WPD-2.4.B FTP O&M by Category'!$T$17:$T$54,0))) -> -1122.2782 | G26: 0 | I26: 1.068656275e-11
A27: 841 | B27: 0 | D27: Legal Fees | E27: 0 | F27: =IF(D27="Uncollectible Accounts - Gas Cost",_xlfn.XLOOKUP("Uncollectible-Gas Cost",'WPD-2.4.B FTP O&M by Category'!$B$17:$B$54,'WPD-2.4.B FTP O&M by Category'!$T$17:$T$54,0),IF(D27="Uncollectible Accounts - Non-Gas Cost",_xlfn.XLOOKUP("Uncollectible-Non-Gas Cost",'WPD-2.4.B FTP O&M by Category'!$B$17:$B$54,'WPD-2.4.B FTP O&M by Category'!$T$17:$T$54,0),_xlfn.XLOOKUP(D27,'WPD-2.4.B FTP O&M by Category'!$B$17:$B$54,'WPD-2.4.B FTP O&M by Category'!$T$17:$T$54,0))) -> 0 | G27: 0 | I27: 0
A28: 852 | B28: 1535.064328 | D28: Materials & Supplies | E28: -267075.4257 | F28: =IF(D28="Uncollectible Accounts - Gas Cost",_xlfn.XLOOKUP("Uncollectible-Gas Cost",'WPD-2.4.B FTP O&M by Category'!$B$17:$B$54,'WPD-2.4.B FTP O&M by Category'!$T$17:$T$54,0),IF(D28="Uncollectible Accounts - Non-Gas Cost",_xlfn.XLOOKUP("Uncollectible-Non-Gas Cost",'WPD-2.4.B FTP O&M by Category'!$B$17:$B$54,'WPD-2.4.B FTP O&M by Category'!$T$17:$T$54,0),_xlfn.XLOOKUP(D28,'WPD-2.4.B FTP O&M by Category'!$B$17:$B$54,'WPD-2.4.B FTP O&M by Category'!$T$17:$T$54,0))) -> -267075.4257 | G28: 0 | I28: -5.820766091e-10
A29: 859 | B29: 0 | D29: Miscellaneous & Other | E29: -135696.2009 | F29: =IF(D29="Uncollectible Accounts - Gas Cost",_xlfn.XLOOKUP("Uncollectible-Gas Cost",'WPD-2.4.B FTP O&M by Category'!$B$17:$B$54,'WPD-2.4.B FTP O&M by Category'!$T$17:$T$54,0),IF(D29="Uncollectible Accounts - Non-Gas Cost",_xlfn.XLOOKUP("Uncollectible-Non-Gas Cost",'WPD-2.4.B FTP O&M by Category'!$B$17:$B$54,'WPD-2.4.B FTP O&M by Category'!$T$17:$T$54,0),_xlfn.XLOOKUP(D29,'WPD-2.4.B FTP O&M by Category'!$B$17:$B$54,'WPD-2.4.B FTP O&M by Category'!$T$17:$T$54,0))) -> -135696.2009 | G29: 0 | I29: 0
A30: 865 | B30: 0 | D30: Miscellaneous Revenue Adjustment | E30: -42376.3385 | F30: =IF(D30="Uncollectible Accounts - Gas Cost",_xlfn.XLOOKUP("Uncollectible-Gas Cost",'WPD-2.4.B FTP O&M by Category'!$B$17:$B$54,'WPD-2.4.B FTP O&M by Category'!$T$17:$T$54,0),IF(D30="Uncollectible Accounts - Non-Gas Cost",_xlfn.XLOOKUP("Uncollectible-Non-Gas Cost",'WPD-2.4.B FTP O&M by Category'!$B$17:$B$54,'WPD-2.4.B FTP O&M by Category'!$T$17:$T$54,0),_xlfn.XLOOKUP(D30,'WPD-2.4.B FTP O&M by Category'!$B$17:$B$54,'WPD-2.4.B FTP O&M by Category'!$T$17:$T$54,0))) -> -42376.3385 | G30: 0 | I30: 0
A31: 866 | B31: 0 | D31: Miscellaneous Revenue Tracker | E31: -26145.67116 | F31: =IF(D31="Uncollectible Accounts - Gas Cost",_xlfn.XLOOKUP("Uncollectible-Gas Cost",'WPD-2.4.B FTP O&M by Category'!$B$17:$B$54,'WPD-2.4.B FTP O&M by Category'!$T$17:$T$54,0),IF(D31="Uncollectible Accounts - Non-Gas Cost",_xlfn.XLOOKUP("Uncollectible-Non-Gas Cost",'WPD-2.4.B FTP O&M by Category'!$B$17:$B$54,'WPD-2.4.B FTP O&M by Category'!$T$17:$T$54,0),_xlfn.XLOOKUP(D31,'WPD-2.4.B FTP O&M by Category'!$B$17:$B$54,'WPD-2.4.B FTP O&M by Category'!$T$17:$T$54,0))) -> -26145.67116 | G31: 0 | I31: 0
A32: 867 | B32: 0 | D32: OPEB Expenses (Non-Service) | E32: -27654.33 | F32: =IF(D32="Uncollectible Accounts - Gas Cost",_xlfn.XLOOKUP("Uncollectible-Gas Cost",'WPD-2.4.B FTP O&M by Category'!$B$17:$B$54,'WPD-2.4.B FTP O&M by Category'!$T$17:$T$54,0),IF(D32="Uncollectible Accounts - Non-Gas Cost",_xlfn.XLOOKUP("Uncollectible-Non-Gas Cost",'WPD-2.4.B FTP O&M by Category'!$B$17:$B$54,'WPD-2.4.B FTP O&M by Category'!$T$17:$T$54,0),_xlfn.XLOOKUP(D32,'WPD-2.4.B FTP O&M by Category'!$B$17:$B$54,'WPD-2.4.B FTP O&M by Category'!$T$17:$T$54,0))) -> -27654.33 | G32: 0 | I32: 0
A33: 870 | B33: -225450.8343 | D33: OPEB Expenses (Service) | E33: -4644.089992 | F33: =IF(D33="Uncollectible Accounts - Gas Cost",_xlfn.XLOOKUP("Uncollectible-Gas Cost",'WPD-2.4.B FTP O&M by Category'!$B$17:$B$54,'WPD-2.4.B FTP O&M by Category'!$T$17:$T$54,0),IF(D33="Uncollectible Accounts - Non-Gas Cost",_xlfn.XLOOKUP("Uncollectible-Non-Gas Cost",'WPD-2.4.B FTP O&M by Category'!$B$17:$B$54,'WPD-2.4.B FTP O&M by Category'!$T$17:$T$54,0),_xlfn.XLOOKUP(D33,'WPD-2.4.B FTP O&M by Category'!$B$17:$B$54,'WPD-2.4.B FTP O&M by Category'!$T$17:$T$54,0))) -> -4644.089992 | G33: 0 | I33: 0
A34: 871 | B34: -30361.98707 | D34: Outside Services | E34: 874327.3903 | F34: =IF(D34="Uncollectible Accounts - Gas Cost",_xlfn.XLOOKUP("Uncollectible-Gas Cost",'WPD-2.4.B FTP O&M by Category'!$B$17:$B$54,'WPD-2.4.B FTP O&M by Category'!$T$17:$T$54,0),IF(D34="Uncollectible Accounts - Non-Gas Cost",_xlfn.XLOOKUP("Uncollectible-Non-Gas Cost",'WPD-2.4.B FTP O&M by Category'!$B$17:$B$54,'WPD-2.4.B FTP O&M by Category'!$T$17:$T$54,0),_xlfn.XLOOKUP(D34,'WPD-2.4.B FTP O&M by Category'!$B$17:$B$54,'WPD-2.4.B FTP O&M by Category'!$T$17:$T$54,0))) -> 874327.3903 | G34: 0 | I34: 0
A35: 874 | B35: 340979.5904 | D35: Pension Expenses (Non-Service) | E35: -255115.18 | F35: =IF(D35="Uncollectible Accounts - Gas Cost",_xlfn.XLOOKUP("Uncollectible-Gas Cost",'WPD-2.4.B FTP O&M by Category'!$B$17:$B$54,'WPD-2.4.B FTP O&M by Category'!$T$17:$T$54,0),IF(D35="Uncollectible Accounts - Non-Gas Cost",_xlfn.XLOOKUP("Uncollectible-Non-Gas Cost",'WPD-2.4.B FTP O&M by Category'!$B$17:$B$54,'WPD-2.4.B FTP O&M by Category'!$T$17:$T$54,0),_xlfn.XLOOKUP(D35,'WPD-2.4.B FTP O&M by Category'!$B$17:$B$54,'WPD-2.4.B FTP O&M by Category'!$T$17:$T$54,0))) -> -255115.18 | G35: 0 | I35: 0
A36: 875 | B36: 18758.59655 | D36: Pension Expenses (Service) | E36: -24082.36 | F36: =IF(D36="Uncollectible Accounts - Gas Cost",_xlfn.XLOOKUP("Uncollectible-Gas Cost",'WPD-2.4.B FTP O&M by Category'!$B$17:$B$54,'WPD-2.4.B FTP O&M by Category'!$T$17:$T$54,0),IF(D36="Uncollectible Accounts - Non-Gas Cost",_xlfn.XLOOKUP("Uncollectible-Non-Gas Cost",'WPD-2.4.B FTP O&M by Category'!$B$17:$B$54,'WPD-2.4.B FTP O&M by Category'!$T$17:$T$54,0),_xlfn.XLOOKUP(D36,'WPD-2.4.B FTP O&M by Category'!$B$17:$B$54,'WPD-2.4.B FTP O&M by Category'!$T$17:$T$54,0))) -> -24082.36 | G36: 0 | I36: 0
A37: 876 | B37: -10050.64172 | D37: Post-Employment Benefits - FAS106 | E37: 0 | F37: =IF(D37="Uncollectible Accounts - Gas Cost",_xlfn.XLOOKUP("Uncollectible-Gas Cost",'WPD-2.4.B FTP O&M by Category'!$B$17:$B$54,'WPD-2.4.B FTP O&M by Category'!$T$17:$T$54,0),IF(D37="Uncollectible Accounts - Non-Gas Cost",_xlfn.XLOOKUP("Uncollectible-Non-Gas Cost",'WPD-2.4.B FTP O&M by Category'!$B$17:$B$54,'WPD-2.4.B FTP O&M by Category'!$T$17:$T$54,0),_xlfn.XLOOKUP(D37,'WPD-2.4.B FTP O&M by Category'!$B$17:$B$54,'WPD-2.4.B FTP O&M by Category'!$T$17:$T$54,0))) -> 0 | G37: 0 | I37: 0
A38: 878 | B38: 73062.97582 | D38: Post-Employment Benefits - FAS112 | E38: -26485.72 | F38: =IF(D38="Uncollectible Accounts - Gas Cost",_xlfn.XLOOKUP("Uncollectible-Gas Cost",'WPD-2.4.B FTP O&M by Category'!$B$17:$B$54,'WPD-2.4.B FTP O&M by Category'!$T$17:$T$54,0),IF(D38="Uncollectible Accounts - Non-Gas Cost",_xlfn.XLOOKUP("Uncollectible-Non-Gas Cost",'WPD-2.4.B FTP O&M by Category'!$B$17:$B$54,'WPD-2.4.B FTP O&M by Category'!$T$17:$T$54,0),_xlfn.XLOOKUP(D38,'WPD-2.4.B FTP O&M by Category'!$B$17:$B$54,'WPD-2.4.B FTP O&M by Category'!$T$17:$T$54,0))) -> -26485.72 | G38: 0 | I38: 0
A39: 879 | B39: -306401.0386 | D39: Profit Sharing | E39: -70612.61 | F39: =IF(D39="Uncollectible Accounts - Gas Cost",_xlfn.XLOOKUP("Uncollectible-Gas Cost",'WPD-2.4.B FTP O&M by Category'!$B$17:$B$54,'WPD-2.4.B FTP O&M by Category'!$T$17:$T$54,0),IF(D39="Uncollectible Accounts - Non-Gas Cost",_xlfn.XLOOKUP("Uncollectible-Non-Gas Cost",'WPD-2.4.B FTP O&M by Category'!$B$17:$B$54,'WPD-2.4.B FTP O&M by Category'!$T$17:$T$54,0),_xlfn.XLOOKUP(D39,'WPD-2.4.B FTP O&M by Category'!$B$17:$B$54,'WPD-2.4.B FTP O&M by Category'!$T$17:$T$54,0))) -> -70612.61 | G39: 0 | I39: 0
A40: 880 | B40: 125757.5937 | D40: Stock Compensation | E40: 92085.68107 | F40: =IF(D40="Uncollectible Accounts - Gas Cost",_xlfn.XLOOKUP("Uncollectible-Gas Cost",'WPD-2.4.B FTP O&M by Category'!$B$17:$B$54,'WPD-2.4.B FTP O&M by Category'!$T$17:$T$54,0),IF(D40="Uncollectible Accounts - Non-Gas Cost",_xlfn.XLOOKUP("Uncollectible-Non-Gas Cost",'WPD-2.4.B FTP O&M by Category'!$B$17:$B$54,'WPD-2.4.B FTP O&M by Category'!$T$17:$T$54,0),_xlfn.XLOOKUP(D40,'WPD-2.4.B FTP O&M by Category'!$B$17:$B$54,'WPD-2.4.B FTP O&M by Category'!$T$17:$T$54,0))) -> 92085.68107 | G40: 0 | I40: -3.055902198e-10
A41: 881 | B41: -883.3504829 | D41: Uncollectible Accounts - Gas Cost | E41: 15546.08518 | F41: =IF(D41="Uncollectible Accounts - Gas Cost",_xlfn.XLOOKUP("Uncollectible-Gas Cost",'WPD-2.4.B FTP O&M by Category'!$B$17:$B$54,'WPD-2.4.B FTP O&M by Category'!$T$17:$T$54,0),IF(D41="Uncollectible Accounts - Non-Gas Cost",_xlfn.XLOOKUP("Uncollectible-Non-Gas Cost",'WPD-2.4.B FTP O&M by Category'!$B$17:$B$54,'WPD-2.4.B FTP O&M by Category'!$T$17:$T$54,0),_xlfn.XLOOKUP(D41,'WPD-2.4.B FTP O&M by Category'!$B$17:$B$54,'WPD-2.4.B FTP O&M by Category'!$T$17:$T$54,0))) -> 15546.08518 | G41: 0 | I41: 0
A42: 885 | B42: 3362.73225 | D42: Uncollectible Accounts - Non-Gas Cost | E42: 13017.82384 | F42: =IF(D42="Uncollectible Accounts - Gas Cost",_xlfn.XLOOKUP("Uncollectible-Gas Cost",'WPD-2.4.B FTP O&M by Category'!$B$17:$B$54,'WPD-2.4.B FTP O&M by Category'!$T$17:$T$54,0),IF(D42="Uncollectible Accounts - Non-Gas Cost",_xlfn.XLOOKUP("Uncollectible-Non-Gas Cost",'WPD-2.4.B FTP O&M by Category'!$B$17:$B$54,'WPD-2.4.B FTP O&M by Category'!$T$17:$T$54,0),_xlfn.XLOOKUP(D42,'WPD-2.4.B FTP O&M by Category'!$B$17:$B$54,'WPD-2.4.B FTP O&M by Category'!$T$17:$T$54,0))) -> 13017.82384 | G42: 0 | I42: 0
A43: 886 | B43: -72082.64535 | D43: Utilities | E43: -12858.32792 | F43: =IF(D43="Uncollectible Accounts - Gas Cost",_xlfn.XLOOKUP("Uncollectible-Gas Cost",'WPD-2.4.B FTP O&M by Category'!$B$17:$B$54,'WPD-2.4.B FTP O&M by Category'!$T$17:$T$54,0),IF(D43="Uncollectible Accounts - Non-Gas Cost",_xlfn.XLOOKUP("Uncollectible-Non-Gas Cost",'WPD-2.4.B FTP O&M by Category'!$B$17:$B$54,'WPD-2.4.B FTP O&M by Category'!$T$17:$T$54,0),_xlfn.XLOOKUP(D43,'WPD-2.4.B FTP O&M by Category'!$B$17:$B$54,'WPD-2.4.B FTP O&M by Category'!$T$17:$T$54,0))) -> -12858.32792 | G43: 0 | I43: 2.692104317e-10
A44: 887 | B44: 140289.4617 | D44: Grand Total | E44: -1468197.878 | F44: =SUM(F9:F43) -> -1468197.878 | G44: 0
A45: 889 | B45: 138474.0298
A46: 890 | B46: -10111.02633
A47: 892 | B47: -116625.275
A48: 893 | B48: -22029.8328
A49: 894 | B49: -55859.96595
A50: 901 | B50: 0
A51: 902 | B51: 48270.59243
A52: 903 | B52: 120864.8999
A53: 904 | B53: 26875.03507
A54: 905 | B54: 5385.932232
A55: 907 | B55: 0
A56: 908 | B56: -26145.67116
A57: 909 | B57: 1564.453414
A58: 910 | B58: -5059.481499
A59: 912 | B59: 64.20944916
A60: 913 | B60: 0
A61: 916 | B61: 0
A62: 920 | B62: -923734.7214
A63: 921 | B63: 3055.822195
A64: 923 | B64: 271711.3392
A65: 924 | B65: 3694.57762
A66: 925 | B66: 117606.3213
A67: 926 | B67: -413062.1225
A68: 928 | B68: -47583.07916
A69: 930.1 | B69: 2993.207469
A70: 930.2 | B70: -92412.85019
A71: 931 | B71: 4217.110738
A72: 932 | B72: -710843.7817
A73: 935 | B73: 0
A74: Grand Total | B74: -1468197.878
A77: 500 - 599 | B77: =SUM(B9:B18) -> -2.297959356
A78: 717 - 742 | B78: =B19 -> 0

Sheet INPUT - BPtoFTP O&M Allocates
A1: Base Period Expense by Cost Element by Account
A2: Base Period Starting Month, Year:
E3: Base Period | F3: FTP
A4: Key | B4: Cost Element Category | C4: FERC Account | D4: Total BP to FTP Adjustments | E4: Total TME Aug 2026 Unadj | F4: Total TME Dec 2027 Unadj
A5: =B5&C5 -> 401K500 | B5: 401K | C5: 500 | D5: =F5-E5 -> 0 | E5: 0 | F5: 0
A6: =B6&C6 -> 401K505 | B6: 401K | C6: 505 | D6: 0 | E6: 0 | F6: 0
A7: 401K535 | B7: 401K | C7: 535 | D7: 0 | E7: 0 | F7: 0
A8: 401K548 | B8: 401K | C8: 548 | D8: 0 | E8: 0 | F8: 0
A9: 401K552 | B9: 401K | C9: 552 | D9: 0 | E9: 0 | F9: 0
A10: 401K557 | B10: 401K | C10: 557 | D10: 0 | E10: 0 | F10: 0
A11: 401K569 | B11: 401K | C11: 569 | D11: 0 | E11: 0 | F11: 0
A12: 401K582 | B12: 401K | C12: 582 | D12: 0 | E12: 0 | F12: 0
A13: 401K588 | B13: 401K | C13: 588 | D13: 0 | E13: 0 | F13: 0
A14: 401K594 | B14: 401K | C14: 594 | D14: 0 | E14: 0 | F14: 0
A15: 401K742 | B15: 401K | C15: 742 | D15: 0 | E15: 0 | F15: 0
A16: 401K764 | B16: 401K | C16: 764 | D16: 0 | E16: 0 | F16: 0
A17: 401K807 | B17: 401K | C17: 807 | D17: 0 | E17: 0 | F17: 0
A18: 401K818 | B18: 401K | C18: 818 | D18: 0 | E18: 0 | F18: 0
A19: 401K823 | B19: 401K | C19: 823 | D19: 0 | E19: 0 | F19: 0
A20: 401K825 | B20: 401K | C20: 825 | D20: 0 | E20: 0 | F20: 0
A21: 401K834 | B21: 401K | C21: 834 | D21: 0 | E21: 0 | F21: 0
A22: 401K840 | B22: 401K | C22: 840 | D22: 0 | E22: 0 | F22: 0
A23: 401K841 | B23: 401K | C23: 841 | D23: 0 | E23: 0 | F23: 0
A24: 401K852 | B24: 401K | C24: 852 | D24: 0 | E24: 0 | F24: 0
A25: 401K859 | B25: 401K | C25: 859 | D25: 0 | E25: 0 | F25: 0
A26: 401K865 | B26: 401K | C26: 865 | D26: 0 | E26: 0 | F26: 0
A27: 401K866 | B27: 401K | C27: 866 | D27: 0 | E27: 0 | F27: 0
A28: 401K867 | B28: 401K | C28: 867 | D28: 0 | E28: 0 | F28: 0
A29: 401K870 | B29: 401K | C29: 870 | D29: 0 | E29: 0 | F29: 0
A30: 401K871 | B30: 401K | C30: 871 | D30: 0 | E30: 0 | F30: 0
A31: 401K874 | B31: 401K | C31: 874 | D31: 0 | E31: 0 | F31: 0
A32: 401K875 | B32: 401K | C32: 875 | D32: 0 | E32: 0 | F32: 0
A33: 401K876 | B33: 401K | C33: 876 | D33: 0 | E33: 0 | F33: 0
A34: 401K878 | B34: 401K | C34: 878 | D34: 0 | E34: 0 | F34: 0
A35: 401K879 | B35: 401K | C35: 879 | D35: 0 | E35: 0 | F35: 0
A36: 401K880 | B36: 401K | C36: 880 | D36: 1.160578923 | E36: 10.15851131 | F36: 11.31909023
A37: 401K881 | B37: 401K | C37: 881 | D37: 0 | E37: 0 | F37: 0
A38: 401K885 | B38: 401K | C38: 885 | D38: 0 | E38: 0 | F38: 0
A39: 401K886 | B39: 401K | C39: 886 | D39: 0 | E39: 0 | F39: 0
A40: 401K887 | B40: 401K | C40: 887 | D40: 0 | E40: 0 | F40: 0
A41: 401K889 | B41: 401K | C41: 889 | D41: 0 | E41: 0 | F41: 0
A42: 401K890 | B42: 401K | C42: 890 | D42: 0 | E42: 0 | F42: 0
A43: 401K892 | B43: 401K | C43: 892 | D43: 0 | E43: 0 | F43: 0
A44: 401K893 | B44: 401K | C44: 893 | D44: 0 | E44: 0 | F44: 0
A45: 401K894 | B45: 401K | C45: 894 | D45: 0 | E45: 0 | F45: 0
A46: 401K901 | B46: 401K | C46: 901 | D46: 0 | E46: 0 | F46: 0
A47: 401K902 | B47: 401K | C47: 902 | D47: 0 | E47: 0 | F47: 0
A48: 401K903 | B48: 401K | C48: 903 | D48: 0 | E48: 0 | F48: 0
A49: 401K904 | B49: 401K | C49: 904 | D49: 0 | E49: 0 | F49: 0
A50: 401K905 | B50: 401K | C50: 905 | D50: 0 | E50: 0 | F50: 0
A51: 401K907 | B51: 401K | C51: 907 | D51: 0 | E51: 0 | F51: 0
A52: 401K908 | B52: 401K | C52: 908 | D52: 0 | E52: 0 | F52: 0
A53: 401K909 | B53: 401K | C53: 909 | D53: 0 | E53: 0 | F53: 0
A54: 401K910 | B54: 401K | C54: 910 | D54: 0 | E54: 0 | F54: 0
A55: 401K912 | B55: 401K | C55: 912 | D55: 0 | E55: 0 | F55: 0
A56: 401K913 | B56: 401K | C56: 913 | D56: 0 | E56: 0 | F56: 0
A57: 401K916 | B57: 401K | C57: 916 | D57: 0 | E57: 0 | F57: 0
A58: 401K920 | B58: 401K | C58: 920 | D58: 0 | E58: 0 | F58: 0
A59: 401K921 | B59: 401K | C59: 921 | D59: 0 | E59: 0 | F59: 0
A60: 401K923 | B60: 401K | C60: 923 | D60: 0 | E60: 0 | F60: 0
A61: 401K924 | B61: 401K | C61: 924 | D61: 0 | E61: 0 | F61: 0
A62: 401K925 | B62: 401K | C62: 925 | D62: 0 | E62: 0 | F62: 0
A63: 401K926 | B63: 401K | C63: 926 | D63: 26081.54649 | E63: 815247.1344 | F63: 841328.6809
A64: 401K928 | B64: 401K | C64: 928 | D64: 0 | E64: 0 | F64: 0
A65: 401K930.1 | B65: 401K | C65: 930.1 | D65: 0 | E65: 0 | F65: 0
A66: 401K930.2 | B66: 401K | C66: 930.2 | D66: 0 | E66: 0 | F66: 0
A67: 401K931 | B67: 401K | C67: 931 | D67: 0 | E67: 0 | F67: 0
A68: 401K932 | B68: 401K | C68: 932 | D68: 0 | E68: 0 | F68: 0
A69: 401K935 | B69: 401K | C69: 935 | D69: =F69-E69 -> 0 | E69: 0 | F69: 0
A70: =B70&C70 -> 401KTotal | B70: 401K | C70: Total | D70: 26082.70707 | E70: 815257.2929 | F70: 841340
A71: Advertising Expense500 | B71: Advertising Expense | C71: 500 | D71: 0 | E71: 0 | F71: 0
A72: Advertising Expense505 | B72: Advertising Expense | C72: 505 | D72: 0 | E72: 0 | F72: 0
A73: Advertising Expense535 | B73: Advertising Expense | C73: 535 | D73: 0 | E73: 0 | F73: 0
A74: Advertising Expense548 | B74: Advertising Expense | C74: 548 | D74: 0 | E74: 0 | F74: 0
A75: Advertising Expense552 | B75: Advertising Expense | C75: 552 | D75: 0 | E75: 0 | F75: 0
A76: Advertising Expense557 | B76: Advertising Expense | C76: 557 | D76: 0 | E76: 0 | F76: 0
A77: Advertising Expense569 | B77: Advertising Expense | C77: 569 | D77: 0 | E77: 0 | F77: 0
A78: Advertising Expense582 | B78: Advertising Expense | C78: 582 | D78: 0 | E78: 0 | F78: 0
A79: Advertising Expense588 | B79: Advertising Expense | C79: 588 | D79: 0 | E79: 0 | F79: 0
A80: Advertising Expense594 | B80: Advertising Expense | C80: 594 | D80: 0 | E80: 0 | F80: 0
A81: Advertising Expense742 | B81: Advertising Expense | C81: 742 | D81: 0 | E81: 0 | F81: 0
A82: Advertising Expense764 | B82: Advertising Expense | C82: 764 | D82: 0 | E82: 0 | F82: 0
A83: Advertising Expense807 | B83: Advertising Expense | C83: 807 | D83: 0 | E83: 0 | F83: 0
A84: Advertising Expense818 | B84: Advertising Expense | C84: 818 | D84: 0 | E84: 0 | F84: 0
A85: Advertising Expense823 | B85: Advertising Expense | C85: 823 | D85: 0 | E85: 0 | F85: 0
A86: Advertising Expense825 | B86: Advertising Expense | C86: 825 | D86: 0 | E86: 0 | F86: 0
A87: Advertising Expense834 | B87: Advertising Expense | C87: 834 | D87: 0 | E87: 0 | F87: 0
A88: Advertising Expense840 | B88: Advertising Expense | C88: 840 | D88: 0 | E88: 0 | F88: 0
A89: Advertising Expense841 | B89: Advertising Expense | C89: 841 | D89: 0 | E89: 0 | F89: 0
A90: Advertising Expense852 | B90: Advertising Expense | C90: 852 | D90: 0 | E90: 0 | F90: 0
A91: Advertising Expense859 | B91: Advertising Expense | C91: 859 | D91: 0 | E91: 0 | F91: 0
A92: Advertising Expense865 | B92: Advertising Expense | C92: 865 | D92: 0 | E92: 0 | F92: 0
A93: Advertising Expense866 | B93: Advertising Expense | C93: 866 | D93: 0 | E93: 0 | F93: 0
A94: Advertising Expense867 | B94: Advertising Expense | C94: 867 | D94: 0 | E94: 0 | F94: 0
A95: Advertising Expense870 | B95: Advertising Expense | C95: 870 | D95: 0 | E95: 0 | F95: 0
A96: Advertising Expense871 | B96: Advertising Expense | C96: 871 | D96: 0 | E96: 0 | F96: 0
A97: Advertising Expense874 | B97: Advertising Expense | C97: 874 | D97: -49.58389589 | E97: 84.73610411 | F97: 35.15220822
A98: Advertising Expense875 | B98: Advertising Expense | C98: 875 | D98: 0 | E98: 0 | F98: 0
A99: Advertising Expense876 | B99: Advertising Expense | C99: 876 | D99: 0 | E99: 0 | F99: 0
A100: Advertising Expense878 | B100: Advertising Expense | C100: 878 | D100: -49.58389589 | E100: 84.73610411 | F100: 35.15220822
A101: Advertising Expense879 | B101: Advertising Expense | C101: 879 | D101: -37.18792192 | E101: 63.55207808 | F101: 26.36415617
A102: Advertising Expense880 | B102: Advertising Expense | C102: 880 | D102: -12.39597397 | E102: 21.18402603 | F102: 8.788052056
A103: Advertising Expense881 | B103: Advertising Expense | C103: 881 | D103: 0 | E103: 0 | F103: 0
A104: Advertising Expense885 | B104: Advertising Expense | C104: 885 | D104: 0 | E104: 0 | F104: 0
A105: Advertising Expense886 | B105: Advertising Expense | C105: 886 | D105: 0 | E105: 0 | F105: 0
A106: Advertising Expense887 | B106: Advertising Expense | C106: 887 | D106: -40.28876115 | E106: 68.85123885 | F106: 28.56247771
A107: Advertising Expense889 | B107: Advertising Expense | C107: 889 | D107: 0 | E107: 0 | F107: 0
A108: Advertising Expense890 | B108: Advertising Expense | C108: 890 | D108: 0 | E108: 0 | F108: 0
A109: Advertising Expense892 | B109: Advertising Expense | C109: 892 | D109: -12.39597397 | E109: 21.18402603 | F109: 8.788052056
A110: Advertising Expense893 | B110: Advertising Expense | C110: 893 | D110: 0 | E110: 0 | F110: 0
A111: Advertising Expense894 | B111: Advertising Expense | C111: 894 | D111: 0 | E111: 0 | F111: 0
A112: Advertising Expense901 | B112: Advertising Expense | C112: 901 | D112: 0 | E112: 0 | F112: 0
A113: Advertising Expense902 | B113: Advertising Expense | C113: 902 | D113: 0 | E113: 0 | F113: 0
A114: Advertising Expense903 | B114: Advertising Expense | C114: 903 | D114: -15.4968132 | E114: 26.4831868 | F114: 10.98637359
A115: Advertising Expense904 | B115: Advertising Expense | C115: 904 | D115: 0 | E115: 0 | F115: 0
A116: Advertising Expense905 | B116: Advertising Expense | C116: 905 | D116: 0 | E116: 0 | F116: 0
A117: Advertising Expense907 | B117: Advertising Expense | C117: 907 | D117: 0 | E117: 0 | F117: 0
A118: Advertising Expense908 | B118: Advertising Expense | C118: 908 | D118: 0 | E118: 0 | F118: 0
A119: Advertising Expense909 | B119: Advertising Expense | C119: 909 | D119: 0 | E119: 0 | F119: 0
A120: Advertising Expense910 | B120: Advertising Expense | C120: 910 | D120: 0 | E120: 0 | F120: 0
A121: Advertising Expense912 | B121: Advertising Expense | C121: 912 | D121: 0 | E121: 0 | F121: 0
A122: Advertising Expense913 | B122: Advertising Expense | C122: 913 | D122: 0 | E122: 0 | F122: 0
A123: Advertising Expense916 | B123: Advertising Expense | C123: 916 | D123: 0 | E123: 0 | F123: 0
A124: Advertising Expense920 | B124: Advertising Expense | C124: 920 | D124: 0 | E124: 0 | F124: 0
A125: Advertising Expense921 | B125: Advertising Expense | C125: 921 | D125: -70.87632527 | E125: 121.1236747 | F125: 50.24734945
A126: Advertising Expense923 | B126: Advertising Expense | C126: 923 | D126: 0 | E126: 0 | F126: 0
A127: Advertising Expense924 | B127: Advertising Expense | C127: 924 | D127: 0 | E127: 0 | F127: 0
A128: Advertising Expense925 | B128: Advertising Expense | C128: 925 | D128: 0 | E128: 0 | F128: 0
A129: Advertising Expense926 | B129: Advertising Expense | C129: 926 | D129: 0 | E129: 0 | F129: 0
A130: Advertising Expense928 | B130: Advertising Expense | C130: 928 | D130: 0 | E130: 0 | F130: 0
A131: Advertising Expense930.1 | B131: Advertising Expense | C131: 930.1 | D131: 0 | E131: 0 | F131: 0
A132: Advertising Expense930.2 | B132: Advertising Expense | C132: 930.2 | D132: -10526.39044 | E132: 19346.34956 | F132: 8819.959123
A133: Advertising Expense931 | B133: Advertising Expense | C133: 931 | D133: =F133-E133 -> 0 | E133: 0 | F133: 0
A134: =B134&C134 -> Advertising Expense932 | B134: Advertising Expense | C134: 932 | D134: 0 | E134: 0 | F134: 0
A135: Advertising Expense935 | B135: Advertising Expense | C135: 935 | D135: 0 | E135: 0 | F135: 0
A136: Advertising ExpenseTotal | B136: Advertising Expense | C136: Total | D136: -10814.2 | E136: 19838.2 | F136: 9024
A137: Amortizations500 | B137: Amortizations | C137: 500 | D137: 0 | E137: 0 | F137: 0
A138: Amortizations505 | B138: Amortizations | C138: 505 | D138: 0 | E138: 0 | F138: 0
A139: Amortizations535 | B139: Amortizations | C139: 535 | D139: 0 | E139: 0 | F139: 0
A140: Amortizations548 | B140: Amortizations | C140: 548 | D140: 0 | E140: 0 | F140: 0
A141: Amortizations552 | B141: Amortizations | C141: 552 | D141: 0 | E141: 0 | F141: 0
A142: Amortizations557 | B142: Amortizations | C142: 557 | D142: 0 | E142: 0 | F142: 0
A143: Amortizations569 | B143: Amortizations | C143: 569 | D143: 0 | E143: 0 | F143: 0
A144: Amortizations582 | B144: Amortizations | C144: 582 | D144: 0 | E144: 0 | F144: 0
A145: Amortizations588 | B145: Amortizations | C145: 588 | D145: 0 | E145: 0 | F145: 0
A146: Amortizations594 | B146: Amortizations | C146: 594 | D146: 0 | E146: 0 | F146: 0
A147: Amortizations742 | B147: Amortizations | C147: 742 | D147: 0 | E147: 0 | F147: 0
A148: Amortizations764 | B148: Amortizations | C148: 764 | D148: 0 | E148: 0 | F148: 0
A149: Amortizations807 | B149: Amortizations | C149: 807 | D149: 0 | E149: 0 | F149: 0
A150: Amortizations818 | B150: Amortizations | C150: 818 | D150: 0 | E150: 0 | F150: 0
A151: Amortizations823 | B151: Amortizations | C151: 823 | D151: 0 | E151: 0 | F151: 0
A152: Amortizations825 | B152: Amortizations | C152: 825 | D152: 0 | E152: 0 | F152: 0
A153: Amortizations834 | B153: Amortizations | C153: 834 | D153: 0 | E153: 0 | F153: 0
A154: Amortizations840 | B154: Amortizations | C154: 840 | D154: 0 | E154: 0 | F154: 0
A155: Amortizations841 | B155: Amortizations | C155: 841 | D155: 0 | E155: 0 | F155: 0
A156: Amortizations852 | B156: Amortizations | C156: 852 | D156: 0 | E156: 0 | F156: 0
A157: Amortizations859 | B157: Amortizations | C157: 859 | D157: 0 | E157: 0 | F157: 0
A158: Amortizations865 | B158: Amortizations | C158: 865 | D158: 0 | E158: 0 | F158: 0
A159: Amortizations866 | B159: Amortizations | C159: 866 | D159: 0 | E159: 0 | F159: 0
A160: Amortizations867 | B160: Amortizations | C160: 867 | D160: 0 | E160: 0 | F160: 0
A161: Amortizations870 | B161: Amortizations | C161: 870 | D161: 0 | E161: 0 | F161: 0
A162: Amortizations871 | B162: Amortizations | C162: 871 | D162: 0 | E162: 0 | F162: 0
A163: Amortizations874 | B163: Amortizations | C163: 874 | D163: 0 | E163: 0 | F163: 0
A164: Amortizations875 | B164: Amortizations | C164: 875 | D164: 0 | E164: 0 | F164: 0
A165: Amortizations876 | B165: Amortizations | C165: 876 | D165: 0 | E165: 0 | F165: 0
A166: Amortizations878 | B166: Amortizations | C166: 878 | D166: 0 | E166: 0 | F166: 0
A167: Amortizations879 | B167: Amortizations | C167: 879 | D167: 0 | E167: 0 | F167: 0
A168: Amortizations880 | B168: Amortizations | C168: 880 | D168: 0 | E168: 0 | F168: 0
A169: Amortizations881 | B169: Amortizations | C169: 881 | D169: 0 | E169: 0 | F169: 0
A170: Amortizations885 | B170: Amortizations | C170: 885 | D170: 0 | E170: 0 | F170: 0
A171: Amortizations886 | B171: Amortizations | C171: 886 | D171: 0 | E171: 0 | F171: 0
A172: Amortizations887 | B172: Amortizations | C172: 887 | D172: 0 | E172: 0 | F172: 0
A173: Amortizations889 | B173: Amortizations | C173: 889 | D173: 0 | E173: 0 | F173: 0
A174: Amortizations890 | B174: Amortizations | C174: 890 | D174: 0 | E174: 0 | F174: 0
A175: Amortizations892 | B175: Amortizations | C175: 892 | D175: 0 | E175: 0 | F175: 0
A176: Amortizations893 | B176: Amortizations | C176: 893 | D176: 0 | E176: 0 | F176: 0
A177: Amortizations894 | B177: Amortizations | C177: 894 | D177: 0 | E177: 0 | F177: 0
A178: Amortizations901 | B178: Amortizations | C178: 901 | D178: 0 | E178: 0 | F178: 0
A179: Amortizations902 | B179: Amortizations | C179: 902 | D179: 0 | E179: 0 | F179: 0
A180: Amortizations903 | B180: Amortizations | C180: 903 | D180: 0 | E180: 0 | F180: 0
A181: Amortizations904 | B181: Amortizations | C181: 904 | D181: 0 | E181: 0 | F181: 0
A182: Amortizations905 | B182: Amortizations | C182: 905 | D182: 0 | E182: 0 | F182: 0
A183: Amortizations907 | B183: Amortizations | C183: 907 | D183: 0 | E183: 0 | F183: 0
A184: Amortizations908 | B184: Amortizations | C184: 908 | D184: 0 | E184: 0 | F184: 0
A185: Amortizations909 | B185: Amortizations | C185: 909 | D185: 0 | E185: 0 | F185: 0
A186: Amortizations910 | B186: Amortizations | C186: 910 | D186: 0 | E186: 0 | F186: 0
A187: Amortizations912 | B187: Amortizations | C187: 912 | D187: 0 | E187: 0 | F187: 0
A188: Amortizations913 | B188: Amortizations | C188: 913 | D188: 0 | E188: 0 | F188: 0
A189: Amortizations916 | B189: Amortizations | C189: 916 | D189: 0 | E189: 0 | F189: 0
A190: Amortizations920 | B190: Amortizations | C190: 920 | D190: 0 | E190: 0 | F190: 0
A191: Amortizations921 | B191: Amortizations | C191: 921 | D191: 0 | E191: 0 | F191: 0
A192: Amortizations923 | B192: Amortizations | C192: 923 | D192: 0 | E192: 0 | F192: 0
A193: Amortizations924 | B193: Amortizations | C193: 924 | D193: 0 | E193: 0 | F193: 0
A194: Amortizations925 | B194: Amortizations | C194: 925 | D194: 0 | E194: 0 | F194: 0
A195: Amortizations926 | B195: Amortizations | C195: 926 | D195: 0 | E195: 0 | F195: 0
A196: Amortizations928 | B196: Amortizations | C196: 928 | D196: 0 | E196: 229416 | F196: 229416
A197: Amortizations930.1 | B197: Amortizations | C197: 930.1 | D197: =F197-E197 -> 0 | E197: 0 | F197: 0
A198: =B198&C198 -> Amortizations930.2 | B198: Amortizations | C198: 930.2 | D198: 0 | E198: 0 | F198: 0
A199: Amortizations931 | B199: Amortizations | C199: 931 | D199: 0 | E199: 0 | F199: 0
A200: Amortizations932 | B200: Amortizations | C200: 932 | D200: 0 | E200: 0 | F200: 0
... 2129 more rows

Sheet INPUT - FTP O&M Excld FERC List
F1: CY 2025 | H1: FTP | I1: Schedule D-2.4 (B4 Inflation) | J1: Schedule D-2.4 (After Inflation)
A2: WPD-2.7.H / WPD-2.7.I Descr | B2: Schedule | C2: ADJ # | E2: Adjustment Description | F2: Adjustment Amount | G2: Inflation Rate | H2: Adjustment Amount | I2: Check | J2: Check | L2: FERC Account | M2: Cost Element Category | N2: Key | O2: Lobbying / Non-Lobbying | P2: Lobbying Key | Q2: Notes
A3: ='WPD-2.7.H CKY Exclusions'!C15 -> Corporate Dues & Memberships - Lobbying | B3: D-2.7 | C3: =+'D-2.7'!A76 -> ADJ 8.1 | D3: CKY Direct Exclusion | E3: Lobbying Exclusion - Dues & Donations | F3: -4909 | G3: =+'INPUT - GDP Inflation Factor'!L35 -> 0.05308 | H3: =+F3*(1+G3) -> -5169.56972 | I3: =+F3 -> -4909 | J3: =+H3 -> -5169.56972 | K3: =+J3 -> -5169.56972 | L3: 921 | M3: Dues & Donations | N3: =M3&L3 -> Dues & Donations921 | O3: =IF(ISNUMBER(SEARCH("Lobbying*",E3)),"Lobbying","Non-Lobbying") -> Lobbying | P3: =O3&" "&L3 -> Lobbying 921 | Q3: =IF(L3="Allocate","See 'INPUT - FTP O&M Excld Allocates' tab","") -> 
A4: =A3 -> Corporate Dues & Memberships - Lobbying | B4: =$B$3 -> D-2.7 | C4: =+C3 -> ADJ 8.1 | D4: CKY Direct Exclusion | E4: Lobbying Exclusion - Dues & Donations | F4: =-11930-F3 -> -7021 | G4: =+$G$3 -> 0.05308 | H4: -7393.67468 | I4: -7021 | J4: -7393.67468 | K4: -7393.67468 | L4: 930.2 | M4: Dues & Donations | N4: Dues & Donations930.2 | O4: Lobbying | P4: Lobbying 930.2
A5: ='WPD-2.7.H CKY Exclusions'!C17 -> Employee Expenses: Activities & Business Expenses - Lobbying | B5: =$B$3 -> D-2.7 | C5: =+C4 -> ADJ 8.1 | D5: CKY Direct Exclusion | E5: Lobbying Exclusion - Employee Expenses - Employee Expenses (ERS) | F5: -1334.73 | G5: =+$G$3 -> 0.05308 | H5: -1405.577468 | I5: -1334.73 | J5: =+H5 -> -1405.577468 | K5: =+J5 -> -1405.577468 | L5: 921 | M5: Employee Expenses | N5: Employee Expenses921 | O5: Lobbying | P5: Lobbying 921
A6: ='WPD-2.7.H CKY Exclusions'!C19 -> Outside Services - Lobbying | B6: D-2.7 | C6: =+C5 -> ADJ 8.1 | D6: CKY Direct Exclusion | E6: Lobbying Exclusion - Outside Services - AP Vendor Review | F6: -65915 | G6: 0.05308 | H6: =+F6*(1+G6) -> -69413.7682 | I6: =+F6 -> -65915 | J6: -69413.7682 | K6: =+J6 -> -69413.7682 | L6: 923 | M6: Outside Services | N6: =M6&L6 -> Outside Services923 | O6: =IF(ISNUMBER(SEARCH("Lobbying*",E6)),"Lobbying","Non-Lobbying") -> Lobbying | P6: =O6&" "&L6 -> Lobbying 923
A7: ='WPD-2.7.H CKY Exclusions'!C21 -> Miscellaneous & Other - Lobbying | B7: D-2.7 | C7: =+C6 -> ADJ 8.1 | D7: CKY Direct Exclusion | E7: Lobbying Exclusion - Misc & Other - Employee Expenses (ERS) | F7: -504 | G7: 0.05308 | H7: -530.75232 | I7: -504 | J7: -530.75232 | K7: -530.75232 | L7: 921 | M7: Miscellaneous & Other | N7: Miscellaneous & Other921 | O7: Lobbying | P7: Lobbying 921
A8: =A7 -> Miscellaneous & Other - Lobbying | B8: D-2.7 | C8: =+C6 -> ADJ 8.1 | D8: CKY Direct Exclusion | E8: Lobbying Exclusion - Misc & Other - AP Vendor Review | F8: -3193 | G8: 0.05308 | H8: -3362.48444 | I8: -3193 | J8: -3362.48444 | K8: -3362.48444 | L8: 921 | M8: Miscellaneous & Other | N8: Miscellaneous & Other921 | O8: Lobbying | P8: Lobbying 921
A9: ='WPD-2.7.H CKY Exclusions'!C13 -> Labor - Lobbying | B9: D-2.7 | C9: =+C7 -> ADJ 8.1 | D9: CKY Direct Exclusion | E9: Lobbying Exclusion - Labor (per Linda Rumpke) | F9: =-386-2702-869 -> -3957 | G9: 0.06 | H9: -4194.42 | I9: =+F9 -> -3957 | J9: =+H9 -> -4194.42 | K9: -4194.42 | L9: 920 | M9: Labor | N9: Labor920 | O9: Lobbying | P9: Lobbying 920
A10: =A9 -> Labor - Lobbying | B10: D-2.7 | C10: =+C8 -> ADJ 8.1 | D10: CKY Direct Exclusion | E10: Lobbying Exclusion - Labor (Tyler Burke) | F10: -13434 | G10: =G9 -> 0.06 | H10: =+F10*(1+G10) -> -14240.04 | I10: =+F10 -> -13434 | J10: =+H10 -> -14240.04 | K10: =+J10 -> -14240.04 | L10: 920 | M10: Labor | N10: =M10&L10 -> Labor920 | O10: =IF(ISNUMBER(SEARCH("Lobbying*",E10)),"Lobbying","Non-Lobbying") -> Lobbying | P10: =O10&" "&L10 -> Lobbying 920 | Q10: =IF(L10="Allocate","See 'INPUT - FTP O&M Excld Allocates' tab","") -> 
A11: ='WPD-2.7.H CKY Exclusions'!C25 -> Corporate Dues & Memberships - Charitable Contributions | B11: D-2.7 | C11: =+'D-2.7'!A81 -> ADJ 8.2 | D11: CKY Direct Exclusion | E11: Charitables & Other - Dues & Donations | F11: -1515 | G11: =+$G$3 -> 0.05308 | H11: -1595.4162 | I11: -1515 | J11: -1595.4162 | K11: -1595.4162 | L11: 930.2 | M11: Dues & Donations | N11: Dues & Donations930.2 | O11: =IF(ISNUMBER(SEARCH("Lobbying*",E11)),"Lobbying","Non-Lobbying") -> Non-Lobbying | P11: =O11&" "&L11 -> Non-Lobbying 930.2
A12: ='WPD-2.7.H CKY Exclusions'!C27 -> Employee Expenses: Activities & Business Expenses - Charitable Contributions | B12: D-2.7 | C12: =+C11 -> ADJ 8.2 | D12: CKY Direct Exclusion | E12: Charitables & Other - Employee Expenses - Employee Expenses (ERS) | F12: -130 | G12: 0.05308 | H12: -136.9004 | I12: =+F12 -> -130 | J12: =+H12 -> -136.9004 | K12: -136.9004 | L12: 921 | M12: Employee Expenses | N12: Employee Expenses921 | O12: =IF(ISNUMBER(SEARCH("Lobbying*",E12)),"Lobbying","Non-Lobbying") -> Non-Lobbying | P12: =O12&" "&L12 -> Non-Lobbying 921
A13: ='WPD-2.7.H CKY Exclusions'!C29 -> Charitable Contributions | B13: D-2.7 | C13: =+C12 -> ADJ 8.2 | D13: CKY Direct Exclusion | E13: Charitables & Other - Misc. & Other - AP Vendor Review | F13: -1800 | G13: 0.05308 | H13: -1895.544 | I13: -1800 | J13: -1895.544 | K13: -1895.544 | L13: 923 | M13: Miscellaneous & Other | N13: =M13&L13 -> Miscellaneous & Other923 | O13: Non-Lobbying | P13: Non-Lobbying 923
A14: ='WPD-2.7.H CKY Exclusions'!C31 -> Employee Expenses: Entertainment | B14: D-2.7 | C14: =+C13 -> ADJ 8.2 | D14: CKY Direct Exclusion | E14: Employee Expenses - Entertainment | F14: -7392 | G14: 0.05308 | H14: -7784.36736 | I14: -7392 | J14: -7784.36736 | K14: -7784.36736 | L14: 921 | M14: Employee Expenses | N14: Employee Expenses921 | O14: Non-Lobbying | P14: Non-Lobbying 921
A15: ='WPD-2.7.H CKY Exclusions'!C33 -> Employee Expenses: Gifts | B15: D-2.7 | C15: ADJ 8.2 | D15: CKY Direct Exclusion | E15: Employee Expenses - Gifts | F15: -2509 | G15: 0.05308 | H15: -2642.17772 | I15: -2509 | J15: -2642.17772 | K15: -2642.17772 | L15: 921 | M15: Employee Expenses | N15: Employee Expenses921 | O15: Non-Lobbying | P15: Non-Lobbying 921
A16: ='WPD-2.7.H CKY Exclusions'!C23 -> Corporate Dues & Memberships | B16: D-2.7 | C16: ADJ 8.2 | D16: CKY Direct Exclusion | E16: Dues & Donations - AP Vendor Review | F16: -7676 | G16: 0.05308 | H16: -8083.44208 | I16: -7676 | J16: -8083.44208 | K16: -8083.44208 | L16: 930.2 | M16: Dues & Donations | N16: Dues & Donations930.2 | O16: Non-Lobbying | P16: Non-Lobbying 930.2
A17: ='WPD-2.7.H CKY Exclusions'!C37 -> Miscellaneous & Other [1] | B17: D-2.7 | C17: ADJ 8.2 | D17: CKY Direct Exclusion | E17: Misc. & Other - Employee Expenses (ERS) | F17: -3954 | G17: 0.05308 | H17: -4163.87832 | I17: -3954 | J17: -4163.87832 | K17: -4163.87832 | L17: 921 | M17: Miscellaneous & Other | N17: Miscellaneous & Other921 | O17: Non-Lobbying | P17: Non-Lobbying 921
A18: =$A$17 -> Miscellaneous & Other [1] | B18: D-2.7 | C18: ADJ 8.2 | D18: CKY Direct Exclusion | E18: Misc. & Other - Employee Expenses (ERS) | F18: -612 | G18: 0.05308 | H18: =+F18*(1+G18) -> -644.48496 | I18: =+F18 -> -612 | J18: =+H18 -> -644.48496 | K18: =+J18 -> -644.48496 | L18: 930.2 | M18: Miscellaneous & Other | N18: =M18&L18 -> Miscellaneous & Other930.2 | O18: =IF(ISNUMBER(SEARCH("Lobbying*",E18)),"Lobbying","Non-Lobbying") -> Non-Lobbying | P18: =O18&" "&L18 -> Non-Lobbying 930.2 | Q18: =IF(L18="Allocate","See 'INPUT - FTP O&M Excld Allocates' tab","") -> 
A19: =$A$17 -> Miscellaneous & Other [1] | B19: D-2.7 | C19: =+C17 -> ADJ 8.2 | D19: CKY Direct Exclusion | E19: Misc. & Other - Employee Expenses (ERS) | F19: =-6162+1-SUM(F17:F18) -> -1595 | G19: 0.05308 | H19: -1679.6626 | I19: -1595 | J19: -1679.6626 | K19: -1679.6626 | L19: Allocate | M19: Miscellaneous & Other | N19: Miscellaneous & OtherAllocate | O19: Non-Lobbying | P19: Non-Lobbying Allocate | Q19: See 'INPUT - FTP O&M Excld Allocates' tab
A20: =$A$17 -> Miscellaneous & Other [1] | B20: D-2.7 | C20: =+C19 -> ADJ 8.2 | D20: CKY Direct Exclusion | E20: Materials & Supplies - AP Vendor Review | F20: -1006 | G20: 0.05308 | H20: -1059.39848 | I20: -1006 | J20: -1059.39848 | K20: -1059.39848 | L20: 893 | M20: Materials & Supplies | N20: Materials & Supplies893 | O20: Non-Lobbying | P20: Non-Lobbying 893
A21: Miscellaneous & Other [1] | B21: D-2.7 | C21: ADJ 8.2 | D21: CKY Direct Exclusion | E21: Materials & Supplies - Employee Expenses (ERS) | F21: -1132 | G21: 0.05308 | H21: -1192.08656 | I21: -1132 | J21: -1192.08656 | K21: -1192.08656 | L21: 921 | M21: Materials & Supplies | N21: Materials & Supplies921 | O21: Non-Lobbying | P21: Non-Lobbying 921
A22: Miscellaneous & Other [1] | B22: D-2.7 | C22: ADJ 8.2 | D22: CKY Direct Exclusion | E22: Outside Services - AP Vendor Review | F22: -4940 | G22: 0.05308 | H22: -5202.2152 | I22: -4940 | J22: -5202.2152 | K22: -5202.2152 | L22: 923 | M22: Outside Services | N22: Outside Services923 | O22: Non-Lobbying | P22: Non-Lobbying 923 | Q22: =IF(L22="Allocate","See 'INPUT - FTP O&M Excld Allocates' tab","") -> 
A23: ='WPD-2.7.H CKY Exclusions'!C35 -> Employee Expenses: Activities & Business Expenses | B23: D-2.7 | C23: ADJ 8.2 | D23: CKY Direct Exclusion | E23: Employee Expenses - Employee Expenses (ERS) | F23: -25096 | G23: 0.05308 | H23: =+F23*(1+G23) -> -26428.09568 | I23: -25096 | J23: -26428.09568 | K23: -26428.09568 | L23: 921 | M23: Employee Expenses | N23: =M23&L23 -> Employee Expenses921 | O23: =IF(ISNUMBER(SEARCH("Lobbying*",E23)),"Lobbying","Non-Lobbying") -> Non-Lobbying | P23: =O23&" "&L23 -> Non-Lobbying 921 | Q23: =IF(L23="Allocate","See 'INPUT - FTP O&M Excld Allocates' tab","") -> 
A24: =$A$23 -> Employee Expenses: Activities & Business Expenses | B24: D-2.7 | C24: ADJ 8.2 | D24: CKY Direct Exclusion | E24: Employee Expenses - Employee Expenses (ERS) | F24: -4238 | G24: 0.05308 | H24: -4462.95304 | I24: -4238 | J24: -4462.95304 | K24: -4462.95304 | L24: 874 | M24: Employee Expenses | N24: Employee Expenses874 | O24: Non-Lobbying | P24: Non-Lobbying 874
A25: =$A$23 -> Employee Expenses: Activities & Business Expenses | B25: D-2.7 | C25: ADJ 8.2 | D25: CKY Direct Exclusion | E25: Employee Expenses - Employee Expenses (ERS) | F25: -1388 | G25: 0.05308 | H25: -1461.67504 | I25: -1388 | J25: -1461.67504 | K25: -1461.67504 | L25: 878 | M25: Employee Expenses | N25: Employee Expenses878 | O25: Non-Lobbying | P25: Non-Lobbying 878
A26: Employee Expenses: Activities & Business Expenses | B26: D-2.7 | C26: ADJ 8.2 | D26: CKY Direct Exclusion | E26: Employee Expenses - Employee Expenses (ERS) | F26: -1041 | G26: 0.05308 | H26: -1096.25628 | I26: -1041 | J26: -1096.25628 | K26: -1096.25628 | L26: 879 | M26: Employee Expenses | N26: Employee Expenses879 | O26: Non-Lobbying | P26: Non-Lobbying 879
A27: Employee Expenses: Activities & Business Expenses | B27: D-2.7 | C27: ADJ 8.2 | D27: CKY Direct Exclusion | E27: Employee Expenses - Employee Expenses (ERS) | F27: -2632 | G27: 0.05308 | H27: -2771.70656 | I27: -2632 | J27: -2771.70656 | K27: -2771.70656 | L27: 880 | M27: Employee Expenses | N27: Employee Expenses880 | O27: Non-Lobbying | P27: Non-Lobbying 880
A28: Employee Expenses: Activities & Business Expenses | B28: D-2.7 | C28: ADJ 8.2 | D28: CKY Direct Exclusion | E28: Employee Expenses - Employee Expenses (ERS) | F28: -1187 | G28: 0.05308 | H28: -1250.00596 | I28: -1187 | J28: -1250.00596 | K28: -1250.00596 | L28: 887 | M28: Employee Expenses | N28: Employee Expenses887 | O28: Non-Lobbying | P28: Non-Lobbying 887
A29: Employee Expenses: Activities & Business Expenses | B29: D-2.7 | C29: ADJ 8.2 | D29: CKY Direct Exclusion | E29: Employee Expenses - Employee Expenses (ERS) | F29: =-38097-SUM(F23:F28) -> -2515 | G29: 0.05308 | H29: -2648.4962 | I29: -2515 | J29: -2648.4962 | K29: -2648.4962 | L29: Allocate | M29: Employee Expenses | N29: Employee ExpensesAllocate | O29: Non-Lobbying | P29: Non-Lobbying Allocate | Q29: See 'INPUT - FTP O&M Excld Allocates' tab
A30: ='WPD-2.7.I NCSC Billed Exclusion'!C21 -> Corporate Dues & Memberships - Lobbying | B30: D-2.7 | C30: =+'D-2.7'!A87 -> ADJ 9.1 | D30: NCSC Exclusion | E30: Lobbying Exclusion - Dues & Donations | F30: =-8220-101.02 -> -8321.02 | G30: 0.05308 | H30: -8762.699742 | I30: -8321.02 | J30: =+H30 -> -8762.699742 | K30: =+J30 -> -8762.699742 | L30: 923 | M30: Corporate Service Bill | N30: =M30&L30 -> Corporate Service Bill923 | O30: Lobbying | P30: Lobbying 923
A31: =A30 -> Corporate Dues & Memberships - Lobbying | B31: =B30 -> D-2.7 | C31: =$C$30 -> ADJ 9.1 | D31: =D30 -> NCSC Exclusion | E31: Lobbying Exclusion - Dues & Donations | F31: =-1379 -> -1379 | G31: 0.05308 | H31: =+F31*(1+G31) -> -1452.19732 | I31: =+F31 -> -1379 | J31: =+H31 -> -1452.19732 | K31: =+J31 -> -1452.19732 | L31: 930.2 | M31: Corporate Service Bill | N31: =M31&L31 -> Corporate Service Bill930.2 | O31: =IF(ISNUMBER(SEARCH("Lobbying*",E31)),"Lobbying","Non-Lobbying") -> Lobbying | P31: =O31&" "&L31 -> Lobbying 930.2 | Q31: =IF(L31="Allocate","See 'INPUT - FTP O&M Excld Allocates' tab","") -> 
A32: =A31 -> Corporate Dues & Memberships - Lobbying | B32: =B31 -> D-2.7 | C32: =$C$30 -> ADJ 9.1 | D32: =D31 -> NCSC Exclusion | E32: Lobbying Exclusion - Dues & Donations | F32: =-23-42 -> -65 | G32: 0.05308 | H32: -68.4502 | I32: -65 | J32: -68.4502 | K32: -68.4502 | L32: Allocate | M32: Corporate Service Bill | N32: Corporate Service BillAllocate | O32: Lobbying | P32: Lobbying Allocate | Q32: See 'INPUT - FTP O&M Excld Allocates' tab
A33: ='WPD-2.7.I NCSC Billed Exclusion'!C23 -> Employee Expenses: Activities & Business Expenses - Lobbying | B33: D-2.7 | C33: ADJ 9.1 | D33: NCSC Exclusion | E33: Lobbying Exclusion - Employee Expenses - Employee Expenses (ERS) | F33: -2477 | G33: 0.05308 | H33: -2608.47916 | I33: -2477 | J33: -2608.47916 | K33: =+J33 -> -2608.47916 | L33: 921 | M33: Corporate Service Bill | N33: Corporate Service Bill921 | O33: Lobbying | P33: Lobbying 921
A34: ='WPD-2.7.I NCSC Billed Exclusion'!C25 -> Outside Services, Miscellaneous & Other, and Materials & Supplies - Lobbying | B34: D-2.7 | C34: ADJ 9.1 | D34: NCSC Exclusion | E34: Lobbying Exclusion - Misc. & Other - Employee Expenses (ERS) | F34: -44 | G34: 0.05308 | H34: -46.33552 | I34: -44 | J34: -46.33552 | K34: -46.33552 | L34: 921 | M34: Corporate Service Bill | N34: Corporate Service Bill921 | O34: Lobbying | P34: Lobbying 921
A35: =A34 -> Outside Services, Miscellaneous & Other, and Materials & Supplies - Lobbying | B35: D-2.7 | C35: ADJ 9.1 | D35: NCSC Exclusion | E35: Lobbying Exclusion - Materials & Supplies - Employee Expenses (ERS) | F35: -7 | G35: 0.05308 | H35: -7.37156 | I35: -7 | J35: -7.37156 | K35: -7.37156 | L35: 921 | M35: Corporate Service Bill | N35: Corporate Service Bill921 | O35: Lobbying | P35: Lobbying 921
A36: =A35 -> Outside Services, Miscellaneous & Other, and Materials & Supplies - Lobbying | B36: D-2.7 | C36: ADJ 9.1 | D36: NCSC Exclusion | E36: Lobbying Exclusion - Outside Services - AP Vendor Review | F36: =-7914-1117 -> -9031 | G36: 0.05308 | H36: -9510.36548 | I36: -9031 | J36: -9510.36548 | K36: -9510.36548 | L36: 923 | M36: Corporate Service Bill | N36: Corporate Service Bill923 | O36: Lobbying | P36: Lobbying 923
A37: =A36 -> Outside Services, Miscellaneous & Other, and Materials & Supplies - Lobbying | B37: D-2.7 | C37: ADJ 9.1 | D37: NCSC Exclusion | E37: Lobbying Exclusion - Outside Services - Employee Expenses (ERS) | F37: -7 | G37: 0.05308 | H37: =+F37*(1+G37) -> -7.37156 | I37: =+F37 -> -7 | J37: =+H37 -> -7.37156 | K37: =+J37 -> -7.37156 | L37: 921 | M37: Corporate Service Bill | N37: =M37&L37 -> Corporate Service Bill921 | O37: =IF(ISNUMBER(SEARCH("Lobbying*",E37)),"Lobbying","Non-Lobbying") -> Lobbying | P37: =O37&" "&L37 -> Lobbying 921 | Q37: =IF(L37="Allocate","See 'INPUT - FTP O&M Excld Allocates' tab","") -> 
A38: ='WPD-2.7.I NCSC Billed Exclusion'!C13 -> Labor & Incentive Compensation - Lobbying | B38: D-2.7 | C38: ADJ 9.1 | D38: NCSC Exclusion | E38: Lobbying Exclusion - Labor & Incentive Compensation | F38: -25508 | G38: =G9 -> 0.06 | H38: =+F38*(1+G38) -> -27038.48 | I38: =+F38 -> -25508 | J38: =+H38 -> -27038.48 | K38: -27038.48 | L38: 920 | M38: Corporate Service Bill | N38: =M38&L38 -> Corporate Service Bill920 | O38: =IF(ISNUMBER(SEARCH("Lobbying*",E38)),"Lobbying","Non-Lobbying") -> Lobbying | P38: =O38&" "&L38 -> Lobbying 920
A39: ='WPD-2.7.I NCSC Billed Exclusion'!C15 -> Employee Benefits - Lobbying | B39: D-2.7 | C39: ADJ 9.1 | D39: NCSC Exclusion | E39: Lobbying Exclusion - Benefits | F39: -1145 | G39: 0.05308 | H39: -1205.7766 | I39: -1145 | J39: -1205.7766 | K39: -1205.7766 | L39: 926 | M39: Corporate Service Bill | N39: Corporate Service Bill926 | O39: Lobbying | P39: Lobbying 926
A40: ='WPD-2.7.I NCSC Billed Exclusion'!C17 -> Payroll Taxes - Lobbying | B40: D-2.7 | C40: ADJ 9.1 | D40: NCSC Exclusion | E40: Lobbying Exclusion - Payroll Tax | F40: -357 | G40: 0.05308 | H40: -375.94956 | I40: -357 | J40: -375.94956 | K40: -375.94956 | L40: 923 | M40: Corporate Service Bill | N40: Corporate Service Bill923 | O40: Lobbying | P40: Lobbying 923
A41: ='WPD-2.7.I NCSC Billed Exclusion'!C19 -> Leases Building & Land - Lobbying | B41: D-2.7 | C41: ADJ 9.1 | D41: NCSC Exclusion | E41: Lobbying Exclusion - Leases Building & Land | F41: -312 | G41: 0.05308 | H41: -328.56096 | I41: -312 | J41: -328.56096 | K41: -328.56096 | L41: 931 | M41: Corporate Service Bill | N41: Corporate Service Bill931 | O41: Lobbying | P41: Lobbying 931
A42: ='WPD-2.7.I NCSC Billed Exclusion'!C33 -> Corporate Dues & Memberships - Charitable Contributions | B42: D-2.7 | C42: =+'D-2.7'!A93 -> ADJ 9.2 | D42: NCSC Exclusion | E42: Charitables & Other - Dues & Donations - AP Vendor Review | F42: -70 | G42: 0.05308 | H42: -73.7156 | I42: -70 | J42: =+H42 -> -73.7156 | K42: -73.7156 | L42: 910 | M42: Corporate Service Bill | N42: Corporate Service Bill910 | O42: Non-Lobbying | P42: Non-Lobbying 910
A43: ='WPD-2.7.I NCSC Billed Exclusion'!C39 -> Charitable Contributions - Advertising (Misclassified) | B43: D-2.7 | C43: =+C42 -> ADJ 9.2 | D43: NCSC Exclusion | E43: Charitables & Other - Advertising (Misclassified as Advertising) | F43: -308 | G43: 0.05308 | H43: -324.34864 | I43: -308 | J43: =+H43 -> -324.34864 | K43: -324.34864 | L43: 923 | M43: Corporate Service Bill | N43: Corporate Service Bill923 | O43: Non-Lobbying | P43: Non-Lobbying 923
A44: ='WPD-2.7.I NCSC Billed Exclusion'!C35 -> Employee Expenses: Activities & Business Expenses - Charitable Contributions | B44: D-2.7 | C44: ADJ 9.2 | D44: NCSC Exclusion | E44: Charitables & Other - Employee Expenses - Employee Expenses (ERS) | F44: -2124 | G44: 0.05308 | H44: -2236.74192 | I44: -2124 | J44: =+H44 -> -2236.74192 | K44: -2236.74192 | L44: 921 | M44: Corporate Service Bill | N44: Corporate Service Bill921 | O44: Non-Lobbying | P44: Non-Lobbying 921
A45: =A44 -> Employee Expenses: Activities & Business Expenses - Charitable Contributions | B45: D-2.7 | C45: =+C44 -> ADJ 9.2 | D45: NCSC Exclusion | E45: Charitables & Other - Employee Expenses - Employee Expenses (ERS) | F45: -349 | G45: 0.05308 | H45: -367.52492 | I45: =+F45 -> -349 | J45: =+H45 -> -367.52492 | K45: -367.52492 | L45: 923 | M45: Corporate Service Bill | N45: Corporate Service Bill923 | O45: Non-Lobbying | P45: Non-Lobbying 923
A46: Employee Expenses: Activities & Business Expenses - Charitable Contributions | B46: D-2.7 | C46: ADJ 9.2 | D46: NCSC Exclusion | E46: Charitables & Other - Employee Expenses - Employee Expenses (ERS) | F46: =-2714+1-SUM(F44:F45) -> -240 | G46: 0.05308 | H46: -252.7392 | I46: -240 | J46: -252.7392 | K46: -252.7392 | L46: Allocate | M46: Corporate Service Bill | N46: Corporate Service BillAllocate | O46: Non-Lobbying | P46: Non-Lobbying Allocate | Q46: See 'INPUT - FTP O&M Excld Allocates' tab
A47: ='WPD-2.7.I NCSC Billed Exclusion'!C37 -> Charitable Contributions | B47: D-2.7 | C47: =+C46 -> ADJ 9.2 | D47: NCSC Exclusion | E47: Charitables & Other - Materials & Supplies - Employee Expenses (ERS) | F47: -29 | G47: 0.05308 | H47: -30.53932 | I47: -29 | J47: -30.53932 | K47: -30.53932 | L47: 921 | M47: Corporate Service Bill | N47: =M47&L47 -> Corporate Service Bill921 | O47: Non-Lobbying | P47: Non-Lobbying 921
A48: Charitable Contributions | B48: D-2.7 | C48: =+C47 -> ADJ 9.2 | D48: NCSC Exclusion | E48: Charitables & Other - Misc. & Other - Employee Expenses (ERS) | F48: -904 | G48: 0.05308 | H48: -951.98432 | I48: -904 | J48: -951.98432 | K48: -951.98432 | L48: 921 | M48: Corporate Service Bill | N48: Corporate Service Bill921 | O48: Non-Lobbying | P48: Non-Lobbying 921
A49: Charitable Contributions | B49: D-2.7 | C49: =+C48 -> ADJ 9.2 | D49: NCSC Exclusion | E49: Charitables & Other - Misc. & Other - Employee Expenses (ERS) | F49: -174 | G49: 0.05308 | H49: =+F49*(1+G49) -> -183.23592 | I49: =+F49 -> -174 | J49: =+H49 -> -183.23592 | K49: =+J49 -> -183.23592 | L49: 903 | M49: Corporate Service Bill | N49: =M49&L49 -> Corporate Service Bill903 | O49: =IF(ISNUMBER(SEARCH("Lobbying*",E49)),"Lobbying","Non-Lobbying") -> Non-Lobbying | P49: =O49&" "&L49 -> Non-Lobbying 903 | Q49: =IF(L49="Allocate","See 'INPUT - FTP O&M Excld Allocates' tab","") -> 
A50: Charitable Contributions | B50: D-2.7 | C50: ADJ 9.2 | D50: NCSC Exclusion | E50: Charitables & Other - Misc. & Other - Employee Expenses (ERS) | F50: -116 | G50: 0.05308 | H50: -122.15728 | I50: -116 | J50: -122.15728 | K50: -122.15728 | L50: Allocate | M50: Corporate Service Bill | N50: Corporate Service BillAllocate | O50: Non-Lobbying | P50: Non-Lobbying Allocate | Q50: See 'INPUT - FTP O&M Excld Allocates' tab
A51: Charitable Contributions | B51: D-2.7 | C51: ADJ 9.2 | D51: NCSC Exclusion | E51: Charitables & Other - Misc. & Other - AP Vendor Review | F51: -3204 | G51: 0.05308 | H51: -3374.06832 | I51: -3204 | J51: -3374.06832 | K51: -3374.06832 | L51: 930.2 | M51: Corporate Service Bill | N51: Corporate Service Bill930.2 | O51: Non-Lobbying | P51: Non-Lobbying 930.2
A52: Charitable Contributions | B52: D-2.7 | C52: =+C48 -> ADJ 9.2 | D52: NCSC Exclusion | E52: Charitables & Other - Misc. & Other - AP Vendor Review | F52: -602 | G52: 0.05308 | H52: -633.95416 | I52: -602 | J52: -633.95416 | K52: -633.95416 | L52: 923 | M52: Corporate Service Bill | N52: Corporate Service Bill923 | O52: Non-Lobbying | P52: Non-Lobbying 923
A53: Charitable Contributions | B53: D-2.7 | C53: ADJ 9.2 | D53: NCSC Exclusion | E53: Charitables & Other - Misc. & Other - AP Vendor Review | F53: -109 | G53: 0.05308 | H53: =+F53*(1+G53) -> -114.78572 | I53: -109 | J53: -114.78572 | K53: -114.78572 | L53: 921 | M53: Corporate Service Bill | N53: Corporate Service Bill921 | O53: Non-Lobbying | P53: Non-Lobbying 921
A54: Charitable Contributions | B54: D-2.7 | C54: ADJ 9.2 | D54: NCSC Exclusion | E54: Charitables & Other - Utilities - Employee Expenses (ERS) | F54: -3 | G54: 0.05308 | H54: -3.15924 | I54: -3 | J54: -3.15924 | K54: -3.15924 | L54: 930.2 | M54: Corporate Service Bill | N54: Corporate Service Bill930.2 | O54: Non-Lobbying | P54: Non-Lobbying 930.2
A55: Charitable Contributions | B55: D-2.7 | C55: ADJ 9.2 | D55: NCSC Exclusion | E55: Charitables & Other - Outside Services - AP Vendor Review | F55: -9328 | G55: 0.05308 | H55: -9823.13024 | I55: -9328 | J55: -9823.13024 | K55: -9823.13024 | L55: 923 | M55: Corporate Service Bill | N55: Corporate Service Bill923 | O55: Non-Lobbying | P55: Non-Lobbying 923
A56: Charitable Contributions | B56: D-2.7 | C56: ADJ 9.2 | D56: NCSC Exclusion | E56: Charitables & Other - Outside Services - AP Vendor Review | F56: -26 | G56: 0.05308 | H56: -27.38008 | I56: -26 | J56: -27.38008 | K56: -27.38008 | L56: 903 | M56: Corporate Service Bill | N56: Corporate Service Bill903 | O56: Non-Lobbying | P56: Non-Lobbying 903
A57: Charitable Contributions | B57: D-2.7 | C57: ADJ 9.2 | D57: NCSC Exclusion | E57: Charitables & Other - Charitable Contributions Budget Removal | F57: -2736 | G57: 0.05308 | H57: =+F57*(1+G57) -> -2881.22688 | I57: =+F57 -> -2736 | J57: =+H57 -> -2881.22688 | K57: =+J57 -> -2881.22688 | L57: 923 | M57: Corporate Service Bill | N57: =M57&L57 -> Corporate Service Bill923 | O57: =IF(ISNUMBER(SEARCH("Lobbying*",E57)),"Lobbying","Non-Lobbying") -> Non-Lobbying | P57: =O57&" "&L57 -> Non-Lobbying 923
A58: ='WPD-2.7.I NCSC Billed Exclusion'!C41 -> Advertising | B58: D-2.7 | C58: =+C56 -> ADJ 9.2 | D58: NCSC Exclusion | E58: Advertising Expense - Employee Expenses (ERS) | F58: =-9713 -> -9713 | G58: 0.05308 | H58: -10228.56604 | I58: -9713 | J58: -10228.56604 | K58: -10228.56604 | L58: 910 | M58: Corporate Service Bill | N58: Corporate Service Bill910 | O58: Non-Lobbying | P58: Non-Lobbying 910
A59: =$A$58 -> Advertising | B59: D-2.7 | C59: =+C57 -> ADJ 9.2 | D59: NCSC Exclusion | E59: Advertising Expense - AP Vendor Review | F59: -5337 | G59: 0.05308 | H59: =+F59*(1+G59) -> -5620.28796 | I59: =+F59 -> -5337 | J59: =+H59 -> -5620.28796 | K59: =+J59 -> -5620.28796 | L59: 910 | M59: Corporate Service Bill | N59: =M59&L59 -> Corporate Service Bill910 | O59: =IF(ISNUMBER(SEARCH("Lobbying*",E59)),"Lobbying","Non-Lobbying") -> Non-Lobbying | P59: =O59&" "&L59 -> Non-Lobbying 910 | Q59: =IF(L59="Allocate","See 'INPUT - FTP O&M Excld Allocates' tab","") -> 
A60: =$A$58 -> Advertising | B60: D-2.7 | C60: ADJ 9.2 | D60: NCSC Exclusion | E60: Advertising Expense - Employee Expenses (ERS) | F60: =-150 -> -150 | G60: 0.05308 | H60: -157.962 | I60: -150 | J60: -157.962 | K60: -157.962 | L60: 923 | M60: Corporate Service Bill | N60: Corporate Service Bill923 | O60: Non-Lobbying | P60: Non-Lobbying 923
A61: Advertising | B61: D-2.7 | C61: ADJ 9.2 | D61: NCSC Exclusion | E61: Advertising Expense - AP Vendor Review | F61: =-13580 -> -13580 | G61: 0.05308 | H61: -14300.8264 | I61: -13580 | J61: -14300.8264 | K61: -14300.8264 | L61: 923 | M61: Corporate Service Bill | N61: Corporate Service Bill923 | O61: Non-Lobbying | P61: Non-Lobbying 923
A62: Advertising | B62: D-2.7 | C62: ADJ 9.2 | D62: NCSC Exclusion | E62: Advertising Expense - AP Vendor Review | F62: -1037 | G62: 0.05308 | H62: -1092.04396 | I62: -1037 | J62: -1092.04396 | K62: -1092.04396 | L62: 930.1 | M62: Corporate Service Bill | N62: Corporate Service Bill930.1 | O62: Non-Lobbying | P62: Non-Lobbying 930.1
A63: Advertising | B63: D-2.7 | C63: ADJ 9.2 | D63: NCSC Exclusion | E63: Advertising Expense | F63: =-29943+1-SUM(F58:F62) -> -125 | G63: 0.05308 | H63: -131.635 | I63: -125 | J63: -131.635 | K63: -131.635 | L63: Allocate | M63: Corporate Service Bill | N63: Corporate Service BillAllocate | O63: Non-Lobbying | P63: Non-Lobbying Allocate | Q63: See 'INPUT - FTP O&M Excld Allocates' tab
A64: ='WPD-2.7.I NCSC Billed Exclusion'!C51 -> Miscellaneous & Other [1] | B64: D-2.7 | C64: ADJ 9.2 | D64: NCSC Exclusion | E64: Clearing Accounts - Employee Expenses (ERS) | F64: 0 | G64: 0.05308 | H64: 0 | I64: 0 | J64: 0 | K64: 0 | L64: 870 | M64: Corporate Service Bill | N64: Corporate Service Bill870 | O64: Non-Lobbying | P64: Non-Lobbying 870
A65: ='WPD-2.7.I NCSC Billed Exclusion'!C31 -> Corporate Dues & Memberships | B65: D-2.7 | C65: ADJ 9.2 | D65: NCSC Exclusion | E65: Dues & Donations - AP Vendor Review | F65: -9433 | G65: 0.05308 | H65: -9933.70364 | I65: -9433 | J65: -9933.70364 | K65: -9933.70364 | L65: 923 | M65: Corporate Service Bill | N65: Corporate Service Bill923 | O65: Non-Lobbying | P65: Non-Lobbying 923
A66: =$A$65 -> Corporate Dues & Memberships | B66: D-2.7 | C66: ADJ 9.2 | D66: NCSC Exclusion | E66: Dues & Donations - AP Vendor Review | F66: -1377 | G66: 0.05308 | H66: -1450.09116 | I66: -1377 | J66: -1450.09116 | K66: -1450.09116 | L66: 930.2 | M66: Corporate Service Bill | N66: Corporate Service Bill930.2 | O66: Non-Lobbying | P66: Non-Lobbying 930.2
A67: ='WPD-2.7.I NCSC Billed Exclusion'!C43 -> Employee Expenses - Entertainment | B67: D-2.7 | C67: ADJ 9.2 | D67: NCSC Exclusion | E67: Employee Expenses - Entertainment | F67: -7485 | G67: 0.05308 | H67: -7882.3038 | I67: -7485 | J67: -7882.3038 | K67: -7882.3038 | L67: 921 | M67: Corporate Service Bill | N67: Corporate Service Bill921 | O67: Non-Lobbying | P67: Non-Lobbying 921
A68: =$A$67 -> Employee Expenses - Entertainment | B68: D-2.7 | C68: ADJ 9.2 | D68: NCSC Exclusion | E68: Employee Expenses - Entertainment | F68: =-7692-F67 -> -207 | G68: 0.05308 | H68: -217.98756 | I68: -207 | J68: -217.98756 | K68: -217.98756 | L68: Allocate | M68: Corporate Service Bill | N68: Corporate Service BillAllocate | O68: Non-Lobbying | P68: Non-Lobbying Allocate | Q68: See 'INPUT - FTP O&M Excld Allocates' tab
A69: ='WPD-2.7.I NCSC Billed Exclusion'!C45 -> Employee Expenses - Gifts | B69: D-2.7 | C69: ADJ 9.2 | D69: NCSC Exclusion | E69: Employee Expenses - Gifts | F69: -12389 | G69: 0.05308 | H69: -13046.60812 | I69: -12389 | J69: -13046.60812 | K69: -13046.60812 | L69: 921 | M69: Corporate Service Bill | N69: Corporate Service Bill921 | O69: Non-Lobbying | P69: Non-Lobbying 921
A70: =$A$69 -> Employee Expenses - Gifts | B70: D-2.7 | C70: ADJ 9.2 | D70: NCSC Exclusion | E70: Employee Expenses - Gifts | F70: -2547 | G70: 0.05308 | H70: -2682.19476 | I70: -2547 | J70: -2682.19476 | K70: -2682.19476 | L70: 923 | M70: Corporate Service Bill | N70: Corporate Service Bill923 | O70: Non-Lobbying | P70: Non-Lobbying 923
A71: =$A$70 -> Employee Expenses - Gifts | B71: D-2.7 | C71: ADJ 9.2 | D71: NCSC Exclusion | E71: Employee Expenses - Gifts | F71: =-16051-SUM(F69:F70) -> -1115 | G71: 0.05308 | H71: -1174.1842 | I71: -1115 | J71: -1174.1842 | K71: -1174.1842 | L71: Allocate | M71: Corporate Service Bill | N71: Corporate Service BillAllocate | O71: Non-Lobbying | P71: Non-Lobbying Allocate | Q71: See 'INPUT - FTP O&M Excld Allocates' tab
A72: ='WPD-2.7.I NCSC Billed Exclusion'!C47 -> Employee Expenses: Activities & Business Expenses | B72: D-2.7 | C72: ADJ 9.2 | D72: NCSC Exclusion | E72: Employee Expenses - Work Order Review | F72: -1296 | G72: 0.05308 | H72: -1364.79168 | I72: -1296 | J72: -1364.79168 | K72: -1364.79168 | L72: 921 | M72: Corporate Service Bill | N72: Corporate Service Bill921 | O72: Non-Lobbying | P72: Non-Lobbying 921
A73: =$A$72 -> Employee Expenses: Activities & Business Expenses | B73: D-2.7 | C73: ADJ 9.2 | D73: NCSC Exclusion | E73: Employee Expenses - AP Vendor Review | F73: -189 | G73: 0.05308 | H73: -199.03212 | I73: -189 | J73: -199.03212 | K73: -199.03212 | L73: 923 | M73: Corporate Service Bill | N73: Corporate Service Bill923 | O73: Non-Lobbying | P73: Non-Lobbying 923
A74: =$A$72 -> Employee Expenses: Activities & Business Expenses | B74: D-2.7 | C74: ADJ 9.2 | D74: NCSC Exclusion | E74: Employee Expenses - AP Vendor Review | F74: -916 | G74: 0.05308 | H74: -964.62128 | I74: -916 | J74: -964.62128 | K74: -964.62128 | L74: 921 | M74: Corporate Service Bill | N74: Corporate Service Bill921 | O74: Non-Lobbying | P74: Non-Lobbying 921
A75: Employee Expenses: Activities & Business Expenses | B75: D-2.7 | C75: ADJ 9.2 | D75: NCSC Exclusion | E75: Employee Expenses - Employee Expenses (ERS) | F75: =-47089 -> -47089 | G75: 0.05308 | H75: -49588.48412 | I75: -47089 | J75: -49588.48412 | K75: -49588.48412 | L75: 921 | M75: Corporate Service Bill | N75: Corporate Service Bill921 | O75: Non-Lobbying | P75: Non-Lobbying 921
A76: Employee Expenses: Activities & Business Expenses | B76: D-2.7 | C76: ADJ 9.2 | D76: NCSC Exclusion | E76: Employee Expenses - Employee Expenses (ERS) | F76: -2614 | G76: 0.05308 | H76: -2752.75112 | I76: -2614 | J76: -2752.75112 | K76: -2752.75112 | L76: 870 | M76: Corporate Service Bill | N76: Corporate Service Bill870 | O76: Non-Lobbying | P76: Non-Lobbying 870
A77: Employee Expenses: Activities & Business Expenses | B77: D-2.7 | C77: ADJ 9.2 | D77: NCSC Exclusion | E77: Employee Expenses - Employee Expenses (ERS) | F77: -4610 | G77: 0.05308 | H77: -4854.6988 | I77: -4610 | J77: -4854.6988 | K77: -4854.6988 | L77: 923 | M77: Corporate Service Bill | N77: Corporate Service Bill923 | O77: Non-Lobbying | P77: Non-Lobbying 923
A78: Employee Expenses: Activities & Business Expenses | B78: D-2.7 | C78: ADJ 9.2 | D78: NCSC Exclusion | E78: Employee Expenses - Employee Expenses (ERS) | F78: -751 | G78: 0.05308 | H78: -790.86308 | I78: -751 | J78: -790.86308 | K78: -790.86308 | L78: 930.2 | M78: Corporate Service Bill | N78: Corporate Service Bill930.2 | O78: Non-Lobbying | P78: Non-Lobbying 930.2
A79: Employee Expenses: Activities & Business Expenses | B79: D-2.7 | C79: ADJ 9.2 | D79: NCSC Exclusion | E79: Employee Expenses - Employee Expenses (ERS) | F79: =-57020-SUM(F73:F78) -> -851 | G79: 0.05308 | H79: -896.17108 | I79: -851 | J79: -896.17108 | K79: -896.17108 | L79: Allocate | M79: Corporate Service Bill | N79: Corporate Service BillAllocate | O79: Non-Lobbying | P79: Non-Lobbying Allocate | Q79: See 'INPUT - FTP O&M Excld Allocates' tab
A80: =$A$64 -> Miscellaneous & Other [1] | B80: D-2.7 | C80: ADJ 9.2 | D80: NCSC Exclusion | E80: Leases Building & Land - Work Order Review | F80: -56 | G80: 0.05308 | H80: -58.97248 | I80: -56 | J80: -58.97248 | K80: -58.97248 | L80: 931 | M80: Corporate Service Bill | N80: Corporate Service Bill931 | O80: Non-Lobbying | P80: Non-Lobbying 931
A81: =$A$64 -> Miscellaneous & Other [1] | B81: D-2.7 | C81: ADJ 9.2 | D81: NCSC Exclusion | E81: Leases Building & Land - AP Vendor Review | F81: -109 | G81: 0.05308 | H81: -114.78572 | I81: -109 | J81: -114.78572 | K81: -114.78572 | L81: 930.2 | M81: Corporate Service Bill | N81: Corporate Service Bill930.2 | O81: Non-Lobbying | P81: Non-Lobbying 930.2
A82: Miscellaneous & Other [1] | B82: D-2.7 | C82: ADJ 9.2 | D82: NCSC Exclusion | E82: Leases Building & Land - AP Vendor Review | F82: =-3570-F81 -> -3461 | G82: 0.05308 | H82: -3644.70988 | I82: -3461 | J82: -3644.70988 | K82: -3644.70988 | L82: 923 | M82: Corporate Service Bill | N82: Corporate Service Bill923 | O82: Non-Lobbying | P82: Non-Lobbying 923
A83: Miscellaneous & Other [1] | B83: D-2.7 | C83: ADJ 9.2 | D83: NCSC Exclusion | E83: Leases Other - Employee Expenses (ERS) | F83: =-1964-SUM(F84:F85) -> -1385 | G83: 0.05308 | H83: -1458.5158 | I83: -1385 | J83: -1458.5158 | K83: -1458.5158 | L83: 921 | M83: Corporate Service Bill | N83: Corporate Service Bill921 | O83: Non-Lobbying | P83: Non-Lobbying 921
A84: Miscellaneous & Other [1] | B84: D-2.7 | C84: ADJ 9.2 | D84: NCSC Exclusion | E84: Leases Other - Employee Expenses (ERS) | F84: =-328 -> -328 | G84: 0.05308 | H84: -345.41024 | I84: -328 | J84: -345.41024 | K84: -345.41024 | L84: 923 | M84: Corporate Service Bill | N84: =M84&L84 -> Corporate Service Bill923 | O84: Non-Lobbying | P84: Non-Lobbying 923
A85: Miscellaneous & Other [1] | B85: D-2.7 | C85: ADJ 9.2 | D85: NCSC Exclusion | E85: Leases Other - Employee Expenses (ERS) | F85: -251 | G85: 0.05308 | H85: -264.32308 | I85: -251 | J85: -264.32308 | K85: -264.32308 | L85: 930.2 | M85: Corporate Service Bill | N85: =M85&L85 -> Corporate Service Bill930.2 | O85: Non-Lobbying | P85: Non-Lobbying 930.2
A86: Miscellaneous & Other [1] | B86: D-2.7 | C86: ADJ 9.2 | D86: NCSC Exclusion | E86: Leases Other - Work Order Review | F86: -65 | G86: 0.05308 | H86: -68.4502 | I86: -65 | J86: -68.4502 | K86: -68.4502 | L86: 931 | M86: Corporate Service Bill | N86: Corporate Service Bill931 | O86: Non-Lobbying | P86: Non-Lobbying 931
A87: Miscellaneous & Other [1] | B87: D-2.7 | C87: ADJ 9.2 | D87: NCSC Exclusion | E87: Legal Fees - AP Vendor Review | F87: -141 | G87: 0.05308 | H87: =+F87*(1+G87) -> -148.48428 | I87: -141 | J87: -148.48428 | K87: -148.48428 | L87: 923 | M87: Corporate Service Bill | N87: Corporate Service Bill923 | O87: Non-Lobbying | P87: Non-Lobbying 923
A88: Miscellaneous & Other [1] | B88: D-2.7 | C88: ADJ 9.2 | D88: NCSC Exclusion | E88: Materials & Supplies - Employee Expenses (ERS) | F88: =-9982-SUM(F89:F94) -> -5521 | G88: 0.05308 | H88: -5814.05468 | I88: -5521 | J88: -5814.05468 | K88: -5814.05468 | L88: 921 | M88: Corporate Service Bill | N88: Corporate Service Bill921 | O88: Non-Lobbying | P88: Non-Lobbying 921
A89: Miscellaneous & Other [1] | B89: D-2.7 | C89: ADJ 9.2 | D89: NCSC Exclusion | E89: Materials & Supplies - Employee Expenses (ERS) | F89: -262 | G89: 0.05308 | H89: -275.90696 | I89: -262 | J89: -275.90696 | K89: -275.90696 | L89: 903 | M89: Corporate Service Bill | N89: Corporate Service Bill903 | O89: Non-Lobbying | P89: Non-Lobbying 903
A90: Miscellaneous & Other [1] | B90: D-2.7 | C90: ADJ 9.2 | D90: NCSC Exclusion | E90: Materials & Supplies - Employee Expenses (ERS) | F90: -452 | G90: 0.05308 | H90: -475.99216 | I90: -452 | J90: -475.99216 | K90: -475.99216 | L90: 923 | M90: Corporate Service Bill | N90: Corporate Service Bill923 | O90: Non-Lobbying | P90: Non-Lobbying 923
A91: Miscellaneous & Other [1] | B91: D-2.7 | C91: ADJ 9.2 | D91: NCSC Exclusion | E91: Materials & Supplies - Employee Expenses (ERS) | F91: -136 | G91: 0.05308 | H91: -143.21888 | I91: -136 | J91: -143.21888 | K91: -143.21888 | L91: 930.2 | M91: Corporate Service Bill | N91: Corporate Service Bill930.2 | O91: Non-Lobbying | P91: Non-Lobbying 930.2
A92: Miscellaneous & Other [1] | B92: D-2.7 | C92: ADJ 9.2 | D92: NCSC Exclusion | E92: Materials & Supplies - AP Vendor Review | F92: -58 | G92: 0.05308 | H92: -61.07864 | I92: -58 | J92: -61.07864 | K92: -61.07864 | L92: 903 | M92: Corporate Service Bill | N92: Corporate Service Bill903 | O92: Non-Lobbying | P92: Non-Lobbying 903
A93: Miscellaneous & Other [1] | B93: D-2.7 | C93: ADJ 9.2 | D93: NCSC Exclusion | E93: Materials & Supplies - AP Vendor Review | F93: -157 | G93: 0.05308 | H93: -165.33356 | I93: -157 | J93: -165.33356 | K93: -165.33356 | L93: 923 | M93: Corporate Service Bill | N93: Corporate Service Bill923 | O93: Non-Lobbying | P93: Non-Lobbying 923
A94: Miscellaneous & Other [1] | B94: D-2.7 | C94: ADJ 9.2 | D94: NCSC Exclusion | E94: Materials & Supplies - AP Vendor Review | F94: -3396 | G94: 0.05308 | H94: -3576.25968 | I94: -3396 | J94: -3576.25968 | K94: -3576.25968 | L94: 932 | M94: Corporate Service Bill | N94: Corporate Service Bill932 | O94: Non-Lobbying | P94: Non-Lobbying 932
A95: Miscellaneous & Other [1] | B95: D-2.7 | C95: ADJ 9.2 | D95: NCSC Exclusion | E95: Materials & Supplies - Work Order Review | F95: -35 | G95: 0.05308 | H95: -36.8578 | I95: -35 | J95: -36.8578 | K95: -36.8578 | L95: 921 | M95: Corporate Service Bill | N95: Corporate Service Bill921 | O95: Non-Lobbying | P95: Non-Lobbying 921
A96: Miscellaneous & Other [1] | B96: D-2.7 | C96: ADJ 9.2 | D96: NCSC Exclusion | E96: Misc. & Other (Taxes) | F96: -4917 | G96: 0.05308 | H96: -5177.99436 | I96: -4917 | J96: -5177.99436 | K96: -5177.99436 | L96: 923 | M96: Corporate Service Bill | N96: Corporate Service Bill923 | O96: Non-Lobbying | P96: Non-Lobbying 923
A97: Miscellaneous & Other [1] | B97: D-2.7 | C97: ADJ 9.2 | D97: NCSC Exclusion | E97: Misc. & Other - Work Order Review | F97: 3148 | G97: 0.05308 | H97: 3315.09584 | I97: 3148 | J97: 3315.09584 | K97: 3315.09584 | L97: 926 | M97: Corporate Service Bill | N97: Corporate Service Bill926 | O97: Non-Lobbying | P97: Non-Lobbying 926
A98: Miscellaneous & Other [1] | B98: D-2.7 | C98: ADJ 9.2 | D98: NCSC Exclusion | E98: Misc. & Other - Employee Expenses (ERS) | F98: -442 | G98: 0.05308 | H98: =+F98*(1+G98) -> -465.46136 | I98: -442 | J98: -465.46136 | K98: -465.46136 | L98: 923 | M98: Corporate Service Bill | N98: Corporate Service Bill923 | O98: Non-Lobbying | P98: Non-Lobbying 923
A99: Miscellaneous & Other [1] | B99: D-2.7 | C99: ADJ 9.2 | D99: NCSC Exclusion | E99: Misc. & Other - Employee Expenses (ERS) | F99: -7343 | G99: 0.05308 | H99: -7732.76644 | I99: -7343 | J99: -7732.76644 | K99: -7732.76644 | L99: 921 | M99: Corporate Service Bill | N99: Corporate Service Bill921 | O99: Non-Lobbying | P99: Non-Lobbying 921
A100: Miscellaneous & Other [1] | B100: D-2.7 | C100: ADJ 9.2 | D100: NCSC Exclusion | E100: Misc. & Other - Employee Expenses (ERS) | F100: -756 | G100: 0.05308 | H100: -796.12848 | I100: -756 | J100: -796.12848 | K100: -796.12848 | L100: 870 | M100: Corporate Service Bill | N100: Corporate Service Bill870 | O100: Non-Lobbying | P100: Non-Lobbying 870
A101: Miscellaneous & Other [1] | B101: D-2.7 | C101: ADJ 9.2 | D101: NCSC Exclusion | E101: Misc. & Other - Employee Expenses (ERS) | F101: -181 | G101: 0.05308 | H101: -190.60748 | I101: -181 | J101: -190.60748 | K101: -190.60748 | L101: Allocate | M101: Corporate Service Bill | N101: Corporate Service BillAllocate | O101: Non-Lobbying | P101: Non-Lobbying Allocate | Q101: See 'INPUT - FTP O&M Excld Allocates' tab
A102: Miscellaneous & Other [1] | B102: D-2.7 | C102: ADJ 9.2 | D102: NCSC Exclusion | E102: Misc. & Other - AP Vendor Review | F102: =-1259 -> -1259 | G102: 0.05308 | H102: -1325.82772 | I102: -1259 | J102: -1325.82772 | K102: -1325.82772 | L102: 923 | M102: Corporate Service Bill | N102: Corporate Service Bill923 | O102: Non-Lobbying | P102: Non-Lobbying 923
A103: ='WPD-2.7.I NCSC Billed Exclusion'!C49 -> Outside Services | B103: D-2.7 | C103: ADJ 9.2 | D103: NCSC Exclusion | E103: Misc. & Other - AP Vendor Review | F103: =-27-13-1 -> -41 | G103: 0.05308 | H103: -43.17628 | I103: -41 | J103: -43.17628 | K103: -43.17628 | L103: Allocate | M103: Corporate Service Bill | N103: Corporate Service BillAllocate | O103: Non-Lobbying | P103: Non-Lobbying Allocate | Q103: See 'INPUT - FTP O&M Excld Allocates' tab
A104: =A103 -> Outside Services | B104: D-2.7 | C104: ADJ 9.2 | D104: NCSC Exclusion | E104: Outside Services - Employee Expenses (ERS) | F104: -130 | G104: 0.05308 | H104: =+F104*(1+G104) -> -136.9004 | I104: -130 | J104: -136.9004 | K104: -136.9004 | L104: 921 | M104: Corporate Service Bill | N104: Corporate Service Bill921 | O104: Non-Lobbying | P104: Non-Lobbying 921
A105: =A104 -> Outside Services | B105: D-2.7 | C105: ADJ 9.2 | D105: NCSC Exclusion | E105: Outside Services - AP Vendor Review | F105: -2641 | G105: 0.05308 | H105: -2781.18428 | I105: -2641 | J105: -2781.18428 | K105: -2781.18428 | L105: 870 | M105: Corporate Service Bill | N105: Corporate Service Bill870 | O105: Non-Lobbying | P105: Non-Lobbying 870
A106: =A105 -> Outside Services | B106: D-2.7 | C106: ADJ 9.2 | D106: NCSC Exclusion | E106: Outside Services - Work Order Review | F106: =-15422+204 -> -15218 | G106: 0.05308 | H106: -16025.77144 | I106: -15218 | J106: -16025.77144 | K106: -16025.77144 | L106: 923 | M106: Corporate Service Bill | N106: Corporate Service Bill923 | O106: Non-Lobbying | P106: Non-Lobbying 923
A107: =A106 -> Outside Services | B107: =$B$3 -> D-2.7 | C107: ADJ 9.2 | D107: NCSC Exclusion | E107: Outside Services - AP Vendor Review | F107: -16731 | G107: 0.05308 | H107: -17619.08148 | I107: -16731 | J107: -17619.08148 | K107: -17619.08148 | L107: 923 | M107: Corporate Service Bill | N107: Corporate Service Bill923 | O107: Non-Lobbying | P107: Non-Lobbying 923
A108: =A107 -> Outside Services | B108: D-2.7 | C108: ADJ 9.2 | D108: NCSC Exclusion | E108: Outside Services - AP Vendor Review | F108: =-4819 -> -4819 | G108: =+$G$3 -> 0.05308 | H108: -5074.79252 | I108: -4819 | J108: -5074.79252 | K108: -5074.79252 | L108: 932 | M108: Corporate Service Bill | N108: Corporate Service Bill932 | O108: Non-Lobbying | P108: Non-Lobbying 932
A109: Miscellaneous & Other [1] | B109: D-2.7 | C109: ADJ 9.2 | D109: NCSC Exclusion | E109: Utilities - AP Vendor Review | F109: -260 | G109: 0.05308 | H109: -273.8008 | I109: -260 | J109: -273.8008 | K109: -273.8008 | L109: 921 | M109: Corporate Service Bill | N109: Corporate Service Bill921 | O109: Non-Lobbying | P109: Non-Lobbying 921
A110: Miscellaneous & Other [1] | B110: D-2.7 | C110: ADJ 9.2 | D110: NCSC Exclusion | E110: Utilities - Employee Expenses (ERS) | F110: =-277-F109 -> -17 | G110: 0.05308 | H110: -17.90236 | I110: -17 | J110: -17.90236 | K110: -17.90236 | L110: 921 | M110: Corporate Service Bill | N110: Corporate Service Bill921 | O110: Non-Lobbying | P110: Non-Lobbying 921
A111: Miscellaneous & Other [1] | B111: D-2.7 | C111: ADJ 9.2 | D111: NCSC Exclusion | E111: Materials & Supplies - Fuel Cost - Personal Use of Plane | F111: -535 | G111: 0.05308 | H111: -563.3978 | I111: -535 | J111: -563.3978 | K111: -563.3978 | L111: 880 | M111: Corporate Service Bill | N111: Corporate Service Bill880 | O111: Non-Lobbying | P111: Non-Lobbying 880
A112: Miscellaneous & Other [1] | B112: D-2.7 | C112: ADJ 9.2 | D112: NCSC Exclusion | E112: Outside Services - Maintenance Cost - Personal Use of Plane 5003 | F112: -560 | G112: 0.05308 | H112: -589.7248 | I112: -560 | J112: -589.7248 | K112: -589.7248 | L112: 923 | M112: Corporate Service Bill | N112: Corporate Service Bill923 | O112: Non-Lobbying | P112: Non-Lobbying 923
A113: Miscellaneous & Other [1] | B113: D-2.7 | C113: ADJ 9.2 | D113: NCSC Exclusion | E113: Misc & Other - FBO/Airport Fees - Personal Use of Plane | F113: -62 | G113: 0.05308 | H113: -65.29096 | I113: -62 | J113: -65.29096 | K113: -65.29096 | L113: 930.2 | M113: Corporate Service Bill | N113: =M113&L113 -> Corporate Service Bill930.2 | O113: =IF(ISNUMBER(SEARCH("Lobbying*",E113)),"Lobbying","Non-Lobbying") -> Non-Lobbying | P113: =O113&" "&L113 -> Non-Lobbying 930.2
A114: =A72 -> Employee Expenses: Activities & Business Expenses | B114: D-2.7 | C114: ADJ 9.2 | D114: NCSC Exclusion | E114: Employee Expenses - Crew Expenses - Personal Use of Plane | F114: -87 | G114: 0.05308 | H114: -91.61796 | I114: -87 | J114: -91.61796 | K114: -91.61796 | L114: 921 | M114: Corporate Service Bill | N114: Corporate Service Bill921 | O114: Non-Lobbying | P114: Non-Lobbying 921
A115: ='WPD-2.7.I NCSC Billed Exclusion'!C27 -> Labor | B115: D-2.7 | C115: ADJ 9.2 | D115: NCSC Exclusion | E115: Labor - Personal Use of Plane | F115: -179 | G115: 0.05308 | H115: -188.50132 | I115: -179 | J115: -188.50132 | K115: -188.50132 | L115: 920 | M115: Corporate Service Bill | N115: Corporate Service Bill920 | O115: Non-Lobbying | P115: Non-Lobbying 920
A116: ='WPD-2.7.I NCSC Billed Exclusion'!C29 -> Benefits | B116: D-2.7 | C116: ADJ 9.2 | D116: NCSC Exclusion | E116: Benefits - Personal Use of Plane | F116: -2 | G116: 0.05308 | H116: -2.10616 | I116: -2 | J116: -2.10616 | K116: -2.10616 | L116: 926 | M116: Corporate Service Bill | N116: Corporate Service Bill926 | O116: Non-Lobbying | P116: Non-Lobbying 926
E118: Total Proforma Adj - O&M Exclusions (CKY Direct) CHECK | F118: =SUM(F3:F29) -> -172625.73 | H118: =SUM(H3:H29) -> -181909.0495
E119: Total Proforma Adj - O&M Lobbying Exclusions (CKY Direct) FYI | F119: =SUM(F3:F9) -> -86833.73 | H119: =SUM(H3:H9) -> -91470.24683
E120: Total Proforma Adj - O&M Exclusions (CKY NCSC) CHECK | F120: =SUM(F30:F116) -> -260631.02 | H120: =SUM(H30:H116) -> -274641.8299
E121: Total Proforma Adj - O&M Lobbying Exclusions (CKY NCSC) FYI | F121: =SUM(F30:F41) -> -48653.02 | H121: =SUM(H30:H41) -> -51412.03766
E123: NCSC by Category
E124: Leases Building & Land | F124: =SUM(F80:F82)+F41 -> -3938 | H124: =SUM(H80:H82)+H41 -> -4147.02904
E125: Utilities | F125: =SUM(F109:F110)+F54 -> -280 | H125: =SUM(H109:H110)+H54 -> -294.8624
E126: Misc. & Other | F126: =SUM(F96:F103)+SUM(F48:F53)+F34+F57+F113 -> -19742 | H126: =SUM(H96:H103)+SUM(H48:H53)+H34+H57+H113 -> -20789.90536
E127: Materials & Supplies | F127: =F111+SUM(F88:F95)+F47+F35 -> -10588 | H127: =H111+SUM(H88:H95)+H47+H35 -> -11150.01104
E128: Advertising | F128: =SUM(F58:F63)+F43 -> -30250 | H128: =SUM(H58:H63)+H43 -> -31855.67
E129: Outside Services - All Oher | F129: =F112+SUM(F104:F108)+SUM(F55:F56)+SUM(F36:F37)+F40+F87 -> -58989 | H129: =H112+SUM(H104:H108)+SUM(H55:H56)+SUM(H36:H37)+H40+H87 -> -62120.13612
E130: Leases Other | F130: =SUM(F83:F86) -> -2029 | H130: =SUM(H83:H86) -> -2136.69932
E131: Labor | F131: =F115+F38 -> -25687 | H131: =H115+H38 -> -27226.98132
E132: Benefits | F132: =F116+F39 -> -1147 | H132: =H116+H39 -> -1207.88276
E133: Employee Expenses | F133: =SUM(F114)+SUM(F67:F79)+SUM(F44:F46)+F33 -> -87336 | H133: =SUM(H114)+SUM(H67:H79)+SUM(H44:H46)+H33 -> -91971.79488
E134: Dues & Donations | F134: =SUM(F65:F66)+SUM(F30:F32)+F42 -> -20645.02 | H134: =SUM(H65:H66)+SUM(H30:H32)+H42 -> -21740.85766
F135: =SUM(F124:F134) -> -260631.02 | H135: =SUM(H124:H134) -> -274641.8299
F136: =F120-F135 -> 0 | H136: =H120-H135 -> 0

Sheet INPUT - FTP O&M Excld Allocates
D3: Direct | H3: NCSC
D4: Non-Lobbying Allocate | H4: Lobbying Allocate | I4: Non-Lobbying Allocate
D5: =+'D-2.7'!A81 -> ADJ 8.2 | E5: =+D5 -> ADJ 8.2 | F5: =+D5 -> ADJ 8.2 | G5: 6.2 TOTAL | H5: =+'D-2.7'!A87 -> ADJ 9.1 | I5: =+'D-2.7'!A93 -> ADJ 9.2 | Q5: 7.2 TOTAL
D6: =SUMIFS('INPUT - FTP O&M Excld FERC List'!$H$3:$H$116,'INPUT - FTP O&M Excld FERC List'!$D$3:$D$116,'INPUT - FTP O&M Excld FERC List'!$D$3,'INPUT - FTP O&M Excld FERC List'!$M$3:$M$116,D$7,'INPUT - FTP O&M Excld FERC List'!$P$3:$P$116,$D$4) -> -1679.6626 | E6: =SUMIFS('INPUT - FTP O&M Excld FERC List'!$H$3:$H$116,'INPUT - FTP O&M Excld FERC List'!$D$3:$D$116,'INPUT - FTP O&M Excld FERC List'!$D$3,'INPUT - FTP O&M Excld FERC List'!$M$3:$M$116,E$7,'INPUT - FTP O&M Excld FERC List'!$P$3:$P$116,$D$4) -> -2648.4962 | F6: =SUMIFS('INPUT - FTP O&M Excld FERC List'!$H$3:$H$116,'INPUT - FTP O&M Excld FERC List'!$D$3:$D$116,'INPUT - FTP O&M Excld FERC List'!$D$3,'INPUT - FTP O&M Excld FERC List'!$M$3:$M$116,F$7,'INPUT - FTP O&M Excld FERC List'!$P$3:$P$116,$D$4) -> 0 | G6: =SUM(D6:F6) -> -4328.1588 | H6: =SUMIFS('INPUT - FTP O&M Excld FERC List'!$H$3:$H$116,'INPUT - FTP O&M Excld FERC List'!$D$3:$D$116,'INPUT - FTP O&M Excld FERC List'!$D$30,'INPUT - FTP O&M Excld FERC List'!$M$3:$M$116,H$7,'INPUT - FTP O&M Excld FERC List'!$P$3:$P$116,$H$4) -> -68.4502 | I6: =+'INPUT - FTP O&M Excld FERC List'!H46 -> -252.7392 | J6: =+'INPUT - FTP O&M Excld FERC List'!H50 -> -122.15728 | K6: =+'INPUT - FTP O&M Excld FERC List'!H63 -> -131.635 | L6: =+'INPUT - FTP O&M Excld FERC List'!H68 -> -217.98756 | M6: =+'INPUT - FTP O&M Excld FERC List'!H71 -> -1174.1842 | N6: =+'INPUT - FTP O&M Excld FERC List'!H79 -> -896.17108 | O6: =+'INPUT - FTP O&M Excld FERC List'!H101 -> -190.60748 | P6: =+'INPUT - FTP O&M Excld FERC List'!H103 -> -43.17628 | Q6: =SUM(I6:P6) -> -3028.65808
A7: Cost Category | B7: Account | C7: Account Allocation - CY2025 Basis | D7: ='INPUT - FTP O&M Excld FERC List'!M19 -> Miscellaneous & Other | E7: ='INPUT - FTP O&M Excld FERC List'!M29 -> Employee Expenses | F7: 0 | G7: DIRECT | H7: Corporate Service Bill | I7: =+H7 -> Corporate Service Bill | J7: =+I7 -> Corporate Service Bill | K7: Corporate Service Bill | L7: Corporate Service Bill | M7: =+L7 -> Corporate Service Bill | N7: =+M7 -> Corporate Service Bill | O7: =+N7 -> Corporate Service Bill | P7: =+O7 -> Corporate Service Bill | Q7: =+P7 -> Corporate Service Bill
A8: 401K | B8: 500 | C8: 0 | D8: =IF($A8=$D$7,$D$6*$C8,"") ->  | E8: =IF($A8=$E$7,$E$6*$C8,"") ->  | F8: =IF($A8=$F$7,$F$6*$C8,"") ->  | G8: =SUM(D8:F8) -> 0 | Q8: =SUM(I8:P8) -> 0
A9: 401K | B9: 505 | C9: 0 | D9: =IF($A9=$D$7,$D$6*$C9,"") ->  | E9: =IF($A9=$E$7,$E$6*$C9,"") ->  | F9: =IF($A9=$F$7,$F$6*$C9,"") ->  | G9: =SUM(D9:F9) -> 0 | Q9: 0
A10: 401K | B10: 535 | C10: 0 | G10: 0 | Q10: 0
A11: 401K | B11: 548 | C11: 0 | G11: 0 | Q11: 0
A12: 401K | B12: 552 | C12: 0 | G12: 0 | Q12: 0
A13: 401K | B13: 557 | C13: 0 | G13: 0 | Q13: 0
A14: 401K | B14: 569 | C14: 0 | G14: 0 | Q14: 0
A15: 401K | B15: 582 | C15: 0 | G15: 0 | Q15: 0
A16: 401K | B16: 588 | C16: 0 | G16: 0 | Q16: 0
A17: 401K | B17: 594 | C17: 0 | G17: 0 | Q17: 0
A18: 401K | B18: 742 | C18: 0 | G18: 0 | Q18: 0
A19: 401K | B19: 764 | C19: 0 | G19: 0 | Q19: 0
A20: 401K | B20: 807 | C20: 0 | G20: 0 | Q20: 0
A21: 401K | B21: 818 | C21: 0 | G21: 0 | Q21: 0
A22: 401K | B22: 823 | C22: 0 | G22: 0 | Q22: 0
A23: 401K | B23: 825 | C23: 0 | G23: 0 | Q23: 0
A24: 401K | B24: 834 | C24: 0 | G24: 0 | Q24: 0
A25: 401K | B25: 840 | C25: 0 | G25: 0 | Q25: 0
A26: 401K | B26: 841 | C26: 0 | G26: 0 | Q26: 0
A27: 401K | B27: 852 | C27: 0 | G27: 0 | Q27: 0
A28: 401K | B28: 859 | C28: 0 | G28: 0 | Q28: 0
A29: 401K | B29: 865 | C29: 0 | G29: 0 | Q29: 0
A30: 401K | B30: 866 | C30: 0 | G30: 0 | Q30: 0
A31: 401K | B31: 867 | C31: 0 | G31: 0 | Q31: 0
A32: 401K | B32: 870 | C32: 0 | G32: 0 | Q32: 0
A33: 401K | B33: 871 | C33: 0 | G33: 0 | Q33: 0
A34: 401K | B34: 874 | C34: 0 | G34: 0 | Q34: 0
A35: 401K | B35: 875 | C35: 0 | G35: 0 | Q35: 0
A36: 401K | B36: 876 | C36: 0 | G36: 0 | Q36: 0
A37: 401K | B37: 878 | C37: 0 | G37: 0 | Q37: 0
A38: 401K | B38: 879 | C38: 0 | G38: 0 | Q38: 0
A39: 401K | B39: 880 | C39: 4.508269813e-05 | G39: 0 | Q39: 0
A40: 401K | B40: 881 | C40: 0 | G40: 0 | Q40: 0
A41: 401K | B41: 885 | C41: 0 | G41: 0 | Q41: 0
A42: 401K | B42: 886 | C42: 0 | G42: 0 | Q42: 0
A43: 401K | B43: 887 | C43: 0 | G43: 0 | Q43: 0
A44: 401K | B44: 889 | C44: 0 | G44: 0 | Q44: 0
A45: 401K | B45: 890 | C45: 0 | G45: 0 | Q45: 0
A46: 401K | B46: 892 | C46: 0 | G46: 0 | Q46: 0
A47: 401K | B47: 893 | C47: 0 | G47: 0 | Q47: 0
A48: 401K | B48: 894 | C48: 0 | G48: 0 | Q48: 0
A49: 401K | B49: 901 | C49: 0 | G49: 0 | Q49: 0
A50: 401K | B50: 902 | C50: 0 | G50: 0 | Q50: 0
A51: 401K | B51: 903 | C51: 0 | G51: 0 | Q51: 0
A52: 401K | B52: 904 | C52: 0 | G52: 0 | Q52: 0
A53: 401K | B53: 905 | C53: 0 | G53: 0 | Q53: 0
A54: 401K | B54: 907 | C54: 0 | G54: 0 | Q54: 0
A55: 401K | B55: 908 | C55: 0 | G55: 0 | Q55: 0
A56: 401K | B56: 909 | C56: 0 | G56: 0 | Q56: 0
A57: 401K | B57: 910 | C57: 0 | G57: 0 | Q57: 0
A58: 401K | B58: 912 | C58: 0 | G58: 0 | Q58: 0
A59: 401K | B59: 913 | C59: 0 | G59: 0 | Q59: 0
A60: 401K | B60: 916 | C60: 0 | G60: 0 | Q60: 0
A61: 401K | B61: 920 | C61: 0 | G61: 0 | Q61: 0
A62: 401K | B62: 921 | C62: 0 | G62: 0 | Q62: 0
A63: 401K | B63: 923 | C63: 0 | G63: 0 | Q63: 0
A64: 401K | B64: 924 | C64: 0 | G64: 0 | Q64: 0
A65: 401K | B65: 925 | C65: 0 | G65: 0 | Q65: 0
A66: 401K | B66: 926 | C66: 0.9999549173 | G66: 0 | Q66: 0
A67: 401K | B67: 928 | C67: 0 | G67: 0 | Q67: 0
A68: 401K | B68: 930.1 | C68: 0 | G68: 0 | Q68: 0
A69: 401K | B69: 930.2 | C69: 0 | G69: 0 | Q69: 0
A70: 401K | B70: 931 | C70: 0 | G70: 0 | Q70: 0
A71: 401K | B71: 932 | C71: 0 | G71: 0 | Q71: 0
A72: 401K | B72: 935 | C72: 0 | G72: 0 | Q72: =SUM(I72:P72) -> 0
A73: Advertising Expense | B73: 500 | C73: 0 | D73: =IF($A73=$D$7,$D$6*$C73,"") ->  | E73: =IF($A73=$E$7,$E$6*$C73,"") ->  | F73: =IF($A73=$F$7,$F$6*$C73,"") ->  | G73: =SUM(D73:F73) -> 0 | Q73: 0
A74: Advertising Expense | B74: 505 | C74: 0 | G74: 0 | Q74: 0
A75: Advertising Expense | B75: 535 | C75: 0 | G75: 0 | Q75: 0
A76: Advertising Expense | B76: 548 | C76: 0 | G76: 0 | Q76: 0
A77: Advertising Expense | B77: 552 | C77: 0 | G77: 0 | Q77: 0
A78: Advertising Expense | B78: 557 | C78: 0 | G78: 0 | Q78: 0
A79: Advertising Expense | B79: 569 | C79: 0 | G79: 0 | Q79: 0
A80: Advertising Expense | B80: 582 | C80: 0 | G80: 0 | Q80: 0
A81: Advertising Expense | B81: 588 | C81: 0 | G81: 0 | Q81: 0
A82: Advertising Expense | B82: 594 | C82: 0 | G82: 0 | Q82: 0
A83: Advertising Expense | B83: 742 | C83: 0 | G83: 0 | Q83: 0
A84: Advertising Expense | B84: 764 | C84: 0 | G84: 0 | Q84: 0
A85: Advertising Expense | B85: 807 | C85: 0 | G85: 0 | Q85: 0
A86: Advertising Expense | B86: 818 | C86: 0 | G86: 0 | Q86: 0
A87: Advertising Expense | B87: 823 | C87: 0 | G87: 0 | Q87: 0
A88: Advertising Expense | B88: 825 | C88: 0 | G88: 0 | Q88: 0
A89: Advertising Expense | B89: 834 | C89: 0 | G89: 0 | Q89: 0
A90: Advertising Expense | B90: 840 | C90: 0 | G90: 0 | Q90: 0
A91: Advertising Expense | B91: 841 | C91: 0 | G91: 0 | Q91: 0
A92: Advertising Expense | B92: 852 | C92: 0 | G92: 0 | Q92: 0
A93: Advertising Expense | B93: 859 | C93: 0 | G93: 0 | Q93: 0
A94: Advertising Expense | B94: 865 | C94: 0 | G94: 0 | Q94: 0
A95: Advertising Expense | B95: 866 | C95: 0 | G95: 0 | Q95: 0
A96: Advertising Expense | B96: 867 | C96: 0 | G96: 0 | Q96: 0
A97: Advertising Expense | B97: 870 | C97: 0 | G97: 0 | Q97: 0
A98: Advertising Expense | B98: 871 | C98: 0 | G98: 0 | Q98: 0
A99: Advertising Expense | B99: 874 | C99: 0.003895413145 | G99: 0 | Q99: 0
A100: Advertising Expense | B100: 875 | C100: 0 | G100: 0 | Q100: 0
A101: Advertising Expense | B101: 876 | C101: 0 | G101: 0 | Q101: 0
A102: Advertising Expense | B102: 878 | C102: 0.003895413145 | G102: 0 | Q102: 0
A103: Advertising Expense | B103: 879 | C103: 0.002921559859 | G103: 0 | Q103: 0
A104: Advertising Expense | B104: 880 | C104: 0.0009738532863 | G104: 0 | Q104: 0
A105: Advertising Expense | B105: 881 | C105: 0 | G105: 0 | Q105: 0
A106: Advertising Expense | B106: 885 | C106: 0 | G106: 0 | Q106: 0
A107: Advertising Expense | B107: 886 | C107: 0 | G107: 0 | Q107: 0
A108: Advertising Expense | B108: 887 | C108: 0.003165168185 | G108: 0 | Q108: 0
A109: Advertising Expense | B109: 889 | C109: 0 | G109: 0 | Q109: 0
A110: Advertising Expense | B110: 890 | C110: 0 | G110: 0 | Q110: 0
A111: Advertising Expense | B111: 892 | C111: 0.0009738532863 | G111: 0 | Q111: 0
A112: Advertising Expense | B112: 893 | C112: 0 | G112: 0 | Q112: 0
A113: Advertising Expense | B113: 894 | C113: 0 | G113: 0 | Q113: 0
A114: Advertising Expense | B114: 901 | C114: 0 | G114: 0 | Q114: 0
A115: Advertising Expense | B115: 902 | C115: 0 | G115: 0 | Q115: 0
A116: Advertising Expense | B116: 903 | C116: 0.001217461613 | G116: 0 | Q116: 0
A117: Advertising Expense | B117: 904 | C117: 0 | G117: 0 | Q117: 0
A118: Advertising Expense | B118: 905 | C118: 0 | G118: 0 | Q118: 0
A119: Advertising Expense | B119: 907 | C119: 0 | G119: 0 | Q119: 0
A120: Advertising Expense | B120: 908 | C120: 0 | G120: 0 | Q120: 0
A121: Advertising Expense | B121: 909 | C121: 0 | G121: 0 | Q121: 0
A122: Advertising Expense | B122: 910 | C122: 0 | G122: 0 | Q122: 0
A123: Advertising Expense | B123: 912 | C123: 0 | G123: 0 | Q123: 0
A124: Advertising Expense | B124: 913 | C124: 0 | G124: 0 | Q124: 0
A125: Advertising Expense | B125: 916 | C125: 0 | G125: 0 | Q125: 0
A126: Advertising Expense | B126: 920 | C126: 0 | G126: 0 | Q126: 0
A127: Advertising Expense | B127: 921 | C127: 0.005568190321 | G127: 0 | Q127: 0
A128: Advertising Expense | B128: 923 | C128: 0 | G128: 0 | Q128: 0
A129: Advertising Expense | B129: 924 | C129: 0 | G129: 0 | Q129: 0
A130: Advertising Expense | B130: 925 | C130: 0 | G130: 0 | Q130: 0
A131: Advertising Expense | B131: 926 | C131: 0 | G131: 0 | Q131: 0
A132: Advertising Expense | B132: 928 | C132: 0 | G132: 0 | Q132: 0
A133: Advertising Expense | B133: 930.1 | C133: 0 | G133: 0 | Q133: 0
A134: Advertising Expense | B134: 930.2 | C134: 0.9773890872 | G134: 0 | Q134: 0
A135: Advertising Expense | B135: 931 | C135: 0 | G135: 0 | Q135: 0
A136: Advertising Expense | B136: 932 | C136: 0 | G136: 0 | Q136: =SUM(I136:P136) -> 0
A137: Advertising Expense | B137: 935 | C137: 0 | D137: =IF($A137=$D$7,$D$6*$C137,"") ->  | E137: =IF($A137=$E$7,$E$6*$C137,"") ->  | F137: =IF($A137=$F$7,$F$6*$C137,"") ->  | G137: =SUM(D137:F137) -> 0 | Q137: 0
A138: Amortizations | B138: 500 | C138: 0 | G138: 0 | Q138: 0
A139: Amortizations | B139: 505 | C139: 0 | G139: 0 | Q139: 0
A140: Amortizations | B140: 535 | C140: 0 | G140: 0 | Q140: 0
A141: Amortizations | B141: 548 | C141: 0 | G141: 0 | Q141: 0
A142: Amortizations | B142: 552 | C142: 0 | G142: 0 | Q142: 0
A143: Amortizations | B143: 557 | C143: 0 | G143: 0 | Q143: 0
A144: Amortizations | B144: 569 | C144: 0 | G144: 0 | Q144: 0
A145: Amortizations | B145: 582 | C145: 0 | G145: 0 | Q145: 0
A146: Amortizations | B146: 588 | C146: 0 | G146: 0 | Q146: 0
A147: Amortizations | B147: 594 | C147: 0 | G147: 0 | Q147: 0
A148: Amortizations | B148: 742 | C148: 0 | G148: 0 | Q148: 0
A149: Amortizations | B149: 764 | C149: 0 | G149: 0 | Q149: 0
A150: Amortizations | B150: 807 | C150: 0 | G150: 0 | Q150: 0
A151: Amortizations | B151: 818 | C151: 0 | G151: 0 | Q151: 0
A152: Amortizations | B152: 823 | C152: 0 | G152: 0 | Q152: 0
A153: Amortizations | B153: 825 | C153: 0 | G153: 0 | Q153: 0
A154: Amortizations | B154: 834 | C154: 0 | G154: 0 | Q154: 0
A155: Amortizations | B155: 840 | C155: 0 | G155: 0 | Q155: 0
A156: Amortizations | B156: 841 | C156: 0 | G156: 0 | Q156: 0
A157: Amortizations | B157: 852 | C157: 0 | G157: 0 | Q157: 0
A158: Amortizations | B158: 859 | C158: 0 | G158: 0 | Q158: 0
A159: Amortizations | B159: 865 | C159: 0 | G159: 0 | Q159: 0
A160: Amortizations | B160: 866 | C160: 0 | G160: 0 | Q160: 0
A161: Amortizations | B161: 867 | C161: 0 | G161: 0 | Q161: 0
A162: Amortizations | B162: 870 | C162: 0 | G162: 0 | Q162: 0
A163: Amortizations | B163: 871 | C163: 0 | G163: 0 | Q163: 0
A164: Amortizations | B164: 874 | C164: 0 | G164: 0 | Q164: 0
A165: Amortizations | B165: 875 | C165: 0 | G165: 0 | Q165: 0
A166: Amortizations | B166: 876 | C166: 0 | G166: 0 | Q166: 0
A167: Amortizations | B167: 878 | C167: 0 | G167: 0 | Q167: 0
A168: Amortizations | B168: 879 | C168: 0 | G168: 0 | Q168: 0
A169: Amortizations | B169: 880 | C169: 0 | G169: 0 | Q169: 0
A170: Amortizations | B170: 881 | C170: 0 | G170: 0 | Q170: 0
A171: Amortizations | B171: 885 | C171: 0 | G171: 0 | Q171: 0
A172: Amortizations | B172: 886 | C172: 0 | G172: 0 | Q172: 0
A173: Amortizations | B173: 887 | C173: 0 | G173: 0 | Q173: 0
A174: Amortizations | B174: 889 | C174: 0 | G174: 0 | Q174: 0
A175: Amortizations | B175: 890 | C175: 0 | G175: 0 | Q175: 0
A176: Amortizations | B176: 892 | C176: 0 | G176: 0 | Q176: 0
A177: Amortizations | B177: 893 | C177: 0 | G177: 0 | Q177: 0
A178: Amortizations | B178: 894 | C178: 0 | G178: 0 | Q178: 0
A179: Amortizations | B179: 901 | C179: 0 | G179: 0 | Q179: 0
A180: Amortizations | B180: 902 | C180: 0 | G180: 0 | Q180: 0
A181: Amortizations | B181: 903 | C181: 0 | G181: 0 | Q181: 0
A182: Amortizations | B182: 904 | C182: 0 | G182: 0 | Q182: 0
A183: Amortizations | B183: 905 | C183: 0 | G183: 0 | Q183: 0
A184: Amortizations | B184: 907 | C184: 0 | G184: 0 | Q184: 0
A185: Amortizations | B185: 908 | C185: 0 | G185: 0 | Q185: 0
A186: Amortizations | B186: 909 | C186: 0 | G186: 0 | Q186: 0
A187: Amortizations | B187: 910 | C187: 0 | G187: 0 | Q187: 0
A188: Amortizations | B188: 912 | C188: 0 | G188: 0 | Q188: 0
A189: Amortizations | B189: 913 | C189: 0 | G189: 0 | Q189: 0
A190: Amortizations | B190: 916 | C190: 0 | G190: 0 | Q190: 0
A191: Amortizations | B191: 920 | C191: 0 | G191: 0 | Q191: 0
A192: Amortizations | B192: 921 | C192: 0 | G192: 0 | Q192: 0
A193: Amortizations | B193: 923 | C193: 0 | G193: 0 | Q193: 0
A194: Amortizations | B194: 924 | C194: 0 | G194: 0 | Q194: 0
A195: Amortizations | B195: 925 | C195: 0 | G195: 0 | Q195: 0
A196: Amortizations | B196: 926 | C196: 0 | G196: 0 | Q196: 0
A197: Amortizations | B197: 928 | C197: 1 | G197: 0 | Q197: 0
A198: Amortizations | B198: 930.1 | C198: 0 | G198: 0 | Q198: 0
A199: Amortizations | B199: 930.2 | C199: 0 | G199: 0 | Q199: 0
A200: Amortizations | B200: 931 | C200: 0 | G200: 0 | Q200: =SUM(I200:P200) -> 0
A201: Amortizations | B201: 932 | C201: 0 | D201: =IF($A201=$D$7,$D$6*$C201,"") ->  | E201: =IF($A201=$E$7,$E$6*$C201,"") ->  | F201: =IF($A201=$F$7,$F$6*$C201,"") ->  | G201: =SUM(D201:F201) -> 0 | Q201: 0
A202: Amortizations | B202: 935 | C202: 0 | G202: 0 | Q202: 0
... 2091 more rows

Sheet INPUT - NCSC Resi Cust Fees Adj
A1: COLUMBIA GAS OF KENTUCKY, INC.
A2: CASE NO. 2026 - 00099
A3: FOR THE TWELVE MONTHS ENDED DECEMBER 31, 2027
D5: WITNESS: JONDA
A9: LINE
A10: NO. | B10: DESCRIPTION | C10: REFERENCE | D10: AMOUNT
D11: $
B12: Residential Credit Card, Debit Card, ACH and Check Transactions
A13: 1 | B13: Residential Credit Card, Debit Card, ACH and Check Number of Annual Transactions | C13: WP-Transactions | D13: 251261
A15: 2 | B15: Residential Credit Card, Debit Card, ACH and Check Transaction Fee | D15: 1.35
A17: 3 | B17: ="Annualized "&B12 -> Annualized Residential Credit Card, Debit Card, ACH and Check Transactions | C17: ="Line " & A13 & " x " & "Line " & A15 -> Line 1 x Line 2 | D17: =+ROUND((D13*D15),0) -> 339202
A19: =+A17+1 -> 4 | B19: Residential Lockbox Number of Annual Transactions Reduction | C19: WP-Transactions | D19: -19515.43471
A21: =+A19+1 -> 5 | B21: Residential Lockbox Transaction Fee | D21: 0.16
A23: =+A21+1 -> 6 | B23: Annualized Residential Lockbox Transactions | C23: ="Line " & A19 & " x " & "Line " & A21 -> Line 4 x Line 5 | D23: =+ROUND((D19*D21),0) -> -3122
A25: =+A23+1 -> 7 | B25: Residential In-house Number of Annual Transactions Reduction | C25: WP-Transactions | D25: -2899.112119
A27: =+A25+1 -> 8 | B27: Residential In-house Transaction Fee | D27: 1
A29: =+A27+1 -> 9 | B29: Annualized Residential In-house Transactions | C29: ="Line " & A25 & " x " & "Line " & A27 -> Line 7 x Line 8 | D29: =+ROUND((D25*D27),0) -> -2899
A31: =+A29+1 -> 10 | B31: ="Total "&B17 -> Total Annualized Residential Credit Card, Debit Card, ACH and Check Transactions | C31: ="Line " & A17 & " + " & "Line " & A23 & " + " & "Line " & A29 -> Line 3 + Line 6 + Line 9 | D31: =+D17+D23+D29 -> 333181
B33: Residential Walk-in Transactions
A34: =+A31+1 -> 11 | B34: Residential Authorized Walk-in Paystation Number of Annual Transactions | C34: WP-Transactions | D34: 29488
A36: =+A34+1 -> 12 | B36: Residential Authorized Walk-in Paystation Transaction Fee | D36: 0.55
A38: =+A36+1 -> 13 | B38: Annualized Residential Authorized Walk-in Paystation Transactions | C38: ="Line " & A34 & " x " & "Line " & A36 -> Line 11 x Line 12 | D38: =+ROUND((D34*D36),0) -> 16218
A40: =+A38+1 -> 14 | B40: Residential Authorized Walk-in Paystation Number of Annual Transactions Reduction | C40: WP-Transactions | D40: -2639.063891
A42: =+A40+1 -> 15 | B42: Residential Authorized Walk-in Paystation Transaction Fee | D42: 0.55
A44: =+A42+1 -> 16 | B44: Annualized Residential Authorized Walk-in Paystation Transactions | C44: ="Line " & A40 & " x " & "Line " & A42 -> Line 14 x Line 15 | D44: =+ROUND((D40*D42),0) -> -1451
A46: =+A44+1 -> 17 | B46: Total Annualized Residenital Walk-in Transactions | C46: ="Line " & A38 & " + " & "Line " & A44 -> Line 13 + Line 16 | D46: =+D38+D44 -> 14767
A48: =+A46+1 -> 18 | B48: Total Annualized Customer Payment Transaction Expenses | C48: ="Line " & A31 & " + " & "Line " & A46 -> Line 10 + Line 17 | D48: =D31+D46 -> 347948

Sheet INPUT - NCSC CKY GenCo Adj
AB1: HIGHLY CONFIDENTIAL Attachment GBJ-4
AB2: WITNESS: G. JONDA
AB3: Page 1 of 1
A4: COLUMBIA GAS OF KENTUCKY, INC.
A5: CASE NO. 2026 - 00099
A6: NISOURCE CORPORATE SERVICE COSTS
A7: BASE PERIOD: TWELVE MONTHS ENDED AUGUST 31, 2026
A8: FORECASTED TEST PERIOD: TWELVE MONTHS ENDED DECEMBER 31, 2027
D9: CONFIDENTIAL | F9: CONFIDENTIAL | G9: CONFIDENTIAL | I9: CONFIDENTIAL | O9: CONFIDENTIAL
A10: Line No. | C10: Employee Number | D10: Base Salaries [1] | E10: % Allocation to CKY [2] | F10: Base Salary Billed to CKY | G10: Rate Year Base Salary Billed to CKY + 2026 & 2027 Merit Increase [3] | H10: O&M Experience Ratio [4] | I10: Rate Year Base Salary Billed to CKY, Allocated to O&M Expense | K10: Location | M10: Job Title | O10: Target Incentive Compensation [5] | P10: Target Incentive Compensation (Gross) | Q10: Target Incentive Compensation (O&M Expense) | S10: Benefits Experience Factor [6] | T10: Employee Benefits (Gross) | U10: Employee Benefits (O&M Expense) | V10: Payroll Tax Experience Factor [7] | W10: Payroll Tax (Gross) | X10: Payroll Tax (Expense) | Z10: TOTAL NCSC GenCo Adjustment | AA10: TOTAL NCSC GenCo Capital Adjustment | AB10: TOTAL NCSC Billed to CKY GenCo Expense Adjustment
C11: -1 | D11: -2 | E11: -3 | F11: (4 = 2 x 3) | G11: (5 = 4 x 1.0552) | H11: -6 | I11: (7 = 5 x 6) | K11: -8 | M11: -9 | O11: -10 | P11: (11 = 5 x 10) | Q11: (12 = 6 x 11) | S11: -13 | T11: (14 = 5 x 13) | U11: (15 = 14 x 6) | V11: -16 | W11: (17 = ((5 + 11) | X11: (18 = 17 x 6) | Z11: (19 = 5 + 11 | AA11: (20 = 19 - 21) | AB11: (21 = 7 + 12
W12: x 17) | Z12: + 14 + 17) | AB12: + 15 + 18)
A13: 1 | C13: 1 | E13: 0.0385 | F13: 15978 | G13: =+F13*1.0552 -> 16859.9856 | H13: 0.9793844646 | I13: =+G13*H13 -> 16512.40797 | K13: Merrilville IN-SLC | M13: SVP Commercial Development | P13: 9272.99 | Q13: =+P13*H13 -> 9081.822346 | S13: =+G60 -> 0.2209050449 | T13: =+ROUND((G13*S13),0) -> 3724 | U13: =+T13*H13 -> 3647.227746 | V13: 0.0728 | W13: 1192.190272 | X13: =+W13*H13 -> 1167.612631 | Z13: =+G13+P13+T13+W13 -> 31049.16587 | AA13: =+Z13-AB13 -> 640.0951786 | AB13: =+I13+Q13+U13+X13 -> 30409.07069
A14: =+A13+1 -> 2 | C14: =+C13+1 -> 2 | E14: 0.0106 | F14: 2199 | G14: =+F14*1.0552 -> 2320.3848 | H14: 0.6217981454 | I14: =+G14*H14 -> 1442.810965 | K14: Columbus OH - Arena District | M14: Sr Counsel | P14: 464.08 | Q14: =+P14*H14 -> 288.5640833 | S14: =$S$13 -> 0.2209050449 | T14: =+ROUND((G14*S14),0) -> 513 | U14: =+T14*H14 -> 318.9824486 | V14: =$V$13 -> 0.0728 | W14: 176.159984 | X14: =+W14*H14 -> 109.5359513 | Z14: =+G14+P14+T14+W14 -> 3473.624784 | AA14: =+Z14-AB14 -> 1313.731336 | AB14: =+I14+Q14+U14+X14 -> 2159.893448
A15: =+A14+1 -> 3 | C15: =+C14+1 -> 3 | E15: 0.0356 | F15: 5577 | G15: 5884.8504 | H15: 0.6732411087 | I15: =+G15*H15 -> 3961.923208 | K15: Columbus OH - Arena District | M15: Financial Analysis & Projects Manager | P15: 882.73 | Q15: 594.2901239 | S15: 0.2209050449 | T15: 1300 | U15: 875.2134413 | V15: 0.0728 | W15: 493 | X15: 331.9078666 | Z15: 8560.5804 | AA15: 2797.24576 | AB15: 5763.33464
A16: =+A15+1 -> 4 | C16: =C15+1 -> 4 | E16: 0.0205 | F16: 3895 | G16: 4110.004 | H16: 0.7426960828 | I16: 3052.483871 | K16: Columbus OH - Arena District | M16: Director Strategic Planning & Capital | P16: 1027.5 | Q16: 763.1202251 | S16: 0.2209050449 | T16: 908 | U16: 674.3680432 | V16: 0.0728 | W16: 350.1498 | X16: 260.0548849 | Z16: 6395.6538 | AA16: 1645.626776 | AB16: 4750.027024
A17: =+A16+1 -> 5 | C17: =+C16+1 -> 5 | E17: 0.0361 | F17: 4986 | G17: 5261.2272 | H17: 0.6034071603 | I17: 3174.662164 | K17: Merrilville IN-SLC | M17: Manager Strategy and Risk | P17: 789.18 | Q17: 476.1968628 | S17: 0.2209050449 | T17: 1162 | U17: 701.1591203 | V17: 0.0728 | W17: 440 | X17: 265.4991505 | Z17: 7652.4072 | AA17: 3034.889902 | AB17: 4617.517298
A18: 6 | C18: 6 | E18: 0.0414 | F18: 6012 | G18: 6343.8624 | H18: 0.6037499402 | I18: 3830.106545 | K18: Columbus OH - Arena District | M18: Mgr Strategic Financial Planning | P18: 951.58 | Q18: 574.5163681 | S18: 0.2209050449 | T18: 1401 | U18: 845.8536662 | V18: 0.0728 | W18: 531 | X18: 320.5912183 | Z18: 9227.4424 | AA18: 3656.374603 | AB18: 5571.067797
A19: 7 | C19: 7 | E19: 0.0362 | F19: 5938 | G19: 6265.7776 | H19: 0.5991138084 | I19: 3753.91388 | K19: Columbus OH - Arena District | M19: Dir Portfolio Planning & Orig | P19: 1566.44 | Q19: 938.475834 | S19: 0.2209050449 | T19: 1384 | U19: 829.1735108 | V19: 0.0728 | W19: 570 | X19: 341.4948708 | Z19: 9786.2176 | AA19: 3923.159504 | AB19: 5863.058096
A20: 8 | C20: 8 | E20: 0.0338 | F20: 4572 | G20: 4824.3744 | H20: 0.5853167181 | I20: 2823.786991 | K20: Columbus OH - Arena District | M20: Mgr Financial Planning & Analysis | P20: 723.66 | Q20: 423.5702962 | S20: 0.2209050449 | T20: 1066 | U20: 623.9476215 | V20: 0.0728 | W20: 404 | X20: 236.4679541 | Z20: 7018.0344 | AA20: 2910.261538 | AB20: 4107.772862
A21: 9 | C21: 9 | E21: 0.0181 | F21: 3266 | G21: 3446.2832 | H21: 0.5709100286 | I21: 1967.51764 | K21: Columbus OH - Arena District | M21: Dir Tech Acctng Commercial Dev | P21: 861.57 | Q21: 491.8789533 | S21: 0.2209050449 | T21: 761 | U21: 434.4625318 | V21: 0.0728 | W21: 314 | X21: 179.265749 | Z21: 5382.8532 | AA21: 2309.728326 | AB21: 3073.124874
A22: 10 | C22: 10 | E22: 0.0414 | F22: 3999 | G22: 4219.7448 | H22: 0.572748023 | I22: 2416.850492 | K22: Columbus OH - Arena District | M22: Lead Financial Analyst | P22: 421.97 | Q22: 241.6824833 | S22: 0.2209050449 | T22: 932 | U22: 533.8011574 | V22: 0.0728 | W22: 338 | X22: 193.5888318 | Z22: 5911.7148 | AA22: 2525.791836 | AB22: 3385.922964
A23: 11 | C23: 11 | E23: 0.0282 | F23: 4632 | G23: 4887.6864 | H23: 0.1158221076 | I23: 566.1021402 | K23: Virtual - Texas | M23: Project Mgmt Manager | P23: 733.15 | Q23: 84.9149782 | S23: 0.2209050449 | T23: 1080 | U23: 125.0878762 | V23: 0.0728 | W23: 409 | X23: 47.37124202 | Z23: 7109.8364 | AA23: 6286.360163 | AB23: 823.4762367
A24: 12 | C24: 12 | E24: 0.0414 | F24: 9146 | G24: 9650.8592 | H24: 0.5854450647 | I24: 5650.047888 | K24: Columbus OH - Arena District | M24: Dir Corporate Development | P24: 2412.71 | Q24: 1412.509162 | S24: 0.2209050449 | T24: 2132 | U24: 1248.168878 | V24: 0.0728 | W24: 731.713528 | X24: 428.3780737 | Z24: 14927.28273 | AA24: 6188.178726 | AB24: 8739.104002
A25: =A24+1 -> 13 | C25: =C24+1 -> 13 | E25: 0.0376 | F25: 5226 | G25: 5514.4752 | H25: 0.5685108261 | I25: 3135.038852 | K25: Columbus OH - Arena District | M25: Technical Accounting Project Manager | P25: 827.17 | Q25: 470.2551 | S25: 0.2209050449 | T25: 1218 | U25: 692.4461862 | V25: 0.0728 | W25: 462 | X25: 262.6520017 | Z25: 8021.6452 | AA25: 3461.25306 | AB25: 4560.39214
A26: 14 | C26: 14 | E26: 0.0284 | F26: 11360 | G26: 11987.072 | H26: 0.1770632158 | I26: 2122.469516 | K26: Columbus OH - Arena District | M26: SVP Generation Construction | P26: 5993.54 | Q26: 1061.235466 | S26: 0.2209050449 | T26: 2648 | U26: 468.8633954 | V26: 0.0728 | W26: 817.787152 | X26: 144.8000229 | Z26: 21446.39915 | AA26: 17649.03075 | AB26: 3797.3684
A27: 15 | C27: 15 | E27: 0.0286 | F27: 5434 | G27: 5733.9568 | H27: 0.1041960991 | I27: 597.455931 | K27: Merrilville IN-SLC | M27: Dir Category Management | P27: 1433.49 | Q27: 149.3640661 | S27: 0.2209050449 | T27: 1267 | U27: 132.0164576 | V27: 0.0728 | W27: 488.501832 | X27: 50.8999853 | Z27: 8922.948632 | AA27: 7993.212192 | AB27: 929.73644
A28: =+A27+1 -> 16 | C28: Total | D28: 2942949 | F28: =SUM(F13:F27) -> 92220 | G28: =SUM(G13:G27) -> 97310.544 | I28: =SUM(I13:I27) -> 55007.57805 | P28: =SUM(P13:P27) -> 28361.76 | Q28: =SUM(Q13:Q27) -> 17052.39635 | T28: =SUM(T13:T27) -> 21496 | U28: =SUM(U13:U27) -> 12150.77208 | W28: =SUM(W13:W27) -> 7717.502568 | X28: =SUM(X13:X27) -> 4340.120434 | Z28: =SUM(Z13:Z27) -> 154885.8066 | AA28: =SUM(AA13:AA27) -> 66334.93965 | AB28: =SUM(AB13:AB27) -> 88550.86692
A29: =+A28+1 -> 17 | C29: Adjustment | G29: =-G28 -> -97310.544 | I29: =-I28 -> -55007.57805 | P29: =-P28 -> -28361.76 | Q29: =-Q28 -> -17052.39635 | T29: =-T28 -> -21496 | U29: =-U28 -> -12150.77208 | W29: =-W28 -> -7717.502568 | X29: =-X28 -> -4340.120434 | Z29: =-Z28 -> -154885.8066 | AA29: =-AA28 -> -66334.93965 | AB29: =-AB28 -> -88550.86692
A30: =+A29+1 -> 18 | C30: 2027 FTP NCSC Billed to CKY GenCo Legal Expenses | Z30: =+AB30 -> -123000 | AB30: -123000
A31: =+A30+1 -> 19 | C31: Total 2027 FTP NCSC Billed to CKY GenCo Adjustment | Z31: =+SUM(Z29:Z30) -> -277885.8066 | AA31: =+SUM(AA29:AA30) -> -66334.93965 | AB31: =+SUM(AB29:AB30) -> -211550.8669
A33: Footnotes:
A34: [1] Base salaries per the February 2026 payroll file provided by the NiSource Payroll Department.
A35: [2] Percentages of allocation to CKY per calendar 2025 ratable usage of billing pools allocated to CKY and CKY's NCSC Allocation Survey rates effective February 2026.
A36: [3] 2026 (3.00%) and 2027 (2.52%) for a Total Merit increase of 5.52%.
C38: # of days between 2027 Merit & Rate Rffective Date of Columbia's 2026 Rate Case:
C39: March | D39: 31
C40: April | D40: 30
C41: May | D41: 31
C42: June | D42: 30
C43: July | D43: 31
C44: August | D44: 31
C45: September | D45: 30
C46: October | D46: 31
C47: November | D47: 30
C48: December | D48: 31
C49: Total | D49: =SUM(D39:D48) -> 306
C50: # of Days in 2027 | D50: 365
C51: Ratio of Days | D51: =+D49/D50 -> 0.8383561644
C52: Merit | D52: 0.03
C53: Prorated 2027 Merit | D53: =+D51*D52 -> 0.02515068493
A55: [4] O&M experience ratio per calendar year 2025 labor distribution.
A56: [5] Target Incentive per the February 2026 payroll file provided by the NiSource Payroll Department.
A57: [6] Benefits Factor is based on FTP 2027 Lockton and Aon Actuarial Studies calculated as shown below:
C58: Employee Benefits, including Pension and OPEB | G58: 3064028.71
C59: CKY NCSC Allocated Gross Labor for 2027 Forecasted Test Period (FTP) | G59: 13870342.85
D60: CVA NCSC Benefits Experience Factor | G60: =+G58/G59 -> 0.2209050449
A61: [7] Payroll Tax experience factor for Twelve-Months-Ended February 2026 per payroll files provided by the NiSource Payroll Department.
N63: =ROUND((D49/D50),4) -> 0.8384

Sheet INPUT - GDP Inflation Factor
A1: =+'General Headers Index'!B3 -> COLUMBIA GAS OF KENTUCKY, INC.
A2: =+'General Headers Index'!B5 -> CASE NO. 2026 - 00099 | L2: Workpaper WPD-2.7.H / WPD-2.7.I
A3: =+'General Headers Index'!B16 -> FOR THE TWELVE MONTHS ENDED DECEMBER 31, 2027 | L3: ="WITNESS: "&'General Headers Index'!B43 -> WITNESS: N. DAVIS
A4: ANNUAL AVERAGE INFLATION FACTOR
A7: Annual Average Inflation Factor [1]
B9: Line | J9: Annual | L9: Annual
B10: No. | D10: Year | F10: Quarter | H10: GDPIPD | J10: Average | L10: Increase
B12: 1 | D12: =D16-1 -> 2023 | F12: I | H12: 1.212875297
B13: =+B12+1 -> 2 | D13: =D12 -> 2023 | F13: II | H13: 1.219196042
B14: 3 | D14: =D12 -> 2023 | F14: III | H14: 1.229143186
B15: 4 | D15: =D12 -> 2023 | F15: IV | H15: 1.234045042 | J15: =AVERAGE(H12:H15) -> 1.223814892
B16: 5 | D16: =D20-1 -> 2024 | F16: I | H16: 1.243740274
B17: 6 | D17: =D16 -> 2024 | F17: II | H17: 1.251670882
B18: 7 | D18: =D16 -> 2024 | F18: III | H18: 1.256961731
B19: 8 | D19: =D16 -> 2024 | F19: IV | H19: 1.264499985 | J19: =AVERAGE(H16:H19) -> 1.254218218 | L19: =ROUND(J19/J15,5)-1 -> 0.02484
B20: 9 | D20: =D24-1 -> 2025 | F20: I | H20: 1.275770558
B21: 10 | D21: =D20 -> 2025 | F21: II | H21: 1.282476958
B22: 11 | D22: =D20 -> 2025 | F22: III | H22: 1.294303985
B23: 12 | D23: =D20 -> 2025 | F23: IV | H23: 1.304946289 | J23: =AVERAGE(H20:H23) -> 1.289374448 | L23: =ROUND(J23/J19,5)-1 -> 0.02803
B24: 13 | D24: =D28-1 -> 2026 | F24: I | H24: 1.31202835
B25: 14 | D25: =D24 -> 2026 | F25: II | H25: 1.322278302
B26: 15 | D26: =D24 -> 2026 | F26: III | H26: 1.330781216
B27: 16 | D27: =D24 -> 2026 | F27: IV | H27: 1.338690427 | J27: =AVERAGE(H24:H27) -> 1.325944573 | L27: =ROUND(J27/J23,5)-1 -> 0.02836
B28: 17 | D28: =YEAR('General Headers Index'!B15) -> 2027 | F28: I | H28: 1.346459644
B29: 18 | D29: =D28 -> 2027 | F29: II | H29: 1.354111159
B30: 19 | D30: =D28 -> 2027 | F30: III | H30: 1.361676811
B31: 20 | D31: =D28 -> 2027 | F31: IV | H31: 1.369010555 | J31: =AVERAGE(H28:H31) -> 1.357814542 | L31: =ROUND(J31/J27,5)-1 -> 0.02404
B33: =+B31+1 -> 21 | J33: ="Rate of Inflation "&$D$12&" to "&$D$28&":" -> Rate of Inflation 2023 to 2027: | L33: =ROUND(J31/J15,5)-1 -> 0.10949
B34: =+B33+1 -> 22 | J34: ="Rate of Inflation "&$D$16&" to "&$D$28&":" -> Rate of Inflation 2024 to 2027: | L34: =ROUND(J31/J19,5)-1 -> 0.0826
B35: =+B34+1 -> 23 | J35: ="Rate of Inflation "&$D$20&" to "&$D$28&":" -> Rate of Inflation 2025 to 2027: | L35: =ROUND(J31/J23,5)-1 -> 0.05308
B37: Footnote:
B38: [1] Source: Source for GDPIPD Index is Moody's Analytics as of February 2026.
B39: Reflects the annual percentage rates of growth reported for the GDP Implicit Price Deflator, or Gross Domestic Product Implicit Price Deflator (GDPIPD).

Sheet <<<<<Input Tabs

Sheet Cost of Service >>>>>

Sheet Index A
A2: SCHEDULE A
A4: JURISDICTIONAL OVERALL FINANCIAL SUMMARY FOR THE BASE AND FORECASTED PERIOD
A6: ='General Headers Index'!B3 -> COLUMBIA GAS OF KENTUCKY, INC.
A8: ='General Headers Index'!B5 -> CASE NO. 2026 - 00099
A12: BASE PERIOD: | C12: ='General Headers Index'!B8 -> FOR THE TWELVE MONTHS ENDED AUGUST 31, 2026
A14: FORECASTED PERIOD: | C14: ='General Headers Index'!B16 -> FOR THE TWELVE MONTHS ENDED DECEMBER 31, 2027
A17: SCHEDULE | C17: DESCRIPTION
A19: A-1 | C19: OVERALL FINANCIAL SUMMARY
A20: A-2 | C20: RECONCILIATION OF REVENUE REQUIREMENT SCHEDULE A-1 TO REVENUE AT PROPOSED RATES SCHEDULE M

Sheet A-1 Financial Summary
A1: ='General Headers Index'!B3 -> COLUMBIA GAS OF KENTUCKY, INC.
A2: ='General Headers Index'!B5 -> CASE NO. 2026 - 00099
A3: ='Index A'!C19 -> OVERALL FINANCIAL SUMMARY
A4: ='General Headers Index'!B9 -> BASE PERIOD: TWELVE MONTHS ENDED AUGUST 31, 2026
A5: ='General Headers Index'!B17 -> FORECASTED TEST PERIOD: TWELVE MONTHS ENDED DECEMBER 31, 2027
A7: ='General Headers Index'!$B$35 -> DATA:___X___BASE PERIOD___X___FORECASTED PERIOD | I7: ="SCHEDULE "&'Index A'!$A$19 -> SCHEDULE A-1
A8: ='General Headers Index'!$B$37 -> TYPE OF FILING:___X___ORIGINAL_______UPDATED | I8: PAGE 1 OF 1
A9: ='General Headers Index'!$B$40 -> WORKPAPER REFERENCE NO(S): | I9: ="WITNESS: "&'General Headers Index'!B43 -> WITNESS: N. DAVIS
I10: FORECASTED PERIOD | S10: FORECASTED PERIOD
G11: BASE PERIOD | I11: JURISDICTIONAL | S11: JURISDICTIONAL
E12: SUPPORTING | G12: JURISDICTIONAL | I12: REVENUE | S12: REVENUE
A13: LINE | E13: SCHEDULE | G13: REVENUE | I13: REQUIREMENT | K13: Reference | L13: BASE PERIOD | M13: BP CHECKS | O13: FORECASTED | P13: FORECASTED CHECKS | S13: REQUIREMENT
A14: NO. | B14: DESCRIPTION | C14: REFERENCE | E14: REFERENCE | G14: REQUIREMENT | I14: WITH CWC ADJ | L14: Check to Reference: | S14: AS FILED | T14: DIFFERENCE
A16: =IF(ISBLANK($B16),"",COUNTA($B$16:B16)) -> 1 | B16: RATE BASE | E16: B-1 | G16: ='B-1 p.1 Summary (Base)'!J38 -> 599158433.6 | I16: ='B-1 p.2 Summary (Forecast)'!K41 -> 598545049.1 | K16: B-1 | L16: =+'B-1 p.1 Summary (Base)'!J38 -> 599158433.6 | M16: =IF(ROUND(G16,0)=ROUND(L16,0),"OK","CHECK") -> OK | O16: ='B-1 p.2 Summary (Forecast)'!K41 -> 598545049.1 | P16: =IF(ROUND(I16,0)=ROUND(O16,0),"OK","CHECK") -> OK | Q16: =+I16-O16 -> 0 | S16: 609682978.1 | T16: =+I16-S16 -> -11137929
A17: =IF(ISBLANK($B17),"",COUNTA($B$16:B17)) -> 
A18: =IF(ISBLANK($B18),"",COUNTA($B$16:B18)) -> 2 | B18: ADJUSTED OPERATING INCOME | E18: C-1 | G18: ='C-1 Operating Income Summary'!I34 -> 30786392.83 | I18: ='C-1 Operating Income Summary'!M34 -> 22861942.06 | K18: C-1 | L18: =+'C-1 Operating Income Summary'!I34 -> 30786392.83 | M18: =IF(G18=L18,"OK","CHECK") -> OK | O18: ='C-1 Operating Income Summary'!M34 -> 22861942.06 | P18: =IF(ROUND(I18,0)=ROUND(O18,0),"OK","CHECK") -> OK | Q18: =+I18-O18 -> 0 | S18: 22889633.06 | T18: =+I18-S18 -> -27691
A19: =IF(ISBLANK($B19),"",COUNTA($B$16:B19)) -> 
A20: =IF(ISBLANK($B20),"",COUNTA($B$16:B20)) -> 3 | B20: EARNED RATE OF RETURN | C20: ="LINE "&A18&" / LINE "&A16 -> LINE 2 / LINE 1 | G20: =ROUND(G18/G16,5) -> 0.05138 | I20: =ROUND(I18/I16,5) -> 0.0382 | K20: C-1 | L20: =+'C-1 Operating Income Summary'!I38 -> 0.05138 | M20: =IF(G20=L20,"OK","CHECK") -> OK | O20: ='C-1 Operating Income Summary'!M38 -> 0.0382 | P20: =IF(I20=O20,"OK","CHECK") -> OK | Q20: =+I20-O20 -> 0 | S20: 0.03754 | T20: =+I20-S20 -> 0.00066
A21: =IF(ISBLANK($B21),"",COUNTA($B$16:B21)) -> 
A22: =IF(ISBLANK($B22),"",COUNTA($B$16:B22)) -> 4 | B22: REQUIRED RATE OF RETURN | E22: J | G22: ='J-1 Base Period Cost of Capital'!M23 -> 0.08169 | I22: ='J-1.1, J-1.2 13 MO AVG WACC'!M23 -> 0.08152 | K22: J | L22: =+'J-1 Base Period Cost of Capital'!M23 -> 0.08169 | M22: =IF(G22=L22,"OK","CHECK") -> OK | O22: =+'J-1.1, J-1.2 13 MO AVG WACC'!M23 -> 0.08152 | P22: =IF(I22=O22,"OK","CHECK") -> OK | Q22: =+I22-O22 -> 0 | S22: 0.08152 | T22: =+I22-S22 -> 0
A23: =IF(ISBLANK($B23),"",COUNTA($B$16:B23)) -> 
A24: =IF(ISBLANK($B24),"",COUNTA($B$16:B24)) -> 5 | B24: REQUIRED OPERATING INCOME | C24: ="LINE "&A16&" × LINE "&A22 -> LINE 1 × LINE 4 | E24: C-1 | G24: =ROUND(G22*G16,0) -> 48945252 | I24: =I22*I16 -> 48793392.4 | K24: C-1 | L24: =ROUND(L22*L16,0) -> 48945252 | M24: =IF(G24=L24,"OK","CHECK") -> OK | O24: ='C-1 Operating Income Summary'!Q34 -> 48793392.4 | P24: =IF(ROUND(I24,0)=ROUND(O24,0),"OK","CHECK") -> OK | Q24: =+I24-O24 -> -0.0002519190311 | S24: 49701356.38 | T24: =+I24-S24 -> -907963.9721
A25: =IF(ISBLANK($B25),"",COUNTA($B$16:B25)) ->  | L25: Calculated - Not on C-1
A26: =IF(ISBLANK($B26),"",COUNTA($B$16:B26)) -> 6 | B26: OPERATING INCOME DEFICIENCY | C26: ="LINE "&A24&" - LINE "&A18 -> LINE 5 - LINE 2 | E26: C-1 | G26: =G24-G18 -> 18158859.17 | I26: =I24-I18 -> 25931450.35 | K26: C-1 | L26: =L24-L18 -> 18158859.17 | M26: =IF(G26=L26,"OK","CHECK") -> OK | O26: ='C-1 Operating Income Summary'!O34 -> 25931450.35 | P26: =IF(ROUND(I26,0)=ROUND(O26,0),"OK","CHECK") -> OK | Q26: =+I26-O26 -> -0.0002519339323 | S26: 26811723.32 | T26: =+I26-S26 -> -880272.9721
A27: =IF(ISBLANK($B27),"",COUNTA($B$16:B27)) ->  | L27: Calculated - Not on C-1
A28: =IF(ISBLANK($B28),"",COUNTA($B$16:B28)) -> 7 | B28: GROSS REVENUE CONVERSION FACTOR | E28: H-1 | G28: =I28 -> 1.341514 | I28: ='H-1 Gross Conversion Factor'!I33 -> 1.341514 | K28: H-1 | L28: See FORECASTED Check | O28: ='H-1 Gross Conversion Factor'!I33 -> 1.341514 | P28: =IF(I28=O28,"OK","CHECK") -> OK | Q28: =+I28-O28 -> 0 | S28: 1.341514
A29: =IF(ISBLANK($B29),"",COUNTA($B$16:B29)) -> 
A30: =IF(ISBLANK($B30),"",COUNTA($B$16:B30)) -> 8 | B30: =IF(I30>0,"REVENUE DEFICIENCY","REVENUE SUFFICIENCY") -> REVENUE DEFICIENCY | C30: ="LINE "&A26&" × LINE "&A28 -> LINE 6 × LINE 7 | G30: =ROUND(G28*G26,0) -> 24360364 | I30: =I28*I26 -> 34787403.68 | K30: Calc | L30: =ROUND(L26*G28,0) -> 24360364 | M30: =IF(G30=L30,"OK","CHECK") -> OK | O30: =ROUND(O26*O28,0) -> 34787404 | P30: =IF(ROUND(I30,0)=ROUND(O30,0),"OK","CHECK") -> OK | Q30: =+I30-O30 -> -0.3198823333 | S30: 35968302.2 | T30: =+I30-S30 -> -1180898.516
A31: =IF(ISBLANK($B31),"",COUNTA($B$16:B31)) -> 
A32: =IF(ISBLANK($B32),"",COUNTA($B$16:B32)) -> 9 | B32: REVENUE INCREASE REQUESTED | E32: C-1 | I32: ='C-1 Operating Income Summary'!O19 -> 34787403.68 | K32: C-1 | O32: ='C-1 Operating Income Summary'!O19 -> 34787403.68 | P32: =IF(I32=O32,"OK","CHECK") -> OK | Q32: =+I32-O32 -> 0 | S32: 35968302.2 | T32: =+I32-S32 -> -1180898.516
A33: =IF(ISBLANK($B33),"",COUNTA($B$16:B33)) -> 
A34: =IF(ISBLANK($B34),"",COUNTA($B$16:B34)) -> 10 | B34: ADJUSTED OPERATING REVENUES | E34: C-1 | I34: ='C-1 Operating Income Summary'!M19 -> 209853953.9 | K34: C-1 | O34: ='C-1 Operating Income Summary'!M19 -> 209853953.9 | P34: =IF(I34=O34,"OK","CHECK") -> OK | Q34: =+I34-O34 -> 0 | S34: 209853953.9 | T34: =+I34-S34 -> 0
A35: =IF(ISBLANK($B35),"",COUNTA($B$16:B35)) -> 
A36: =IF(ISBLANK($B36),"",COUNTA($B$16:B36)) -> 11 | B36: REVENUE REQUIREMENTS | C36: ="LINE "&A32&" + LINE "&A34 -> LINE 9 + LINE 10 | I36: =I34+I32 -> 244641357.6 | K36: C-1 | O36: ='C-1 Operating Income Summary'!Q19 -> 244641357.6 | P36: =IF(I36=O36,"OK","CHECK") -> OK | Q36: =+I36-O36 -> 0 | S36: 245822256.1 | T36: =+I36-S36 -> -1180898.516

Sheet A-2 Recon Sch A-1 to Sch M
A1: ='General Headers Index'!B3 -> COLUMBIA GAS OF KENTUCKY, INC.
A2: ='General Headers Index'!B5 -> CASE NO. 2026 - 00099
A3: ='Index A'!C20 -> RECONCILIATION OF REVENUE REQUIREMENT SCHEDULE A-1 TO REVENUE AT PROPOSED RATES SCHEDULE M
A4: ='General Headers Index'!B17 -> FORECASTED TEST PERIOD: TWELVE MONTHS ENDED DECEMBER 31, 2027
A6: ='General Headers Index'!$B$34 -> DATA:_______BASE PERIOD___X___FORECASTED PERIOD | L6: ="SCHEDULE "&'Index A'!$A$20 -> SCHEDULE A-2
A7: ='General Headers Index'!$B$37 -> TYPE OF FILING:___X___ORIGINAL_______UPDATED | L7: PAGE 1 OF 1
A8: ='General Headers Index'!$B$40 -> WORKPAPER REFERENCE NO(S): | L8: ="WITNESSES: "&'General Headers Index'!B43 -> WITNESSES: N. DAVIS
L9: ='General Headers Index'!B44 -> J. C. WOZNIAK
L10: ='General Headers Index'!B45 -> R. AMEN
F12: FORECASTED PERIOD
D13: SUPPORTING | F13: JURISDICTIONAL
A14: LINE | D14: SCHEDULE | F14: REVENUE | H14: SCHEDULE M | J14: SCHEDULE M | L14: DIFFERENCE
A15: NO. | B15: DESCRIPTION | D15: REFERENCE | F15: REQUIREMENT | H15: REFERENCE | J15: AMOUNT | L15: TO SCHEDULE M
N16: Per Revenue Witness - Double check w/Base Margin revenue
A17: =IF(ISBLANK($B17),"",COUNTA($B$17:B17)) -> 1 | B17: BASE RATE | D17: ="LINE "&A33&" (BELOW), LESS LINES "&A19&" THROUGH "&A31 -> LINE 9 (BELOW), LESS LINES 2 THROUGH 8 | F17: =+F33-SUM(F19:F32) -> 154847232.2 | H17: SCHEDULE M-2.3, LESS SMRP | J17: =+F33-SUM(J18:J31) -> 155002384.6 | L17: =+ROUND(SUM(F17:F21,-SUM(J17:J21)),0) -> 0 | N17: =155662659+520624 -> 156183283 | O17: =IF(ROUND(J17,0)=ROUND(N17,0),"OK","CHECK") -> CHECK | P17: =ROUND(+N17-J17,0) -> 1180898
A18: =IF(ISBLANK($B18),"",COUNTA($B$17:B18)) ->  | N18: =+N17 -> 156183283 | O18: =IF(ROUND(N18,0)=ROUND((F17+F21),0),"OK","CHECK") -> CHECK | P18: =ROUND(+N18-F17-F21,0) -> 1180899
A19: =IF(ISBLANK($B19),"",COUNTA($B$17:B19)) -> 2 | B19: BASE RATE - SMRP RIDER (2023 & 2024) ROLL-IN TO BASE RATES | D19: =UPPER('WPD-2.7.A Tracker Expense Adj'!$E$12)&" AND "&'D-2.6'!G6 -> SCHEDULE M-2.2, COLUMN P AND SCHEDULE D-2.6 | F19: =-'D-2.6'!G50 -> 7159719.14 | H19: SCHEDULE M-2.1 AND M-2.2 | J19: 7159719
A20: =IF(ISBLANK($B20),"",COUNTA($B$17:B20)) -> 
A21: =IF(ISBLANK($B21),"",COUNTA($B$17:B21)) -> 3 | B21: BASE RATE - GAS COST UNCOLLECTIBLE - REVENUE DEFICIENCY GROSS-UP | D21: ='C-1 Operating Income Summary'!$Q$8&", COLUMN 6, LINE "&'C-1 Operating Income Summary'!$A$22&" × "&'H-1 Gross Conversion Factor'!$I$6&", LINE "&'H-1 Gross Conversion Factor'!$A$18 -> SCHEDULE C-1, COLUMN 6, LINE 3 × SCHEDULE H-1, LINE 2 | F21: ='C-1 Operating Income Summary'!$O$19*'H-1 Gross Conversion Factor'!$I$18 -> 155151.8204
A22: =IF(ISBLANK($B22),"",COUNTA($B$17:B22)) -> 
A23: =IF(ISBLANK($B23),"",COUNTA($B$17:B23)) -> 4 | B23: GAS COST | D23: ='C-1 Operating Income Summary'!$Q$8&", COLUMN 7, LINE "&'C-1 Operating Income Summary'!$A$22 -> SCHEDULE C-1, COLUMN 7, LINE 3 | F23: ='C-1 Operating Income Summary'!$Q$22 -> 81721892.42 | H23: WORKPAPER WPM-A.2 | J23: 81721892 | L23: =ROUND(IFERROR(SUM(J23,-F23),0),0) -> 0
A24: =IF(ISBLANK($B24),"",COUNTA($B$17:B24)) -> 
A25: =IF(ISBLANK($B25),"",COUNTA($B$17:B25)) -> 5 | B25: GAS COST UNCOLLECTIBLE | D25: ='WPD-2.7.D(3) Uncoll. GC Rev Adj'!F6&", LINE "&'WPD-2.7.D(3) Uncoll. GC Rev Adj'!A20 -> WORKPAPER WPD-2.7.D(3), LINE 5 | F25: ='WPD-2.7.D(3) Uncoll. GC Rev Adj'!$F$20 -> 199153 | H25: SCHEDULE M-2.3 | J25: 199153 | L25: =ROUND(IFERROR(SUM(J25,-F25),0),0) -> 0
A26: =IF(ISBLANK($B26),"",COUNTA($B$17:B26)) -> 
A27: =IF(ISBLANK($B27),"",COUNTA($B$17:B27)) -> 6 | B27: EAP | D27: =UPPER('WPD-2.7.A Tracker Expense Adj'!$E$12)&" AND "&'WPD-2.7.A Tracker Expense Adj'!$G$6&", LINE "&'WPD-2.7.A Tracker Expense Adj'!$A$12 -> SCHEDULE M-2.2, COLUMN P AND WORKPAPER WPD-2.7.A, LINE 1 | F27: ='WPD-2.7.A Tracker Expense Adj'!$G$12 -> 452601.9 | H27: =$H$25 -> SCHEDULE M-2.3 | J27: 452602 | L27: =ROUND(IFERROR(SUM(J27,-F27),0),0) -> 0
A28: =IF(ISBLANK($B28),"",COUNTA($B$17:B28)) -> 
A29: =IF(ISBLANK($B29),"",COUNTA($B$17:B29)) -> 7 | B29: EECP | D29: =UPPER('WPD-2.7.A Tracker Expense Adj'!$E$12)&" AND "&'WPD-2.7.A Tracker Expense Adj'!$G$6&", LINE "&'WPD-2.7.A Tracker Expense Adj'!$A$19 -> SCHEDULE M-2.2, COLUMN P AND WORKPAPER WPD-2.7.A, LINE 4 | F29: ='WPD-2.7.A Tracker Expense Adj'!$G$19 -> 105607.11 | H29: =$H$25 -> SCHEDULE M-2.3 | J29: 105607 | L29: =ROUND(IFERROR(SUM(J29,-F29),0),0) -> 0
A30: =IF(ISBLANK($B30),"",COUNTA($B$17:B30)) -> 
A31: =IF(ISBLANK($B31),"",COUNTA($B$17:B31)) -> 8 | B31: R&D | F31: N/A | J31: N/A | L31: =ROUND(IFERROR(SUM(J31,-F31),0),0) -> 0
A32: =IF(ISBLANK($B32),"",COUNTA($B$17:B32)) -> 
A33: =IF(ISBLANK($B33),"",COUNTA($B$17:B33)) -> 9 | B33: TOTAL FTP REVENUE REQUIREMENT | D33: ='A-1 Financial Summary'!I7&", LINE "&'A-1 Financial Summary'!A36 -> SCHEDULE A-1, LINE 11 | F33: ='A-1 Financial Summary'!$I$36 -> 244641357.6 | J33: =+SUM(J17:J31) -> 244641357.6 | L33: =+SUM(L17:L31) -> 0
A34: =IF(ISBLANK($B34),"",COUNTA($B$17:B34)) -> 
A35: =IF(ISBLANK($B35),"",COUNTA($B$17:B35)) -> 10 | B35: SMRP RIDER (2025 & 2026) | D35: WORKPAPER WPM-E.2 | F35: 10808715
A36: =IF(ISBLANK($B36),"",COUNTA($B$17:B36)) -> 
A37: =IF(ISBLANK($B37),"",COUNTA($B$17:B37)) -> 11 | B37: TOTAL FTP REVENUE REQUIREMENT, PLUS SMRP RIDER | F37: =+F33+F35 -> 255450072.6

Sheet Index B
A1: X:\ERATE\CKY\RATECASE\1994\SCHC\INDEX.WK1
A2: SCHEDULE B
A4: JURISDICTIONAL RATE BASE SUMMARY FOR THE BASE AND FORECASTED PERIOD
A6: ='General Headers Index'!B3 -> COLUMBIA GAS OF KENTUCKY, INC.
A8: ='General Headers Index'!B5 -> CASE NO. 2026 - 00099
A12: BASE PERIOD: | C12: ='General Headers Index'!B8 -> FOR THE TWELVE MONTHS ENDED AUGUST 31, 2026
A14: FORECASTED PERIOD: | C14: ='General Headers Index'!B16 -> FOR THE TWELVE MONTHS ENDED DECEMBER 31, 2027
A17: SCHEDULE | C17: DESCRIPTION
A19: B-1 | C19: RATE BASE SUMMARY - JURISDICTIONAL
A20: B-2 | C20: PLANT IN SERVICE BY MAJOR GROUPING
A21: B-2.1 | C21: PLANT IN SERVICE BY ACCOUNTS AND SUBACCOUNTS
A22: WPB-2.1.A | C22: PLANT IN SERVICE BY GAS PLANT ACCOUNT
A23: WPB-2.1.B | C23: SUMMARY OF ACTUAL & FORECASTED PLANT, ACCUMULATED RESERVE FOR DEPRECIATION & DEPRECIATION EXPENSE
A24: WPB-2.1.C | C24: DETAIL OF ACTUAL & FORECASTED PLANT, ACCUMULATED RESERVE FOR DEPRECIATION & DEPRECIATION EXPENSE
A25: WPB-2.1.D | C25: INTENTIONALLY BLANK RESERVED FOR FUTURE USE
A26: WPB-2.1.E | C26: SUMMARY OF INTANGIBLE PLANT ACTIVITY
A27: WPB-2.1.F | C27: DEPRECIATION BY GAS PLANT ACCOUNT
A28: B-2.2 | C28: PROPOSED ADJUSTMENTS TO PLANT IN SERVICE
A29: B-2.3 | C29: GROSS ADDITIONS, RETIREMENTS AND TRANSFERS
A30: B-2.4 | C30: PROPERTY MERGED OR ACQUIRED
A31: B-2.5 | C31: LEASED PROPERTY
A32: B-2.6 | C32: PROPERTY HELD FOR FUTURE USE INCLUDED IN RATE BASE
A33: B-2.7 | C33: PROPERTY EXCLUDED FROM RATE BASE
A34: B-3 | C34: ACCUMULATED DEPRECIATION AND AMORTIZATION
A35: WPB-3.1 | C35: ACCUMULATED DEPRECIATION AND AMORTIZATION
A36: B-3.1 | C36: ADJUSTMENTS TO ACCUMULATED DEPRECIATION AND AMORTIZATION
A37: B-4 | C37: CONSTRUCTION WORK IN PROGRESS
A38: B-5 | C38: ALLOWANCE FOR WORKING CAPITAL
A39: B-5.1 | C39: WORKING CAPITAL COMPONENTS
A40: WPB-5.1 | C40: MATERIALS & SUPPLIES
A41: B-5.2.A | C41: CASH WORKING CAPITAL COMPONENTS
A42: B-5.2.B | C42: CASH WORKING CAPITAL - 1 / 8 METHOD
A43: WPB-5.3 | C43: GAS STORAGE
A44: B-6.A | C44: DEFERRED CREDITS AND ACCUMULATED DEFERRED INCOME TAXES
A45: B-6.B | C45: DEFERRED CREDITS AND ACCUMULATED DEFERRED INCOME TAXES
A46: B-6.1 | C46: NORMALIZATION ADJUSTMENT UNDER TREAS. REG. §1.167(l)-1
A47: B-7 | C47: JURISDICTIONAL PERCENTAGE

Sheet B-1 p.1 Summary (Base)
A1: ='General Headers Index'!B3 -> COLUMBIA GAS OF KENTUCKY, INC.
A2: ='General Headers Index'!B5 -> CASE NO. 2026 - 00099
A3: ='Index B'!$C$19 -> RATE BASE SUMMARY - JURISDICTIONAL
A4: ='General Headers Index'!B10 -> AS OF AUGUST 31, 2026
A6: ='General Headers Index'!$B$33 -> DATA:___X___BASE PERIOD_______FORECASTED PERIOD | J6: ="SCHEDULE "&'Index B'!$A$19 -> SCHEDULE B-1
A7: ='General Headers Index'!$B$37 -> TYPE OF FILING:___X___ORIGINAL_______UPDATED | J7: SHEET 1 OF 2
A8: ='General Headers Index'!$B$40 -> WORKPAPER REFERENCE NO(S): | J8: ="WITNESS: "&'General Headers Index'!B46 -> WITNESS: L. BLACK
D10: SUPPORTING | J10: FILED FOR
A11: LINE | D11: SCHEDULE | F11: TOTAL COMPANY | H11: 2025 & 2026 | J11: TOTAL COMPANY
A12: NO. | B12: RATE BASE COMPONENT | D12: REFERENCE | F12: BASE PERIOD | H12: SMRP | J12: (LESS SMRP)
F13: ="(1)" -> (1) | H13: ="(2)" -> (2) | J13: (3 = 1 - 2)
F14: $ | H14: $ | J14: $
A16: =IF(ISBLANK($B16),"",COUNTA($B$16:B16)) -> 1 | B16: PLANT IN SERVICE | D16: B-2 | F16: ='WPB-2.1.B Summary'!F154 -> 948861705.9 | H16: ='WPB-2.1.B Summary'!F95 -> 62331539.31 | J16: ='B-2 p.1 Grouping (Base)'!H33 -> 886530166.6
A17: =IF(ISBLANK($B17),"",COUNTA($B$16:B17)) -> 
A18: =IF(ISBLANK($B18),"",COUNTA($B$16:B18)) -> 2 | B18: PROPERTY HELD FOR FUTURE USE | D18: B-2.6 | F18: 0 | H18: 0 | J18: 0
A19: =IF(ISBLANK($B19),"",COUNTA($B$16:B19)) -> 
A20: =IF(ISBLANK($B20),"",COUNTA($B$16:B20)) -> 3 | B20: PLANT AQUISITION ADJUSTMENTS | D20: B-2.4 | F20: 0 | H20: 0 | J20: 0
A21: =IF(ISBLANK($B21),"",COUNTA($B$16:B21)) -> 
A22: =IF(ISBLANK($B22),"",COUNTA($B$16:B22)) -> 4 | B22: ACCUMULATED DEPRECIATION AND AMORTIZATION | D22: B-3 | F22: =-'WPB-2.1.B Summary'!M154 -> -200149928.3 | H22: =-'WPB-2.1.B Summary'!M95 -> 7583410.9 | J22: =F22-H22 -> -207733339.2
A23: =IF(ISBLANK($B23),"",COUNTA($B$16:B23)) -> 
A24: =IF(ISBLANK($B24),"",COUNTA($B$16:B24)) -> 5 | B24: =_xlfn.CONCAT("NET PLANT IN SERVICE (",A16," THRU ",A22,")") -> NET PLANT IN SERVICE (1 THRU 4) | F24: =SUM(F16:F22) -> 748711777.6 | H24: =SUM(H16:H22) -> 69914950.21 | J24: =SUM(J16:J22) -> 678796827.4
A25: =IF(ISBLANK($B25),"",COUNTA($B$16:B25)) -> 
A26: =IF(ISBLANK($B26),"",COUNTA($B$16:B26)) -> 6 | B26: CASH WORKING CAPITAL ALLOWANCE | D26: B-5.1 | F26: ='B-5.2.A CWC (Base)'!K54 -> 0 | H26: 0 | J26: =F26-H26 -> 0
A27: =IF(ISBLANK($B27),"",COUNTA($B$16:B27)) -> 
A28: =IF(ISBLANK($B28),"",COUNTA($B$16:B28)) -> 7 | B28: OTHER WORKING CAPITAL ALLOWANCES | D28: B-5.1 | F28: =+'B-5.1 Working Cap. (Base)'!F22 -> 35002524.15 | H28: 0 | J28: =F28-H28 -> 35002524.15
A29: =IF(ISBLANK($B29),"",COUNTA($B$16:B29)) -> 
A30: 8a | B30: ACCUMULATED DEFERRED INCOME TAX | D30: COL 1: B-6.A, SH 2, LN 8 COL 2: B-6.A, SH 4, LN 12 | F30: ='B-6.A ADIT & EDIT (Base)'!W24 -> -119745813.5 | H30: =-'B-6.A ADIT & EDIT (Base)'!Y114 -> -5104895.545 | J30: =F30-H30 -> -114640917.9
A31: 8b | B31: LEAD LAG | D31: =_xlfn.CONCAT("B-6.A, SH 2, LN ",'B-6.A ADIT & EDIT (Base)'!$M$32) -> B-6.A, SH 2, LN 15 | F31: ='B-6.A ADIT & EDIT (Base)'!W32 -> 2605890.025 | H31: 0 | J31: =F31-H31 -> 2605890.025
A32: 8c | B32: REQUESTED LEAD LAG ADJUSTMENT | F32: =-F31 -> -2605890.025 | H32: =-H31 -> 0 | J32: =-J31 -> -2605890.025
A33: 8d | B33: NORMALIZATION | F33: 0 | H33: 0 | J33: =F33-H33 -> 0
A34: =A28+1 -> 8 | B34: DEFERRED INC. TAXES AND INVESTMENT TAX CREDITS | F34: =SUM(F30:F33) -> -119745813.5 | H34: =SUM(H30:H33) -> -5104895.545 | J34: =SUM(J30:J33) -> -114640917.9
A36: =A34+1 -> 9 | B36: OTHER ITEMS | J36: 0
A38: =A36+1 -> 10 | B38: =_xlfn.CONCAT("RATE BASE (",A24," THRU ",A36,")") -> RATE BASE (5 THRU 9) | F38: =F24+F26+F28+F34 -> 663968488.3 | H38: =H24+H26+H28+H34 -> 64810054.67 | J38: =J24+J26+J28+J34 -> 599158433.6

Sheet B-1 p.2 Summary (Forecast)
A1: ='General Headers Index'!B3 -> COLUMBIA GAS OF KENTUCKY, INC.
A2: ='General Headers Index'!B5 -> CASE NO. 2026 - 00099
A3: ='Index B'!$C$19 -> RATE BASE SUMMARY - JURISDICTIONAL
A4: ='General Headers Index'!B18 -> AS OF DECEMBER 31, 2027
A6: ='General Headers Index'!$B$34 -> DATA:_______BASE PERIOD___X___FORECASTED PERIOD | K6: ="SCHEDULE "&'Index B'!$A$19 -> SCHEDULE B-1
A7: ='General Headers Index'!$B$37 -> TYPE OF FILING:___X___ORIGINAL_______UPDATED | K7: SHEET 2 OF 2
A8: ='General Headers Index'!$B$40 -> WORKPAPER REFERENCE NO(S): | K8: ="WITNESS: "&'General Headers Index'!B46 -> WITNESS: L. BLACK
J10: FILED FOR
D11: TOTAL COMPANY | G11: 2025, 2026 & 2027 SMRP | J11: TOTAL COMPANTY (LESS SMRP)
D12: END OF | E12: 13 MONTH | G12: END OF | H12: 13 MONTH | J12: END OF | K12: 13 MONTH
C13: SUPPORTING | D13: FORECASTED | E13: AVERAGE | G13: FORECASTED | H13: AVERAGE | J13: FORECASTED | K13: AVERAGE
A14: LINE | C14: SCHEDULE | D14: TEST | E14: FORECASTED | G14: TEST | H14: FORECASTED | J14: TEST | K14: FORECASTED
A15: NO. | B15: RATE BASE COMPONENT | C15: REFERENCE | D15: PERIOD | E15: PERIOD | G15: PERIOD | H15: PERIOD | J15: PERIOD | K15: PERIOD
D16: ="(1)" -> (1) | E16: ="(2)" -> (2) | G16: ="(3)" -> (3) | H16: ="(4)" -> (4) | J16: (5) = (1 - 3) | K16: (6) = (2 - 4)
D17: $ | E17: $ | G17: $ | H17: $ | J17: $ | K17: $
A19: =IF(ISBLANK($B19),"",COUNTA($B$19:B19)) -> 1 | B19: PLANT IN SERVICE | C19: ='B-1 p.1 Summary (Base)'!D16 -> B-2 | D19: ='WPB-2.1.B Summary'!F170 -> 1072744275 | E19: ='WPB-2.1.B Summary'!F172 -> 1021012190 | G19: ='WPB-2.1.B Summary'!F111 -> 143265030.6 | H19: ='WPB-2.1.B Summary'!F113 -> 109524880.5 | J19: =D19-G19 -> 929479244.8 | K19: =E19-H19 -> 911487309.3
A20: =IF(ISBLANK($B20),"",COUNTA($B$19:B20)) -> 
A21: =IF(ISBLANK($B21),"",COUNTA($B$19:B21)) -> 2 | B21: PROPERTY HELD FOR FUTURE USE | C21: ='B-1 p.1 Summary (Base)'!D18 -> B-2.6 | D21: 0 | E21: 0 | G21: 0 | H21: 0 | J21: =D21-G21 -> 0 | K21: =E21-H21 -> 0
A22: =IF(ISBLANK($B22),"",COUNTA($B$19:B22)) -> 
A23: =IF(ISBLANK($B23),"",COUNTA($B$19:B23)) -> 3 | B23: PLANT AQUISITION ADJUSTMENTS | C23: ='B-1 p.1 Summary (Base)'!D20 -> B-2.4 | D23: 0 | E23: 0 | G23: 0 | H23: 0 | J23: =D23-G23 -> 0 | K23: =E23-H23 -> 0
A24: =IF(ISBLANK($B24),"",COUNTA($B$19:B24)) -> 
A25: =IF(ISBLANK($B25),"",COUNTA($B$19:B25)) -> 4 | B25: ACCUMULATED DEPRECIATION AND AMORTIZATION | C25: ='B-1 p.1 Summary (Base)'!D22 -> B-3 | D25: =-'WPB-2.1.B Summary'!M170 -> -216389954.6 | E25: =-'WPB-2.1.B Summary'!M172 -> -210561878.5 | G25: =-'WPB-2.1.B Summary'!M111 -> 15292924.4 | H25: =-'WPB-2.1.B Summary'!M113 -> 11683724.42 | J25: =D25-G25 -> -231682879.1 | K25: =E25-H25 -> -222245603
A26: =IF(ISBLANK($B26),"",COUNTA($B$19:B26)) -> 
A27: =IF(ISBLANK($B27),"",COUNTA($B$19:B27)) -> 5 | B27: =_xlfn.CONCAT("NET PLANT IN SERVICE (",A19," THRU ",A25,")") -> NET PLANT IN SERVICE (1 THRU 4) | D27: =SUM(D19:D25) -> 856354320.7 | E27: =SUM(E19:E25) -> 810450311.2 | G27: =SUM(G19:G25) -> 158557955 | H27: =SUM(H19:H25) -> 121208604.9 | J27: =SUM(J19:J25) -> 697796365.7 | K27: =SUM(K19:K25) -> 689241706.3
A28: =IF(ISBLANK($B28),"",COUNTA($B$19:B28)) -> 
A29: =IF(ISBLANK($B29),"",COUNTA($B$19:B29)) -> 6 | B29: CASH WORKING CAPITAL ALLOWANCE | C29: ='B-1 p.1 Summary (Base)'!D26 -> B-5.1 | D29: =+E29 -> -11137929 | E29: ='B-5.2.A CWC (Forecast)'!K54 -> -11137929 | G29: 0 | H29: 0 | J29: =D29-G29 -> -11137929 | K29: =E29-H29 -> -11137929
A30: =IF(ISBLANK($B30),"",COUNTA($B$19:B30)) -> 
A31: =IF(ISBLANK($B31),"",COUNTA($B$19:B31)) -> 7 | B31: OTHER WORKING CAPITAL ALLOWANCES (13 MO. AVG) | C31: ='B-1 p.1 Summary (Base)'!D28 -> B-5.1 | D31: =+'B-5.1 Working Cap. (Forecast)'!F22 -> 35465642.87 | E31: =+D31 -> 35465642.87 | G31: 0 | H31: 0 | J31: =D31-G31 -> 35465642.87 | K31: =E31-H31 -> 35465642.87
A32: =IF(ISBLANK($B32),"",COUNTA($B$19:B32)) -> 
A33: 8a | B33: ACCUMULATED DEFERRED INCOME TAX | C33: COLS 1 & 2: B-6.A, SH 2, LN 8 COLS 3 & 4: B-6.A, SH 2, LN 77 | D33: ='B-6.B ADIT & EDIT (Forecast)'!W22 -> -130406905 | E33: ='B-6.B ADIT & EDIT (Forecast)'!Y22 -> -127169173 | G33: =-'B-6.B ADIT & EDIT (Forecast)'!W109 -> -14747931.45 | H33: =-'B-6.B ADIT & EDIT (Forecast)'!Y109 -> -11948701.48 | J33: =D33-G33 -> -115658973.5 | K33: =E33-H33 -> -115220471.5
A34: 8b | B34: LEAD LAG | C34: =_xlfn.CONCAT("B-6.B, LN ",'B-6.B ADIT & EDIT (Forecast)'!A30) -> B-6.B, LN 15 | D34: ='B-6.B ADIT & EDIT (Forecast)'!W30 -> 2605890.025 | E34: ='B-6.B ADIT & EDIT (Forecast)'!Y30 -> 2605890.025 | G34: 0 | H34: 0 | J34: =D34-G34 -> 2605890.025 | K34: =E34-H34 -> 2605890.025
A35: 8c | B35: REQUESTED LEAD LAG ADJUSTMENT | D35: =-D34 -> -2605890.025 | E35: =-E34 -> -2605890.025 | G35: =-G34 -> 0 | H35: =-H34 -> 0 | J35: =-J34 -> -2605890.025 | K35: =-K34 -> -2605890.025
A36: 8d | B36: NORMALIZATION | C36: =_xlfn.CONCAT("B-6.1, LN ",'B-6.1 ADIT & EDIT Normalization'!$A$44) -> B-6.1, LN 19 | D36: 0 | E36: ='B-6.1 ADIT & EDIT Normalization'!H44 -> 196100.4564 | G36: 0 | H36: 0 | J36: =D36-G36 -> 0 | K36: =E36-H36 -> 196100.4564
A37: =A31+1 -> 8 | B37: DEFERRED INC. TAXES AND INVESTMENT TAX CREDITS | D37: =SUM(D33:D36) -> -130406905 | E37: =SUM(E33:E36) -> -126973072.6 | G37: =SUM(G33:G36) -> -14747931.45 | H37: =SUM(H33:H36) -> -11948701.48 | J37: =SUM(J33:J36) -> -115658973.5 | K37: =SUM(K33:K36) -> -115024371.1
A39: =A37+1 -> 9 | B39: OTHER ITEMS | J39: =D39-G39 -> 0 | K39: =E39-H39 -> 0
A41: =A39+1 -> 10 | B41: =_xlfn.CONCAT("RATE BASE (",A27," THRU ",A39,")") -> RATE BASE (5 THRU 9) | D41: =D27+D29+D31+D37 -> 750275129.6 | E41: =E27+E29+E31+E37 -> 707804952.5 | G41: =G27+G29+G31+G37 -> 143810023.6 | H41: =H27+H29+H31+H37 -> 109259903.4 | J41: =J27+J29+J31+J37 -> 606465106.1 | K41: =K27+K29+K31+K37 -> 598545049.1

Sheet B-2 p.1 Grouping (Base)
A1: ='General Headers Index'!B3 -> COLUMBIA GAS OF KENTUCKY, INC.
A2: ='General Headers Index'!B5 -> CASE NO. 2026 - 00099
A3: ='Index B'!$C$20 -> PLANT IN SERVICE BY MAJOR GROUPING
A4: ='General Headers Index'!B10 -> AS OF AUGUST 31, 2026
A6: ='General Headers Index'!$B$33 -> DATA:___X___BASE PERIOD_______FORECASTED PERIOD | H6: ="SCHEDULE "&'Index B'!$A$20 -> SCHEDULE B-2
A7: ='General Headers Index'!$B$37 -> TYPE OF FILING:___X___ORIGINAL_______UPDATED | H7: SHEET 1 OF 2
A8: ='General Headers Index'!$B$40 -> WORKPAPER REFERENCE NO(S): | H8: ="WITNESS: "&'General Headers Index'!B46 -> WITNESS: L. BLACK
D10: BASE | F10: BASE
D11: PERIOD | F11: PERIOD | H11: END OF PERIOD
A12: LINE | D12: TOTAL | E12: JURISDICTIONAL | F12: JURISDICTIONAL | H12: ADJUSTED
A13: NO. | B13: MAJOR PROPERTY GROUPING | D13: COMPANY | E13: PERCENT | F13: TOTAL | G13: ADJUSTMENTS | H13: JURISDICTION
D14: (1) | E14: (2) | F14: (3 = 1 x 2) | G14: (4) | H14: (5 = 3 + 4)
D15: $ | F15: $ | G15: $ | H15: $
A17: =IF(ISBLANK($B17),"",COUNTA($B$17:B17)) -> 1 | B17: INTANGIBLES | D17: ='B-2.1 Base Period GPA'!H20 -> 24641940.21 | E17: 1 | F17: =(D17*E17) -> 24641940.21 | G17: 0 | H17: =(F17+G17) -> 24641940.21
A18: =IF(ISBLANK($B18),"",COUNTA($B$17:B18)) -> 
A19: =IF(ISBLANK($B19),"",COUNTA($B$17:B19)) -> 2 | B19: PRODUCTION | D19: 0 | E19: 1 | F19: =(D19*E19) -> 0 | G19: 0 | H19: =(F19+G19) -> 0
A20: =IF(ISBLANK($B20),"",COUNTA($B$17:B20)) -> 
A21: =IF(ISBLANK($B21),"",COUNTA($B$17:B21)) -> 3 | B21: STORAGE AND PROCESSING | D21: 0 | E21: 1 | F21: =(D21*E21) -> 0 | G21: 0 | H21: =(F21+G21) -> 0
A22: =IF(ISBLANK($B22),"",COUNTA($B$17:B22)) -> 
A23: =IF(ISBLANK($B23),"",COUNTA($B$17:B23)) -> 4 | B23: TRANSMISSION | D23: 0 | E23: 1 | F23: =(D23*E23) -> 0 | G23: 0 | H23: =(F23+G23) -> 0
A24: =IF(ISBLANK($B24),"",COUNTA($B$17:B24)) -> 
A25: =IF(ISBLANK($B25),"",COUNTA($B$17:B25)) -> 5 | B25: DISTRIBUTION | D25: ='B-2.1 Base Period GPA'!H57 -> 853552113 | E25: 1 | F25: =(D25*E25) -> 853552113 | G25: 0 | H25: =(F25+G25) -> 853552113
A26: =IF(ISBLANK($B26),"",COUNTA($B$17:B26)) -> 
A27: =IF(ISBLANK($B27),"",COUNTA($B$17:B27)) -> 6 | B27: GENERAL | D27: ='B-2.1 Base Period GPA'!H74 -> 9113205.378 | E27: 1 | F27: =(D27*E27) -> 9113205.378 | G27: 0 | H27: =(F27+G27) -> 9113205.378
A28: =IF(ISBLANK($B28),"",COUNTA($B$17:B28)) -> 
A29: =IF(ISBLANK($B29),"",COUNTA($B$17:B29)) -> 7 | B29: COMMON | D29: 0 | E29: 1 | F29: =(D29*E29) -> 0 | G29: 0 | H29: =(F29+G29) -> 0
A30: =IF(ISBLANK($B30),"",COUNTA($B$17:B30)) -> 
A31: =IF(ISBLANK($B31),"",COUNTA($B$17:B31)) -> 8 | B31: OTHER | D31: ='B-2.1 Base Period GPA'!H77 -> -777092 | E31: 1 | F31: =(D31*E31) -> -777092 | G31: 0 | H31: =(F31+G31) -> -777092
A32: =IF(ISBLANK($B32),"",COUNTA($B$17:B32)) -> 
A33: =IF(ISBLANK($B33),"",COUNTA($B$17:B33)) -> 9 | B33: TOTAL (LESS SMRP) | D33: =SUM(D17:D31) -> 886530166.6 | F33: =SUM(F17:F31) -> 886530166.6 | G33: =SUM(G17:G31) -> 0 | H33: =SUM(H17:H31) -> 886530166.6
A34: =IF(ISBLANK($B34),"",COUNTA($B$17:B34)) -> 
A35: =IF(ISBLANK($B35),"",COUNTA($B$17:B35)) -> 10 | B35: DISTRIBUTION (SMRP) | D35: ='B-2.1 Base Period GPA'!H88 -> 62331539.31 | E35: 1 | F35: =(D35*E35) -> 62331539.31 | G35: 0 | H35: =(F35+G35) -> 62331539.31
A36: =IF(ISBLANK($B36),"",COUNTA($B$17:B36)) -> 
A37: =IF(ISBLANK($B37),"",COUNTA($B$17:B37)) -> 11 | B37: TOTAL COMPANY | D37: =D33+D35 -> 948861705.9 | F37: =F33+F35 -> 948861705.9 | G37: =G33+G35 -> 0 | H37: =H33+H35 -> 948861705.9

Sheet B-2 p.2 Grouping (Forecast)
A1: ='General Headers Index'!B3 -> COLUMBIA GAS OF KENTUCKY, INC.
A2: ='General Headers Index'!B5 -> CASE NO. 2026 - 00099
A3: ='Index B'!$C$20 -> PLANT IN SERVICE BY MAJOR GROUPING
A4: ='General Headers Index'!B18 -> AS OF DECEMBER 31, 2027
A6: ='General Headers Index'!$B$34 -> DATA:_______BASE PERIOD___X___FORECASTED PERIOD | I6: ="SCHEDULE "&'Index B'!$A$20 -> SCHEDULE B-2
A7: ='General Headers Index'!$B$37 -> TYPE OF FILING:___X___ORIGINAL_______UPDATED | I7: SHEET 2 OF 2
A8: ='General Headers Index'!$B$40 -> WORKPAPER REFERENCE NO(S): | I8: ="WITNESS: "&'General Headers Index'!B46 -> WITNESS: L. BLACK
D10: FORECASTED | F10: FORECASTED | H10: FORECASTED
D11: PERIOD | F11: PERIOD | H11: PERIOD
A12: LINE | D12: TOTAL | E12: JURISDICTIONAL | F12: JURISDICTIONAL | H12: ADJUSTED | I12: 13 MONTH
A13: NO. | B13: MAJOR PROPERTY GROUPING | D13: COMPANY | E13: PERCENT | F13: TOTAL | G13: ADJUSTMENTS | H13: JURISDICTIONAL | I13: AVERAGE
D14: (1) | E14: (2) | F14: (3 = 1 x 2) | G14: (4) | H14: (5 = 3 + 4) | I14: (6)
D15: $ | F15: $ | G15: $ | H15: $ | I15: $
A17: =IF(ISBLANK($B17),"",COUNTA($B$17:B17)) -> 1 | B17: INTANGIBLES | D17: ='B-2.1 Forecast Period GPA'!H20 -> 29877872.46 | E17: 1 | F17: =(D17*E17) -> 29877872.46 | G17: 0 | H17: =(F17+G17) -> 29877872.46 | I17: ='B-2.1 Forecast Period GPA'!I20 -> 28244418.86
A18: =IF(ISBLANK($B18),"",COUNTA($B$17:B18)) -> 
A19: =IF(ISBLANK($B19),"",COUNTA($B$17:B19)) -> 2 | B19: PRODUCTION | D19: 0 | E19: 1 | F19: =(D19*E19) -> 0 | G19: 0 | H19: =(F19+G19) -> 0 | I19: 0
A20: =IF(ISBLANK($B20),"",COUNTA($B$17:B20)) -> 
A21: =IF(ISBLANK($B21),"",COUNTA($B$17:B21)) -> 3 | B21: STORAGE AND PROCESSING | D21: 0 | E21: 1 | F21: =(D21*E21) -> 0 | G21: 0 | H21: =(F21+G21) -> 0 | I21: 0
A22: =IF(ISBLANK($B22),"",COUNTA($B$17:B22)) -> 
A23: =IF(ISBLANK($B23),"",COUNTA($B$17:B23)) -> 4 | B23: TRANSMISSION | D23: 0 | E23: 1 | F23: =(D23*E23) -> 0 | G23: 0 | H23: =(F23+G23) -> 0 | I23: 0
A24: =IF(ISBLANK($B24),"",COUNTA($B$17:B24)) -> 
A25: =IF(ISBLANK($B25),"",COUNTA($B$17:B25)) -> 5 | B25: DISTRIBUTION | D25: ='B-2.1 Forecast Period GPA'!H56 -> 889796194.6 | E25: 1 | F25: =(D25*E25) -> 889796194.6 | G25: 0 | H25: =(F25+G25) -> 889796194.6 | I25: ='B-2.1 Forecast Period GPA'!I56 -> 874110355.8
A26: =IF(ISBLANK($B26),"",COUNTA($B$17:B26)) -> 
A27: =IF(ISBLANK($B27),"",COUNTA($B$17:B27)) -> 6 | B27: GENERAL | D27: ='B-2.1 Forecast Period GPA'!H73 -> 10582269.68 | E27: 1 | F27: =(D27*E27) -> 10582269.68 | G27: 0 | H27: =(F27+G27) -> 10582269.68 | I27: ='B-2.1 Forecast Period GPA'!I73 -> 9909626.635
A28: =IF(ISBLANK($B28),"",COUNTA($B$17:B28)) -> 
A29: =IF(ISBLANK($B29),"",COUNTA($B$17:B29)) -> 7 | B29: COMMON | D29: 0 | E29: 1 | F29: =(D29*E29) -> 0 | G29: 0 | H29: =(F29+G29) -> 0 | I29: 0
A30: =IF(ISBLANK($B30),"",COUNTA($B$17:B30)) -> 
A31: =IF(ISBLANK($B31),"",COUNTA($B$17:B31)) -> 8 | B31: OTHER | D31: ='B-2.1 Forecast Period GPA'!H76 -> -777092 | E31: 1 | F31: =(D31*E31) -> -777092 | G31: 0 | H31: =(F31+G31) -> -777092 | I31: ='B-2.1 Forecast Period GPA'!I76 -> -777092
A32: =IF(ISBLANK($B32),"",COUNTA($B$17:B32)) -> 
A33: =IF(ISBLANK($B33),"",COUNTA($B$17:B33)) -> 9 | B33: TOTAL (LESS SMRP) | D33: =SUM(D17:D31) -> 929479244.8 | F33: =SUM(F17:F31) -> 929479244.8 | G33: =SUM(G17:G31) -> 0 | H33: =SUM(H17:H31) -> 929479244.8 | I33: =SUM(I17:I31) -> 911487309.3
A34: =IF(ISBLANK($B34),"",COUNTA($B$17:B34)) -> 
A35: =IF(ISBLANK($B35),"",COUNTA($B$17:B35)) -> 10 | B35: DISTRIBUTION (SMRP) | D35: ='B-2.1 Forecast Period GPA'!H87 -> 143265030.6 | E35: 1 | F35: =(D35*E35) -> 143265030.6 | G35: 0 | H35: =(F35+G35) -> 143265030.6 | I35: ='B-2.1 Forecast Period GPA'!I87 -> 109524880.5
A36: =IF(ISBLANK($B36),"",COUNTA($B$17:B36)) -> 
A37: =IF(ISBLANK($B37),"",COUNTA($B$17:B37)) -> 11 | B37: TOTAL COMPANY | D37: =D33+D35 -> 1072744275 | F37: =F33+F35 -> 1072744275 | G37: =G33+G35 -> 0 | H37: =H33+H35 -> 1072744275 | I37: =I33+I35 -> 1021012190

Sheet B-2.1 Base Period GPA
A1: ='General Headers Index'!B3 -> COLUMBIA GAS OF KENTUCKY, INC.
A2: ='General Headers Index'!B5 -> CASE NO. 2026 - 00099
A3: ='Index B'!$C$21 -> PLANT IN SERVICE BY ACCOUNTS AND SUBACCOUNTS
A4: ='General Headers Index'!B10 -> AS OF AUGUST 31, 2026
A6: ='General Headers Index'!$B$33 -> DATA:___X___BASE PERIOD_______FORECASTED PERIOD | H6: ="SCHEDULE "&'Index B'!$A$21 -> SCHEDULE B-2.1
A7: ='General Headers Index'!$B$37 -> TYPE OF FILING:___X___ORIGINAL_______UPDATED | H7: SHEET 1 OF 2
A8: ='General Headers Index'!$B$40 -> WORKPAPER REFERENCE NO(S): | H8: ="WITNESS: "&'General Headers Index'!B46 -> WITNESS: L. BLACK
A11: LINE | B11: ACCT. | C11: ACCOUNT / | D11: BASE PERIOD | E11: JURIS. | F11: JURISDICTIONAL | H11: ADJUSTED
A12: NO. | B12: NO. | C12: SUBACCOUNT TITLES | D12: TOTAL COMPANY | E12: PERCENT | F12: TOTAL | G12: ADJUSTMENTS | H12: JURISDICTION
D13: (1) | E13: (2) | F13: (3 = 1) | G13: (4) | H13: (5 = 3 + 4)
D14: $ | F14: $ | G14: $ | H14: $
A15: =IF(ISBLANK($C15),"",COUNTA($C$15:C15)) -> 1 | C15: INTANGIBLE PLANT
A16: =IF(ISBLANK($C16),"",COUNTA($C$15:C16)) -> 2 | B16: 301 | C16: ORGANIZATION | D16: ='WPB-2.1.A Base Period'!O16 -> 521.2 | E16: 1 | F16: =D16 -> 521.2 | G16: 0 | H16: =(+F16+G16) -> 521.2
A17: =IF(ISBLANK($C17),"",COUNTA($C$15:C17)) -> 3 | B17: 303 | C17: MISCELLANEOUS INTANGIBLE PLANT | D17: ='WPB-2.1.A Base Period'!O17 -> 67762.63 | F17: 67762.63 | G17: 0 | H17: 67762.63
A18: =IF(ISBLANK($C18),"",COUNTA($C$15:C18)) -> 4 | B18: 303.3 | C18: MISC INTANGIBLE PLANT-OTHER SOFTWARE | D18: ='WPB-2.1.A Base Period'!O18 -> 17043376.7 | F18: 17043376.7 | G18: 0 | H18: 17043376.7
A19: =IF(ISBLANK($C19),"",COUNTA($C$15:C19)) -> 5 | B19: 303.99 | C19: MISC INTANGIBLE PLANT-CLOUD SOFTWARE | D19: ='WPB-2.1.A Base Period'!O19 -> 7530279.677 | F19: 7530279.677 | G19: 0 | H19: 7530279.677
A20: =IF(ISBLANK($C20),"",COUNTA($C$15:C20)) -> 6 | C20: TOTAL INTANGIBLE PLANT | D20: =SUM(D16:D19) -> 24641940.21 | F20: 24641940.21 | G20: =SUM(G16:G19) -> 0 | H20: =SUM(H16:H19) -> 24641940.21
A21: =IF(ISBLANK($C21),"",COUNTA($C$15:C21)) -> 
A22: =IF(ISBLANK($C22),"",COUNTA($C$15:C22)) -> 7 | C22: DISTRIBUTION PLANT (LESS SMRP)
A23: =IF(ISBLANK($C23),"",COUNTA($C$15:C23)) -> 8 | B23: 374.1 | C23: LAND-CITY GATE & MAIN LINE IND. M & R | D23: ='WPB-2.1.A Base Period'!O23 -> 865477.56 | F23: =D23 -> 865477.56 | G23: 0 | H23: =(+F23+G23) -> 865477.56
A24: =IF(ISBLANK($C24),"",COUNTA($C$15:C24)) -> 9 | B24: 374.2 | C24: LAND-OTHER DISTRIBUTION SYSTEMS | D24: ='WPB-2.1.A Base Period'!O24 -> 3882282.255 | F24: 3882282.255 | G24: 0 | H24: 3882282.255
A25: =IF(ISBLANK($C25),"",COUNTA($C$15:C25)) -> 10 | B25: 374.4 | C25: LAND RIGHTS-OTHER DISTR SYSTEMS | D25: ='WPB-2.1.A Base Period'!O25 -> 0 | F25: 0 | G25: 0 | H25: 0
A26: =IF(ISBLANK($C26),"",COUNTA($C$15:C26)) -> 11 | B26: 374.5 | C26: RIGHTS OF WAY | D26: ='WPB-2.1.A Base Period'!O26 -> 2692648.63 | F26: =D26 -> 2692648.63 | G26: 0 | H26: =(+F26+G26) -> 2692648.63
A27: =IF(ISBLANK($C27),"",COUNTA($C$15:C27)) -> 12 | B27: 375 | C27: REGULATING STRUCTURES | D27: ='WPB-2.1.A Base Period'!O27 -> 3545377.771 | F27: 3545377.771 | G27: 0 | H27: 3545377.771
A28: =IF(ISBLANK($C28),"",COUNTA($C$15:C28)) -> 13 | B28: 375.2 | C28: STRUC & IMPROV-CITY GATE M & R | D28: ='WPB-2.1.A Base Period'!O28 -> 0 | F28: 0 | G28: 0 | H28: 0
A29: =IF(ISBLANK($C29),"",COUNTA($C$15:C29)) -> 14 | B29: 375.3 | C29: STRUC & IMPROV-GENERAL M & R | D29: ='WPB-2.1.A Base Period'!O29 -> 0 | F29: 0 | G29: 0 | H29: 0
A30: =IF(ISBLANK($C30),"",COUNTA($C$15:C30)) -> 15 | B30: 375.4 | C30: STRUC & IMPROV-REGULATING | D30: ='WPB-2.1.A Base Period'!O30 -> 0 | F30: 0 | G30: 0 | H30: 0
A31: =IF(ISBLANK($C31),"",COUNTA($C$15:C31)) -> 16 | B31: 375.6 | C31: STRUC & IMPROV-DISTR. IND. M & R | D31: ='WPB-2.1.A Base Period'!O31 -> 0 | F31: 0 | G31: 0 | H31: 0
A32: =IF(ISBLANK($C32),"",COUNTA($C$15:C32)) -> 17 | B32: 375.7 | C32: STRUC & IMPROV-OTHER DISTR. SYSTEMS | D32: ='WPB-2.1.A Base Period'!O32 -> 9466014.47 | F32: 9466014.47 | G32: 0 | H32: 9466014.47
A33: =IF(ISBLANK($C33),"",COUNTA($C$15:C33)) -> 18 | B33: 375.71 | C33: STRUC & IMPROV-OTHER DISTR SYS-ILP | D33: ='WPB-2.1.A Base Period'!O33 -> 707587.8 | F33: 707587.8 | G33: 0 | H33: 707587.8
A34: =IF(ISBLANK($C34),"",COUNTA($C$15:C34)) -> 19 | B34: 375.8 | C34: STRUC & IMPROV-COMMUNICATIONS | D34: ='WPB-2.1.A Base Period'!O34 -> 132125.04 | F34: 132125.04 | G34: 0 | H34: 132125.04
A35: =IF(ISBLANK($C35),"",COUNTA($C$15:C35)) -> 20 | B35: 376 | C35: MAINS (LESS SMRP) | D35: ='WPB-2.1.A Base Period'!O35 -> 494750544.3 | F35: 494750544.3 | G35: 0 | H35: 494750544.3
A36: =IF(ISBLANK($C36),"",COUNTA($C$15:C36)) -> 21 | B36: 378 | C36: M & R STATION EQUIP-REG (LESS SMRP) | D36: ='WPB-2.1.A Base Period'!O36 -> 31463900.21 | F36: 31463900.21 | G36: 0 | H36: 31463900.21
A37: =IF(ISBLANK($C37),"",COUNTA($C$15:C37)) -> 22 | B37: 378.1 | C37: M & R STATION EQUIP-GENERAL | D37: ='WPB-2.1.A Base Period'!O37 -> 0 | F37: 0 | G37: 0 | H37: 0
A38: =IF(ISBLANK($C38),"",COUNTA($C$15:C38)) -> 23 | B38: 378.2 | C38: M & R STA EQUIP-GENERAL-REGULATING (LESS SMRP) | D38: ='WPB-2.1.A Base Period'!O38 -> 0 | F38: 0 | G38: 0 | H38: 0
A39: =IF(ISBLANK($C39),"",COUNTA($C$15:C39)) -> 24 | B39: 378.3 | C39: M & R STA EQUIP-GEN-LOCAL GAS PURCH | D39: ='WPB-2.1.A Base Period'!O39 -> 0 | F39: 0 | G39: 0 | H39: 0
A40: =IF(ISBLANK($C40),"",COUNTA($C$15:C40)) -> 25 | B40: 379 | C40: M & R STA EQUIP-CITY GATE CHECK STA | D40: ='WPB-2.1.A Base Period'!O40 -> 1555047.87 | F40: 1555047.87 | G40: 0 | H40: 1555047.87
A41: =IF(ISBLANK($C41),"",COUNTA($C$15:C41)) -> 26 | B41: 379.1 | C41: M & R STA EQUIP-CITY GATE CHECK STA | D41: ='WPB-2.1.A Base Period'!O41 -> 0 | F41: 0 | G41: 0 | H41: 0
A42: =IF(ISBLANK($C42),"",COUNTA($C$15:C42)) -> 27 | B42: 380 | C42: SERVICES (LESS SMRP) | D42: ='WPB-2.1.A Base Period'!O42 -> 244154574.2 | F42: =D42 -> 244154574.2 | G42: 0 | H42: =(+F42+G42) -> 244154574.2
A43: =IF(ISBLANK($C43),"",COUNTA($C$15:C43)) -> 28 | B43: 381 | C43: METERS | D43: ='WPB-2.1.A Base Period'!O43 -> 20242926.56 | F43: 20242926.56 | G43: 0 | H43: 20242926.56
A44: =IF(ISBLANK($C44),"",COUNTA($C$15:C44)) -> 29 | B44: 381.1 | C44: METERS - AMR | D44: ='WPB-2.1.A Base Period'!O44 -> 8252969.39 | F44: 8252969.39 | G44: 0 | H44: 8252969.39
A45: =IF(ISBLANK($C45),"",COUNTA($C$15:C45)) -> 30 | B45: 382 | C45: METER INSTALLATIONS (LESS SMRP) | D45: ='WPB-2.1.A Base Period'!O45 -> 12936268.66 | F45: 12936268.66 | G45: 0 | H45: 12936268.66
A46: =IF(ISBLANK($C46),"",COUNTA($C$15:C46)) -> 31 | B46: 383 | C46: HOUSE REGULATORS (LESS SMRP) | D46: ='WPB-2.1.A Base Period'!O46 -> 9741313.037 | F46: 9741313.037 | G46: 0 | H46: 9741313.037
A47: =IF(ISBLANK($C47),"",COUNTA($C$15:C47)) -> 32 | B47: 384 | C47: HOUSE REGULATOR INSTALLATIONS | D47: ='WPB-2.1.A Base Period'!O47 -> -226.5078068 | F47: -226.5078068 | G47: 0 | H47: -226.5078068
A48: =IF(ISBLANK($C48),"",COUNTA($C$15:C48)) -> 33 | B48: 385 | C48: INDUSTRIAL M & R STATION EQUIPMENT | D48: ='WPB-2.1.A Base Period'!O48 -> 6800470.533 | F48: 6800470.533 | G48: 0 | H48: 6800470.533
A49: =IF(ISBLANK($C49),"",COUNTA($C$15:C49)) -> 34 | B49: 387.2 | C49: OTHER EQUIP-ODORIZATION | D49: ='WPB-2.1.A Base Period'!O49 -> 0 | F49: 0 | G49: 0 | H49: 0
A50: =IF(ISBLANK($C50),"",COUNTA($C$15:C50)) -> 35 | B50: 387.4 | C50: OTHER EQUIP-FMV | D50: ='WPB-2.1.A Base Period'!O50 -> 0 | F50: 0 | G50: 0 | H50: 0
A51: =IF(ISBLANK($C51),"",COUNTA($C$15:C51)) -> 36 | B51: 387.41 | C51: OTHER EQUIP-TELEPHONE | D51: ='WPB-2.1.A Base Period'!O51 -> 0 | F51: 0 | G51: 0 | H51: 0
A52: =IF(ISBLANK($C52),"",COUNTA($C$15:C52)) -> 37 | B52: 387.42 | C52: OTHER EQUIPMENT-RADIO | D52: ='WPB-2.1.A Base Period'!O52 -> 10361.51 | F52: 10361.51 | G52: 0 | H52: 10361.51
A53: =IF(ISBLANK($C53),"",COUNTA($C$15:C53)) -> 38 | B53: 387.44 | C53: OTHER EQUIP-OTHER COMMUNICATION | D53: ='WPB-2.1.A Base Period'!O53 -> 0 | F53: 0 | G53: 0 | H53: 0
A54: =IF(ISBLANK($C54),"",COUNTA($C$15:C54)) -> 39 | B54: 387.45 | C54: OTHER EQUIP-TELEMETERING | D54: ='WPB-2.1.A Base Period'!O54 -> 2340180.297 | F54: 2340180.297 | G54: 0 | H54: 2340180.297
A55: =IF(ISBLANK($C55),"",COUNTA($C$15:C55)) -> 40 | B55: 387.46 | C55: OTHER EQUIP-CUST INFO SERVICE | D55: ='WPB-2.1.A Base Period'!O55 -> 12269.38 | F55: 12269.38 | G55: 0 | H55: 12269.38
A56: =IF(ISBLANK($C56),"",COUNTA($C$15:C56)) -> 41 | B56: 387.5 | C56: GPS PIPE LOCATORS | D56: ='WPB-2.1.A Base Period'!O56 -> 0 | F56: 0 | G56: 0 | H56: 0
A57: =IF(ISBLANK($C57),"",COUNTA($C$15:C57)) -> 42 | C57: TOTAL DISTRIBUTION PLANT (LESS SMRP) | D57: =SUM(D23:D42)+SUM(D43:D56) -> 853552113 | F57: =SUM(F23:F42)+SUM(F43:F56) -> 853552113 | G57: =SUM(G23:G42)+SUM(G43:G56) -> 0 | H57: =SUM(H23:H42)+SUM(H43:H56) -> 853552113
A58: =IF(ISBLANK($C58),"",COUNTA($C$15:C58)) -> 
A59: =IF(ISBLANK($C59),"",COUNTA($C$15:C59)) -> 43 | C59: GENERAL PLANT
A60: =IF(ISBLANK($C60),"",COUNTA($C$15:C60)) -> 44 | B60: 391.1 | C60: OFFICE FURN & EQUIP-UNSPECIFIED | D60: ='WPB-2.1.A Base Period'!O73 -> 1602374.63 | F60: =D60 -> 1602374.63 | G60: 0 | H60: =(+F60+G60) -> 1602374.63
A61: =IF(ISBLANK($C61),"",COUNTA($C$15:C61)) -> 45 | B61: 391.11 | C61: OFFICE FURN & EQUIP-DATA HANDLING | D61: ='WPB-2.1.A Base Period'!O74 -> 0 | F61: 0 | G61: 0 | H61: 0
A62: =IF(ISBLANK($C62),"",COUNTA($C$15:C62)) -> 46 | B62: 391.12 | C62: OFFICE FURN & EQUIP-INFO SYSTEMS | D62: ='WPB-2.1.A Base Period'!O75 -> 591397.48 | F62: 591397.48 | G62: 0 | H62: 591397.48
A63: =IF(ISBLANK($C63),"",COUNTA($C$15:C63)) -> 47 | B63: 392.2 | C63: TRANS EQUIP-TRAILERS OVER $1,000 | D63: ='WPB-2.1.A Base Period'!O76 -> 48924.4 | F63: 48924.4 | G63: 0 | H63: 48924.4
A64: =IF(ISBLANK($C64),"",COUNTA($C$15:C64)) -> 48 | B64: 392.21 | C64: TRANS EQUIP-TRAILERS $1,000 OR LESS | D64: ='WPB-2.1.A Base Period'!O77 -> 24462.2 | F64: 24462.2 | G64: 0 | H64: 24462.2
A65: =IF(ISBLANK($C65),"",COUNTA($C$15:C65)) -> 49 | B65: 393 | C65: STORES EQUIPMENT | D65: ='WPB-2.1.A Base Period'!O78 -> 0 | F65: 0 | G65: 0 | H65: 0
A66: =IF(ISBLANK($C66),"",COUNTA($C$15:C66)) -> 50 | B66: 394.1 | C66: TOOLS,SHOP, & GAR EQ-GARAGE & SERV | D66: ='WPB-2.1.A Base Period'!O79 -> 0 | F66: 0 | G66: 0 | H66: 0
A67: =IF(ISBLANK($C67),"",COUNTA($C$15:C67)) -> 51 | B67: 394.11 | C67: TOOLS,SHOP, & GAR EQ-CNG STATIONARY | D67: ='WPB-2.1.A Base Period'!O80 -> 0 | F67: 0 | G67: 0 | H67: 0
A68: =IF(ISBLANK($C68),"",COUNTA($C$15:C68)) -> 52 | B68: 394.13 | C68: TOOLS,SHOP, & GAR EQ-CNG PORTABLE | D68: ='WPB-2.1.A Base Period'!O81 -> 0 | F68: 0 | G68: 0 | H68: 0
A69: =IF(ISBLANK($C69),"",COUNTA($C$15:C69)) -> 53 | B69: 394.2 | C69: TOOLS,SHOP, & GAR EQ-UND TANK CLEANUP | D69: ='WPB-2.1.A Base Period'!O82 -> 0 | F69: 0 | G69: 0 | H69: 0
A70: =IF(ISBLANK($C70),"",COUNTA($C$15:C70)) -> 54 | B70: 394.3 | C70: TOOLS,SHOP, & GAR EQ-SHOP EQUIP | D70: ='WPB-2.1.A Base Period'!O83 -> 6473681.619 | F70: 6473681.619 | G70: 0 | H70: 6473681.619
A71: =IF(ISBLANK($C71),"",COUNTA($C$15:C71)) -> 55 | B71: 395 | C71: TOOLS,SHOP, & GAR EQ-TOOLS & OTHER | D71: ='WPB-2.1.A Base Period'!O84 -> 59420.06978 | F71: 59420.06978 | G71: 0 | H71: 59420.06978
A72: =IF(ISBLANK($C72),"",COUNTA($C$15:C72)) -> 56 | B72: 396 | C72: LABORATORY | D72: ='WPB-2.1.A Base Period'!O85 -> 185547 | F72: 185547 | G72: 0 | H72: 185547
A73: =IF(ISBLANK($C73),"",COUNTA($C$15:C73)) -> 57 | B73: 398 | C73: POWER OPERATED EQUIP-GENERAL TOOLS | D73: ='WPB-2.1.A Base Period'!O86 -> 127397.98 | F73: 127397.98 | G73: 0 | H73: 127397.98
A74: =IF(ISBLANK($C74),"",COUNTA($C$15:C74)) -> 58 | C74: TOTAL GENERAL PLANT | D74: =SUM(D60:D73) -> 9113205.378 | F74: =SUM(F60:F73) -> 9113205.378 | G74: =SUM(G60:G73) -> 0 | H74: =SUM(H60:H73) -> 9113205.378
A75: =IF(ISBLANK($C75),"",COUNTA($C$15:C75)) -> 
A76: =IF(ISBLANK($C76),"",COUNTA($C$15:C76)) -> 59 | C76: OTHER PLANT
A77: =IF(ISBLANK($C77),"",COUNTA($C$15:C77)) -> 60 | B77: 378.21 | C77: M & R STA EQUIP REG FMV | D77: ='WPB-2.1.A Base Period'!O90 -> -777092 | F77: =D77 -> -777092 | G77: 0 | H77: =(+F77+G77) -> -777092
A78: =IF(ISBLANK($C78),"",COUNTA($C$15:C78)) -> 61 | C78: TOTAL OTHER PLANT | D78: =SUM(D77) -> -777092 | F78: =SUM(F77) -> -777092 | G78: =SUM(G77) -> 0 | H78: =SUM(H77) -> -777092
A79: =IF(ISBLANK($C79),"",COUNTA($C$15:C79)) -> 
A80: =IF(ISBLANK($C80),"",COUNTA($C$15:C80)) -> 62 | C80: TOTAL PLANT IN SERVICE (LESS SMRP) | D80: =D20+D57+D74+D78 -> 886530166.6 | F80: =F20+F57+F74+F78 -> 886530166.6 | G80: =G20+G57+G74+G78 -> 0 | H80: =H20+H57+H74+H78 -> 886530166.6
A82: =A80+1 -> 63 | C82: SMRP PLANT
A83: =A82+1 -> 64 | B83: 376 | C83: MAINS | D83: ='WPB-2.1.A Base Period'!O96 -> 47626379.79 | F83: =D83 -> 47626379.79 | G83: 0 | H83: =(+F83+G83) -> 47626379.79
A84: 65 | B84: 378.2 | C84: M & R STA EQUIP-GENERAL-REGULATING | D84: ='WPB-2.1.A Base Period'!O97 -> -249884.42 | F84: =D84 -> -249884.42 | G84: 0 | H84: =(+F84+G84) -> -249884.42
A85: 66 | B85: 380 | C85: SERVICES | D85: ='WPB-2.1.A Base Period'!O98 -> 13636344.29 | F85: =D85 -> 13636344.29 | G85: 0 | H85: =(+F85+G85) -> 13636344.29
A86: 67 | B86: 382 | C86: METER INSTALLATIONS | D86: ='WPB-2.1.A Base Period'!O99 -> 896924.0611 | F86: =D86 -> 896924.0611 | G86: 0 | H86: =(+F86+G86) -> 896924.0611
A87: 68 | B87: 383 | C87: HOUSE REGULATORS | D87: ='WPB-2.1.A Base Period'!O100 -> 421775.594 | F87: =D87 -> 421775.594 | G87: 0 | H87: =(+F87+G87) -> 421775.594
A88: 69 | C88: TOTAL SMRP PLANT | D88: =SUM(D83:D87) -> 62331539.31 | F88: =SUM(F83:F87) -> 62331539.31 | G88: =SUM(G83:G87) -> 0 | H88: =SUM(H83:H87) -> 62331539.31
A90: =A88+1 -> 70 | C90: TOTAL GAS PLANT IN SERVICE | D90: =D88+D80 -> 948861705.9 | F90: =F88+F80 -> 948861705.9 | G90: =G88+G80 -> 0 | H90: =H88+H80 -> 948861705.9

Sheet B-2.1 Forecast Period GPA
A1: ='General Headers Index'!B3 -> COLUMBIA GAS OF KENTUCKY, INC.
A2: ='General Headers Index'!B5 -> CASE NO. 2026 - 00099
A3: ='Index B'!$C$21 -> PLANT IN SERVICE BY ACCOUNTS AND SUBACCOUNTS
A4: ='General Headers Index'!B18 -> AS OF DECEMBER 31, 2027
A6: ='General Headers Index'!$B$34 -> DATA:_______BASE PERIOD___X___FORECASTED PERIOD | I6: ="SCHEDULE "&'Index B'!$A$21 -> SCHEDULE B-2.1
A7: ='General Headers Index'!$B$37 -> TYPE OF FILING:___X___ORIGINAL_______UPDATED | I7: SHEET 2 OF 2
A8: ='General Headers Index'!$B$40 -> WORKPAPER REFERENCE NO(S): | I8: ="WITNESS: "&'General Headers Index'!B46 -> WITNESS: L. BLACK
A11: LINE | B11: ACCT. | C11: ACCOUNT / | D11: FORECASTED PERIOD | E11: JURIS. | F11: JURIS. | H11: ADJUSTED | I11: 13 MONTH
A12: NO. | B12: NO. | C12: SUBACCOUNT TITLES | D12: TOTAL COMPANY | E12: PERCENT | F12: TOTAL | G12: ADJUSTMENTS | H12: JURIS. | I12: AVERAGE
D13: (1) | E13: (2) | F13: (3 = 1) | G13: (4) | H13: (5 = 3 + 4) | I13: (6)
D14: $ | F14: $ | G14: $ | H14: $ | I14: $
A15: =IF(ISBLANK($C15),"",COUNTA($C$15:C15)) -> 1 | C15: INTANGIBLE PLANT
A16: =IF(ISBLANK($C16),"",COUNTA($C$15:C16)) -> 2 | B16: 301 | C16: ORGANIZATION | D16: ='WPB-2.1.A 13 mo avg Forecast'!P16 -> 521.2 | E16: 1 | F16: =D16 -> 521.2 | G16: 0 | H16: =(+F16+G16) -> 521.2 | I16: ='WPB-2.1.A 13 mo avg Forecast'!Q16 -> 521.2
A17: =IF(ISBLANK($C17),"",COUNTA($C$15:C17)) -> 3 | B17: 303 | C17: MISCELLANEOUS INTANGIBLE PLANT | D17: ='WPB-2.1.A 13 mo avg Forecast'!P17 -> 67762.63 | F17: 67762.63 | G17: 0 | H17: 67762.63 | I17: ='WPB-2.1.A 13 mo avg Forecast'!Q17 -> 67762.63
A18: =IF(ISBLANK($C18),"",COUNTA($C$15:C18)) -> 4 | B18: 303.3 | C18: MISC INTANGIBLE PLANT-OTHER SOFTWARE | D18: ='WPB-2.1.A 13 mo avg Forecast'!P18 -> 18715393.12 | F18: 18715393.12 | G18: 0 | H18: 18715393.12 | I18: ='WPB-2.1.A 13 mo avg Forecast'!Q18 -> 18003440.66
A19: =IF(ISBLANK($C19),"",COUNTA($C$15:C19)) -> 5 | B19: 303.99 | C19: MISC INTANGIBLE PLANT-CLOUD SOFTWARE | D19: ='WPB-2.1.A 13 mo avg Forecast'!P19 -> 11094195.51 | F19: =D19 -> 11094195.51 | G19: 0 | H19: 11094195.51 | I19: ='WPB-2.1.A 13 mo avg Forecast'!Q19 -> 10172694.37
A20: =IF(ISBLANK($C20),"",COUNTA($C$15:C20)) -> 6 | C20: TOTAL INTANGIBLE PLANT | D20: =SUM(D16:D19) -> 29877872.46 | F20: 29877872.46 | G20: =SUM(G16:G19) -> 0 | H20: =SUM(H16:H19) -> 29877872.46 | I20: =SUM(I16:I19) -> 28244418.86
A21: =IF(ISBLANK($C21),"",COUNTA($C$15:C21)) -> 
A22: =IF(ISBLANK($C22),"",COUNTA($C$15:C22)) -> 7 | C22: DISTRIBUTION PLANT (LESS SMRP)
A23: =IF(ISBLANK($C23),"",COUNTA($C$15:C23)) -> 8 | B23: 374.1 | C23: LAND-CITY GATE & MAIN LINE IND. M & R | D23: ='WPB-2.1.A 13 mo avg Forecast'!P23 -> 865477.56 | F23: =D23 -> 865477.56 | G23: 0 | H23: =(+F23+G23) -> 865477.56 | I23: ='WPB-2.1.A 13 mo avg Forecast'!Q23 -> 865477.56
A24: =IF(ISBLANK($C24),"",COUNTA($C$15:C24)) -> 9 | B24: 374.2 | C24: LAND-OTHER DISTRIBUTION SYSTEMS | D24: ='WPB-2.1.A 13 mo avg Forecast'!P24 -> 4056502.606 | F24: 4056502.606 | G24: 0 | H24: 4056502.606 | I24: ='WPB-2.1.A 13 mo avg Forecast'!Q24 -> 3989298.149
A25: =IF(ISBLANK($C25),"",COUNTA($C$15:C25)) -> 10 | B25: 374.4 | C25: LAND RIGHTS-OTHER DISTR SYSTEMS | D25: ='WPB-2.1.A 13 mo avg Forecast'!P25 -> 0 | F25: 0 | G25: 0 | H25: 0 | I25: ='WPB-2.1.A 13 mo avg Forecast'!Q25 -> 0
A26: =IF(ISBLANK($C26),"",COUNTA($C$15:C26)) -> 11 | B26: 374.5 | C26: RIGHTS OF WAY | D26: ='WPB-2.1.A 13 mo avg Forecast'!P26 -> 2692648.63 | F26: 2692648.63 | G26: 0 | H26: 2692648.63 | I26: ='WPB-2.1.A 13 mo avg Forecast'!Q26 -> 2692648.63
A27: =IF(ISBLANK($C27),"",COUNTA($C$15:C27)) -> 12 | B27: 375 | C27: REGULATING STRUCTURES | D27: ='WPB-2.1.A 13 mo avg Forecast'!P27 -> 3773809.739 | F27: =D27 -> 3773809.739 | G27: 0 | H27: =(+F27+G27) -> 3773809.739 | I27: ='WPB-2.1.A 13 mo avg Forecast'!Q27 -> 3685137.34
A28: =IF(ISBLANK($C28),"",COUNTA($C$15:C28)) -> 13 | B28: 375.2 | C28: STRUC & IMPROV-CITY GATE M & R | D28: ='WPB-2.1.A 13 mo avg Forecast'!P28 -> 0 | F28: 0 | G28: 0 | H28: 0 | I28: ='WPB-2.1.A 13 mo avg Forecast'!Q28 -> 0
A29: =IF(ISBLANK($C29),"",COUNTA($C$15:C29)) -> 14 | B29: 375.3 | C29: STRUC & IMPROV-GENERAL M & R | D29: ='WPB-2.1.A 13 mo avg Forecast'!P29 -> 0 | F29: 0 | G29: 0 | H29: 0 | I29: ='WPB-2.1.A 13 mo avg Forecast'!Q29 -> 0
A30: =IF(ISBLANK($C30),"",COUNTA($C$15:C30)) -> 15 | B30: 375.4 | C30: STRUC & IMPROV-REGULATING | D30: ='WPB-2.1.A 13 mo avg Forecast'!P30 -> 0 | F30: 0 | G30: 0 | H30: 0 | I30: ='WPB-2.1.A 13 mo avg Forecast'!Q30 -> 0
A31: =IF(ISBLANK($C31),"",COUNTA($C$15:C31)) -> 16 | B31: 375.6 | C31: STRUC & IMPROV-DISTR. IND. M & R | D31: ='WPB-2.1.A 13 mo avg Forecast'!P31 -> 0 | F31: 0 | G31: 0 | H31: 0 | I31: ='WPB-2.1.A 13 mo avg Forecast'!Q31 -> 0
A32: =IF(ISBLANK($C32),"",COUNTA($C$15:C32)) -> 17 | B32: 375.7 | C32: STRUC & IMPROV-OTHER DISTR. SYSTEMS | D32: ='WPB-2.1.A 13 mo avg Forecast'!P32 -> 9466014.47 | F32: 9466014.47 | G32: 0 | H32: 9466014.47 | I32: ='WPB-2.1.A 13 mo avg Forecast'!Q32 -> 9466014.47
A33: =IF(ISBLANK($C33),"",COUNTA($C$15:C33)) -> 18 | B33: 375.71 | C33: STRUC & IMPROV-OTHER DISTR SYS-ILP | D33: ='WPB-2.1.A 13 mo avg Forecast'!P33 -> 707587.8 | F33: 707587.8 | G33: 0 | H33: 707587.8 | I33: ='WPB-2.1.A 13 mo avg Forecast'!Q33 -> 707587.8
A34: =IF(ISBLANK($C34),"",COUNTA($C$15:C34)) -> 19 | B34: 375.8 | C34: STRUC & IMPROV-COMMUNICATIONS | D34: ='WPB-2.1.A 13 mo avg Forecast'!P34 -> 132125.04 | F34: 132125.04 | G34: 0 | H34: 132125.04 | I34: ='WPB-2.1.A 13 mo avg Forecast'!Q34 -> 132125.04
A35: =IF(ISBLANK($C35),"",COUNTA($C$15:C35)) -> 20 | B35: 376 | C35: MAINS (LESS SMRP) | D35: ='WPB-2.1.A 13 mo avg Forecast'!P35 -> 509831965.9 | F35: 509831965.9 | G35: 0 | H35: 509831965.9 | I35: ='WPB-2.1.A 13 mo avg Forecast'!Q35 -> 503400503.2
A36: =IF(ISBLANK($C36),"",COUNTA($C$15:C36)) -> 21 | B36: 378 | C36: M & R STATION EQUIP-REG (LESS SMRP) | D36: ='WPB-2.1.A 13 mo avg Forecast'!P36 -> 34280302.13 | F36: =D36 -> 34280302.13 | G36: 0 | H36: =(+F36+G36) -> 34280302.13 | I36: ='WPB-2.1.A 13 mo avg Forecast'!Q36 -> 33413361.02
A37: =IF(ISBLANK($C37),"",COUNTA($C$15:C37)) -> 22 | B37: 378.1 | C37: M & R STATION EQUIP-GENERAL | D37: ='WPB-2.1.A 13 mo avg Forecast'!P37 -> 0 | F37: 0 | G37: 0 | H37: 0 | I37: ='WPB-2.1.A 13 mo avg Forecast'!Q37 -> 0
A38: =IF(ISBLANK($C38),"",COUNTA($C$15:C38)) -> 23 | B38: 378.2 | C38: M & R STA EQUIP-GENERAL-REGULATING (LESS SMRP) | D38: ='WPB-2.1.A 13 mo avg Forecast'!P38 -> 0 | F38: 0 | G38: 0 | H38: 0 | I38: ='WPB-2.1.A 13 mo avg Forecast'!Q38 -> 0
A39: =IF(ISBLANK($C39),"",COUNTA($C$15:C39)) -> 24 | B39: 378.3 | C39: M & R STA EQUIP-GEN-LOCAL GAS PURCH | D39: ='WPB-2.1.A 13 mo avg Forecast'!P39 -> 0 | F39: 0 | G39: 0 | H39: 0 | I39: ='WPB-2.1.A 13 mo avg Forecast'!Q39 -> 0
A40: =IF(ISBLANK($C40),"",COUNTA($C$15:C40)) -> 25 | B40: 379 | C40: M & R STA EQUIP-CITY GATE CHECK STA | D40: ='WPB-2.1.A 13 mo avg Forecast'!P40 -> 1555047.87 | F40: =D40 -> 1555047.87 | G40: 0 | H40: =(+F40+G40) -> 1555047.87 | I40: ='WPB-2.1.A 13 mo avg Forecast'!Q40 -> 1555047.87
A41: =IF(ISBLANK($C41),"",COUNTA($C$15:C41)) -> 26 | B41: 379.1 | C41: M & R STA EQUIP-CITY GATE CHECK STA | D41: ='WPB-2.1.A 13 mo avg Forecast'!P41 -> 0 | F41: 0 | G41: 0 | H41: 0 | I41: ='WPB-2.1.A 13 mo avg Forecast'!Q41 -> 0
A42: =IF(ISBLANK($C42),"",COUNTA($C$15:C42)) -> 27 | B42: 380 | C42: SERVICES (LESS SMRP) | D42: ='WPB-2.1.A 13 mo avg Forecast'!P42 -> 257219605.1 | F42: 257219605.1 | G42: 0 | H42: 257219605.1 | I42: ='WPB-2.1.A 13 mo avg Forecast'!Q42 -> 251105624.8
A43: =IF(ISBLANK($C43),"",COUNTA($C$15:C43)) -> 28 | B43: 381 | C43: METERS | D43: ='WPB-2.1.A 13 mo avg Forecast'!P43 -> 23016280.19 | F43: =D43 -> 23016280.19 | G43: 0 | H43: =(+F43+G43) -> 23016280.19 | I43: ='WPB-2.1.A 13 mo avg Forecast'!Q43 -> 21899897.75
A44: =IF(ISBLANK($C44),"",COUNTA($C$15:C44)) -> 29 | B44: 381.1 | C44: METERS - AMR | D44: ='WPB-2.1.A 13 mo avg Forecast'!P44 -> 8252969.39 | F44: 8252969.39 | G44: 0 | H44: 8252969.39 | I44: ='WPB-2.1.A 13 mo avg Forecast'!Q44 -> 8252969.39
A45: =IF(ISBLANK($C45),"",COUNTA($C$15:C45)) -> 30 | B45: 382 | C45: METER INSTALLATIONS (LESS SMRP) | D45: ='WPB-2.1.A 13 mo avg Forecast'!P45 -> 12618260.39 | F45: 12618260.39 | G45: 0 | H45: 12618260.39 | I45: ='WPB-2.1.A 13 mo avg Forecast'!Q45 -> 12571611.84
A46: =IF(ISBLANK($C46),"",COUNTA($C$15:C46)) -> 31 | B46: 383 | C46: HOUSE REGULATORS (LESS SMRP) | D46: ='WPB-2.1.A 13 mo avg Forecast'!P46 -> 9817863.049 | F46: 9817863.049 | G46: 0 | H46: 9817863.049 | I46: ='WPB-2.1.A 13 mo avg Forecast'!Q46 -> 9748686.765
A47: =IF(ISBLANK($C47),"",COUNTA($C$15:C47)) -> 32 | B47: 384 | C47: HOUSE REGULATOR INSTALLATIONS | D47: ='WPB-2.1.A 13 mo avg Forecast'!P47 -> -429.6098403 | F47: -429.6098403 | G47: 0 | H47: -429.6098403 | I47: ='WPB-2.1.A 13 mo avg Forecast'!Q47 -> -395.5748087
A48: =IF(ISBLANK($C48),"",COUNTA($C$15:C48)) -> 33 | B48: 385 | C48: INDUSTRIAL M & R STATION EQUIPMENT | D48: ='WPB-2.1.A 13 mo avg Forecast'!P48 -> 7358267.143 | F48: 7358267.143 | G48: 0 | H48: 7358267.143 | I48: ='WPB-2.1.A 13 mo avg Forecast'!Q48 -> 7141938.363
A49: =IF(ISBLANK($C49),"",COUNTA($C$15:C49)) -> 34 | B49: 387.2 | C49: OTHER EQUIP-ODORIZATION | D49: ='WPB-2.1.A 13 mo avg Forecast'!P49 -> 0 | F49: 0 | G49: 0 | H49: 0 | I49: ='WPB-2.1.A 13 mo avg Forecast'!Q49 -> 0
A50: =IF(ISBLANK($C50),"",COUNTA($C$15:C50)) -> 35 | B50: 387.41 | C50: OTHER EQUIP-TELEPHONE | D50: ='WPB-2.1.A 13 mo avg Forecast'!P51 -> 0 | F50: 0 | G50: 0 | H50: 0 | I50: ='WPB-2.1.A 13 mo avg Forecast'!Q51 -> 0
A51: =IF(ISBLANK($C51),"",COUNTA($C$15:C51)) -> 36 | B51: 387.42 | C51: OTHER EQUIPMENT-RADIO | D51: ='WPB-2.1.A 13 mo avg Forecast'!P52 -> 10361.51 | F51: 10361.51 | G51: 0 | H51: 10361.51 | I51: ='WPB-2.1.A 13 mo avg Forecast'!Q52 -> 10361.51
A52: =IF(ISBLANK($C52),"",COUNTA($C$15:C52)) -> 37 | B52: 387.44 | C52: OTHER EQUIP-OTHER COMMUNICATION | D52: ='WPB-2.1.A 13 mo avg Forecast'!P53 -> 0 | F52: 0 | G52: 0 | H52: 0 | I52: ='WPB-2.1.A 13 mo avg Forecast'!Q53 -> 0
A53: =IF(ISBLANK($C53),"",COUNTA($C$15:C53)) -> 38 | B53: 387.45 | C53: OTHER EQUIP-TELEMETERING | D53: ='WPB-2.1.A 13 mo avg Forecast'!P54 -> 4129266.333 | F53: 4129266.333 | G53: 0 | H53: 4129266.333 | I53: ='WPB-2.1.A 13 mo avg Forecast'!Q54 -> 3460190.484
A54: =IF(ISBLANK($C54),"",COUNTA($C$15:C54)) -> 39 | B54: 387.46 | C54: OTHER EQUIP-CUST INFO SERVICE | D54: ='WPB-2.1.A 13 mo avg Forecast'!P55 -> 12269.38 | F54: 12269.38 | G54: 0 | H54: 12269.38 | I54: ='WPB-2.1.A 13 mo avg Forecast'!Q55 -> 12269.38
A55: =IF(ISBLANK($C55),"",COUNTA($C$15:C55)) -> 40 | B55: 387.5 | C55: GPS PIPE LOCATORS | D55: ='WPB-2.1.A 13 mo avg Forecast'!P56 -> 0 | F55: =D55 -> 0 | G55: 0 | H55: =(+F55+G55) -> 0 | I55: ='WPB-2.1.A 13 mo avg Forecast'!Q56 -> 0
A56: =IF(ISBLANK($C56),"",COUNTA($C$15:C56)) -> 41 | C56: TOTAL DISTRIBUTION PLANT (LESS SMRP) | D56: =SUM(D23:D42)+SUM(D43:D55) -> 889796194.6 | F56: =SUM(F23:F42)+SUM(F43:F55) -> 889796194.6 | G56: =SUM(G23:G42)+SUM(G43:G55) -> 0 | H56: =SUM(H23:H42)+SUM(H43:H55) -> 889796194.6 | I56: =SUM(I23:I42)+SUM(I43:I55) -> 874110355.8
A57: =IF(ISBLANK($C57),"",COUNTA($C$15:C57)) -> 
A58: =IF(ISBLANK($C58),"",COUNTA($C$15:C58)) -> 42 | C58: GENERAL PLANT
A59: =IF(ISBLANK($C59),"",COUNTA($C$15:C59)) -> 43 | B59: 391.1 | C59: OFFICE FURN & EQUIP-UNSPECIFIED | D59: ='WPB-2.1.A 13 mo avg Forecast'!P73 -> 1602374.63 | F59: =D59 -> 1602374.63 | G59: 0 | H59: =(+F59+G59) -> 1602374.63 | I59: ='WPB-2.1.A 13 mo avg Forecast'!Q73 -> 1602374.63
A60: =IF(ISBLANK($C60),"",COUNTA($C$15:C60)) -> 44 | B60: 391.11 | C60: OFFICE FURN & EQUIP-DATA HANDLING | D60: ='WPB-2.1.A 13 mo avg Forecast'!P74 -> 0 | F60: 0 | G60: 0 | H60: 0 | I60: ='WPB-2.1.A 13 mo avg Forecast'!Q74 -> 0
A61: =IF(ISBLANK($C61),"",COUNTA($C$15:C61)) -> 45 | B61: 391.12 | C61: OFFICE FURN & EQUIP-INFO SYSTEMS | D61: ='WPB-2.1.A 13 mo avg Forecast'!P75 -> 591397.48 | F61: 591397.48 | G61: 0 | H61: 591397.48 | I61: ='WPB-2.1.A 13 mo avg Forecast'!Q75 -> 591397.48
A62: =IF(ISBLANK($C62),"",COUNTA($C$15:C62)) -> 46 | B62: 392.2 | C62: TRANS EQUIP-TRAILERS OVER $1,000 | D62: ='WPB-2.1.A 13 mo avg Forecast'!P76 -> 48924.4 | F62: 48924.4 | G62: 0 | H62: 48924.4 | I62: ='WPB-2.1.A 13 mo avg Forecast'!Q76 -> 48924.4
A63: =IF(ISBLANK($C63),"",COUNTA($C$15:C63)) -> 47 | B63: 392.21 | C63: TRANS EQUIP-TRAILERS $1,000 OR LESS | D63: ='WPB-2.1.A 13 mo avg Forecast'!P77 -> 24462.2 | F63: 24462.2 | G63: 0 | H63: 24462.2 | I63: ='WPB-2.1.A 13 mo avg Forecast'!Q77 -> 24462.2
A64: =IF(ISBLANK($C64),"",COUNTA($C$15:C64)) -> 48 | B64: 393 | C64: STORES EQUIPMENT | D64: ='WPB-2.1.A 13 mo avg Forecast'!P78 -> 0 | F64: 0 | G64: 0 | H64: 0 | I64: ='WPB-2.1.A 13 mo avg Forecast'!Q78 -> 0
A65: =IF(ISBLANK($C65),"",COUNTA($C$15:C65)) -> 49 | B65: 394.1 | C65: TOOLS,SHOP, & GAR EQ-GARAGE & SERV | D65: ='WPB-2.1.A 13 mo avg Forecast'!P79 -> 0 | F65: 0 | G65: 0 | H65: 0 | I65: ='WPB-2.1.A 13 mo avg Forecast'!Q79 -> 0
A66: =IF(ISBLANK($C66),"",COUNTA($C$15:C66)) -> 50 | B66: 394.11 | C66: TOOLS,SHOP, & GAR EQ-CNG STATIONARY | D66: ='WPB-2.1.A 13 mo avg Forecast'!P80 -> 0 | F66: 0 | G66: 0 | H66: 0 | I66: ='WPB-2.1.A 13 mo avg Forecast'!Q80 -> 0
A67: =IF(ISBLANK($C67),"",COUNTA($C$15:C67)) -> 51 | B67: 394.13 | C67: TOOLS,SHOP, & GAR EQ-CNG PORTABLE | D67: ='WPB-2.1.A 13 mo avg Forecast'!P81 -> 0 | F67: 0 | G67: 0 | H67: 0 | I67: ='WPB-2.1.A 13 mo avg Forecast'!Q81 -> 0
A68: =IF(ISBLANK($C68),"",COUNTA($C$15:C68)) -> 52 | B68: 394.2 | C68: TOOLS,SHOP, & GAR EQ-UND TANK CLEANUP | D68: ='WPB-2.1.A 13 mo avg Forecast'!P82 -> 0 | F68: 0 | G68: 0 | H68: 0 | I68: ='WPB-2.1.A 13 mo avg Forecast'!Q82 -> 0
A69: =IF(ISBLANK($C69),"",COUNTA($C$15:C69)) -> 53 | B69: 394.3 | C69: TOOLS,SHOP, & GAR EQ-SHOP EQUIP | D69: ='WPB-2.1.A 13 mo avg Forecast'!P83 -> 7942745.925 | F69: 7942745.925 | G69: 0 | H69: 7942745.925 | I69: ='WPB-2.1.A 13 mo avg Forecast'!Q83 -> 7270102.875
A70: =IF(ISBLANK($C70),"",COUNTA($C$15:C70)) -> 54 | B70: 395 | C70: TOOLS,SHOP, & GAR EQ-TOOLS & OTHER | D70: ='WPB-2.1.A 13 mo avg Forecast'!P84 -> 59420.06978 | F70: 59420.06978 | G70: 0 | H70: 59420.06978 | I70: ='WPB-2.1.A 13 mo avg Forecast'!Q84 -> 59420.06978
A71: =IF(ISBLANK($C71),"",COUNTA($C$15:C71)) -> 55 | B71: 396 | C71: LABORATORY | D71: ='WPB-2.1.A 13 mo avg Forecast'!P85 -> 185547 | F71: 185547 | G71: 0 | H71: 185547 | I71: ='WPB-2.1.A 13 mo avg Forecast'!Q85 -> 185547
A72: =IF(ISBLANK($C72),"",COUNTA($C$15:C72)) -> 56 | B72: 398 | C72: POWER OPERATED EQUIP-GENERAL TOOLS | D72: ='WPB-2.1.A 13 mo avg Forecast'!P86 -> 127397.98 | F72: 127397.98 | G72: 0 | H72: 127397.98 | I72: ='WPB-2.1.A 13 mo avg Forecast'!Q86 -> 127397.98
A73: =IF(ISBLANK($C73),"",COUNTA($C$15:C73)) -> 57 | C73: TOTAL GENERAL PLANT | D73: =SUM(D59:D72) -> 10582269.68 | F73: =SUM(F59:F72) -> 10582269.68 | G73: =SUM(G59:G72) -> 0 | H73: =SUM(H59:H72) -> 10582269.68 | I73: =SUM(I59:I72) -> 9909626.635
A74: =IF(ISBLANK($C74),"",COUNTA($C$15:C74)) -> 
A75: =IF(ISBLANK($C75),"",COUNTA($C$15:C75)) -> 58 | C75: OTHER PLANT
A76: =IF(ISBLANK($C76),"",COUNTA($C$15:C76)) -> 59 | B76: 378.21 | C76: M & R STA EQUIP REG FMV | D76: ='WPB-2.1.A 13 mo avg Forecast'!P90 -> -777092 | F76: =D76 -> -777092 | G76: 0 | H76: =(+F76+G76) -> -777092 | I76: =H76 -> -777092
A77: =IF(ISBLANK($C77),"",COUNTA($C$15:C77)) -> 60 | C77: TOTAL OTHER PLANT | D77: =SUM(D76) -> -777092 | F77: =SUM(F76) -> -777092 | G77: =SUM(G76) -> 0 | H77: =SUM(H76) -> -777092 | I77: =SUM(I76) -> -777092
A78: =IF(ISBLANK($C78),"",COUNTA($C$15:C78)) -> 
A79: =IF(ISBLANK($C79),"",COUNTA($C$15:C79)) -> 61 | C79: TOTAL PLANT IN SERVICE (LESS SMRP) | D79: =D20+D56+D73+D77 -> 929479244.8 | F79: =F20+F56+F73+F77 -> 929479244.8 | G79: =G20+G56+G73+G77 -> 0 | H79: =H20+H56+H73+H77 -> 929479244.8 | I79: =I20+I56+I73+I77 -> 911487309.3
A81: =A79+1 -> 62 | C81: SMRP PLANT
A82: =A81+1 -> 63 | B82: 376 | C82: MAINS | D82: ='WPB-2.1.A 13 mo avg Forecast'!P96 -> 107426288.6 | F82: =D82 -> 107426288.6 | G82: 0 | H82: =(+F82+G82) -> 107426288.6 | I82: ='WPB-2.1.A 13 mo avg Forecast'!Q96 -> 81786681.33
A83: 64 | B83: 378.2 | C83: M & R STA EQUIP-GENERAL-REGULATING | D83: ='WPB-2.1.A 13 mo avg Forecast'!P97 -> -522452.02 | F83: =D83 -> -522452.02 | G83: 0 | H83: =(+F83+G83) -> -522452.02 | I83: ='WPB-2.1.A 13 mo avg Forecast'!Q97 -> -401562.4815
A84: 65 | B84: 380 | C84: SERVICES | D84: ='WPB-2.1.A 13 mo avg Forecast'!P98 -> 33963603.56 | F84: =D84 -> 33963603.56 | G84: 0 | H84: =(+F84+G84) -> 33963603.56 | I84: ='WPB-2.1.A 13 mo avg Forecast'!Q98 -> 26104486.31
A85: 66 | B85: 382 | C85: METER INSTALLATIONS | D85: ='WPB-2.1.A 13 mo avg Forecast'!P99 -> 1599668.621 | F85: =D85 -> 1599668.621 | G85: 0 | H85: =(+F85+G85) -> 1599668.621 | I85: ='WPB-2.1.A 13 mo avg Forecast'!Q99 -> 1352373.431
A86: 67 | B86: 383 | C86: HOUSE REGULATORS | D86: ='WPB-2.1.A 13 mo avg Forecast'!P100 -> 797921.8551 | F86: =D86 -> 797921.8551 | G86: 0 | H86: =(+F86+G86) -> 797921.8551 | I86: ='WPB-2.1.A 13 mo avg Forecast'!Q100 -> 682901.866
A87: 68 | C87: TOTAL SMRP PLANT | D87: =SUM(D82:D86) -> 143265030.6 | F87: =SUM(F82:F86) -> 143265030.6 | G87: =SUM(G82:G86) -> 0 | H87: =SUM(H82:H86) -> 143265030.6 | I87: =SUM(I82:I86) -> 109524880.5
A89: =A87+1 -> 69 | C89: TOTAL GAS PLANT IN SERVICE | D89: =D87+D79 -> 1072744275 | F89: =F87+F79 -> 1072744275 | G89: =G87+G79 -> 0 | H89: =H87+H79 -> 1072744275 | I89: =I87+I79 -> 1021012190

Sheet WPB-2.1.A Base Period
A1: ='General Headers Index'!B3 -> COLUMBIA GAS OF KENTUCKY, INC.
A2: ='General Headers Index'!B5 -> CASE NO. 2026 - 00099
A3: ='Index B'!$C$22 -> PLANT IN SERVICE BY GAS PLANT ACCOUNT
A4: ='General Headers Index'!B11 -> BASE PERIOD 09/30/2025 TO 08/31/2026
A6: ='General Headers Index'!$B$33 -> DATA:___X___BASE PERIOD_______FORECASTED PERIOD | O6: ='Index B'!$A$22 -> WPB-2.1.A
A7: ='General Headers Index'!$B$37 -> TYPE OF FILING:___X___ORIGINAL_______UPDATED | O7: SHEET 1 OF 4
O8: ="WITNESS: "&'General Headers Index'!B46 -> WITNESS: L. BLACK
A10: LINE | B10: ACCT.
A11: NO. | B11: NO. | C11: DESCRIPTION | D11: 09/30/2025 | E11: 10/31/2025 | F11: 11/30/2025 | G11: 12/31/2025 | H11: 01/31/2026 | I11: 02/28/2026 | J11: 03/31/2026 | K11: 04/30/2026 | L11: 05/31/2026 | M11: 06/30/2026 | N11: 07/31/2026 | O11: 08/31/2026
D12: (1) | E12: (2) | F12: (3) | G12: (4) | H12: (5) | I12: (6) | J12: (7) | K12: (8) | L12: (9) | M12: (10) | N12: (11) | O12: (12)
D13: $ | E13: $ | F13: $ | G13: $ | H13: $ | I13: $ | J13: $ | K13: $ | L13: $ | M13: $ | N13: $ | O13: $
A15: =IF(ISBLANK(B15),"",COUNTA($B$15:B15)) -> 1 | B15: INTANGIBLE PLANT
A16: =IF(ISBLANK($B16),"",COUNTA($B$15:B16)) -> 2 | B16: 301 | C16: ORGANIZATION | D16: ='WPB-2.1.C Plant Detail'!H934 -> 521.2 | E16: ='WPB-2.1.C Plant Detail'!H1050 -> 521.2 | F16: ='WPB-2.1.C Plant Detail'!H1166 -> 521.2 | G16: ='WPB-2.1.C Plant Detail'!H1282 -> 521.2 | H16: ='WPB-2.1.C Plant Detail'!H1398 -> 521.2 | I16: ='WPB-2.1.C Plant Detail'!H1514 -> 521.2 | J16: ='WPB-2.1.C Plant Detail'!H1630 -> 521.2 | K16: ='WPB-2.1.C Plant Detail'!H1746 -> 521.2 | L16: ='WPB-2.1.C Plant Detail'!H1862 -> 521.2 | M16: ='WPB-2.1.C Plant Detail'!H1978 -> 521.2 | N16: ='WPB-2.1.C Plant Detail'!H2094 -> 521.2 | O16: ='WPB-2.1.C Plant Detail'!H2210 -> 521.2
A17: =IF(ISBLANK($B17),"",COUNTA($B$15:B17)) -> 3 | B17: 303 | C17: MISCELLANEOUS INTANGIBLE PLANT | D17: ='WPB-2.1.C Plant Detail'!H935 -> 81146.9 | E17: ='WPB-2.1.C Plant Detail'!H1051 -> 81146.9 | F17: ='WPB-2.1.C Plant Detail'!H1167 -> 81146.9 | G17: ='WPB-2.1.C Plant Detail'!H1283 -> 81146.9 | H17: ='WPB-2.1.C Plant Detail'!H1399 -> 67762.63 | I17: ='WPB-2.1.C Plant Detail'!H1515 -> 67762.63 | J17: ='WPB-2.1.C Plant Detail'!H1631 -> 67762.63 | K17: ='WPB-2.1.C Plant Detail'!H1747 -> 67762.63 | L17: ='WPB-2.1.C Plant Detail'!H1863 -> 67762.63 | M17: ='WPB-2.1.C Plant Detail'!H1979 -> 67762.63 | N17: ='WPB-2.1.C Plant Detail'!H2095 -> 67762.63 | O17: ='WPB-2.1.C Plant Detail'!H2211 -> 67762.63
A18: =IF(ISBLANK($B18),"",COUNTA($B$15:B18)) -> 4 | B18: 303.3 | C18: MISC INTANGIBLE PLANT-OTHER SOFTWARE | D18: ='WPB-2.1.C Plant Detail'!H936 -> 15804688.42 | E18: ='WPB-2.1.C Plant Detail'!H1052 -> 15794973.36 | F18: ='WPB-2.1.C Plant Detail'!H1168 -> 16290455.75 | G18: ='WPB-2.1.C Plant Detail'!H1284 -> 17727430.67 | H18: ='WPB-2.1.C Plant Detail'!H1400 -> 17580511.78 | I18: ='WPB-2.1.C Plant Detail'!H1516 -> 17686932.8 | J18: ='WPB-2.1.C Plant Detail'!H1632 -> 17928189.29 | K18: ='WPB-2.1.C Plant Detail'!H1748 -> 17888190.83 | L18: ='WPB-2.1.C Plant Detail'!H1864 -> 17220545.13 | M18: ='WPB-2.1.C Plant Detail'!H1980 -> 17332034.2 | N18: ='WPB-2.1.C Plant Detail'!H2096 -> 17012216.3 | O18: ='WPB-2.1.C Plant Detail'!H2212 -> 17043376.7
A19: =IF(ISBLANK($B19),"",COUNTA($B$15:B19)) -> 5 | B19: 303.99 | C19: MISC INTANGIBLE PLANT-CLOUD SOFTWARE | D19: ='WPB-2.1.C Plant Detail'!H937 -> 6097827.56 | E19: ='WPB-2.1.C Plant Detail'!H1053 -> 6087809.5 | F19: ='WPB-2.1.C Plant Detail'!H1169 -> 6106449.31 | G19: ='WPB-2.1.C Plant Detail'!H1285 -> 6526435.53 | H19: ='WPB-2.1.C Plant Detail'!H1401 -> 6755698.17 | I19: ='WPB-2.1.C Plant Detail'!H1517 -> 6875462.65 | J19: ='WPB-2.1.C Plant Detail'!H1633 -> 7241359.532 | K19: ='WPB-2.1.C Plant Detail'!H1749 -> 7449026.252 | L19: ='WPB-2.1.C Plant Detail'!H1865 -> 7663586.922 | M19: ='WPB-2.1.C Plant Detail'!H1981 -> 7828524.715 | N19: ='WPB-2.1.C Plant Detail'!H2097 -> 7297633.401 | O19: ='WPB-2.1.C Plant Detail'!H2213 -> 7530279.677
A20: =IF(ISBLANK($B20),"",COUNTA($B$15:B20)) -> 6 | B20: TOTAL INTANGIBLE PLANT | D20: =SUM(D16:D19) -> 21984184.08 | E20: 21964450.96 | F20: 22478573.16 | G20: 24335534.3 | H20: 24404493.78 | I20: 24630679.28 | J20: 25237832.65 | K20: 25405500.92 | L20: 24952415.89 | M20: 25228842.74 | N20: 24378133.53 | O20: 24641940.21
A21: =IF(ISBLANK($B21),"",COUNTA($B$15:B21)) -> 
A22: =IF(ISBLANK($B22),"",COUNTA($B$15:B22)) -> 7 | B22: DISTRIBUTION PLANT (LESS SMRP)
A23: =IF(ISBLANK($B23),"",COUNTA($B$15:B23)) -> 8 | B23: 374.1 | C23: LAND-CITY GATE & MAIN LINE IND. M & R | D23: ='WPB-2.1.C Plant Detail'!H941 -> 865477.56 | E23: ='WPB-2.1.C Plant Detail'!H1057 -> 865477.56 | F23: ='WPB-2.1.C Plant Detail'!H1173 -> 865477.56 | G23: ='WPB-2.1.C Plant Detail'!H1289 -> 865477.56 | H23: ='WPB-2.1.C Plant Detail'!H1405 -> 865477.56 | I23: ='WPB-2.1.C Plant Detail'!H1521 -> 865477.56 | J23: ='WPB-2.1.C Plant Detail'!H1637 -> 865477.56 | K23: ='WPB-2.1.C Plant Detail'!H1753 -> 865477.56 | L23: ='WPB-2.1.C Plant Detail'!H1869 -> 865477.56 | M23: ='WPB-2.1.C Plant Detail'!H1985 -> 865477.56 | N23: ='WPB-2.1.C Plant Detail'!H2101 -> 865477.56 | O23: ='WPB-2.1.C Plant Detail'!H2217 -> 865477.56
A24: =IF(ISBLANK($B24),"",COUNTA($B$15:B24)) -> 9 | B24: 374.2 | C24: LAND-OTHER DISTRIBUTION SYSTEMS | D24: ='WPB-2.1.C Plant Detail'!H942 -> 3833328.27 | E24: ='WPB-2.1.C Plant Detail'!H1058 -> 3833328.27 | F24: ='WPB-2.1.C Plant Detail'!H1174 -> 3833328.27 | G24: ='WPB-2.1.C Plant Detail'!H1290 -> 3833328.27 | H24: ='WPB-2.1.C Plant Detail'!H1406 -> 3833328.27 | I24: ='WPB-2.1.C Plant Detail'!H1522 -> 3833328.27 | J24: ='WPB-2.1.C Plant Detail'!H1638 -> 3843975.595 | K24: ='WPB-2.1.C Plant Detail'!H1754 -> 3851597.97 | L24: ='WPB-2.1.C Plant Detail'!H1870 -> 3862247.21 | M24: ='WPB-2.1.C Plant Detail'!H1986 -> 3867375.41 | N24: ='WPB-2.1.C Plant Detail'!H2102 -> 3875294.515 | O24: ='WPB-2.1.C Plant Detail'!H2218 -> 3882282.255
A25: =IF(ISBLANK($B25),"",COUNTA($B$15:B25)) -> 10 | B25: 374.4 | C25: LAND RIGHTS-OTHER DISTR SYSTEMS | D25: ='WPB-2.1.C Plant Detail'!H943 -> 0 | E25: ='WPB-2.1.C Plant Detail'!H1059 -> 0 | F25: ='WPB-2.1.C Plant Detail'!H1175 -> 0 | G25: ='WPB-2.1.C Plant Detail'!H1291 -> 0 | H25: ='WPB-2.1.C Plant Detail'!H1407 -> 0 | I25: ='WPB-2.1.C Plant Detail'!H1523 -> 0 | J25: ='WPB-2.1.C Plant Detail'!H1639 -> 0 | K25: ='WPB-2.1.C Plant Detail'!H1755 -> 0 | L25: ='WPB-2.1.C Plant Detail'!H1871 -> 0 | M25: ='WPB-2.1.C Plant Detail'!H1987 -> 0 | N25: ='WPB-2.1.C Plant Detail'!H2103 -> 0 | O25: ='WPB-2.1.C Plant Detail'!H2219 -> 0
A26: =IF(ISBLANK($B26),"",COUNTA($B$15:B26)) -> 11 | B26: 374.5 | C26: RIGHTS OF WAY | D26: ='WPB-2.1.C Plant Detail'!H944 -> 2692648.63 | E26: ='WPB-2.1.C Plant Detail'!H1060 -> 2692648.63 | F26: ='WPB-2.1.C Plant Detail'!H1176 -> 2692648.63 | G26: ='WPB-2.1.C Plant Detail'!H1292 -> 2692648.63 | H26: ='WPB-2.1.C Plant Detail'!H1408 -> 2692648.63 | I26: ='WPB-2.1.C Plant Detail'!H1524 -> 2692648.63 | J26: ='WPB-2.1.C Plant Detail'!H1640 -> 2692648.63 | K26: ='WPB-2.1.C Plant Detail'!H1756 -> 2692648.63 | L26: ='WPB-2.1.C Plant Detail'!H1872 -> 2692648.63 | M26: ='WPB-2.1.C Plant Detail'!H1988 -> 2692648.63 | N26: ='WPB-2.1.C Plant Detail'!H2104 -> 2692648.63 | O26: ='WPB-2.1.C Plant Detail'!H2220 -> 2692648.63
A27: =IF(ISBLANK($B27),"",COUNTA($B$15:B27)) -> 12 | B27: 375 | C27: REGULATING STRUCTURES | D27: ='WPB-2.1.C Plant Detail'!H945 -> 3341988.78 | E27: ='WPB-2.1.C Plant Detail'!H1061 -> 3481799.7 | F27: ='WPB-2.1.C Plant Detail'!H1177 -> 3481799.7 | G27: ='WPB-2.1.C Plant Detail'!H1293 -> 3481799.7 | H27: ='WPB-2.1.C Plant Detail'!H1409 -> 3481799.7 | I27: ='WPB-2.1.C Plant Detail'!H1525 -> 3481799.7 | J27: ='WPB-2.1.C Plant Detail'!H1641 -> 3495613.277 | K27: ='WPB-2.1.C Plant Detail'!H1757 -> 3505515.806 | L27: ='WPB-2.1.C Plant Detail'!H1873 -> 3519331.859 | M27: ='WPB-2.1.C Plant Detail'!H1989 -> 3526009.598 | N27: ='WPB-2.1.C Plant Detail'!H2105 -> 3536295.778 | O27: ='WPB-2.1.C Plant Detail'!H2221 -> 3545377.771
A28: =IF(ISBLANK($B28),"",COUNTA($B$15:B28)) -> 13 | B28: 375.2 | C28: STRUC & IMPROV-CITY GATE M & R | D28: ='WPB-2.1.C Plant Detail'!H946 -> 0 | E28: ='WPB-2.1.C Plant Detail'!H1062 -> 0 | F28: ='WPB-2.1.C Plant Detail'!H1178 -> 0 | G28: ='WPB-2.1.C Plant Detail'!H1294 -> 0 | H28: ='WPB-2.1.C Plant Detail'!H1410 -> 0 | I28: ='WPB-2.1.C Plant Detail'!H1526 -> 0 | J28: ='WPB-2.1.C Plant Detail'!H1642 -> 0 | K28: ='WPB-2.1.C Plant Detail'!H1758 -> 0 | L28: ='WPB-2.1.C Plant Detail'!H1874 -> 0 | M28: ='WPB-2.1.C Plant Detail'!H1990 -> 0 | N28: ='WPB-2.1.C Plant Detail'!H2106 -> 0 | O28: ='WPB-2.1.C Plant Detail'!H2222 -> 0
A29: =IF(ISBLANK($B29),"",COUNTA($B$15:B29)) -> 14 | B29: 375.3 | C29: STRUC & IMPROV-GENERAL M & R | D29: ='WPB-2.1.C Plant Detail'!H947 -> 0 | E29: ='WPB-2.1.C Plant Detail'!H1063 -> 0 | F29: ='WPB-2.1.C Plant Detail'!H1179 -> 0 | G29: ='WPB-2.1.C Plant Detail'!H1295 -> 0 | H29: ='WPB-2.1.C Plant Detail'!H1411 -> 0 | I29: ='WPB-2.1.C Plant Detail'!H1527 -> 0 | J29: ='WPB-2.1.C Plant Detail'!H1643 -> 0 | K29: ='WPB-2.1.C Plant Detail'!H1759 -> 0 | L29: ='WPB-2.1.C Plant Detail'!H1875 -> 0 | M29: ='WPB-2.1.C Plant Detail'!H1991 -> 0 | N29: ='WPB-2.1.C Plant Detail'!H2107 -> 0 | O29: ='WPB-2.1.C Plant Detail'!H2223 -> 0
A30: =IF(ISBLANK($B30),"",COUNTA($B$15:B30)) -> 15 | B30: 375.4 | C30: STRUC & IMPROV-REGULATING | D30: ='WPB-2.1.C Plant Detail'!H948 -> 0 | E30: ='WPB-2.1.C Plant Detail'!H1064 -> 0 | F30: ='WPB-2.1.C Plant Detail'!H1180 -> 0 | G30: ='WPB-2.1.C Plant Detail'!H1296 -> 0 | H30: ='WPB-2.1.C Plant Detail'!H1412 -> 0 | I30: ='WPB-2.1.C Plant Detail'!H1528 -> 0 | J30: ='WPB-2.1.C Plant Detail'!H1644 -> 0 | K30: ='WPB-2.1.C Plant Detail'!H1760 -> 0 | L30: ='WPB-2.1.C Plant Detail'!H1876 -> 0 | M30: ='WPB-2.1.C Plant Detail'!H1992 -> 0 | N30: ='WPB-2.1.C Plant Detail'!H2108 -> 0 | O30: ='WPB-2.1.C Plant Detail'!H2224 -> 0
A31: =IF(ISBLANK($B31),"",COUNTA($B$15:B31)) -> 16 | B31: 375.6 | C31: STRUC & IMPROV-DISTR. IND. M & R | D31: ='WPB-2.1.C Plant Detail'!H949 -> 0 | E31: ='WPB-2.1.C Plant Detail'!H1065 -> 0 | F31: ='WPB-2.1.C Plant Detail'!H1181 -> 0 | G31: ='WPB-2.1.C Plant Detail'!H1297 -> 0 | H31: ='WPB-2.1.C Plant Detail'!H1413 -> 0 | I31: ='WPB-2.1.C Plant Detail'!H1529 -> 0 | J31: ='WPB-2.1.C Plant Detail'!H1645 -> 0 | K31: ='WPB-2.1.C Plant Detail'!H1761 -> 0 | L31: ='WPB-2.1.C Plant Detail'!H1877 -> 0 | M31: ='WPB-2.1.C Plant Detail'!H1993 -> 0 | N31: ='WPB-2.1.C Plant Detail'!H2109 -> 0 | O31: ='WPB-2.1.C Plant Detail'!H2225 -> 0
A32: =IF(ISBLANK($B32),"",COUNTA($B$15:B32)) -> 17 | B32: 375.7 | C32: STRUC & IMPROV-OTHER DISTR. SYSTEMS | D32: ='WPB-2.1.C Plant Detail'!H950 -> 9463099.47 | E32: ='WPB-2.1.C Plant Detail'!H1066 -> 9463099.47 | F32: ='WPB-2.1.C Plant Detail'!H1182 -> 9463099.47 | G32: ='WPB-2.1.C Plant Detail'!H1298 -> 9466014.47 | H32: ='WPB-2.1.C Plant Detail'!H1414 -> 9466014.47 | I32: ='WPB-2.1.C Plant Detail'!H1530 -> 9466014.47 | J32: ='WPB-2.1.C Plant Detail'!H1646 -> 9466014.47 | K32: ='WPB-2.1.C Plant Detail'!H1762 -> 9466014.47 | L32: ='WPB-2.1.C Plant Detail'!H1878 -> 9466014.47 | M32: ='WPB-2.1.C Plant Detail'!H1994 -> 9466014.47 | N32: ='WPB-2.1.C Plant Detail'!H2110 -> 9466014.47 | O32: ='WPB-2.1.C Plant Detail'!H2226 -> 9466014.47
A33: =IF(ISBLANK($B33),"",COUNTA($B$15:B33)) -> 18 | B33: 375.71 | C33: STRUC & IMPROV-OTHER DISTR SYS-ILP | D33: ='WPB-2.1.C Plant Detail'!H951 -> 707587.8 | E33: ='WPB-2.1.C Plant Detail'!H1067 -> 707587.8 | F33: ='WPB-2.1.C Plant Detail'!H1183 -> 707587.8 | G33: ='WPB-2.1.C Plant Detail'!H1299 -> 707587.8 | H33: ='WPB-2.1.C Plant Detail'!H1415 -> 707587.8 | I33: ='WPB-2.1.C Plant Detail'!H1531 -> 707587.8 | J33: ='WPB-2.1.C Plant Detail'!H1647 -> 707587.8 | K33: ='WPB-2.1.C Plant Detail'!H1763 -> 707587.8 | L33: ='WPB-2.1.C Plant Detail'!H1879 -> 707587.8 | M33: ='WPB-2.1.C Plant Detail'!H1995 -> 707587.8 | N33: ='WPB-2.1.C Plant Detail'!H2111 -> 707587.8 | O33: ='WPB-2.1.C Plant Detail'!H2227 -> 707587.8
A34: =IF(ISBLANK($B34),"",COUNTA($B$15:B34)) -> 19 | B34: 375.8 | C34: STRUC & IMPROV-COMMUNICATIONS | D34: ='WPB-2.1.C Plant Detail'!H952 -> 132125.04 | E34: ='WPB-2.1.C Plant Detail'!H1068 -> 132125.04 | F34: ='WPB-2.1.C Plant Detail'!H1184 -> 132125.04 | G34: ='WPB-2.1.C Plant Detail'!H1300 -> 132125.04 | H34: ='WPB-2.1.C Plant Detail'!H1416 -> 132125.04 | I34: ='WPB-2.1.C Plant Detail'!H1532 -> 132125.04 | J34: ='WPB-2.1.C Plant Detail'!H1648 -> 132125.04 | K34: ='WPB-2.1.C Plant Detail'!H1764 -> 132125.04 | L34: ='WPB-2.1.C Plant Detail'!H1880 -> 132125.04 | M34: ='WPB-2.1.C Plant Detail'!H1996 -> 132125.04 | N34: ='WPB-2.1.C Plant Detail'!H2112 -> 132125.04 | O34: ='WPB-2.1.C Plant Detail'!H2228 -> 132125.04
A35: =IF(ISBLANK($B35),"",COUNTA($B$15:B35)) -> 20 | B35: 376 | C35: MAINS (LESS SMRP) | D35: ='WPB-2.1.C Plant Detail'!H953 -> 485539957.9 | E35: ='WPB-2.1.C Plant Detail'!H1069 -> 488083439.1 | F35: ='WPB-2.1.C Plant Detail'!H1185 -> 489528416.4 | G35: ='WPB-2.1.C Plant Detail'!H1301 -> 491861725.3 | H35: ='WPB-2.1.C Plant Detail'!H1417 -> 492184239.4 | I35: ='WPB-2.1.C Plant Detail'!H1533 -> 492587405.9 | J35: ='WPB-2.1.C Plant Detail'!H1649 -> 492137394 | K35: ='WPB-2.1.C Plant Detail'!H1765 -> 493620741 | L35: ='WPB-2.1.C Plant Detail'!H1881 -> 494867680.6 | M35: ='WPB-2.1.C Plant Detail'!H1997 -> 493545168.8 | N35: ='WPB-2.1.C Plant Detail'!H2113 -> 493769764.5 | O35: ='WPB-2.1.C Plant Detail'!H2229 -> 494750544.3
A36: =IF(ISBLANK($B36),"",COUNTA($B$15:B36)) -> 21 | B36: 378 | C36: M & R STATION EQUIP-REG (LESS SMRP) | D36: ='WPB-2.1.C Plant Detail'!H954 -> 29895381.44 | E36: ='WPB-2.1.C Plant Detail'!H1070 -> 30100127.48 | F36: ='WPB-2.1.C Plant Detail'!H1186 -> 30100139.24 | G36: ='WPB-2.1.C Plant Detail'!H1302 -> 30248192.84 | H36: ='WPB-2.1.C Plant Detail'!H1418 -> 30248192.84 | I36: ='WPB-2.1.C Plant Detail'!H1534 -> 30248192.84 | J36: ='WPB-2.1.C Plant Detail'!H1650 -> 30485936.27 | K36: ='WPB-2.1.C Plant Detail'!H1766 -> 30648599.52 | L36: ='WPB-2.1.C Plant Detail'!H1882 -> 30905339.94 | M36: ='WPB-2.1.C Plant Detail'!H1998 -> 31064983.86 | N36: ='WPB-2.1.C Plant Detail'!H2114 -> 31278455.2 | O36: ='WPB-2.1.C Plant Detail'!H2230 -> 31463900.21
A37: =IF(ISBLANK($B37),"",COUNTA($B$15:B37)) -> 22 | B37: 378.1 | C37: M & R STATION EQUIP-GENERAL | D37: ='WPB-2.1.C Plant Detail'!H955 -> 0 | E37: ='WPB-2.1.C Plant Detail'!H1071 -> 0 | F37: ='WPB-2.1.C Plant Detail'!H1187 -> 0 | G37: ='WPB-2.1.C Plant Detail'!H1303 -> 0 | H37: ='WPB-2.1.C Plant Detail'!H1419 -> 0 | I37: ='WPB-2.1.C Plant Detail'!H1535 -> 0 | J37: ='WPB-2.1.C Plant Detail'!H1651 -> 0 | K37: ='WPB-2.1.C Plant Detail'!H1767 -> 0 | L37: ='WPB-2.1.C Plant Detail'!H1883 -> 0 | M37: ='WPB-2.1.C Plant Detail'!H1999 -> 0 | N37: ='WPB-2.1.C Plant Detail'!H2115 -> 0 | O37: ='WPB-2.1.C Plant Detail'!H2231 -> 0
A38: =IF(ISBLANK($B38),"",COUNTA($B$15:B38)) -> 23 | B38: 378.2 | C38: M & R STA EQUIP-GENERAL-REGULATING (LESS SMRP) | D38: ='WPB-2.1.C Plant Detail'!H956 -> 0 | E38: ='WPB-2.1.C Plant Detail'!H1072 -> 0 | F38: ='WPB-2.1.C Plant Detail'!H1188 -> 0 | G38: ='WPB-2.1.C Plant Detail'!H1304 -> 0 | H38: ='WPB-2.1.C Plant Detail'!H1420 -> 0 | I38: ='WPB-2.1.C Plant Detail'!H1536 -> 0 | J38: ='WPB-2.1.C Plant Detail'!H1652 -> 0 | K38: ='WPB-2.1.C Plant Detail'!H1768 -> 0 | L38: ='WPB-2.1.C Plant Detail'!H1884 -> 0 | M38: ='WPB-2.1.C Plant Detail'!H2000 -> 0 | N38: ='WPB-2.1.C Plant Detail'!H2116 -> 0 | O38: ='WPB-2.1.C Plant Detail'!H2232 -> 0
A39: =IF(ISBLANK($B39),"",COUNTA($B$15:B39)) -> 24 | B39: 378.3 | C39: M & R STA EQUIP-GEN-LOCAL GAS PURCH | D39: ='WPB-2.1.C Plant Detail'!H957 -> 0 | E39: ='WPB-2.1.C Plant Detail'!H1073 -> 0 | F39: ='WPB-2.1.C Plant Detail'!H1189 -> 0 | G39: ='WPB-2.1.C Plant Detail'!H1305 -> 0 | H39: ='WPB-2.1.C Plant Detail'!H1421 -> 0 | I39: ='WPB-2.1.C Plant Detail'!H1537 -> 0 | J39: ='WPB-2.1.C Plant Detail'!H1653 -> 0 | K39: ='WPB-2.1.C Plant Detail'!H1769 -> 0 | L39: ='WPB-2.1.C Plant Detail'!H1885 -> 0 | M39: ='WPB-2.1.C Plant Detail'!H2001 -> 0 | N39: ='WPB-2.1.C Plant Detail'!H2117 -> 0 | O39: ='WPB-2.1.C Plant Detail'!H2233 -> 0
A40: =IF(ISBLANK($B40),"",COUNTA($B$15:B40)) -> 25 | B40: 379 | C40: M & R STA EQUIP-CITY GATE CHECK STA | D40: ='WPB-2.1.C Plant Detail'!H958 -> 1555047.87 | E40: ='WPB-2.1.C Plant Detail'!H1074 -> 1555047.87 | F40: ='WPB-2.1.C Plant Detail'!H1190 -> 1555047.87 | G40: ='WPB-2.1.C Plant Detail'!H1306 -> 1555047.87 | H40: ='WPB-2.1.C Plant Detail'!H1422 -> 1555047.87 | I40: ='WPB-2.1.C Plant Detail'!H1538 -> 1555047.87 | J40: ='WPB-2.1.C Plant Detail'!H1654 -> 1555047.87 | K40: ='WPB-2.1.C Plant Detail'!H1770 -> 1555047.87 | L40: ='WPB-2.1.C Plant Detail'!H1886 -> 1555047.87 | M40: ='WPB-2.1.C Plant Detail'!H2002 -> 1555047.87 | N40: ='WPB-2.1.C Plant Detail'!H2118 -> 1555047.87 | O40: ='WPB-2.1.C Plant Detail'!H2234 -> 1555047.87
A41: =IF(ISBLANK($B41),"",COUNTA($B$15:B41)) -> 26 | B41: 379.1 | C41: M & R STA EQUIP-CITY GATE CHECK STA | D41: ='WPB-2.1.C Plant Detail'!H959 -> 0 | E41: ='WPB-2.1.C Plant Detail'!H1075 -> 0 | F41: ='WPB-2.1.C Plant Detail'!H1191 -> 0 | G41: ='WPB-2.1.C Plant Detail'!H1307 -> 0 | H41: ='WPB-2.1.C Plant Detail'!H1423 -> 0 | I41: ='WPB-2.1.C Plant Detail'!H1539 -> 0 | J41: ='WPB-2.1.C Plant Detail'!H1655 -> 0 | K41: ='WPB-2.1.C Plant Detail'!H1771 -> 0 | L41: ='WPB-2.1.C Plant Detail'!H1887 -> 0 | M41: ='WPB-2.1.C Plant Detail'!H2003 -> 0 | N41: ='WPB-2.1.C Plant Detail'!H2119 -> 0 | O41: ='WPB-2.1.C Plant Detail'!H2235 -> 0
A42: =IF(ISBLANK($B42),"",COUNTA($B$15:B42)) -> 27 | B42: 380 | C42: SERVICES (LESS SMRP) | D42: ='WPB-2.1.C Plant Detail'!H960 -> 237773142.4 | E42: ='WPB-2.1.C Plant Detail'!H1076 -> 239511542.4 | F42: ='WPB-2.1.C Plant Detail'!H1192 -> 240741528.2 | G42: ='WPB-2.1.C Plant Detail'!H1308 -> 242167985.1 | H42: ='WPB-2.1.C Plant Detail'!H1424 -> 243940302.1 | I42: ='WPB-2.1.C Plant Detail'!H1540 -> 245924516.1 | J42: ='WPB-2.1.C Plant Detail'!H1656 -> 246405944.7 | K42: ='WPB-2.1.C Plant Detail'!H1772 -> 246225612.3 | L42: ='WPB-2.1.C Plant Detail'!H1888 -> 246525050 | M42: ='WPB-2.1.C Plant Detail'!H2004 -> 245773847.4 | N42: ='WPB-2.1.C Plant Detail'!H2120 -> 245742689.3 | O42: ='WPB-2.1.C Plant Detail'!H2236 -> 244154574.2
A43: =IF(ISBLANK($B43),"",COUNTA($B$15:B43)) -> 28 | B43: 381 | C43: METERS | D43: ='WPB-2.1.C Plant Detail'!H961 -> 18942531.7 | E43: ='WPB-2.1.C Plant Detail'!H1077 -> 19017282.41 | F43: ='WPB-2.1.C Plant Detail'!H1193 -> 19209516.62 | G43: ='WPB-2.1.C Plant Detail'!H1309 -> 19673802.11 | H43: ='WPB-2.1.C Plant Detail'!H1425 -> 19698308.44 | I43: ='WPB-2.1.C Plant Detail'!H1541 -> 19786552.62 | J43: ='WPB-2.1.C Plant Detail'!H1657 -> 19932000.47 | K43: ='WPB-2.1.C Plant Detail'!H1773 -> 20026408.89 | L43: ='WPB-2.1.C Plant Detail'!H1889 -> 20171889.04 | M43: ='WPB-2.1.C Plant Detail'!H2005 -> 20224213.71 | N43: ='WPB-2.1.C Plant Detail'!H2121 -> 20323628.8 | O43: ='WPB-2.1.C Plant Detail'!H2237 -> 20242926.56
A44: =IF(ISBLANK($B44),"",COUNTA($B$15:B44)) -> 29 | B44: 381.1 | C44: METERS - AMR | D44: ='WPB-2.1.C Plant Detail'!H962 -> 7992482.67 | E44: ='WPB-2.1.C Plant Detail'!H1078 -> 8013840.68 | F44: ='WPB-2.1.C Plant Detail'!H1194 -> 8016140.71 | G44: ='WPB-2.1.C Plant Detail'!H1310 -> 8016140.71 | H44: ='WPB-2.1.C Plant Detail'!H1426 -> 8016140.71 | I44: ='WPB-2.1.C Plant Detail'!H1542 -> 8252969.39 | J44: ='WPB-2.1.C Plant Detail'!H1658 -> 8252969.39 | K44: ='WPB-2.1.C Plant Detail'!H1774 -> 8252969.39 | L44: ='WPB-2.1.C Plant Detail'!H1890 -> 8252969.39 | M44: ='WPB-2.1.C Plant Detail'!H2006 -> 8252969.39 | N44: ='WPB-2.1.C Plant Detail'!H2122 -> 8252969.39 | O44: ='WPB-2.1.C Plant Detail'!H2238 -> 8252969.39
A45: =IF(ISBLANK($B45),"",COUNTA($B$15:B45)) -> 30 | B45: 382 | C45: METER INSTALLATIONS (LESS SMRP) | D45: ='WPB-2.1.C Plant Detail'!H963 -> 11295328.35 | E45: ='WPB-2.1.C Plant Detail'!H1079 -> 11350755.73 | F45: ='WPB-2.1.C Plant Detail'!H1195 -> 11356845.67 | G45: ='WPB-2.1.C Plant Detail'!H1311 -> 12612296.14 | H45: ='WPB-2.1.C Plant Detail'!H1427 -> 12620802.16 | I45: ='WPB-2.1.C Plant Detail'!H1543 -> 13589847.8 | J45: ='WPB-2.1.C Plant Detail'!H1659 -> 13482225.82 | K45: ='WPB-2.1.C Plant Detail'!H1775 -> 13388566.55 | L45: ='WPB-2.1.C Plant Detail'!H1891 -> 13281139.52 | M45: ='WPB-2.1.C Plant Detail'!H2007 -> 13177391.85 | N45: ='WPB-2.1.C Plant Detail'!H2123 -> 13077279.34 | O45: ='WPB-2.1.C Plant Detail'!H2239 -> 12936268.66
A46: =IF(ISBLANK($B46),"",COUNTA($B$15:B46)) -> 31 | B46: 383 | C46: HOUSE REGULATORS (LESS SMRP) | D46: ='WPB-2.1.C Plant Detail'!H964 -> 9825686.06 | E46: ='WPB-2.1.C Plant Detail'!H1080 -> 9853399.73 | F46: ='WPB-2.1.C Plant Detail'!H1196 -> 9856444.69 | G46: ='WPB-2.1.C Plant Detail'!H1312 -> 9736987.01 | H46: ='WPB-2.1.C Plant Detail'!H1428 -> 9816365.87 | I46: ='WPB-2.1.C Plant Detail'!H1544 -> 9822183.74 | J46: ='WPB-2.1.C Plant Detail'!H1660 -> 9812848.738 | K46: ='WPB-2.1.C Plant Detail'!H1776 -> 9793480.241 | L46: ='WPB-2.1.C Plant Detail'!H1892 -> 9806748.189 | M46: ='WPB-2.1.C Plant Detail'!H2008 -> 9782309.048 | N46: ='WPB-2.1.C Plant Detail'!H2124 -> 9779571.678 | O46: ='WPB-2.1.C Plant Detail'!H2240 -> 9741313.037
A47: =IF(ISBLANK($B47),"",COUNTA($B$15:B47)) -> 32 | B47: 384 | C47: HOUSE REGULATOR INSTALLATIONS | D47: ='WPB-2.1.C Plant Detail'!H965 -> 0 | E47: ='WPB-2.1.C Plant Detail'!H1081 -> 0 | F47: ='WPB-2.1.C Plant Detail'!H1197 -> 0 | G47: ='WPB-2.1.C Plant Detail'!H1313 -> 0 | H47: ='WPB-2.1.C Plant Detail'!H1429 -> 0 | I47: ='WPB-2.1.C Plant Detail'!H1545 -> 0 | J47: ='WPB-2.1.C Plant Detail'!H1661 -> -37.32236081 | K47: ='WPB-2.1.C Plant Detail'!H1777 -> -75.1661655 | L47: ='WPB-2.1.C Plant Detail'!H1893 -> -112.4881962 | M47: ='WPB-2.1.C Plant Detail'!H2009 -> -150.7619491 | N47: ='WPB-2.1.C Plant Detail'!H2125 -> -188.5546033 | O47: ='WPB-2.1.C Plant Detail'!H2241 -> -226.5078068
A48: =IF(ISBLANK($B48),"",COUNTA($B$15:B48)) -> 33 | B48: 385 | C48: INDUSTRIAL M & R STATION EQUIPMENT | D48: ='WPB-2.1.C Plant Detail'!H966 -> 6282655.52 | E48: ='WPB-2.1.C Plant Detail'!H1082 -> 6282655.52 | F48: ='WPB-2.1.C Plant Detail'!H1198 -> 6282655.52 | G48: ='WPB-2.1.C Plant Detail'!H1314 -> 6644873.89 | H48: ='WPB-2.1.C Plant Detail'!H1430 -> 6644873.89 | I48: ='WPB-2.1.C Plant Detail'!H1546 -> 6644873.89 | J48: ='WPB-2.1.C Plant Detail'!H1662 -> 6678670.948 | K48: ='WPB-2.1.C Plant Detail'!H1778 -> 6702907.741 | L48: ='WPB-2.1.C Plant Detail'!H1894 -> 6736710.851 | M48: ='WPB-2.1.C Plant Detail'!H2010 -> 6753064.882 | N48: ='WPB-2.1.C Plant Detail'!H2126 -> 6778239.481 | O48: ='WPB-2.1.C Plant Detail'!H2242 -> 6800470.533
A49: =IF(ISBLANK($B49),"",COUNTA($B$15:B49)) -> 34 | B49: 387.2 | C49: OTHER EQUIP-ODORIZATION | D49: ='WPB-2.1.C Plant Detail'!H967 -> 0 | E49: ='WPB-2.1.C Plant Detail'!H1083 -> 0 | F49: ='WPB-2.1.C Plant Detail'!H1199 -> 0 | G49: ='WPB-2.1.C Plant Detail'!H1315 -> 0 | H49: ='WPB-2.1.C Plant Detail'!H1431 -> 0 | I49: ='WPB-2.1.C Plant Detail'!H1547 -> 0 | J49: ='WPB-2.1.C Plant Detail'!H1663 -> 0 | K49: ='WPB-2.1.C Plant Detail'!H1779 -> 0 | L49: ='WPB-2.1.C Plant Detail'!H1895 -> 0 | M49: ='WPB-2.1.C Plant Detail'!H2011 -> 0 | N49: ='WPB-2.1.C Plant Detail'!H2127 -> 0 | O49: ='WPB-2.1.C Plant Detail'!H2243 -> 0
A50: =IF(ISBLANK($B50),"",COUNTA($B$15:B50)) -> 35 | B50: 387.4 | C50: OTHER EQUIP-FMV | D50: ='WPB-2.1.C Plant Detail'!H968 -> 0 | E50: ='WPB-2.1.C Plant Detail'!H1084 -> 0 | F50: ='WPB-2.1.C Plant Detail'!H1200 -> 0 | G50: ='WPB-2.1.C Plant Detail'!H1316 -> 0 | H50: ='WPB-2.1.C Plant Detail'!H1432 -> 0 | I50: ='WPB-2.1.C Plant Detail'!H1548 -> 0 | J50: ='WPB-2.1.C Plant Detail'!H1664 -> 0 | K50: ='WPB-2.1.C Plant Detail'!H1780 -> 0 | L50: ='WPB-2.1.C Plant Detail'!H1896 -> 0 | M50: ='WPB-2.1.C Plant Detail'!H2012 -> 0 | N50: ='WPB-2.1.C Plant Detail'!H2128 -> 0 | O50: ='WPB-2.1.C Plant Detail'!H2244 -> 0
A51: =IF(ISBLANK($B51),"",COUNTA($B$15:B51)) -> 36 | B51: 387.41 | C51: OTHER EQUIP-TELEPHONE | D51: ='WPB-2.1.C Plant Detail'!H969 -> 0 | E51: ='WPB-2.1.C Plant Detail'!H1085 -> 0 | F51: ='WPB-2.1.C Plant Detail'!H1201 -> 0 | G51: ='WPB-2.1.C Plant Detail'!H1317 -> 0 | H51: ='WPB-2.1.C Plant Detail'!H1433 -> 0 | I51: ='WPB-2.1.C Plant Detail'!H1549 -> 0 | J51: ='WPB-2.1.C Plant Detail'!H1665 -> 0 | K51: ='WPB-2.1.C Plant Detail'!H1781 -> 0 | L51: ='WPB-2.1.C Plant Detail'!H1897 -> 0 | M51: ='WPB-2.1.C Plant Detail'!H2013 -> 0 | N51: ='WPB-2.1.C Plant Detail'!H2129 -> 0 | O51: ='WPB-2.1.C Plant Detail'!H2245 -> 0
A52: =IF(ISBLANK($B52),"",COUNTA($B$15:B52)) -> 37 | B52: 387.42 | C52: OTHER EQUIPMENT-RADIO | D52: ='WPB-2.1.C Plant Detail'!H970 -> 10361.51 | E52: ='WPB-2.1.C Plant Detail'!H1086 -> 10361.51 | F52: ='WPB-2.1.C Plant Detail'!H1202 -> 10361.51 | G52: ='WPB-2.1.C Plant Detail'!H1318 -> 10361.51 | H52: ='WPB-2.1.C Plant Detail'!H1434 -> 10361.51 | I52: ='WPB-2.1.C Plant Detail'!H1550 -> 10361.51 | J52: ='WPB-2.1.C Plant Detail'!H1666 -> 10361.51 | K52: ='WPB-2.1.C Plant Detail'!H1782 -> 10361.51 | L52: ='WPB-2.1.C Plant Detail'!H1898 -> 10361.51 | M52: ='WPB-2.1.C Plant Detail'!H2014 -> 10361.51 | N52: ='WPB-2.1.C Plant Detail'!H2130 -> 10361.51 | O52: ='WPB-2.1.C Plant Detail'!H2246 -> 10361.51
A53: =IF(ISBLANK($B53),"",COUNTA($B$15:B53)) -> 38 | B53: 387.44 | C53: OTHER EQUIP-OTHER COMMUNICATION | D53: ='WPB-2.1.C Plant Detail'!H971 -> 0 | E53: ='WPB-2.1.C Plant Detail'!H1087 -> 0 | F53: ='WPB-2.1.C Plant Detail'!H1203 -> 0 | G53: ='WPB-2.1.C Plant Detail'!H1319 -> 0 | H53: ='WPB-2.1.C Plant Detail'!H1435 -> 0 | I53: ='WPB-2.1.C Plant Detail'!H1551 -> 0 | J53: ='WPB-2.1.C Plant Detail'!H1667 -> 0 | K53: ='WPB-2.1.C Plant Detail'!H1783 -> 0 | L53: ='WPB-2.1.C Plant Detail'!H1899 -> 0 | M53: ='WPB-2.1.C Plant Detail'!H2015 -> 0 | N53: ='WPB-2.1.C Plant Detail'!H2131 -> 0 | O53: ='WPB-2.1.C Plant Detail'!H2247 -> 0
A54: =IF(ISBLANK($B54),"",COUNTA($B$15:B54)) -> 39 | B54: 387.45 | C54: OTHER EQUIP-TELEMETERING | D54: ='WPB-2.1.C Plant Detail'!H972 -> 2153501.62 | E54: ='WPB-2.1.C Plant Detail'!H1088 -> 1808944.66 | F54: ='WPB-2.1.C Plant Detail'!H1204 -> 1808944.66 | G54: ='WPB-2.1.C Plant Detail'!H1320 -> 1808944.66 | H54: ='WPB-2.1.C Plant Detail'!H1436 -> 1808944.66 | I54: ='WPB-2.1.C Plant Detail'!H1552 -> 1808944.66 | J54: ='WPB-2.1.C Plant Detail'!H1668 -> 1924440.294 | K54: ='WPB-2.1.C Plant Detail'!H1784 -> 2007166.265 | L54: ='WPB-2.1.C Plant Detail'!H1900 -> 2122682.644 | M54: ='WPB-2.1.C Plant Detail'!H2016 -> 2178388.913 | N54: ='WPB-2.1.C Plant Detail'!H2132 -> 2264329.395 | O54: ='WPB-2.1.C Plant Detail'!H2248 -> 2340180.297
A55: =IF(ISBLANK($B55),"",COUNTA($B$15:B55)) -> 40 | B55: 387.46 | C55: OTHER EQUIP-CUST INFO SERVICE | D55: ='WPB-2.1.C Plant Detail'!H973 -> 12269.38 | E55: ='WPB-2.1.C Plant Detail'!H1089 -> 12269.38 | F55: ='WPB-2.1.C Plant Detail'!H1205 -> 12269.38 | G55: ='WPB-2.1.C Plant Detail'!H1321 -> 12269.38 | H55: ='WPB-2.1.C Plant Detail'!H1437 -> 12269.38 | I55: ='WPB-2.1.C Plant Detail'!H1553 -> 12269.38 | J55: ='WPB-2.1.C Plant Detail'!H1669 -> 12269.38 | K55: ='WPB-2.1.C Plant Detail'!H1785 -> 12269.38 | L55: ='WPB-2.1.C Plant Detail'!H1901 -> 12269.38 | M55: ='WPB-2.1.C Plant Detail'!H2017 -> 12269.38 | N55: ='WPB-2.1.C Plant Detail'!H2133 -> 12269.38 | O55: ='WPB-2.1.C Plant Detail'!H2249 -> 12269.38
A56: =IF(ISBLANK($B56),"",COUNTA($B$15:B56)) -> 41 | B56: 387.5 | C56: GPS PIPE LOCATORS | D56: ='WPB-2.1.C Plant Detail'!H974 -> 0 | E56: ='WPB-2.1.C Plant Detail'!H1090 -> 0 | F56: ='WPB-2.1.C Plant Detail'!H1206 -> 0 | G56: ='WPB-2.1.C Plant Detail'!H1322 -> 0 | H56: ='WPB-2.1.C Plant Detail'!H1438 -> 0 | I56: ='WPB-2.1.C Plant Detail'!H1554 -> 0 | J56: ='WPB-2.1.C Plant Detail'!H1670 -> 0 | K56: ='WPB-2.1.C Plant Detail'!H1786 -> 0 | L56: ='WPB-2.1.C Plant Detail'!H1902 -> 0 | M56: ='WPB-2.1.C Plant Detail'!H2018 -> 0 | N56: ='WPB-2.1.C Plant Detail'!H2134 -> 0 | O56: ='WPB-2.1.C Plant Detail'!H2250 -> 0
A57: =IF(ISBLANK($B57),"",COUNTA($B$15:B57)) -> 42 | B57: TOTAL DISTRIBUTION PLANT (LESS SMRP) | D57: =SUM(D23:D42,D43:D56) -> 832314602 | E57: 836775732.9 | F57: 839654377 | G57: 845527608 | H57: 847734830.4 | I57: 851422147.2 | J57: 851893514.4 | K57: 853465022.8 | L57: 855493209.1 | M57: 853587104.4 | N57: 854119861.1 | O57: 853552113
A59: ='General Headers Index'!B3 -> COLUMBIA GAS OF KENTUCKY, INC.
A60: ='General Headers Index'!B5 -> CASE NO. 2026 - 00099
A61: =A3 -> PLANT IN SERVICE BY GAS PLANT ACCOUNT
A62: =A4 -> BASE PERIOD 09/30/2025 TO 08/31/2026
A63: DATA: _X_ BASE PERIOD ___ FORECASTED PERIOD | O63: =O6 -> WPB-2.1.A
A64: ='General Headers Index'!B37 -> TYPE OF FILING:___X___ORIGINAL_______UPDATED | O64: SHEET 2 OF 4
O65: ="WITNESS: "&'General Headers Index'!B46 -> WITNESS: L. BLACK
A67: LINE | B67: ACCT.
A68: NO. | B68: NO. | C68: DESCRIPTION | D68: =D11 -> 09/30/2025 | E68: 10/31/2025 | F68: 11/30/2025 | G68: 12/31/2025 | H68: 01/31/2026 | I68: 02/28/2026 | J68: 03/31/2026 | K68: 04/30/2026 | L68: 05/31/2026 | M68: 06/30/2026 | N68: 07/31/2026 | O68: 08/31/2026
D69: (1) | E69: (2) | F69: (3) | G69: (4) | H69: (5) | I69: (6) | J69: (7) | K69: (8) | L69: (9) | M69: (10) | N69: (11) | O69: (12)
D70: $ | E70: $ | F70: $ | G70: $ | H70: $ | I70: $ | J70: $ | K70: $ | L70: $ | M70: $ | N70: $ | O70: $
A71: =IF(ISBLANK($B71),"",COUNTA($B$43:B71)) -> 
A72: =IF(ISBLANK($B72),"",COUNTA($B$72:B72)) -> 1 | B72: GENERAL PLANT
A73: =IF(ISBLANK($B73),"",COUNTA($B$72:B73)) -> 2 | B73: 391.1 | C73: OFFICE FURN & EQUIP-UNSPECIFIED | D73: ='WPB-2.1.C Plant Detail'!H995 -> 1602374.63 | E73: ='WPB-2.1.C Plant Detail'!H1111 -> 1602374.63 | F73: ='WPB-2.1.C Plant Detail'!H1227 -> 1602374.63 | G73: ='WPB-2.1.C Plant Detail'!H1343 -> 1602374.63 | H73: ='WPB-2.1.C Plant Detail'!H1459 -> 1602374.63 | I73: ='WPB-2.1.C Plant Detail'!H1575 -> 1602374.63 | J73: ='WPB-2.1.C Plant Detail'!H1691 -> 1602374.63 | K73: ='WPB-2.1.C Plant Detail'!H1807 -> 1602374.63 | L73: ='WPB-2.1.C Plant Detail'!H1923 -> 1602374.63 | M73: ='WPB-2.1.C Plant Detail'!H2039 -> 1602374.63 | N73: ='WPB-2.1.C Plant Detail'!H2155 -> 1602374.63 | O73: ='WPB-2.1.C Plant Detail'!H2271 -> 1602374.63
A74: =IF(ISBLANK($B74),"",COUNTA($B$72:B74)) -> 3 | B74: 391.11 | C74: OFFICE FURN & EQUIP-DATA HANDLING | D74: ='WPB-2.1.C Plant Detail'!H996 -> 0 | E74: ='WPB-2.1.C Plant Detail'!H1112 -> 0 | F74: ='WPB-2.1.C Plant Detail'!H1228 -> 0 | G74: ='WPB-2.1.C Plant Detail'!H1344 -> 0 | H74: ='WPB-2.1.C Plant Detail'!H1460 -> 0 | I74: ='WPB-2.1.C Plant Detail'!H1576 -> 0 | J74: ='WPB-2.1.C Plant Detail'!H1692 -> 0 | K74: ='WPB-2.1.C Plant Detail'!H1808 -> 0 | L74: ='WPB-2.1.C Plant Detail'!H1924 -> 0 | M74: ='WPB-2.1.C Plant Detail'!H2040 -> 0 | N74: ='WPB-2.1.C Plant Detail'!H2156 -> 0 | O74: ='WPB-2.1.C Plant Detail'!H2272 -> 0
A75: =IF(ISBLANK($B75),"",COUNTA($B$72:B75)) -> 4 | B75: 391.12 | C75: OFFICE FURN & EQUIP-INFO SYSTEMS | D75: ='WPB-2.1.C Plant Detail'!H997 -> 35927.28 | E75: ='WPB-2.1.C Plant Detail'!H1113 -> 35927.28 | F75: ='WPB-2.1.C Plant Detail'!H1229 -> 591397.48 | G75: ='WPB-2.1.C Plant Detail'!H1345 -> 591397.48 | H75: ='WPB-2.1.C Plant Detail'!H1461 -> 591397.48 | I75: ='WPB-2.1.C Plant Detail'!H1577 -> 591397.48 | J75: ='WPB-2.1.C Plant Detail'!H1693 -> 591397.48 | K75: ='WPB-2.1.C Plant Detail'!H1809 -> 591397.48 | L75: ='WPB-2.1.C Plant Detail'!H1925 -> 591397.48 | M75: ='WPB-2.1.C Plant Detail'!H2041 -> 591397.48 | N75: ='WPB-2.1.C Plant Detail'!H2157 -> 591397.48 | O75: ='WPB-2.1.C Plant Detail'!H2273 -> 591397.48
A76: =IF(ISBLANK($B76),"",COUNTA($B$72:B76)) -> 5 | B76: 392.2 | C76: TRANS EQUIP-TRAILERS OVER $1,000 | D76: ='WPB-2.1.C Plant Detail'!H998 -> 48924.4 | E76: ='WPB-2.1.C Plant Detail'!H1114 -> 48924.4 | F76: ='WPB-2.1.C Plant Detail'!H1230 -> 48924.4 | G76: ='WPB-2.1.C Plant Detail'!H1346 -> 48924.4 | H76: ='WPB-2.1.C Plant Detail'!H1462 -> 48924.4 | I76: ='WPB-2.1.C Plant Detail'!H1578 -> 48924.4 | J76: ='WPB-2.1.C Plant Detail'!H1694 -> 48924.4 | K76: ='WPB-2.1.C Plant Detail'!H1810 -> 48924.4 | L76: ='WPB-2.1.C Plant Detail'!H1926 -> 48924.4 | M76: ='WPB-2.1.C Plant Detail'!H2042 -> 48924.4 | N76: ='WPB-2.1.C Plant Detail'!H2158 -> 48924.4 | O76: ='WPB-2.1.C Plant Detail'!H2274 -> 48924.4
A77: =IF(ISBLANK($B77),"",COUNTA($B$72:B77)) -> 6 | B77: 392.21 | C77: TRANS EQUIP-TRAILERS $1,000 or LESS | D77: ='WPB-2.1.C Plant Detail'!H999 -> 24462.2 | E77: ='WPB-2.1.C Plant Detail'!H1115 -> 24462.2 | F77: ='WPB-2.1.C Plant Detail'!H1231 -> 24462.2 | G77: ='WPB-2.1.C Plant Detail'!H1347 -> 24462.2 | H77: ='WPB-2.1.C Plant Detail'!H1463 -> 24462.2 | I77: ='WPB-2.1.C Plant Detail'!H1579 -> 24462.2 | J77: ='WPB-2.1.C Plant Detail'!H1695 -> 24462.2 | K77: ='WPB-2.1.C Plant Detail'!H1811 -> 24462.2 | L77: ='WPB-2.1.C Plant Detail'!H1927 -> 24462.2 | M77: ='WPB-2.1.C Plant Detail'!H2043 -> 24462.2 | N77: ='WPB-2.1.C Plant Detail'!H2159 -> 24462.2 | O77: ='WPB-2.1.C Plant Detail'!H2275 -> 24462.2
A78: =IF(ISBLANK($B78),"",COUNTA($B$72:B78)) -> 7 | B78: 393 | C78: STORES EQUIPMENT | D78: ='WPB-2.1.C Plant Detail'!H1000 -> 0 | E78: ='WPB-2.1.C Plant Detail'!H1116 -> 0 | F78: ='WPB-2.1.C Plant Detail'!H1232 -> 0 | G78: ='WPB-2.1.C Plant Detail'!H1348 -> 0 | H78: ='WPB-2.1.C Plant Detail'!H1464 -> 0 | I78: ='WPB-2.1.C Plant Detail'!H1580 -> 0 | J78: ='WPB-2.1.C Plant Detail'!H1696 -> 0 | K78: ='WPB-2.1.C Plant Detail'!H1812 -> 0 | L78: ='WPB-2.1.C Plant Detail'!H1928 -> 0 | M78: ='WPB-2.1.C Plant Detail'!H2044 -> 0 | N78: ='WPB-2.1.C Plant Detail'!H2160 -> 0 | O78: ='WPB-2.1.C Plant Detail'!H2276 -> 0
A79: =IF(ISBLANK($B79),"",COUNTA($B$72:B79)) -> 8 | B79: 394.1 | C79: TOOLS,SHOP, & GAR EQ-GARAGE & SERV | D79: ='WPB-2.1.C Plant Detail'!H1001 -> 0 | E79: ='WPB-2.1.C Plant Detail'!H1117 -> 0 | F79: ='WPB-2.1.C Plant Detail'!H1233 -> 0 | G79: ='WPB-2.1.C Plant Detail'!H1349 -> 0 | H79: ='WPB-2.1.C Plant Detail'!H1465 -> 0 | I79: ='WPB-2.1.C Plant Detail'!H1581 -> 0 | J79: ='WPB-2.1.C Plant Detail'!H1697 -> 0 | K79: ='WPB-2.1.C Plant Detail'!H1813 -> 0 | L79: ='WPB-2.1.C Plant Detail'!H1929 -> 0 | M79: ='WPB-2.1.C Plant Detail'!H2045 -> 0 | N79: ='WPB-2.1.C Plant Detail'!H2161 -> 0 | O79: ='WPB-2.1.C Plant Detail'!H2277 -> 0
A80: =IF(ISBLANK($B80),"",COUNTA($B$72:B80)) -> 9 | B80: 394.11 | C80: TOOLS,SHOP, & GAR EQ-CNG STATIONARY | D80: ='WPB-2.1.C Plant Detail'!H1002 -> 0 | E80: ='WPB-2.1.C Plant Detail'!H1118 -> 0 | F80: ='WPB-2.1.C Plant Detail'!H1234 -> 0 | G80: ='WPB-2.1.C Plant Detail'!H1350 -> 0 | H80: ='WPB-2.1.C Plant Detail'!H1466 -> 0 | I80: ='WPB-2.1.C Plant Detail'!H1582 -> 0 | J80: ='WPB-2.1.C Plant Detail'!H1698 -> 0 | K80: ='WPB-2.1.C Plant Detail'!H1814 -> 0 | L80: ='WPB-2.1.C Plant Detail'!H1930 -> 0 | M80: ='WPB-2.1.C Plant Detail'!H2046 -> 0 | N80: ='WPB-2.1.C Plant Detail'!H2162 -> 0 | O80: ='WPB-2.1.C Plant Detail'!H2278 -> 0
A81: =IF(ISBLANK($B81),"",COUNTA($B$72:B81)) -> 10 | B81: 394.13 | C81: TOOLS,SHOP, & GAR EQ-UND TANK CLEANUP | D81: ='WPB-2.1.C Plant Detail'!H1003 -> 0 | E81: ='WPB-2.1.C Plant Detail'!H1119 -> 0 | F81: ='WPB-2.1.C Plant Detail'!H1235 -> 0 | G81: ='WPB-2.1.C Plant Detail'!H1351 -> 0 | H81: ='WPB-2.1.C Plant Detail'!H1467 -> 0 | I81: ='WPB-2.1.C Plant Detail'!H1583 -> 0 | J81: ='WPB-2.1.C Plant Detail'!H1699 -> 0 | K81: ='WPB-2.1.C Plant Detail'!H1815 -> 0 | L81: ='WPB-2.1.C Plant Detail'!H1931 -> 0 | M81: ='WPB-2.1.C Plant Detail'!H2047 -> 0 | N81: ='WPB-2.1.C Plant Detail'!H2163 -> 0 | O81: ='WPB-2.1.C Plant Detail'!H2279 -> 0
A82: =IF(ISBLANK($B82),"",COUNTA($B$72:B82)) -> 11 | B82: 394.2 | C82: TOOLS,SHOP, & GAR EQ-SHOP EQUIP | D82: ='WPB-2.1.C Plant Detail'!H1004 -> 0 | E82: ='WPB-2.1.C Plant Detail'!H1120 -> 0 | F82: ='WPB-2.1.C Plant Detail'!H1236 -> 0 | G82: ='WPB-2.1.C Plant Detail'!H1352 -> 0 | H82: ='WPB-2.1.C Plant Detail'!H1468 -> 0 | I82: ='WPB-2.1.C Plant Detail'!H1584 -> 0 | J82: ='WPB-2.1.C Plant Detail'!H1700 -> 0 | K82: ='WPB-2.1.C Plant Detail'!H1816 -> 0 | L82: ='WPB-2.1.C Plant Detail'!H1932 -> 0 | M82: ='WPB-2.1.C Plant Detail'!H2048 -> 0 | N82: ='WPB-2.1.C Plant Detail'!H2164 -> 0 | O82: ='WPB-2.1.C Plant Detail'!H2280 -> 0
A83: =IF(ISBLANK($B83),"",COUNTA($B$72:B83)) -> 12 | B83: 394.3 | C83: TOOLS,SHOP, & GAR EQ-TOOLS & OTHER | D83: ='WPB-2.1.C Plant Detail'!H1005 -> 6007835.33 | E83: ='WPB-2.1.C Plant Detail'!H1121 -> 6003152.36 | F83: ='WPB-2.1.C Plant Detail'!H1237 -> 6039177.08 | G83: ='WPB-2.1.C Plant Detail'!H1353 -> 6267756.79 | H83: ='WPB-2.1.C Plant Detail'!H1469 -> 6257578.43 | I83: ='WPB-2.1.C Plant Detail'!H1585 -> 6258205.95 | J83: ='WPB-2.1.C Plant Detail'!H1701 -> 6317615.559 | K83: ='WPB-2.1.C Plant Detail'!H1817 -> 6360499.962 | L83: ='WPB-2.1.C Plant Detail'!H1933 -> 6360499.962 | M83: ='WPB-2.1.C Plant Detail'!H2049 -> 6389758.771 | N83: ='WPB-2.1.C Plant Detail'!H2165 -> 6434264.2 | O83: ='WPB-2.1.C Plant Detail'!H2281 -> 6473681.619
A84: =IF(ISBLANK($B84),"",COUNTA($B$72:B84)) -> 13 | B84: 395 | C84: LABORATORY | D84: ='WPB-2.1.C Plant Detail'!H1006 -> 0 | E84: ='WPB-2.1.C Plant Detail'!H1122 -> 0 | F84: ='WPB-2.1.C Plant Detail'!H1238 -> 0 | G84: ='WPB-2.1.C Plant Detail'!H1354 -> 0 | H84: ='WPB-2.1.C Plant Detail'!H1470 -> 0 | I84: ='WPB-2.1.C Plant Detail'!H1586 -> 0 | J84: ='WPB-2.1.C Plant Detail'!H1702 -> 0 | K84: ='WPB-2.1.C Plant Detail'!H1818 -> 0 | L84: ='WPB-2.1.C Plant Detail'!H1934 -> 59420.06978 | M84: ='WPB-2.1.C Plant Detail'!H2050 -> 59420.06978 | N84: ='WPB-2.1.C Plant Detail'!H2166 -> 59420.06978 | O84: ='WPB-2.1.C Plant Detail'!H2282 -> 59420.06978
A85: =IF(ISBLANK($B85),"",COUNTA($B$72:B85)) -> 14 | B85: 396 | C85: POWER OPERATED EQUIP-GENERAL TOOLS | D85: ='WPB-2.1.C Plant Detail'!H1007 -> 185547 | E85: ='WPB-2.1.C Plant Detail'!H1123 -> 185547 | F85: ='WPB-2.1.C Plant Detail'!H1239 -> 185547 | G85: ='WPB-2.1.C Plant Detail'!H1355 -> 185547 | H85: ='WPB-2.1.C Plant Detail'!H1471 -> 185547 | I85: ='WPB-2.1.C Plant Detail'!H1587 -> 185547 | J85: ='WPB-2.1.C Plant Detail'!H1703 -> 185547 | K85: ='WPB-2.1.C Plant Detail'!H1819 -> 185547 | L85: ='WPB-2.1.C Plant Detail'!H1935 -> 185547 | M85: ='WPB-2.1.C Plant Detail'!H2051 -> 185547 | N85: ='WPB-2.1.C Plant Detail'!H2167 -> 185547 | O85: ='WPB-2.1.C Plant Detail'!H2283 -> 185547
A86: =IF(ISBLANK($B86),"",COUNTA($B$72:B86)) -> 15 | B86: 398 | C86: MISCELLANEOUS EQUIPMENT | D86: ='WPB-2.1.C Plant Detail'!H1008 -> 133811.58 | E86: ='WPB-2.1.C Plant Detail'!H1124 -> 133811.58 | F86: ='WPB-2.1.C Plant Detail'!H1240 -> 133811.58 | G86: ='WPB-2.1.C Plant Detail'!H1356 -> 125072.89 | H86: ='WPB-2.1.C Plant Detail'!H1472 -> 121796.43 | I86: ='WPB-2.1.C Plant Detail'!H1588 -> 127397.98 | J86: ='WPB-2.1.C Plant Detail'!H1704 -> 127397.98 | K86: ='WPB-2.1.C Plant Detail'!H1820 -> 127397.98 | L86: ='WPB-2.1.C Plant Detail'!H1936 -> 127397.98 | M86: ='WPB-2.1.C Plant Detail'!H2052 -> 127397.98 | N86: ='WPB-2.1.C Plant Detail'!H2168 -> 127397.98 | O86: ='WPB-2.1.C Plant Detail'!H2284 -> 127397.98
A87: =IF(ISBLANK($B87),"",COUNTA($B$72:B87)) -> 16 | B87: TOTAL GENERAL PLANT | D87: =SUM(D73:D86) -> 8038882.42 | E87: 8034199.45 | F87: 8625694.37 | G87: 8845535.39 | H87: 8832080.57 | I87: 8838309.64 | J87: 8897719.249 | K87: 8940603.652 | L87: 9000023.722 | M87: 9029282.531 | N87: 9073787.96 | O87: 9113205.378
A88: =IF(ISBLANK($B88),"",COUNTA($B$72:B88)) -> 
A89: =IF(ISBLANK($B89),"",COUNTA($B$72:B89)) -> 17 | B89: OTHER PLANT
A90: =IF(ISBLANK($B90),"",COUNTA($B$72:B90)) -> 18 | B90: 378.21 | C90: M & R STA EQUIP REG FMV | D90: ='WPB-2.1.C Plant Detail'!H1012 -> -777092 | E90: ='WPB-2.1.C Plant Detail'!H1128 -> -777092 | F90: ='WPB-2.1.C Plant Detail'!H1244 -> -777092 | G90: ='WPB-2.1.C Plant Detail'!H1360 -> -777092 | H90: ='WPB-2.1.C Plant Detail'!H1476 -> -777092 | I90: ='WPB-2.1.C Plant Detail'!H1592 -> -777092 | J90: ='WPB-2.1.C Plant Detail'!H1708 -> -777092 | K90: ='WPB-2.1.C Plant Detail'!H1824 -> -777092 | L90: ='WPB-2.1.C Plant Detail'!H1940 -> -777092 | M90: ='WPB-2.1.C Plant Detail'!H2056 -> -777092 | N90: ='WPB-2.1.C Plant Detail'!H2172 -> -777092 | O90: ='WPB-2.1.C Plant Detail'!H2288 -> -777092
A91: =IF(ISBLANK($B91),"",COUNTA($B$72:B91)) -> 19 | B91: TOTAL OTHER PLANT | D91: =SUM(D90) -> -777092 | E91: =SUM(E90) -> -777092 | F91: -777092 | G91: -777092 | H91: -777092 | I91: -777092 | J91: -777092 | K91: -777092 | L91: -777092 | M91: -777092 | N91: -777092 | O91: -777092
A92: =IF(ISBLANK($B92),"",COUNTA($B$72:B92)) -> 
A93: =IF(ISBLANK($B93),"",COUNTA($B$72:B93)) -> 20 | B93: TOTAL PLANT (LESS SMRP) | D93: =D20+D57+D87+D91 -> 861560576.5 | E93: 865997291.4 | F93: 869981552.5 | G93: 877931585.7 | H93: 880194312.7 | I93: 884114044.1 | J93: 885251974.3 | K93: 887034035.3 | L93: 888668556.7 | M93: 887068137.7 | N93: 886794690.6 | O93: 886530166.6
A94: =IF(ISBLANK($B94),"",COUNTA($B$72:B94)) -> 
A95: =IF(ISBLANK($B95),"",COUNTA($B$72:B95)) -> 21 | B95: SMRP PLANT
A96: =IF(ISBLANK($B96),"",COUNTA($B$72:B96)) -> 22 | B96: 376 | C96: MAINS | D96: ='WPB-2.1.C Plant Detail'!H1023 -> 16492006.18 | E96: ='WPB-2.1.C Plant Detail'!H1139 -> 20228247.19 | F96: ='WPB-2.1.C Plant Detail'!H1255 -> 25579765.74 | G96: ='WPB-2.1.C Plant Detail'!H1371 -> 31668275.13 | H96: ='WPB-2.1.C Plant Detail'!H1487 -> 32468345.43 | I96: ='WPB-2.1.C Plant Detail'!H1603 -> 33760970.97 | J96: ='WPB-2.1.C Plant Detail'!H1719 -> 37779489.52 | K96: ='WPB-2.1.C Plant Detail'!H1835 -> 38774105.85 | L96: ='WPB-2.1.C Plant Detail'!H1951 -> 41096363.32 | M96: ='WPB-2.1.C Plant Detail'!H2067 -> 43997648.4 | N96: ='WPB-2.1.C Plant Detail'!H2183 -> 46357991.96 | O96: ='WPB-2.1.C Plant Detail'!H2299 -> 47626379.79
A97: =IF(ISBLANK($B97),"",COUNTA($B$72:B97)) -> 23 | B97: 378.2 | C97: M & R STA EQUIP-GENERAL-REGULATING | D97: ='WPB-2.1.C Plant Detail'!H1024 -> -68270.02 | E97: ='WPB-2.1.C Plant Detail'!H1140 -> -68270.02 | F97: ='WPB-2.1.C Plant Detail'!H1256 -> -68270.02 | G97: ='WPB-2.1.C Plant Detail'!H1372 -> -68270.02 | H97: ='WPB-2.1.C Plant Detail'!H1488 -> -68270.02 | I97: ='WPB-2.1.C Plant Detail'!H1604 -> -68270.02 | J97: ='WPB-2.1.C Plant Detail'!H1720 -> -81688.42 | K97: ='WPB-2.1.C Plant Detail'!H1836 -> -83211.82 | L97: ='WPB-2.1.C Plant Detail'!H1952 -> -115587.22 | M97: ='WPB-2.1.C Plant Detail'!H2068 -> -166189.62 | N97: ='WPB-2.1.C Plant Detail'!H2184 -> -212323.02 | O97: ='WPB-2.1.C Plant Detail'!H2300 -> -249884.42
A98: =IF(ISBLANK($B98),"",COUNTA($B$72:B98)) -> 24 | B98: 380 | C98: SERVICES | D98: ='WPB-2.1.C Plant Detail'!H1025 -> 4331007.3 | E98: ='WPB-2.1.C Plant Detail'!H1141 -> 4976412.42 | F98: ='WPB-2.1.C Plant Detail'!H1257 -> 5561026.93 | G98: ='WPB-2.1.C Plant Detail'!H1373 -> 6063034.81 | H98: ='WPB-2.1.C Plant Detail'!H1489 -> 7218735.77 | I98: ='WPB-2.1.C Plant Detail'!H1605 -> 6013844.75 | J98: ='WPB-2.1.C Plant Detail'!H1721 -> 7144157.317 | K98: ='WPB-2.1.C Plant Detail'!H1837 -> 8374925.562 | L98: ='WPB-2.1.C Plant Detail'!H1953 -> 9687584.279 | M98: ='WPB-2.1.C Plant Detail'!H2069 -> 11026407.34 | N98: ='WPB-2.1.C Plant Detail'!H2185 -> 12163061.95 | O98: ='WPB-2.1.C Plant Detail'!H2301 -> 13636344.29
A99: =IF(ISBLANK($B99),"",COUNTA($B$72:B99)) -> 25 | B99: 382 | C99: METER INSTALLATIONS | D99: ='WPB-2.1.C Plant Detail'!H1026 -> 371147.68 | E99: ='WPB-2.1.C Plant Detail'!H1142 -> 468151.91 | F99: ='WPB-2.1.C Plant Detail'!H1258 -> 537669.3 | G99: ='WPB-2.1.C Plant Detail'!H1374 -> 608731.37 | H99: ='WPB-2.1.C Plant Detail'!H1490 -> 744696.2 | I99: ='WPB-2.1.C Plant Detail'!H1606 -> 602944.31 | J99: ='WPB-2.1.C Plant Detail'!H1722 -> 661964.4226 | K99: ='WPB-2.1.C Plant Detail'!H1838 -> 693246.7923 | L99: ='WPB-2.1.C Plant Detail'!H1954 -> 752080.6789 | M99: ='WPB-2.1.C Plant Detail'!H2070 -> 782093.4449 | N99: ='WPB-2.1.C Plant Detail'!H2186 -> 821180.2954 | O99: ='WPB-2.1.C Plant Detail'!H2302 -> 896924.0611
A100: =IF(ISBLANK($B100),"",COUNTA($B$72:B100)) -> 26 | B100: 383 | C100: HOUSE REGULATORS | D100: ='WPB-2.1.C Plant Detail'!H1027 -> 149297.66 | E100: ='WPB-2.1.C Plant Detail'!H1143 -> 176401.3 | F100: ='WPB-2.1.C Plant Detail'!H1259 -> 209635.58 | G100: ='WPB-2.1.C Plant Detail'!H1375 -> 252544.17 | H100: ='WPB-2.1.C Plant Detail'!H1491 -> 320526.57 | I100: ='WPB-2.1.C Plant Detail'!H1607 -> 249650.62 | J100: ='WPB-2.1.C Plant Detail'!H1723 -> 281342.1996 | K100: ='WPB-2.1.C Plant Detail'!H1839 -> 314378.3341 | L100: ='WPB-2.1.C Plant Detail'!H1955 -> 323472.4641 | M100: ='WPB-2.1.C Plant Detail'!H2071 -> 354414.9141 | N100: ='WPB-2.1.C Plant Detail'!H2187 -> 371672.2543 | O100: ='WPB-2.1.C Plant Detail'!H2303 -> 421775.594
A101: =IF(ISBLANK($B101),"",COUNTA($B$72:B101)) -> 27 | B101: TOTAL SMRP PLANT | D101: =SUM(D96:D100) -> 21275188.8 | E101: =SUM(E96:E100) -> 25780942.8 | F101: 31819827.53 | G101: 38524315.46 | H101: 40684033.95 | I101: 40559140.63 | J101: 45785265.04 | K101: 48073444.72 | L101: 51743913.52 | M101: 55994374.48 | N101: 59501583.44 | O101: 62331539.31
A102: =IF(ISBLANK($B102),"",COUNTA($B$72:B102)) -> 
A103: =IF(ISBLANK($B103),"",COUNTA($B$72:B103)) -> 28 | B103: TOTAL GAS PLANT IN SERVICE | D103: =D101+D93 -> 882835765.3 | E103: =E101+E93 -> 891778234.2 | F103: 901801380 | G103: 916455901.2 | H103: 920878346.7 | I103: 924673184.7 | J103: 931037239.4 | K103: 935107480 | L103: 940412470.2 | M103: 943062512.1 | N103: 946296274 | O103: 948861705.9

Sheet WPB-2.1.A 13 mo avg Forecast
A1: ='General Headers Index'!B3 -> COLUMBIA GAS OF KENTUCKY, INC.
A2: ='General Headers Index'!B5 -> CASE NO. 2026 - 00099
A3: ='Index B'!$C$22 -> PLANT IN SERVICE BY GAS PLANT ACCOUNT
A4: ='General Headers Index'!B19 -> FORECASTED TEST PERIOD 12/31/2026 to 12/31/2027
A6: ='General Headers Index'!$B$34 -> DATA:_______BASE PERIOD___X___FORECASTED PERIOD | Q6: ='Index B'!$A$22 -> WPB-2.1.A
A7: ='General Headers Index'!$B$37 -> TYPE OF FILING:___X___ORIGINAL_______UPDATED | Q7: SHEET 3 OF 4
Q8: ="WITNESS: "&'General Headers Index'!B46 -> WITNESS: L. BLACK
A10: LINE | B10: ACCT. | Q10: 13 MONTH
A11: NO. | B11: NO. | C11: DESCRIPTION | D11: 01/31/2026 | E11: 01/31/2027 | F11: 02/28/2027 | G11: 03/31/2027 | H11: 04/30/2027 | I11: 05/31/2027 | J11: 06/30/2027 | K11: 07/31/2027 | L11: 08/31/2027 | M11: 09/30/2027 | N11: 10/31/2027 | O11: 11/30/2027 | P11: 12/31/2027 | Q11: AVERAGE
D12: (1) | E12: (2) | F12: (3) | G12: (4) | H12: (5) | I12: (6) | J12: (7) | K12: (8) | L12: (9) | M12: (10) | N12: (11) | O12: (12) | P12: (13) | Q12: (14)
D13: $ | E13: $ | F13: $ | G13: $ | H13: $ | I13: $ | J13: $ | K13: $ | L13: $ | M13: $ | N13: $ | O13: $ | P13: $ | Q13: $
A15: =IF(ISBLANK($B15),"",COUNTA($B$15:B15)) -> 1 | B15: INTANGIBLE PLANT
A16: =IF(ISBLANK($B16),"",COUNTA($B$15:B16)) -> 2 | B16: 301 | C16: ORGANIZATION | D16: ='WPB-2.1.C Plant Detail'!H2674 -> 521.2 | E16: ='WPB-2.1.C Plant Detail'!H2790 -> 521.2 | F16: ='WPB-2.1.C Plant Detail'!H2906 -> 521.2 | G16: ='WPB-2.1.C Plant Detail'!H3022 -> 521.2 | H16: ='WPB-2.1.C Plant Detail'!H3138 -> 521.2 | I16: ='WPB-2.1.C Plant Detail'!H3254 -> 521.2 | J16: ='WPB-2.1.C Plant Detail'!H3370 -> 521.2 | K16: ='WPB-2.1.C Plant Detail'!H3486 -> 521.2 | L16: ='WPB-2.1.C Plant Detail'!H3602 -> 521.2 | M16: ='WPB-2.1.C Plant Detail'!H3718 -> 521.2 | N16: ='WPB-2.1.C Plant Detail'!H3834 -> 521.2 | O16: ='WPB-2.1.C Plant Detail'!H3950 -> 521.2 | P16: ='WPB-2.1.C Plant Detail'!H4066 -> 521.2 | Q16: =AVERAGE(D16:P16) -> 521.2
A17: =IF(ISBLANK($B17),"",COUNTA($B$15:B17)) -> 3 | B17: 303 | C17: MISCELLANEOUS INTANGIBLE PLANT | D17: ='WPB-2.1.C Plant Detail'!H2675 -> 67762.63 | E17: ='WPB-2.1.C Plant Detail'!H2791 -> 67762.63 | F17: ='WPB-2.1.C Plant Detail'!H2907 -> 67762.63 | G17: ='WPB-2.1.C Plant Detail'!H3023 -> 67762.63 | H17: ='WPB-2.1.C Plant Detail'!H3139 -> 67762.63 | I17: ='WPB-2.1.C Plant Detail'!H3255 -> 67762.63 | J17: ='WPB-2.1.C Plant Detail'!H3371 -> 67762.63 | K17: ='WPB-2.1.C Plant Detail'!H3487 -> 67762.63 | L17: ='WPB-2.1.C Plant Detail'!H3603 -> 67762.63 | M17: ='WPB-2.1.C Plant Detail'!H3719 -> 67762.63 | N17: ='WPB-2.1.C Plant Detail'!H3835 -> 67762.63 | O17: ='WPB-2.1.C Plant Detail'!H3951 -> 67762.63 | P17: ='WPB-2.1.C Plant Detail'!H4067 -> 67762.63 | Q17: 67762.63
A18: =IF(ISBLANK($B18),"",COUNTA($B$15:B18)) -> 4 | B18: 303.3 | C18: MISC INTANGIBLE PLANT-OTHER SOFTWARE | D18: ='WPB-2.1.C Plant Detail'!H2676 -> 18537652.72 | E18: ='WPB-2.1.C Plant Detail'!H2792 -> 18087464.85 | F18: ='WPB-2.1.C Plant Detail'!H2908 -> 18057264.35 | G18: ='WPB-2.1.C Plant Detail'!H3024 -> 18072757.4 | H18: ='WPB-2.1.C Plant Detail'!H3140 -> 17350850.05 | I18: ='WPB-2.1.C Plant Detail'!H3256 -> 17362939.2 | J18: ='WPB-2.1.C Plant Detail'!H3372 -> 17450607.21 | K18: ='WPB-2.1.C Plant Detail'!H3488 -> 17628739.98 | L18: ='WPB-2.1.C Plant Detail'!H3604 -> 17942891.63 | M18: ='WPB-2.1.C Plant Detail'!H3720 -> 18174013.02 | N18: ='WPB-2.1.C Plant Detail'!H3836 -> 18235598.11 | O18: ='WPB-2.1.C Plant Detail'!H3952 -> 18428556.9 | P18: ='WPB-2.1.C Plant Detail'!H4068 -> 18715393.12 | Q18: 18003440.66
A19: =IF(ISBLANK($B19),"",COUNTA($B$15:B19)) -> 5 | B19: 303.99 | C19: MISC INTANGIBLE PLANT-CLOUD SOFTWARE | D19: ='WPB-2.1.C Plant Detail'!H2677 -> 9423403.469 | E19: ='WPB-2.1.C Plant Detail'!H2793 -> 9454110.553 | F19: ='WPB-2.1.C Plant Detail'!H2909 -> 9531648.926 | G19: ='WPB-2.1.C Plant Detail'!H3025 -> 9888827.441 | H19: ='WPB-2.1.C Plant Detail'!H3141 -> 9974721.375 | I19: ='WPB-2.1.C Plant Detail'!H3257 -> 10080368.88 | J19: ='WPB-2.1.C Plant Detail'!H3373 -> 10134066.23 | K19: ='WPB-2.1.C Plant Detail'!H3489 -> 10220162.21 | L19: ='WPB-2.1.C Plant Detail'!H3605 -> 10391983.92 | M19: ='WPB-2.1.C Plant Detail'!H3721 -> 10540416.25 | N19: ='WPB-2.1.C Plant Detail'!H3837 -> 10687279.4 | O19: ='WPB-2.1.C Plant Detail'!H3953 -> 10823842.68 | P19: ='WPB-2.1.C Plant Detail'!H4069 -> 11094195.51 | Q19: 10172694.37
A20: =IF(ISBLANK($B20),"",COUNTA($B$15:B20)) -> 6 | B20: TOTAL INTANGIBLE PLANT | D20: =SUM(D16:D19) -> 28029340.01 | E20: 27609859.24 | F20: 27657197.11 | G20: 28029868.68 | H20: 27393855.26 | I20: 27511591.91 | J20: 27652957.28 | K20: 27917186.02 | L20: 28403159.38 | M20: 28782713.09 | N20: 28991161.33 | O20: 29320683.41 | P20: 29877872.46 | Q20: 28244418.86
A21: =IF(ISBLANK($B21),"",COUNTA($B$15:B21)) -> 
A22: =IF(ISBLANK($B22),"",COUNTA($B$15:B22)) -> 7 | B22: DISTRIBUTION PLANT (LESS SMRP)
A23: =IF(ISBLANK($B23),"",COUNTA($B$15:B23)) -> 8 | B23: 374.1 | C23: LAND-CITY GATE & MAIN LINE IND. M & R | D23: ='WPB-2.1.C Plant Detail'!H2681 -> 865477.56 | E23: ='WPB-2.1.C Plant Detail'!H2797 -> 865477.56 | F23: ='WPB-2.1.C Plant Detail'!H2913 -> 865477.56 | G23: ='WPB-2.1.C Plant Detail'!H3029 -> 865477.56 | H23: ='WPB-2.1.C Plant Detail'!H3145 -> 865477.56 | I23: ='WPB-2.1.C Plant Detail'!H3261 -> 865477.56 | J23: ='WPB-2.1.C Plant Detail'!H3377 -> 865477.56 | K23: ='WPB-2.1.C Plant Detail'!H3493 -> 865477.56 | L23: ='WPB-2.1.C Plant Detail'!H3609 -> 865477.56 | M23: ='WPB-2.1.C Plant Detail'!H3725 -> 865477.56 | N23: ='WPB-2.1.C Plant Detail'!H3841 -> 865477.56 | O23: ='WPB-2.1.C Plant Detail'!H3957 -> 865477.56 | P23: ='WPB-2.1.C Plant Detail'!H4073 -> 865477.56 | Q23: =AVERAGE(D23:P23) -> 865477.56
A24: =IF(ISBLANK($B24),"",COUNTA($B$15:B24)) -> 9 | B24: 374.2 | C24: LAND-OTHER DISTRIBUTION SYSTEMS | D24: ='WPB-2.1.C Plant Detail'!H2682 -> 3943802.053 | E24: ='WPB-2.1.C Plant Detail'!H2798 -> 3948355.644 | F24: ='WPB-2.1.C Plant Detail'!H2914 -> 3954049.551 | G24: ='WPB-2.1.C Plant Detail'!H3030 -> 3963224.478 | H24: ='WPB-2.1.C Plant Detail'!H3146 -> 3969531.961 | I24: ='WPB-2.1.C Plant Detail'!H3262 -> 3978708.703 | J24: ='WPB-2.1.C Plant Detail'!H3378 -> 3982651.883 | K24: ='WPB-2.1.C Plant Detail'!H3494 -> 3989240.645 | L24: ='WPB-2.1.C Plant Detail'!H3610 -> 4001858.098 | M24: ='WPB-2.1.C Plant Detail'!H3726 -> 4012757.989 | N24: ='WPB-2.1.C Plant Detail'!H3842 -> 4023542.649 | O24: ='WPB-2.1.C Plant Detail'!H3958 -> 4036649.678 | P24: ='WPB-2.1.C Plant Detail'!H4074 -> 4056502.606 | Q24: 3989298.149
A25: =IF(ISBLANK($B25),"",COUNTA($B$15:B25)) -> 10 | B25: 374.4 | C25: LAND RIGHTS-OTHER DISTR SYSTEMS | D25: ='WPB-2.1.C Plant Detail'!H2683 -> 0 | E25: ='WPB-2.1.C Plant Detail'!H2799 -> 0 | F25: ='WPB-2.1.C Plant Detail'!H2915 -> 0 | G25: ='WPB-2.1.C Plant Detail'!H3031 -> 0 | H25: ='WPB-2.1.C Plant Detail'!H3147 -> 0 | I25: ='WPB-2.1.C Plant Detail'!H3263 -> 0 | J25: ='WPB-2.1.C Plant Detail'!H3379 -> 0 | K25: ='WPB-2.1.C Plant Detail'!H3495 -> 0 | L25: ='WPB-2.1.C Plant Detail'!H3611 -> 0 | M25: ='WPB-2.1.C Plant Detail'!H3727 -> 0 | N25: ='WPB-2.1.C Plant Detail'!H3843 -> 0 | O25: ='WPB-2.1.C Plant Detail'!H3959 -> 0 | P25: ='WPB-2.1.C Plant Detail'!H4075 -> 0 | Q25: 0
A26: =IF(ISBLANK($B26),"",COUNTA($B$15:B26)) -> 11 | B26: 374.5 | C26: RIGHTS OF WAY | D26: ='WPB-2.1.C Plant Detail'!H2684 -> 2692648.63 | E26: ='WPB-2.1.C Plant Detail'!H2800 -> 2692648.63 | F26: ='WPB-2.1.C Plant Detail'!H2916 -> 2692648.63 | G26: ='WPB-2.1.C Plant Detail'!H3032 -> 2692648.63 | H26: ='WPB-2.1.C Plant Detail'!H3148 -> 2692648.63 | I26: ='WPB-2.1.C Plant Detail'!H3264 -> 2692648.63 | J26: ='WPB-2.1.C Plant Detail'!H3380 -> 2692648.63 | K26: ='WPB-2.1.C Plant Detail'!H3496 -> 2692648.63 | L26: ='WPB-2.1.C Plant Detail'!H3612 -> 2692648.63 | M26: ='WPB-2.1.C Plant Detail'!H3728 -> 2692648.63 | N26: ='WPB-2.1.C Plant Detail'!H3844 -> 2692648.63 | O26: ='WPB-2.1.C Plant Detail'!H3960 -> 2692648.63 | P26: ='WPB-2.1.C Plant Detail'!H4076 -> 2692648.63 | Q26: 2692648.63
A27: =IF(ISBLANK($B27),"",COUNTA($B$15:B27)) -> 12 | B27: 375 | C27: STRUCTURES & IMPROVEMENTS | D27: ='WPB-2.1.C Plant Detail'!H2685 -> 3625107.869 | E27: ='WPB-2.1.C Plant Detail'!H2801 -> 3631116.07 | F27: ='WPB-2.1.C Plant Detail'!H2917 -> 3638628.851 | G27: ='WPB-2.1.C Plant Detail'!H3033 -> 3650734.637 | H27: ='WPB-2.1.C Plant Detail'!H3149 -> 3659056.997 | I27: ='WPB-2.1.C Plant Detail'!H3265 -> 3671165.178 | J27: ='WPB-2.1.C Plant Detail'!H3381 -> 3676367.975 | K27: ='WPB-2.1.C Plant Detail'!H3497 -> 3685061.467 | L27: ='WPB-2.1.C Plant Detail'!H3613 -> 3701709.468 | M27: ='WPB-2.1.C Plant Detail'!H3729 -> 3716091.244 | N27: ='WPB-2.1.C Plant Detail'!H3845 -> 3730320.98 | O27: ='WPB-2.1.C Plant Detail'!H3961 -> 3747614.948 | P27: ='WPB-2.1.C Plant Detail'!H4077 -> 3773809.739 | Q27: =AVERAGE(D27:P27) -> 3685137.34
A28: =IF(ISBLANK($B28),"",COUNTA($B$15:B28)) -> 13 | B28: 375.2 | C28: STRUC & IMPROV-CITY GATE M & R | D28: ='WPB-2.1.C Plant Detail'!H2686 -> 0 | E28: ='WPB-2.1.C Plant Detail'!H2802 -> 0 | F28: ='WPB-2.1.C Plant Detail'!H2918 -> 0 | G28: ='WPB-2.1.C Plant Detail'!H3034 -> 0 | H28: ='WPB-2.1.C Plant Detail'!H3150 -> 0 | I28: ='WPB-2.1.C Plant Detail'!H3266 -> 0 | J28: ='WPB-2.1.C Plant Detail'!H3382 -> 0 | K28: ='WPB-2.1.C Plant Detail'!H3498 -> 0 | L28: ='WPB-2.1.C Plant Detail'!H3614 -> 0 | M28: ='WPB-2.1.C Plant Detail'!H3730 -> 0 | N28: ='WPB-2.1.C Plant Detail'!H3846 -> 0 | O28: ='WPB-2.1.C Plant Detail'!H3962 -> 0 | P28: ='WPB-2.1.C Plant Detail'!H4078 -> 0 | Q28: 0
A29: =IF(ISBLANK($B29),"",COUNTA($B$15:B29)) -> 14 | B29: 375.3 | C29: STRUC & IMPROV-GENERAL M & R | D29: ='WPB-2.1.C Plant Detail'!H2687 -> 0 | E29: ='WPB-2.1.C Plant Detail'!H2803 -> 0 | F29: ='WPB-2.1.C Plant Detail'!H2919 -> 0 | G29: ='WPB-2.1.C Plant Detail'!H3035 -> 0 | H29: ='WPB-2.1.C Plant Detail'!H3151 -> 0 | I29: ='WPB-2.1.C Plant Detail'!H3267 -> 0 | J29: ='WPB-2.1.C Plant Detail'!H3383 -> 0 | K29: ='WPB-2.1.C Plant Detail'!H3499 -> 0 | L29: ='WPB-2.1.C Plant Detail'!H3615 -> 0 | M29: ='WPB-2.1.C Plant Detail'!H3731 -> 0 | N29: ='WPB-2.1.C Plant Detail'!H3847 -> 0 | O29: ='WPB-2.1.C Plant Detail'!H3963 -> 0 | P29: ='WPB-2.1.C Plant Detail'!H4079 -> 0 | Q29: 0
A30: =IF(ISBLANK($B30),"",COUNTA($B$15:B30)) -> 15 | B30: 375.4 | C30: STRUC & IMPROV-REGULATING | D30: ='WPB-2.1.C Plant Detail'!H2688 -> 0 | E30: ='WPB-2.1.C Plant Detail'!H2804 -> 0 | F30: ='WPB-2.1.C Plant Detail'!H2920 -> 0 | G30: ='WPB-2.1.C Plant Detail'!H3036 -> 0 | H30: ='WPB-2.1.C Plant Detail'!H3152 -> 0 | I30: ='WPB-2.1.C Plant Detail'!H3268 -> 0 | J30: ='WPB-2.1.C Plant Detail'!H3384 -> 0 | K30: ='WPB-2.1.C Plant Detail'!H3500 -> 0 | L30: ='WPB-2.1.C Plant Detail'!H3616 -> 0 | M30: ='WPB-2.1.C Plant Detail'!H3732 -> 0 | N30: ='WPB-2.1.C Plant Detail'!H3848 -> 0 | O30: ='WPB-2.1.C Plant Detail'!H3964 -> 0 | P30: ='WPB-2.1.C Plant Detail'!H4080 -> 0 | Q30: 0
A31: =IF(ISBLANK($B31),"",COUNTA($B$15:B31)) -> 16 | B31: 375.6 | C31: STRUC & IMPROV-DISTR. IND. M & R | D31: ='WPB-2.1.C Plant Detail'!H2689 -> 0 | E31: ='WPB-2.1.C Plant Detail'!H2805 -> 0 | F31: ='WPB-2.1.C Plant Detail'!H2921 -> 0 | G31: ='WPB-2.1.C Plant Detail'!H3037 -> 0 | H31: ='WPB-2.1.C Plant Detail'!H3153 -> 0 | I31: ='WPB-2.1.C Plant Detail'!H3269 -> 0 | J31: ='WPB-2.1.C Plant Detail'!H3385 -> 0 | K31: ='WPB-2.1.C Plant Detail'!H3501 -> 0 | L31: ='WPB-2.1.C Plant Detail'!H3617 -> 0 | M31: ='WPB-2.1.C Plant Detail'!H3733 -> 0 | N31: ='WPB-2.1.C Plant Detail'!H3849 -> 0 | O31: ='WPB-2.1.C Plant Detail'!H3965 -> 0 | P31: ='WPB-2.1.C Plant Detail'!H4081 -> 0 | Q31: 0
A32: =IF(ISBLANK($B32),"",COUNTA($B$15:B32)) -> 17 | B32: 375.7 | C32: STRUC & IMPROV-OTHER DISTR. SYSTEMS | D32: ='WPB-2.1.C Plant Detail'!H2690 -> 9466014.47 | E32: ='WPB-2.1.C Plant Detail'!H2806 -> 9466014.47 | F32: ='WPB-2.1.C Plant Detail'!H2922 -> 9466014.47 | G32: ='WPB-2.1.C Plant Detail'!H3038 -> 9466014.47 | H32: ='WPB-2.1.C Plant Detail'!H3154 -> 9466014.47 | I32: ='WPB-2.1.C Plant Detail'!H3270 -> 9466014.47 | J32: ='WPB-2.1.C Plant Detail'!H3386 -> 9466014.47 | K32: ='WPB-2.1.C Plant Detail'!H3502 -> 9466014.47 | L32: ='WPB-2.1.C Plant Detail'!H3618 -> 9466014.47 | M32: ='WPB-2.1.C Plant Detail'!H3734 -> 9466014.47 | N32: ='WPB-2.1.C Plant Detail'!H3850 -> 9466014.47 | O32: ='WPB-2.1.C Plant Detail'!H3966 -> 9466014.47 | P32: ='WPB-2.1.C Plant Detail'!H4082 -> 9466014.47 | Q32: 9466014.47
A33: =IF(ISBLANK($B33),"",COUNTA($B$15:B33)) -> 18 | B33: 375.71 | C33: STRUC & IMPROV-OTHER DISTR SYS-ILP | D33: ='WPB-2.1.C Plant Detail'!H2691 -> 707587.8 | E33: ='WPB-2.1.C Plant Detail'!H2807 -> 707587.8 | F33: ='WPB-2.1.C Plant Detail'!H2923 -> 707587.8 | G33: ='WPB-2.1.C Plant Detail'!H3039 -> 707587.8 | H33: ='WPB-2.1.C Plant Detail'!H3155 -> 707587.8 | I33: ='WPB-2.1.C Plant Detail'!H3271 -> 707587.8 | J33: ='WPB-2.1.C Plant Detail'!H3387 -> 707587.8 | K33: ='WPB-2.1.C Plant Detail'!H3503 -> 707587.8 | L33: ='WPB-2.1.C Plant Detail'!H3619 -> 707587.8 | M33: ='WPB-2.1.C Plant Detail'!H3735 -> 707587.8 | N33: ='WPB-2.1.C Plant Detail'!H3851 -> 707587.8 | O33: ='WPB-2.1.C Plant Detail'!H3967 -> 707587.8 | P33: ='WPB-2.1.C Plant Detail'!H4083 -> 707587.8 | Q33: 707587.8
A34: =IF(ISBLANK($B34),"",COUNTA($B$15:B34)) -> 19 | B34: 375.8 | C34: STRUC & IMPROV-COMMUNICATIONS | D34: ='WPB-2.1.C Plant Detail'!H2692 -> 132125.04 | E34: ='WPB-2.1.C Plant Detail'!H2808 -> 132125.04 | F34: ='WPB-2.1.C Plant Detail'!H2924 -> 132125.04 | G34: ='WPB-2.1.C Plant Detail'!H3040 -> 132125.04 | H34: ='WPB-2.1.C Plant Detail'!H3156 -> 132125.04 | I34: ='WPB-2.1.C Plant Detail'!H3272 -> 132125.04 | J34: ='WPB-2.1.C Plant Detail'!H3388 -> 132125.04 | K34: ='WPB-2.1.C Plant Detail'!H3504 -> 132125.04 | L34: ='WPB-2.1.C Plant Detail'!H3620 -> 132125.04 | M34: ='WPB-2.1.C Plant Detail'!H3736 -> 132125.04 | N34: ='WPB-2.1.C Plant Detail'!H3852 -> 132125.04 | O34: ='WPB-2.1.C Plant Detail'!H3968 -> 132125.04 | P34: ='WPB-2.1.C Plant Detail'!H4084 -> 132125.04 | Q34: 132125.04
A35: =IF(ISBLANK($B35),"",COUNTA($B$15:B35)) -> 20 | B35: 376 | C35: MAINS (LESS SMRP) | D35: ='WPB-2.1.C Plant Detail'!H2693 -> 496829981.4 | E35: ='WPB-2.1.C Plant Detail'!H2809 -> 498597417 | F35: ='WPB-2.1.C Plant Detail'!H2925 -> 500260884.6 | G35: ='WPB-2.1.C Plant Detail'!H3041 -> 499858776.3 | H35: ='WPB-2.1.C Plant Detail'!H3157 -> 501611909 | I35: ='WPB-2.1.C Plant Detail'!H3273 -> 503187252 | J35: ='WPB-2.1.C Plant Detail'!H3389 -> 501590335.8 | K35: ='WPB-2.1.C Plant Detail'!H3505 -> 501870299.6 | L35: ='WPB-2.1.C Plant Detail'!H3621 -> 506315637.2 | M35: ='WPB-2.1.C Plant Detail'!H3737 -> 507536380.9 | N35: ='WPB-2.1.C Plant Detail'!H3853 -> 508521307.9 | O35: ='WPB-2.1.C Plant Detail'!H3969 -> 508194393.4 | P35: ='WPB-2.1.C Plant Detail'!H4085 -> 509831965.9 | Q35: 503400503.2
A36: =IF(ISBLANK($B36),"",COUNTA($B$15:B36)) -> 21 | B36: 378 | C36: M & R STATION EQUIP-REG (LESS SMRP) | D36: ='WPB-2.1.C Plant Detail'!H2694 -> 32802097.31 | E36: ='WPB-2.1.C Plant Detail'!H2810 -> 32856435.73 | F36: ='WPB-2.1.C Plant Detail'!H2926 -> 32922691.05 | G36: ='WPB-2.1.C Plant Detail'!H3042 -> 33037278.95 | H36: ='WPB-2.1.C Plant Detail'!H3158 -> 33108139.72 | I36: ='WPB-2.1.C Plant Detail'!H3274 -> 33241704.77 | J36: ='WPB-2.1.C Plant Detail'!H3390 -> 33335397.88 | K36: ='WPB-2.1.C Plant Detail'!H3506 -> 33453991.19 | L36: ='WPB-2.1.C Plant Detail'!H3622 -> 33630938.34 | M36: ='WPB-2.1.C Plant Detail'!H3738 -> 33773149.44 | N36: ='WPB-2.1.C Plant Detail'!H3854 -> 33892872.34 | O36: ='WPB-2.1.C Plant Detail'!H3970 -> 34038694.38 | P36: ='WPB-2.1.C Plant Detail'!H4086 -> 34280302.13 | Q36: =AVERAGE(D36:P36) -> 33413361.02
A37: =IF(ISBLANK($B37),"",COUNTA($B$15:B37)) -> 22 | B37: 378.1 | C37: M & R STATION EQUIP-GENERAL | D37: ='WPB-2.1.C Plant Detail'!H2695 -> 0 | E37: ='WPB-2.1.C Plant Detail'!H2811 -> 0 | F37: ='WPB-2.1.C Plant Detail'!H2927 -> 0 | G37: ='WPB-2.1.C Plant Detail'!H3043 -> 0 | H37: ='WPB-2.1.C Plant Detail'!H3159 -> 0 | I37: ='WPB-2.1.C Plant Detail'!H3275 -> 0 | J37: ='WPB-2.1.C Plant Detail'!H3391 -> 0 | K37: ='WPB-2.1.C Plant Detail'!H3507 -> 0 | L37: ='WPB-2.1.C Plant Detail'!H3623 -> 0 | M37: ='WPB-2.1.C Plant Detail'!H3739 -> 0 | N37: ='WPB-2.1.C Plant Detail'!H3855 -> 0 | O37: ='WPB-2.1.C Plant Detail'!H3971 -> 0 | P37: ='WPB-2.1.C Plant Detail'!H4087 -> 0 | Q37: 0
A38: =IF(ISBLANK($B38),"",COUNTA($B$15:B38)) -> 23 | B38: 378.2 | C38: M & R STA EQUIP-GENERAL-REGULATING (LESS SMRP) | D38: ='WPB-2.1.C Plant Detail'!H2696 -> 0 | E38: ='WPB-2.1.C Plant Detail'!H2812 -> 0 | F38: ='WPB-2.1.C Plant Detail'!H2928 -> 0 | G38: ='WPB-2.1.C Plant Detail'!H3044 -> 0 | H38: ='WPB-2.1.C Plant Detail'!H3160 -> 0 | I38: ='WPB-2.1.C Plant Detail'!H3276 -> 0 | J38: ='WPB-2.1.C Plant Detail'!H3392 -> 0 | K38: ='WPB-2.1.C Plant Detail'!H3508 -> 0 | L38: ='WPB-2.1.C Plant Detail'!H3624 -> 0 | M38: ='WPB-2.1.C Plant Detail'!H3740 -> 0 | N38: ='WPB-2.1.C Plant Detail'!H3856 -> 0 | O38: ='WPB-2.1.C Plant Detail'!H3972 -> 0 | P38: ='WPB-2.1.C Plant Detail'!H4088 -> 0 | Q38: 0
A39: =IF(ISBLANK($B39),"",COUNTA($B$15:B39)) -> 24 | B39: 378.3 | C39: M & R STA EQUIP-GEN-LOCAL GAS PURCH | D39: ='WPB-2.1.C Plant Detail'!H2697 -> 0 | E39: ='WPB-2.1.C Plant Detail'!H2813 -> 0 | F39: ='WPB-2.1.C Plant Detail'!H2929 -> 0 | G39: ='WPB-2.1.C Plant Detail'!H3045 -> 0 | H39: ='WPB-2.1.C Plant Detail'!H3161 -> 0 | I39: ='WPB-2.1.C Plant Detail'!H3277 -> 0 | J39: ='WPB-2.1.C Plant Detail'!H3393 -> 0 | K39: ='WPB-2.1.C Plant Detail'!H3509 -> 0 | L39: ='WPB-2.1.C Plant Detail'!H3625 -> 0 | M39: ='WPB-2.1.C Plant Detail'!H3741 -> 0 | N39: ='WPB-2.1.C Plant Detail'!H3857 -> 0 | O39: ='WPB-2.1.C Plant Detail'!H3973 -> 0 | P39: ='WPB-2.1.C Plant Detail'!H4089 -> 0 | Q39: 0
A40: =IF(ISBLANK($B40),"",COUNTA($B$15:B40)) -> 25 | B40: 379 | C40: M & R STA EQUIP-CITY GATE CHECK STA | D40: ='WPB-2.1.C Plant Detail'!H2698 -> 1555047.87 | E40: ='WPB-2.1.C Plant Detail'!H2814 -> 1555047.87 | F40: ='WPB-2.1.C Plant Detail'!H2930 -> 1555047.87 | G40: ='WPB-2.1.C Plant Detail'!H3046 -> 1555047.87 | H40: ='WPB-2.1.C Plant Detail'!H3162 -> 1555047.87 | I40: ='WPB-2.1.C Plant Detail'!H3278 -> 1555047.87 | J40: ='WPB-2.1.C Plant Detail'!H3394 -> 1555047.87 | K40: ='WPB-2.1.C Plant Detail'!H3510 -> 1555047.87 | L40: ='WPB-2.1.C Plant Detail'!H3626 -> 1555047.87 | M40: ='WPB-2.1.C Plant Detail'!H3742 -> 1555047.87 | N40: ='WPB-2.1.C Plant Detail'!H3858 -> 1555047.87 | O40: ='WPB-2.1.C Plant Detail'!H3974 -> 1555047.87 | P40: ='WPB-2.1.C Plant Detail'!H4090 -> 1555047.87 | Q40: =AVERAGE(D40:P40) -> 1555047.87
A41: =IF(ISBLANK($B41),"",COUNTA($B$15:B41)) -> 26 | B41: 379.1 | C41: M & R STA EQUIP-CITY GATE CHECK STA | D41: ='WPB-2.1.C Plant Detail'!H2699 -> 0 | E41: ='WPB-2.1.C Plant Detail'!H2815 -> 0 | F41: ='WPB-2.1.C Plant Detail'!H2931 -> 0 | G41: ='WPB-2.1.C Plant Detail'!H3047 -> 0 | H41: ='WPB-2.1.C Plant Detail'!H3163 -> 0 | I41: ='WPB-2.1.C Plant Detail'!H3279 -> 0 | J41: ='WPB-2.1.C Plant Detail'!H3395 -> 0 | K41: ='WPB-2.1.C Plant Detail'!H3511 -> 0 | L41: ='WPB-2.1.C Plant Detail'!H3627 -> 0 | M41: ='WPB-2.1.C Plant Detail'!H3743 -> 0 | N41: ='WPB-2.1.C Plant Detail'!H3859 -> 0 | O41: ='WPB-2.1.C Plant Detail'!H3975 -> 0 | P41: ='WPB-2.1.C Plant Detail'!H4091 -> 0 | Q41: 0
A42: =IF(ISBLANK($B42),"",COUNTA($B$15:B42)) -> 27 | B42: 380 | C42: SERVICES (LESS SMRP) | D42: ='WPB-2.1.C Plant Detail'!H2700 -> 248802010.4 | E42: ='WPB-2.1.C Plant Detail'!H2816 -> 249005283.6 | F42: ='WPB-2.1.C Plant Detail'!H2932 -> 248924422.1 | G42: ='WPB-2.1.C Plant Detail'!H3048 -> 249721513.6 | H42: ='WPB-2.1.C Plant Detail'!H3164 -> 249805351.6 | I42: ='WPB-2.1.C Plant Detail'!H3280 -> 250390340.6 | J42: ='WPB-2.1.C Plant Detail'!H3396 -> 249856683.3 | K42: ='WPB-2.1.C Plant Detail'!H3512 -> 250108671.6 | L42: ='WPB-2.1.C Plant Detail'!H3628 -> 251221881.4 | M42: ='WPB-2.1.C Plant Detail'!H3744 -> 252383354.1 | N42: ='WPB-2.1.C Plant Detail'!H3860 -> 252725795.1 | O42: ='WPB-2.1.C Plant Detail'!H3976 -> 254208210.3 | P42: ='WPB-2.1.C Plant Detail'!H4092 -> 257219605.1 | Q42: 251105624.8
A43: =IF(ISBLANK($B43),"",COUNTA($B$15:B43)) -> 28 | B43: 381 | C43: METERS | D43: ='WPB-2.1.C Plant Detail'!H2701 -> 21144128.79 | E43: ='WPB-2.1.C Plant Detail'!H2817 -> 21219771.83 | F43: ='WPB-2.1.C Plant Detail'!H2933 -> 21314357.48 | G43: ='WPB-2.1.C Plant Detail'!H3049 -> 21466768.91 | H43: ='WPB-2.1.C Plant Detail'!H3165 -> 21571547.14 | I43: ='WPB-2.1.C Plant Detail'!H3281 -> 21723988.72 | J43: ='WPB-2.1.C Plant Detail'!H3397 -> 21789491.75 | K43: ='WPB-2.1.C Plant Detail'!H3513 -> 21898942.52 | L43: ='WPB-2.1.C Plant Detail'!H3629 -> 22108540.26 | M43: ='WPB-2.1.C Plant Detail'!H3745 -> 22289606.32 | N43: ='WPB-2.1.C Plant Detail'!H3861 -> 22468758.21 | O43: ='WPB-2.1.C Plant Detail'!H3977 -> 22686488.67 | P43: ='WPB-2.1.C Plant Detail'!H4093 -> 23016280.19 | Q43: =AVERAGE(D43:P43) -> 21899897.75
A44: =IF(ISBLANK($B44),"",COUNTA($B$15:B44)) -> 29 | B44: 381.1 | C44: METERS - AMR | D44: ='WPB-2.1.C Plant Detail'!H2702 -> 8252969.39 | E44: ='WPB-2.1.C Plant Detail'!H2818 -> 8252969.39 | F44: ='WPB-2.1.C Plant Detail'!H2934 -> 8252969.39 | G44: ='WPB-2.1.C Plant Detail'!H3050 -> 8252969.39 | H44: ='WPB-2.1.C Plant Detail'!H3166 -> 8252969.39 | I44: ='WPB-2.1.C Plant Detail'!H3282 -> 8252969.39 | J44: ='WPB-2.1.C Plant Detail'!H3398 -> 8252969.39 | K44: ='WPB-2.1.C Plant Detail'!H3514 -> 8252969.39 | L44: ='WPB-2.1.C Plant Detail'!H3630 -> 8252969.39 | M44: ='WPB-2.1.C Plant Detail'!H3746 -> 8252969.39 | N44: ='WPB-2.1.C Plant Detail'!H3862 -> 8252969.39 | O44: ='WPB-2.1.C Plant Detail'!H3978 -> 8252969.39 | P44: ='WPB-2.1.C Plant Detail'!H4094 -> 8252969.39 | Q44: 8252969.39
A45: =IF(ISBLANK($B45),"",COUNTA($B$15:B45)) -> 30 | B45: 382 | C45: METER INSTALLATIONS (LESS SMRP) | D45: ='WPB-2.1.C Plant Detail'!H2703 -> 12663374.06 | E45: ='WPB-2.1.C Plant Detail'!H2819 -> 12596673.89 | F45: ='WPB-2.1.C Plant Detail'!H2935 -> 12583600.31 | G45: ='WPB-2.1.C Plant Detail'!H3051 -> 12567044.27 | H45: ='WPB-2.1.C Plant Detail'!H3167 -> 12570793.4 | I45: ='WPB-2.1.C Plant Detail'!H3283 -> 12554610.31 | J45: ='WPB-2.1.C Plant Detail'!H3399 -> 12549313.27 | K45: ='WPB-2.1.C Plant Detail'!H3515 -> 12545014.68 | L45: ='WPB-2.1.C Plant Detail'!H3631 -> 12523674.81 | M45: ='WPB-2.1.C Plant Detail'!H3747 -> 12551809.54 | N45: ='WPB-2.1.C Plant Detail'!H3863 -> 12538844.27 | O45: ='WPB-2.1.C Plant Detail'!H3979 -> 12567940.75 | P45: ='WPB-2.1.C Plant Detail'!H4095 -> 12618260.39 | Q45: 12571611.84
A46: =IF(ISBLANK($B46),"",COUNTA($B$15:B46)) -> 31 | B46: 383 | C46: HOUSE REGULATORS (LESS SMRP) | D46: ='WPB-2.1.C Plant Detail'!H2704 -> 9802966.341 | E46: ='WPB-2.1.C Plant Detail'!H2820 -> 9780488.98 | F46: ='WPB-2.1.C Plant Detail'!H2936 -> 9722415.034 | G46: ='WPB-2.1.C Plant Detail'!H3052 -> 9721736.987 | H46: ='WPB-2.1.C Plant Detail'!H3168 -> 9711740.754 | I46: ='WPB-2.1.C Plant Detail'!H3284 -> 9737402.682 | J46: ='WPB-2.1.C Plant Detail'!H3400 -> 9723292.282 | K46: ='WPB-2.1.C Plant Detail'!H3516 -> 9732158.989 | L46: ='WPB-2.1.C Plant Detail'!H3632 -> 9719474.335 | M46: ='WPB-2.1.C Plant Detail'!H3748 -> 9729060.128 | N46: ='WPB-2.1.C Plant Detail'!H3864 -> 9748852.094 | O46: ='WPB-2.1.C Plant Detail'!H3980 -> 9785476.287 | P46: ='WPB-2.1.C Plant Detail'!H4096 -> 9817863.049 | Q46: 9748686.765
A47: =IF(ISBLANK($B47),"",COUNTA($B$15:B47)) -> 32 | B47: 384 | C47: HOUSE REGULATOR INSTALLATIONS | D47: ='WPB-2.1.C Plant Detail'!H2705 -> -372.5337613 | E47: ='WPB-2.1.C Plant Detail'!H2821 -> -374.8398826 | F47: ='WPB-2.1.C Plant Detail'!H2937 -> -377.7235051 | G47: ='WPB-2.1.C Plant Detail'!H3053 -> -382.3700559 | H47: ='WPB-2.1.C Plant Detail'!H3169 -> -385.5644186 | I47: ='WPB-2.1.C Plant Detail'!H3285 -> -390.2118887 | J47: ='WPB-2.1.C Plant Detail'!H3401 -> -392.2088727 | K47: ='WPB-2.1.C Plant Detail'!H3517 -> -395.5456864 | L47: ='WPB-2.1.C Plant Detail'!H3633 -> -401.9356705 | M47: ='WPB-2.1.C Plant Detail'!H3749 -> -407.4558121 | N47: ='WPB-2.1.C Plant Detail'!H3865 -> -412.9175966 | O47: ='WPB-2.1.C Plant Detail'!H3981 -> -419.5555217 | P47: ='WPB-2.1.C Plant Detail'!H4097 -> -429.6098403 | Q47: -395.5748087
A48: =IF(ISBLANK($B48),"",COUNTA($B$15:B48)) -> 33 | B48: 385 | C48: INDUSTRIAL M & R STATION EQUIPMENT | D48: ='WPB-2.1.C Plant Detail'!H2706 -> 6995488.032 | E48: ='WPB-2.1.C Plant Detail'!H2822 -> 7010145.883 | F48: ='WPB-2.1.C Plant Detail'!H2938 -> 7028474.367 | G48: ='WPB-2.1.C Plant Detail'!H3054 -> 7058008.133 | H48: ='WPB-2.1.C Plant Detail'!H3170 -> 7078311.701 | I48: ='WPB-2.1.C Plant Detail'!H3286 -> 7107851.31 | J48: ='WPB-2.1.C Plant Detail'!H3402 -> 7120544.265 | K48: ='WPB-2.1.C Plant Detail'!H3518 -> 7141753.261 | L48: ='WPB-2.1.C Plant Detail'!H3634 -> 7182368.397 | M48: ='WPB-2.1.C Plant Detail'!H3750 -> 7217454.761 | N48: ='WPB-2.1.C Plant Detail'!H3866 -> 7252170.203 | O48: ='WPB-2.1.C Plant Detail'!H3982 -> 7294361.268 | P48: ='WPB-2.1.C Plant Detail'!H4098 -> 7358267.143 | Q48: 7141938.363
A49: =IF(ISBLANK($B49),"",COUNTA($B$15:B49)) -> 34 | B49: 387.2 | C49: OTHER EQUIP-ODORIZATION | D49: ='WPB-2.1.C Plant Detail'!H2707 -> 0 | E49: ='WPB-2.1.C Plant Detail'!H2823 -> 0 | F49: ='WPB-2.1.C Plant Detail'!H2939 -> 0 | G49: ='WPB-2.1.C Plant Detail'!H3055 -> 0 | H49: ='WPB-2.1.C Plant Detail'!H3171 -> 0 | I49: ='WPB-2.1.C Plant Detail'!H3287 -> 0 | J49: ='WPB-2.1.C Plant Detail'!H3403 -> 0 | K49: ='WPB-2.1.C Plant Detail'!H3519 -> 0 | L49: ='WPB-2.1.C Plant Detail'!H3635 -> 0 | M49: ='WPB-2.1.C Plant Detail'!H3751 -> 0 | N49: ='WPB-2.1.C Plant Detail'!H3867 -> 0 | O49: ='WPB-2.1.C Plant Detail'!H3983 -> 0 | P49: ='WPB-2.1.C Plant Detail'!H4099 -> 0 | Q49: 0
A50: =IF(ISBLANK($B50),"",COUNTA($B$15:B50)) -> 35 | B50: 387.4 | C50: OTHER EQUIP-FMV | D50: ='WPB-2.1.C Plant Detail'!H2708 -> 0 | E50: ='WPB-2.1.C Plant Detail'!H2824 -> 0 | F50: ='WPB-2.1.C Plant Detail'!H2940 -> 0 | G50: ='WPB-2.1.C Plant Detail'!H3056 -> 0 | H50: ='WPB-2.1.C Plant Detail'!H3172 -> 0 | I50: ='WPB-2.1.C Plant Detail'!H3288 -> 0 | J50: ='WPB-2.1.C Plant Detail'!H3404 -> 0 | K50: ='WPB-2.1.C Plant Detail'!H3520 -> 0 | L50: ='WPB-2.1.C Plant Detail'!H3636 -> 0 | M50: ='WPB-2.1.C Plant Detail'!H3752 -> 0 | N50: ='WPB-2.1.C Plant Detail'!H3868 -> 0 | O50: ='WPB-2.1.C Plant Detail'!H3984 -> 0 | P50: ='WPB-2.1.C Plant Detail'!H4100 -> 0 | Q50: =AVERAGE(D50:P50) -> 0
A51: =IF(ISBLANK($B51),"",COUNTA($B$15:B51)) -> 36 | B51: 387.41 | C51: OTHER EQUIP-TELEPHONE | D51: ='WPB-2.1.C Plant Detail'!H2709 -> 0 | E51: ='WPB-2.1.C Plant Detail'!H2825 -> 0 | F51: ='WPB-2.1.C Plant Detail'!H2941 -> 0 | G51: ='WPB-2.1.C Plant Detail'!H3057 -> 0 | H51: ='WPB-2.1.C Plant Detail'!H3173 -> 0 | I51: ='WPB-2.1.C Plant Detail'!H3289 -> 0 | J51: ='WPB-2.1.C Plant Detail'!H3405 -> 0 | K51: ='WPB-2.1.C Plant Detail'!H3521 -> 0 | L51: ='WPB-2.1.C Plant Detail'!H3637 -> 0 | M51: ='WPB-2.1.C Plant Detail'!H3753 -> 0 | N51: ='WPB-2.1.C Plant Detail'!H3869 -> 0 | O51: ='WPB-2.1.C Plant Detail'!H3985 -> 0 | P51: ='WPB-2.1.C Plant Detail'!H4101 -> 0 | Q51: =AVERAGE(D51:P51) -> 0
A52: =IF(ISBLANK($B52),"",COUNTA($B$15:B52)) -> 37 | B52: 387.42 | C52: OTHER EQUIPMENT-RADIO | D52: ='WPB-2.1.C Plant Detail'!H2710 -> 10361.51 | E52: ='WPB-2.1.C Plant Detail'!H2826 -> 10361.51 | F52: ='WPB-2.1.C Plant Detail'!H2942 -> 10361.51 | G52: ='WPB-2.1.C Plant Detail'!H3058 -> 10361.51 | H52: ='WPB-2.1.C Plant Detail'!H3174 -> 10361.51 | I52: ='WPB-2.1.C Plant Detail'!H3290 -> 10361.51 | J52: ='WPB-2.1.C Plant Detail'!H3406 -> 10361.51 | K52: ='WPB-2.1.C Plant Detail'!H3522 -> 10361.51 | L52: ='WPB-2.1.C Plant Detail'!H3638 -> 10361.51 | M52: ='WPB-2.1.C Plant Detail'!H3754 -> 10361.51 | N52: ='WPB-2.1.C Plant Detail'!H3870 -> 10361.51 | O52: ='WPB-2.1.C Plant Detail'!H3986 -> 10361.51 | P52: ='WPB-2.1.C Plant Detail'!H4102 -> 10361.51 | Q52: 10361.51
A53: =IF(ISBLANK($B53),"",COUNTA($B$15:B53)) -> 38 | B53: 387.44 | C53: OTHER EQUIP-OTHER COMMUNICATION | D53: ='WPB-2.1.C Plant Detail'!H2711 -> 0 | E53: ='WPB-2.1.C Plant Detail'!H2827 -> 0 | F53: ='WPB-2.1.C Plant Detail'!H2943 -> 0 | G53: ='WPB-2.1.C Plant Detail'!H3059 -> 0 | H53: ='WPB-2.1.C Plant Detail'!H3175 -> 0 | I53: ='WPB-2.1.C Plant Detail'!H3291 -> 0 | J53: ='WPB-2.1.C Plant Detail'!H3407 -> 0 | K53: ='WPB-2.1.C Plant Detail'!H3523 -> 0 | L53: ='WPB-2.1.C Plant Detail'!H3639 -> 0 | M53: ='WPB-2.1.C Plant Detail'!H3755 -> 0 | N53: ='WPB-2.1.C Plant Detail'!H3871 -> 0 | O53: ='WPB-2.1.C Plant Detail'!H3987 -> 0 | P53: ='WPB-2.1.C Plant Detail'!H4103 -> 0 | Q53: 0
A54: =IF(ISBLANK($B54),"",COUNTA($B$15:B54)) -> 39 | B54: 387.45 | C54: OTHER EQUIP-TELEMETERING | D54: ='WPB-2.1.C Plant Detail'!H2712 -> 3007239.286 | E54: ='WPB-2.1.C Plant Detail'!H2828 -> 3052574.049 | F54: ='WPB-2.1.C Plant Detail'!H2944 -> 3109261.588 | G54: ='WPB-2.1.C Plant Detail'!H3060 -> 3200605.559 | H54: ='WPB-2.1.C Plant Detail'!H3176 -> 3263401.766 | I54: ='WPB-2.1.C Plant Detail'!H3292 -> 3354763.809 | J54: ='WPB-2.1.C Plant Detail'!H3408 -> 3394021.413 | K54: ='WPB-2.1.C Plant Detail'!H3524 -> 3459617.986 | L54: ='WPB-2.1.C Plant Detail'!H3640 -> 3585235.146 | M54: ='WPB-2.1.C Plant Detail'!H3756 -> 3693752.555 | N54: ='WPB-2.1.C Plant Detail'!H3872 -> 3801122.753 | O54: ='WPB-2.1.C Plant Detail'!H3988 -> 3931614.049 | P54: ='WPB-2.1.C Plant Detail'!H4104 -> 4129266.333 | Q54: 3460190.484
A55: =IF(ISBLANK($B55),"",COUNTA($B$15:B55)) -> 40 | B55: 387.46 | C55: OTHER EQUIP-CUST INFO SERVICE | D55: ='WPB-2.1.C Plant Detail'!H2713 -> 12269.38 | E55: ='WPB-2.1.C Plant Detail'!H2829 -> 12269.38 | F55: ='WPB-2.1.C Plant Detail'!H2945 -> 12269.38 | G55: ='WPB-2.1.C Plant Detail'!H3061 -> 12269.38 | H55: ='WPB-2.1.C Plant Detail'!H3177 -> 12269.38 | I55: ='WPB-2.1.C Plant Detail'!H3293 -> 12269.38 | J55: ='WPB-2.1.C Plant Detail'!H3409 -> 12269.38 | K55: ='WPB-2.1.C Plant Detail'!H3525 -> 12269.38 | L55: ='WPB-2.1.C Plant Detail'!H3641 -> 12269.38 | M55: ='WPB-2.1.C Plant Detail'!H3757 -> 12269.38 | N55: ='WPB-2.1.C Plant Detail'!H3873 -> 12269.38 | O55: ='WPB-2.1.C Plant Detail'!H3989 -> 12269.38 | P55: ='WPB-2.1.C Plant Detail'!H4105 -> 12269.38 | Q55: 12269.38
A56: =IF(ISBLANK($B56),"",COUNTA($B$15:B56)) -> 41 | B56: 387.5 | C56: GPS PIPE LOCATORS | D56: ='WPB-2.1.C Plant Detail'!H2714 -> 0 | E56: ='WPB-2.1.C Plant Detail'!H2830 -> 0 | F56: ='WPB-2.1.C Plant Detail'!H2946 -> 0 | G56: ='WPB-2.1.C Plant Detail'!H3062 -> 0 | H56: ='WPB-2.1.C Plant Detail'!H3178 -> 0 | I56: ='WPB-2.1.C Plant Detail'!H3294 -> 0 | J56: ='WPB-2.1.C Plant Detail'!H3410 -> 0 | K56: ='WPB-2.1.C Plant Detail'!H3526 -> 0 | L56: ='WPB-2.1.C Plant Detail'!H3642 -> 0 | M56: ='WPB-2.1.C Plant Detail'!H3758 -> 0 | N56: ='WPB-2.1.C Plant Detail'!H3874 -> 0 | O56: ='WPB-2.1.C Plant Detail'!H3990 -> 0 | P56: ='WPB-2.1.C Plant Detail'!H4106 -> 0 | Q56: 0
A57: =IF(ISBLANK($B57),"",COUNTA($B$15:B57)) -> 42 | B57: TOTAL DISTRIBUTION PLANT (LESS SMRP) | D57: =SUM(D23:D42,D43:D56) -> 863310324.7 | E57: 865392389.4 | F57: 867152908.8 | G57: 867939811.1 | H57: 870043900.2 | I57: 872641899.4 | J57: 870712209.2 | K57: 871578858.1 | L57: 877685417.2 | M57: 880597511.2 | N57: 882397675.3 | O57: 884185525.8 | P57: 889796194.6 | Q57: 874110355.8
A59: ='General Headers Index'!B3 -> COLUMBIA GAS OF KENTUCKY, INC.
A60: ='General Headers Index'!B5 -> CASE NO. 2026 - 00099
A61: =A3 -> PLANT IN SERVICE BY GAS PLANT ACCOUNT
A62: =A4 -> FORECASTED TEST PERIOD 12/31/2026 to 12/31/2027
A63: =A6 -> DATA:_______BASE PERIOD___X___FORECASTED PERIOD | Q63: =Q6 -> WPB-2.1.A
A64: ='General Headers Index'!B37 -> TYPE OF FILING:___X___ORIGINAL_______UPDATED | Q64: SHEET 4 OF 4
Q65: =Q8 -> WITNESS: L. BLACK
A67: LINE | B67: ACCT. | Q67: 13 MONTH
A68: NO. | B68: NO. | C68: DESCRIPTION | D68: =D11 -> 01/31/2026 | E68: 01/31/2027 | F68: 02/28/2027 | G68: 03/31/2027 | H68: 04/30/2027 | I68: 05/31/2027 | J68: 06/30/2027 | K68: 07/31/2027 | L68: 08/31/2027 | M68: 09/30/2027 | N68: 10/31/2027 | O68: 11/30/2027 | P68: 12/31/2027 | Q68: AVERAGE
D69: (1) | E69: (2) | F69: (3) | G69: (4) | H69: (5) | I69: (6) | J69: (7) | K69: (8) | L69: (9) | M69: (10) | N69: (11) | O69: (12) | P69: (13) | Q69: (14)
D70: $ | E70: $ | F70: $ | G70: $ | H70: $ | I70: $ | J70: $ | K70: $ | L70: $ | M70: $ | N70: $ | O70: $ | P70: $ | Q70: $
A71: =IF(ISBLANK($B71),"",COUNTA($B$43:B71)) -> 
A72: =IF(ISBLANK($B72),"",COUNTA($B$72:B72)) -> 1 | B72: GENERAL PLANT
A73: =IF(ISBLANK($B73),"",COUNTA($B$72:B73)) -> 2 | B73: 391.1 | C73: OFFICE FURN & EQUIP-UNSPECIFIED | D73: ='WPB-2.1.C Plant Detail'!H2735 -> 1602374.63 | E73: ='WPB-2.1.C Plant Detail'!H2851 -> 1602374.63 | F73: ='WPB-2.1.C Plant Detail'!H2967 -> 1602374.63 | G73: ='WPB-2.1.C Plant Detail'!H3083 -> 1602374.63 | H73: ='WPB-2.1.C Plant Detail'!H3199 -> 1602374.63 | I73: ='WPB-2.1.C Plant Detail'!H3315 -> 1602374.63 | J73: ='WPB-2.1.C Plant Detail'!H3431 -> 1602374.63 | K73: ='WPB-2.1.C Plant Detail'!H3547 -> 1602374.63 | L73: ='WPB-2.1.C Plant Detail'!H3663 -> 1602374.63 | M73: ='WPB-2.1.C Plant Detail'!H3779 -> 1602374.63 | N73: ='WPB-2.1.C Plant Detail'!H3895 -> 1602374.63 | O73: ='WPB-2.1.C Plant Detail'!H4011 -> 1602374.63 | P73: ='WPB-2.1.C Plant Detail'!H4127 -> 1602374.63 | Q73: =AVERAGE(D73:P73) -> 1602374.63
A74: =IF(ISBLANK($B74),"",COUNTA($B$72:B74)) -> 3 | B74: 391.11 | C74: OFFICE FURN & EQUIP-DATA HANDLING | D74: ='WPB-2.1.C Plant Detail'!H2736 -> 0 | E74: ='WPB-2.1.C Plant Detail'!H2852 -> 0 | F74: ='WPB-2.1.C Plant Detail'!H2968 -> 0 | G74: ='WPB-2.1.C Plant Detail'!H3084 -> 0 | H74: ='WPB-2.1.C Plant Detail'!H3200 -> 0 | I74: ='WPB-2.1.C Plant Detail'!H3316 -> 0 | J74: ='WPB-2.1.C Plant Detail'!H3432 -> 0 | K74: ='WPB-2.1.C Plant Detail'!H3548 -> 0 | L74: ='WPB-2.1.C Plant Detail'!H3664 -> 0 | M74: ='WPB-2.1.C Plant Detail'!H3780 -> 0 | N74: ='WPB-2.1.C Plant Detail'!H3896 -> 0 | O74: ='WPB-2.1.C Plant Detail'!H4012 -> 0 | P74: ='WPB-2.1.C Plant Detail'!H4128 -> 0 | Q74: =AVERAGE(D74:P74) -> 0
A75: =IF(ISBLANK($B75),"",COUNTA($B$72:B75)) -> 4 | B75: 391.12 | C75: OFFICE FURN & EQUIP-INFO SYSTEMS | D75: ='WPB-2.1.C Plant Detail'!H2737 -> 591397.48 | E75: ='WPB-2.1.C Plant Detail'!H2853 -> 591397.48 | F75: ='WPB-2.1.C Plant Detail'!H2969 -> 591397.48 | G75: ='WPB-2.1.C Plant Detail'!H3085 -> 591397.48 | H75: ='WPB-2.1.C Plant Detail'!H3201 -> 591397.48 | I75: ='WPB-2.1.C Plant Detail'!H3317 -> 591397.48 | J75: ='WPB-2.1.C Plant Detail'!H3433 -> 591397.48 | K75: ='WPB-2.1.C Plant Detail'!H3549 -> 591397.48 | L75: ='WPB-2.1.C Plant Detail'!H3665 -> 591397.48 | M75: ='WPB-2.1.C Plant Detail'!H3781 -> 591397.48 | N75: ='WPB-2.1.C Plant Detail'!H3897 -> 591397.48 | O75: ='WPB-2.1.C Plant Detail'!H4013 -> 591397.48 | P75: ='WPB-2.1.C Plant Detail'!H4129 -> 591397.48 | Q75: 591397.48
A76: =IF(ISBLANK($B76),"",COUNTA($B$72:B76)) -> 5 | B76: 392.2 | C76: TRANS EQUIP-TRAILERS OVER $1,000 | D76: ='WPB-2.1.C Plant Detail'!H2738 -> 48924.4 | E76: ='WPB-2.1.C Plant Detail'!H2854 -> 48924.4 | F76: ='WPB-2.1.C Plant Detail'!H2970 -> 48924.4 | G76: ='WPB-2.1.C Plant Detail'!H3086 -> 48924.4 | H76: ='WPB-2.1.C Plant Detail'!H3202 -> 48924.4 | I76: ='WPB-2.1.C Plant Detail'!H3318 -> 48924.4 | J76: ='WPB-2.1.C Plant Detail'!H3434 -> 48924.4 | K76: ='WPB-2.1.C Plant Detail'!H3550 -> 48924.4 | L76: ='WPB-2.1.C Plant Detail'!H3666 -> 48924.4 | M76: ='WPB-2.1.C Plant Detail'!H3782 -> 48924.4 | N76: ='WPB-2.1.C Plant Detail'!H3898 -> 48924.4 | O76: ='WPB-2.1.C Plant Detail'!H4014 -> 48924.4 | P76: ='WPB-2.1.C Plant Detail'!H4130 -> 48924.4 | Q76: 48924.4
A77: =IF(ISBLANK($B77),"",COUNTA($B$72:B77)) -> 6 | B77: 392.21 | C77: TRANS EQUIP-TRAILERS $1,000 OR LESS | D77: ='WPB-2.1.C Plant Detail'!H2739 -> 24462.2 | E77: ='WPB-2.1.C Plant Detail'!H2855 -> 24462.2 | F77: ='WPB-2.1.C Plant Detail'!H2971 -> 24462.2 | G77: ='WPB-2.1.C Plant Detail'!H3087 -> 24462.2 | H77: ='WPB-2.1.C Plant Detail'!H3203 -> 24462.2 | I77: ='WPB-2.1.C Plant Detail'!H3319 -> 24462.2 | J77: ='WPB-2.1.C Plant Detail'!H3435 -> 24462.2 | K77: ='WPB-2.1.C Plant Detail'!H3551 -> 24462.2 | L77: ='WPB-2.1.C Plant Detail'!H3667 -> 24462.2 | M77: ='WPB-2.1.C Plant Detail'!H3783 -> 24462.2 | N77: ='WPB-2.1.C Plant Detail'!H3899 -> 24462.2 | O77: ='WPB-2.1.C Plant Detail'!H4015 -> 24462.2 | P77: ='WPB-2.1.C Plant Detail'!H4131 -> 24462.2 | Q77: 24462.2
A78: =IF(ISBLANK($B78),"",COUNTA($B$72:B78)) -> 7 | B78: 393 | C78: STORES EQUIPMENT | D78: ='WPB-2.1.C Plant Detail'!H2740 -> 0 | E78: ='WPB-2.1.C Plant Detail'!H2856 -> 0 | F78: ='WPB-2.1.C Plant Detail'!H2972 -> 0 | G78: ='WPB-2.1.C Plant Detail'!H3088 -> 0 | H78: ='WPB-2.1.C Plant Detail'!H3204 -> 0 | I78: ='WPB-2.1.C Plant Detail'!H3320 -> 0 | J78: ='WPB-2.1.C Plant Detail'!H3436 -> 0 | K78: ='WPB-2.1.C Plant Detail'!H3552 -> 0 | L78: ='WPB-2.1.C Plant Detail'!H3668 -> 0 | M78: ='WPB-2.1.C Plant Detail'!H3784 -> 0 | N78: ='WPB-2.1.C Plant Detail'!H3900 -> 0 | O78: ='WPB-2.1.C Plant Detail'!H4016 -> 0 | P78: ='WPB-2.1.C Plant Detail'!H4132 -> 0 | Q78: 0
A79: =IF(ISBLANK($B79),"",COUNTA($B$72:B79)) -> 8 | B79: 394.1 | C79: TOOLS,SHOP, & GAR EQ-GARAGE & SERV | D79: ='WPB-2.1.C Plant Detail'!H2741 -> 0 | E79: ='WPB-2.1.C Plant Detail'!H2857 -> 0 | F79: ='WPB-2.1.C Plant Detail'!H2973 -> 0 | G79: ='WPB-2.1.C Plant Detail'!H3089 -> 0 | H79: ='WPB-2.1.C Plant Detail'!H3205 -> 0 | I79: ='WPB-2.1.C Plant Detail'!H3321 -> 0 | J79: ='WPB-2.1.C Plant Detail'!H3437 -> 0 | K79: ='WPB-2.1.C Plant Detail'!H3553 -> 0 | L79: ='WPB-2.1.C Plant Detail'!H3669 -> 0 | M79: ='WPB-2.1.C Plant Detail'!H3785 -> 0 | N79: ='WPB-2.1.C Plant Detail'!H3901 -> 0 | O79: ='WPB-2.1.C Plant Detail'!H4017 -> 0 | P79: ='WPB-2.1.C Plant Detail'!H4133 -> 0 | Q79: 0
A80: =IF(ISBLANK($B80),"",COUNTA($B$72:B80)) -> 9 | B80: 394.11 | C80: TOOLS,SHOP, & GAR EQ-CNG STATIONARY | D80: ='WPB-2.1.C Plant Detail'!H2742 -> 0 | E80: ='WPB-2.1.C Plant Detail'!H2858 -> 0 | F80: ='WPB-2.1.C Plant Detail'!H2974 -> 0 | G80: ='WPB-2.1.C Plant Detail'!H3090 -> 0 | H80: ='WPB-2.1.C Plant Detail'!H3206 -> 0 | I80: ='WPB-2.1.C Plant Detail'!H3322 -> 0 | J80: ='WPB-2.1.C Plant Detail'!H3438 -> 0 | K80: ='WPB-2.1.C Plant Detail'!H3554 -> 0 | L80: ='WPB-2.1.C Plant Detail'!H3670 -> 0 | M80: ='WPB-2.1.C Plant Detail'!H3786 -> 0 | N80: ='WPB-2.1.C Plant Detail'!H3902 -> 0 | O80: ='WPB-2.1.C Plant Detail'!H4018 -> 0 | P80: ='WPB-2.1.C Plant Detail'!H4134 -> 0 | Q80: 0
A81: =IF(ISBLANK($B81),"",COUNTA($B$72:B81)) -> 10 | B81: 394.13 | C81: TOOLS,SHOP, & GAR EQ-UND TANK CLEANUP | D81: ='WPB-2.1.C Plant Detail'!H2743 -> 0 | E81: ='WPB-2.1.C Plant Detail'!H2859 -> 0 | F81: ='WPB-2.1.C Plant Detail'!H2975 -> 0 | G81: ='WPB-2.1.C Plant Detail'!H3091 -> 0 | H81: ='WPB-2.1.C Plant Detail'!H3207 -> 0 | I81: ='WPB-2.1.C Plant Detail'!H3323 -> 0 | J81: ='WPB-2.1.C Plant Detail'!H3439 -> 0 | K81: ='WPB-2.1.C Plant Detail'!H3555 -> 0 | L81: ='WPB-2.1.C Plant Detail'!H3671 -> 0 | M81: ='WPB-2.1.C Plant Detail'!H3787 -> 0 | N81: ='WPB-2.1.C Plant Detail'!H3903 -> 0 | O81: ='WPB-2.1.C Plant Detail'!H4019 -> 0 | P81: ='WPB-2.1.C Plant Detail'!H4135 -> 0 | Q81: 0
A82: =IF(ISBLANK($B82),"",COUNTA($B$72:B82)) -> 11 | B82: 394.2 | C82: TOOLS,SHOP, & GAR EQ-SHOP EQUIP | D82: ='WPB-2.1.C Plant Detail'!H2744 -> 0 | E82: ='WPB-2.1.C Plant Detail'!H2860 -> 0 | F82: ='WPB-2.1.C Plant Detail'!H2976 -> 0 | G82: ='WPB-2.1.C Plant Detail'!H3092 -> 0 | H82: ='WPB-2.1.C Plant Detail'!H3208 -> 0 | I82: ='WPB-2.1.C Plant Detail'!H3324 -> 0 | J82: ='WPB-2.1.C Plant Detail'!H3440 -> 0 | K82: ='WPB-2.1.C Plant Detail'!H3556 -> 0 | L82: ='WPB-2.1.C Plant Detail'!H3672 -> 0 | M82: ='WPB-2.1.C Plant Detail'!H3788 -> 0 | N82: ='WPB-2.1.C Plant Detail'!H3904 -> 0 | O82: ='WPB-2.1.C Plant Detail'!H4020 -> 0 | P82: ='WPB-2.1.C Plant Detail'!H4136 -> 0 | Q82: 0
A83: =IF(ISBLANK($B83),"",COUNTA($B$72:B83)) -> 12 | B83: 394.3 | C83: TOOLS,SHOP, & GAR EQ-TOOLS & OTHER | D83: ='WPB-2.1.C Plant Detail'!H2745 -> 6814736.753 | E83: ='WPB-2.1.C Plant Detail'!H2861 -> 6860313.219 | F83: ='WPB-2.1.C Plant Detail'!H2977 -> 6917302.99 | G83: ='WPB-2.1.C Plant Detail'!H3093 -> 7009133.964 | H83: ='WPB-2.1.C Plant Detail'!H3209 -> 7072264.971 | I83: ='WPB-2.1.C Plant Detail'!H3325 -> 7164114.114 | J83: ='WPB-2.1.C Plant Detail'!H3441 -> 7203581.021 | K83: ='WPB-2.1.C Plant Detail'!H3557 -> 7269527.325 | L83: ='WPB-2.1.C Plant Detail'!H3673 -> 7395814.217 | M83: ='WPB-2.1.C Plant Detail'!H3789 -> 7504910.19 | N83: ='WPB-2.1.C Plant Detail'!H3905 -> 7612852.836 | O83: ='WPB-2.1.C Plant Detail'!H4021 -> 7744039.851 | P83: ='WPB-2.1.C Plant Detail'!H4137 -> 7942745.925 | Q83: =AVERAGE(D83:P83) -> 7270102.875
A84: =IF(ISBLANK($B84),"",COUNTA($B$72:B84)) -> 13 | B84: 395 | C84: LABORATORY | D84: ='WPB-2.1.C Plant Detail'!H2746 -> 59420.06978 | E84: ='WPB-2.1.C Plant Detail'!H2862 -> 59420.06978 | F84: ='WPB-2.1.C Plant Detail'!H2978 -> 59420.06978 | G84: ='WPB-2.1.C Plant Detail'!H3094 -> 59420.06978 | H84: ='WPB-2.1.C Plant Detail'!H3210 -> 59420.06978 | I84: ='WPB-2.1.C Plant Detail'!H3326 -> 59420.06978 | J84: ='WPB-2.1.C Plant Detail'!H3442 -> 59420.06978 | K84: ='WPB-2.1.C Plant Detail'!H3558 -> 59420.06978 | L84: ='WPB-2.1.C Plant Detail'!H3674 -> 59420.06978 | M84: ='WPB-2.1.C Plant Detail'!H3790 -> 59420.06978 | N84: ='WPB-2.1.C Plant Detail'!H3906 -> 59420.06978 | O84: ='WPB-2.1.C Plant Detail'!H4022 -> 59420.06978 | P84: ='WPB-2.1.C Plant Detail'!H4138 -> 59420.06978 | Q84: 59420.06978
A85: =IF(ISBLANK($B85),"",COUNTA($B$72:B85)) -> 14 | B85: 396 | C85: POWER OPERATED EQUIP-GENERAL TOOLS | D85: ='WPB-2.1.C Plant Detail'!H2747 -> 185547 | E85: ='WPB-2.1.C Plant Detail'!H2863 -> 185547 | F85: ='WPB-2.1.C Plant Detail'!H2979 -> 185547 | G85: ='WPB-2.1.C Plant Detail'!H3095 -> 185547 | H85: ='WPB-2.1.C Plant Detail'!H3211 -> 185547 | I85: ='WPB-2.1.C Plant Detail'!H3327 -> 185547 | J85: ='WPB-2.1.C Plant Detail'!H3443 -> 185547 | K85: ='WPB-2.1.C Plant Detail'!H3559 -> 185547 | L85: ='WPB-2.1.C Plant Detail'!H3675 -> 185547 | M85: ='WPB-2.1.C Plant Detail'!H3791 -> 185547 | N85: ='WPB-2.1.C Plant Detail'!H3907 -> 185547 | O85: ='WPB-2.1.C Plant Detail'!H4023 -> 185547 | P85: ='WPB-2.1.C Plant Detail'!H4139 -> 185547 | Q85: 185547
A86: =IF(ISBLANK($B86),"",COUNTA($B$72:B86)) -> 15 | B86: 398 | C86: MISCELLANEOUS EQUIPMENT | D86: ='WPB-2.1.C Plant Detail'!H2748 -> 127397.98 | E86: ='WPB-2.1.C Plant Detail'!H2864 -> 127397.98 | F86: ='WPB-2.1.C Plant Detail'!H2980 -> 127397.98 | G86: ='WPB-2.1.C Plant Detail'!H3096 -> 127397.98 | H86: ='WPB-2.1.C Plant Detail'!H3212 -> 127397.98 | I86: ='WPB-2.1.C Plant Detail'!H3328 -> 127397.98 | J86: ='WPB-2.1.C Plant Detail'!H3444 -> 127397.98 | K86: ='WPB-2.1.C Plant Detail'!H3560 -> 127397.98 | L86: ='WPB-2.1.C Plant Detail'!H3676 -> 127397.98 | M86: ='WPB-2.1.C Plant Detail'!H3792 -> 127397.98 | N86: ='WPB-2.1.C Plant Detail'!H3908 -> 127397.98 | O86: ='WPB-2.1.C Plant Detail'!H4024 -> 127397.98 | P86: ='WPB-2.1.C Plant Detail'!H4140 -> 127397.98 | Q86: 127397.98
A87: =IF(ISBLANK($B87),"",COUNTA($B$72:B87)) -> 16 | B87: TOTAL GENERAL PLANT | D87: =SUM(D73:D86) -> 9454260.513 | E87: 9499836.979 | F87: 9556826.749 | G87: 9648657.724 | H87: 9711788.731 | I87: 9803637.874 | J87: 9843104.781 | K87: 9909051.085 | L87: 10035337.98 | M87: 10144433.95 | N87: 10252376.6 | O87: 10383563.61 | P87: 10582269.68 | Q87: 9909626.635
A88: =IF(ISBLANK($B88),"",COUNTA($B$72:B88)) -> 
A89: =IF(ISBLANK($B89),"",COUNTA($B$72:B89)) -> 17 | B89: OTHER PLANT
A90: =IF(ISBLANK($B90),"",COUNTA($B$72:B90)) -> 18 | B90: 378.21 | C90: M & R STA EQUIP REG FMV | D90: ='WPB-2.1.C Plant Detail'!H2752 -> -777092 | E90: ='WPB-2.1.C Plant Detail'!H2868 -> -777092 | F90: ='WPB-2.1.C Plant Detail'!H2984 -> -777092 | G90: ='WPB-2.1.C Plant Detail'!H3100 -> -777092 | H90: ='WPB-2.1.C Plant Detail'!H3216 -> -777092 | I90: ='WPB-2.1.C Plant Detail'!H3332 -> -777092 | J90: ='WPB-2.1.C Plant Detail'!H3448 -> -777092 | K90: ='WPB-2.1.C Plant Detail'!H3564 -> -777092 | L90: ='WPB-2.1.C Plant Detail'!H3680 -> -777092 | M90: ='WPB-2.1.C Plant Detail'!H3796 -> -777092 | N90: ='WPB-2.1.C Plant Detail'!H3912 -> -777092 | O90: ='WPB-2.1.C Plant Detail'!H4028 -> -777092 | P90: ='WPB-2.1.C Plant Detail'!H4144 -> -777092 | Q90: =AVERAGE(D90:P90) -> -777092
A91: =IF(ISBLANK($B91),"",COUNTA($B$72:B91)) -> 19 | B91: TOTAL OTHER PLANT | D91: =SUM(D90) -> -777092 | E91: =SUM(E90) -> -777092 | F91: -777092 | G91: -777092 | H91: -777092 | I91: -777092 | J91: -777092 | K91: -777092 | L91: -777092 | M91: -777092 | N91: -777092 | O91: -777092 | P91: =SUM(P90) -> -777092 | Q91: =SUM(Q90) -> -777092
A92: =IF(ISBLANK($B92),"",COUNTA($B$72:B92)) -> 
A93: =IF(ISBLANK($B93),"",COUNTA($B$72:B93)) -> 20 | B93: TOTAL PLANT (LESS SMRP) | D93: =D20+D57+D87+D91 -> 900016833.2 | E93: 901724993.7 | F93: 903589840.7 | G93: 904841245.5 | H93: 906372452.2 | I93: 909180037.2 | J93: 907431179.3 | K93: 908628003.2 | L93: 915346822.6 | M93: 918747566.2 | N93: 920864121.2 | O93: 923112680.9 | P93: 929479244.8 | Q93: 911487309.3
A94: =IF(ISBLANK($B94),"",COUNTA($B$72:B94)) -> 
A95: =IF(ISBLANK($B95),"",COUNTA($B$72:B95)) -> 21 | B95: SMRP PLANT
A96: =IF(ISBLANK($B96),"",COUNTA($B$72:B96)) -> 22 | B96: 376 | C96: MAINS | D96: ='WPB-2.1.C Plant Detail'!H2763 -> 66645719.15 | E96: ='WPB-2.1.C Plant Detail'!H2879 -> 67051332.15 | F96: ='WPB-2.1.C Plant Detail'!H2995 -> 68105090.15 | G96: ='WPB-2.1.C Plant Detail'!H3111 -> 72885624.15 | H96: ='WPB-2.1.C Plant Detail'!H3227 -> 74142526.15 | I96: ='WPB-2.1.C Plant Detail'!H3343 -> 76946475.15 | J96: ='WPB-2.1.C Plant Detail'!H3459 -> 80425141.15 | K96: ='WPB-2.1.C Plant Detail'!H3575 -> 83289443.15 | L96: ='WPB-2.1.C Plant Detail'!H3691 -> 84865361.15 | M96: ='WPB-2.1.C Plant Detail'!H3807 -> 88846224.15 | N96: ='WPB-2.1.C Plant Detail'!H3923 -> 93007914.15 | O96: ='WPB-2.1.C Plant Detail'!H4039 -> 99589718.15 | P96: ='WPB-2.1.C Plant Detail'!H4155 -> 107426288.6 | Q96: =AVERAGE(D96:P96) -> 81786681.33
A97: =IF(ISBLANK($B97),"",COUNTA($B$72:B97)) -> 23 | B97: 378.2 | C97: M & R STA EQUIP-GENERAL-REGULATING | D97: ='WPB-2.1.C Plant Detail'!H2764 -> -295361.02 | E97: ='WPB-2.1.C Plant Detail'!H2880 -> -299149.02 | F97: ='WPB-2.1.C Plant Detail'!H2996 -> -302195.02 | G97: ='WPB-2.1.C Plant Detail'!H3112 -> -314930.02 | H97: ='WPB-2.1.C Plant Detail'!H3228 -> -315770.02 | I97: ='WPB-2.1.C Plant Detail'!H3344 -> -347462.02 | J97: ='WPB-2.1.C Plant Detail'!H3460 -> -397381.02 | K97: ='WPB-2.1.C Plant Detail'!H3576 -> -442831.02 | L97: ='WPB-2.1.C Plant Detail'!H3692 -> -479709.02 | M97: ='WPB-2.1.C Plant Detail'!H3808 -> -500918.02 | N97: ='WPB-2.1.C Plant Detail'!H3924 -> -500918.02 | O97: ='WPB-2.1.C Plant Detail'!H4040 -> -501236.02 | P97: ='WPB-2.1.C Plant Detail'!H4156 -> -522452.02 | Q97: =AVERAGE(D97:P97) -> -401562.4815
A98: =IF(ISBLANK($B98),"",COUNTA($B$72:B98)) -> 24 | B98: 380 | C98: SERVICES | D98: ='WPB-2.1.C Plant Detail'!H2765 -> 18948588.37 | E98: ='WPB-2.1.C Plant Detail'!H2881 -> 19692094.37 | F98: ='WPB-2.1.C Plant Detail'!H2997 -> 20956828.37 | G98: ='WPB-2.1.C Plant Detail'!H3113 -> 22067380.37 | H98: ='WPB-2.1.C Plant Detail'!H3229 -> 23294989.37 | I98: ='WPB-2.1.C Plant Detail'!H3345 -> 24618021.37 | J98: ='WPB-2.1.C Plant Detail'!H3461 -> 25971541.37 | K98: ='WPB-2.1.C Plant Detail'!H3577 -> 27089483.37 | L98: ='WPB-2.1.C Plant Detail'!H3693 -> 28599684.37 | M98: ='WPB-2.1.C Plant Detail'!H3809 -> 29704508.37 | N98: ='WPB-2.1.C Plant Detail'!H3925 -> 31604405.37 | O98: ='WPB-2.1.C Plant Detail'!H4041 -> 32847193.37 | P98: ='WPB-2.1.C Plant Detail'!H4157 -> 33963603.56 | Q98: =AVERAGE(D98:P98) -> 26104486.31
A99: =IF(ISBLANK($B99),"",COUNTA($B$72:B99)) -> 25 | B99: 382 | C99: METER INSTALLATIONS | D99: ='WPB-2.1.C Plant Detail'!H2766 -> 1061617.082 | E99: ='WPB-2.1.C Plant Detail'!H2882 -> 1148234.082 | F99: ='WPB-2.1.C Plant Detail'!H2998 -> 1186212.082 | G99: ='WPB-2.1.C Plant Detail'!H3114 -> 1242898.082 | H99: ='WPB-2.1.C Plant Detail'!H3230 -> 1266737.082 | I99: ='WPB-2.1.C Plant Detail'!H3346 -> 1323058.082 | J99: ='WPB-2.1.C Plant Detail'!H3462 -> 1345602.082 | K99: ='WPB-2.1.C Plant Detail'!H3578 -> 1378719.082 | L99: ='WPB-2.1.C Plant Detail'!H3694 -> 1455246.082 | M99: ='WPB-2.1.C Plant Detail'!H3810 -> 1474786.082 | N99: ='WPB-2.1.C Plant Detail'!H3926 -> 1534922.082 | O99: ='WPB-2.1.C Plant Detail'!H4042 -> 1563154.082 | P99: ='WPB-2.1.C Plant Detail'!H4158 -> 1599668.621 | Q99: =AVERAGE(D99:P99) -> 1352373.431
A100: =IF(ISBLANK($B100),"",COUNTA($B$72:B100)) -> 26 | B100: 383 | C100: HOUSE REGULATORS | D100: ='WPB-2.1.C Plant Detail'!H2767 -> 503925.0336 | E100: ='WPB-2.1.C Plant Detail'!H2883 -> 538883.0336 | F100: ='WPB-2.1.C Plant Detail'!H2999 -> 612563.0336 | G100: ='WPB-2.1.C Plant Detail'!H3115 -> 638388.0336 | H100: ='WPB-2.1.C Plant Detail'!H3231 -> 665672.0336 | I100: ='WPB-2.1.C Plant Detail'!H3347 -> 665162.0336 | J100: ='WPB-2.1.C Plant Detail'!H3463 -> 690080.0336 | K100: ='WPB-2.1.C Plant Detail'!H3579 -> 699272.0336 | L100: ='WPB-2.1.C Plant Detail'!H3695 -> 746539.0336 | M100: ='WPB-2.1.C Plant Detail'!H3811 -> 766828.0336 | N100: ='WPB-2.1.C Plant Detail'!H3927 -> 776595.0336 | O100: ='WPB-2.1.C Plant Detail'!H4043 -> 775895.0336 | P100: ='WPB-2.1.C Plant Detail'!H4159 -> 797921.8551 | Q100: =AVERAGE(D100:P100) -> 682901.866
A101: =IF(ISBLANK($B101),"",COUNTA($B$72:B101)) -> 27 | B101: TOTAL SMRP PLANT | D101: =SUM(D96:D100) -> 86864488.61 | E101: =SUM(E96:E100) -> 88131394.61 | F101: 90558498.61 | G101: 96519360.61 | H101: 99054154.61 | I101: 103205254.6 | J101: 108034983.6 | K101: 112014086.6 | L101: 115187121.6 | M101: 120291428.6 | N101: 126422918.6 | O101: 134274724.6 | P101: 143265030.6 | Q101: 109524880.5
A102: =IF(ISBLANK($B102),"",COUNTA($B$72:B102)) -> 
A103: =IF(ISBLANK($B103),"",COUNTA($B$72:B103)) -> 28 | B103: TOTAL GAS PLANT IN SERVICE | D103: =D101+D93 -> 986881321.8 | E103: =E101+E93 -> 989856388.3 | F103: 994148339.3 | G103: 1001360606 | H103: 1005426607 | I103: 1012385292 | J103: 1015466163 | K103: 1020642090 | L103: 1030533944 | M103: 1039038995 | N103: 1047287040 | O103: 1057387405 | P103: 1072744275 | Q103: 1021012190

Sheet WPB-2.1.B Summary
A1: ='General Headers Index'!B3 -> COLUMBIA GAS OF KENTUCKY, INC.
A2: ='General Headers Index'!B5 -> CASE NO. 2026 - 00099
A3: ='Index B'!C23 -> SUMMARY OF ACTUAL & FORECASTED PLANT, ACCUMULATED RESERVE FOR DEPRECIATION & DEPRECIATION EXPENSE
A4: ='General Headers Index'!B24 -> FROM JANUARY 01, 2025 THROUGH DECEMBER 31, 2027
A6: ='General Headers Index'!$B$35 -> DATA:___X___BASE PERIOD___X___FORECASTED PERIOD | N6: ='Index B'!$A$23 -> WPB-2.1.B
A7: ='General Headers Index'!$B$37 -> TYPE OF FILING:___X___ORIGINAL_______UPDATED | N7: SHEET 1 OF 3
A8: WORKPAPER REFERENCE NO(S).: WPB-2.1.C | N8: ="WITNESS: "&'General Headers Index'!B46 -> WITNESS: L. BLACK
C10: GAS PLANT IN SERVICE w/o 2025, 2026, & 2027 SMRP | H10: RESERVE FOR DEPRECIATION & AMORTIZATION w/o 2025, 2026, & 2027 SMRP
C11: PLANT | F11: PLANT | H11: RESERVE | J11: RESERVE | M11: RESERVE
A12: LINE | C12: BEGINNING | F12: ENDING | H12: BEGINNING | I12: DEPRECIATION | J12: AMORTIZATION | L12: COST OF | M12: ENDING
A13: NO. | B13: MONTH | C13: BALANCE | D13: ADDITIONS | E13: RETIREMENTS | F13: BALANCE | H13: BALANCE | I13: ACCURAL | J13: ADJUSTMENTS | K13: RETIREMENTS | L13: REMOVAL | M13: BALANCE
C14: (1) | D14: (2) | E14: (3) | F14: (4)=(1+2+3) | H14: ="(5)" -> (5) | I14: ="(6)" -> (6) | J14: ="(7)" -> (7) | K14: ="(8)" -> (8) | L14: ="(9)" -> (9) | M14: ="(10=5 through 9)" -> (10=5 through 9)
C15: $ | D15: $ | E15: $ | F15: $ | H15: $ | I15: $ | J15: $ | K15: $ | L15: $ | M15: $
A17: =IF(ISBLANK($B17),"",COUNTA($B$17:B17)) -> 1 | B17: JANUARY 2025 | C17: ='WPB-2.1.C Plant Detail'!D100 -> 840101218 | D17: ='WPB-2.1.C Plant Detail'!E100 -> 1482122.66 | E17: ='WPB-2.1.C Plant Detail'!F100 -> -838964 | F17: =SUM(C17:E17) -> 840744376.7 | H17: ='WPB-2.1.C Plant Detail'!J100 -> 178958063.5 | I17: ='WPB-2.1.C Plant Detail'!L100 -> 2176635.508 | J17: ='WPB-2.1.C Plant Detail'!M100 -> 0 | K17: ='WPB-2.1.C Plant Detail'!N100 -> -838964 | L17: ='WPB-2.1.C Plant Detail'!O100 -> 347179.6944 | M17: =SUM(H17:L17) -> 180642914.7
A18: =IF(ISBLANK($B18),"",COUNTA($B$17:B18)) -> 2 | B18: FEBRUARY 2025 | C18: ='WPB-2.1.C Plant Detail'!D213 -> 840744376.7 | D18: ='WPB-2.1.C Plant Detail'!E213 -> 14321967.82 | E18: ='WPB-2.1.C Plant Detail'!F213 -> -248211.59 | F18: =SUM(C18:E18) -> 854818132.9 | H18: ='WPB-2.1.C Plant Detail'!J213 -> 180642914.7 | I18: ='WPB-2.1.C Plant Detail'!L213 -> 2136890.706 | J18: ='WPB-2.1.C Plant Detail'!M213 -> 0 | K18: ='WPB-2.1.C Plant Detail'!N213 -> -248211.59 | L18: ='WPB-2.1.C Plant Detail'!O213 -> -125121.6427 | M18: =SUM(H18:L18) -> 182406472.1
A19: =IF(ISBLANK($B19),"",COUNTA($B$17:B19)) -> 3 | B19: MARCH 2025 | C19: ='WPB-2.1.C Plant Detail'!D326 -> 854818132.9 | D19: ='WPB-2.1.C Plant Detail'!E326 -> 2073884.35 | E19: ='WPB-2.1.C Plant Detail'!F326 -> -314242.97 | F19: 856577774.3 | H19: ='WPB-2.1.C Plant Detail'!J326 -> 182406472.1 | I19: ='WPB-2.1.C Plant Detail'!L326 -> 2152475.377 | J19: ='WPB-2.1.C Plant Detail'!M326 -> 0 | K19: ='WPB-2.1.C Plant Detail'!N326 -> -314242.97 | L19: ='WPB-2.1.C Plant Detail'!O326 -> -9914.086912 | M19: 184234790.5
A20: =IF(ISBLANK($B20),"",COUNTA($B$17:B20)) -> 4 | B20: APRIL 2025 | C20: ='WPB-2.1.C Plant Detail'!D439 -> 856577774.3 | D20: ='WPB-2.1.C Plant Detail'!E439 -> -2544684.37 | E20: ='WPB-2.1.C Plant Detail'!F439 -> -5777895.03 | F20: 848255194.9 | H20: ='WPB-2.1.C Plant Detail'!J439 -> 184234790.5 | I20: ='WPB-2.1.C Plant Detail'!L439 -> 2334916.65 | J20: ='WPB-2.1.C Plant Detail'!M439 -> 0 | K20: ='WPB-2.1.C Plant Detail'!N439 -> -5777895.03 | L20: ='WPB-2.1.C Plant Detail'!O439 -> -92755.80557 | M20: 180699056.3
A21: =IF(ISBLANK($B21),"",COUNTA($B$17:B21)) -> 5 | B21: MAY 2025 | C21: ='WPB-2.1.C Plant Detail'!D555 -> 848255194.9 | D21: ='WPB-2.1.C Plant Detail'!E555 -> 1845046.27 | E21: ='WPB-2.1.C Plant Detail'!F555 -> -425732.36 | F21: 849674508.8 | H21: ='WPB-2.1.C Plant Detail'!J555 -> 180699056.3 | I21: ='WPB-2.1.C Plant Detail'!L555 -> 2298216.83 | J21: ='WPB-2.1.C Plant Detail'!M555 -> 0 | K21: ='WPB-2.1.C Plant Detail'!N555 -> -425732.36 | L21: ='WPB-2.1.C Plant Detail'!O555 -> -22907.84689 | M21: 182548632.9
A22: =IF(ISBLANK($B22),"",COUNTA($B$17:B22)) -> 6 | B22: JUNE 2025 | C22: ='WPB-2.1.C Plant Detail'!D671 -> 849674508.8 | D22: ='WPB-2.1.C Plant Detail'!E671 -> 1647913.33 | E22: ='WPB-2.1.C Plant Detail'!F671 -> -159326.61 | F22: 851163095.5 | H22: ='WPB-2.1.C Plant Detail'!J671 -> 182548632.9 | I22: ='WPB-2.1.C Plant Detail'!L671+'WPB-2.1.C Plant Detail'!P671 -> 2201895.915 | J22: ='WPB-2.1.C Plant Detail'!M671 -> 0 | K22: ='WPB-2.1.C Plant Detail'!N671 -> -159326.61 | L22: ='WPB-2.1.C Plant Detail'!O671 -> -40418.37 | M22: 184550783.8
A23: =IF(ISBLANK($B23),"",COUNTA($B$17:B23)) -> 7 | B23: JULY 2025 | C23: ='WPB-2.1.C Plant Detail'!D787 -> 851163095.5 | D23: ='WPB-2.1.C Plant Detail'!E787 -> 9016772.77 | E23: ='WPB-2.1.C Plant Detail'!F787 -> -164351.51 | F23: 860015516.8 | H23: ='WPB-2.1.C Plant Detail'!J787 -> 184550783.8 | I23: ='WPB-2.1.C Plant Detail'!L787+'WPB-2.1.C Plant Detail'!P787 -> 2187031.26 | J23: ='WPB-2.1.C Plant Detail'!M787 -> 0 | K23: ='WPB-2.1.C Plant Detail'!N787 -> -164351.51 | L23: ='WPB-2.1.C Plant Detail'!O787 -> 92473.33 | M23: 186665936.9
A24: =IF(ISBLANK($B24),"",COUNTA($B$17:B24)) -> 8 | B24: AUGUST 2025 | C24: ='WPB-2.1.C Plant Detail'!D903 -> 860015516.8 | D24: ='WPB-2.1.C Plant Detail'!E903 -> 531416.15 | E24: ='WPB-2.1.C Plant Detail'!F903 -> -111844.71 | F24: 860435088.2 | H24: ='WPB-2.1.C Plant Detail'!J903 -> 186665936.9 | I24: ='WPB-2.1.C Plant Detail'!L903+'WPB-2.1.C Plant Detail'!P903 -> 2206228.68 | J24: ='WPB-2.1.C Plant Detail'!M903 -> 0 | K24: ='WPB-2.1.C Plant Detail'!N903 -> -111844.71 | L24: ='WPB-2.1.C Plant Detail'!O903 -> -83923.42 | M24: 188676397.5
A25: =IF(ISBLANK($B25),"",COUNTA($B$17:B25)) -> 9 | B25: SEPTEMBER 2025 | C25: ='WPB-2.1.C Plant Detail'!D1019 -> 860435088.2 | D25: ='WPB-2.1.C Plant Detail'!E1019 -> 1270514.53 | E25: ='WPB-2.1.C Plant Detail'!F1019 -> -145026.23 | F25: 861560576.5 | H25: ='WPB-2.1.C Plant Detail'!J1019 -> 188676397.5 | I25: ='WPB-2.1.C Plant Detail'!L1019+'WPB-2.1.C Plant Detail'!P1019 -> 2401783.75 | J25: ='WPB-2.1.C Plant Detail'!M1019 -> 0 | K25: ='WPB-2.1.C Plant Detail'!N1019 -> -145026.23 | L25: ='WPB-2.1.C Plant Detail'!O1019 -> -150049.54 | M25: 190783105.4 | N25: Base Period - Actuals
A26: =IF(ISBLANK($B26),"",COUNTA($B$17:B26)) -> 10 | B26: OCTOBER 2025 | C26: ='WPB-2.1.C Plant Detail'!D1135 -> 861560576.5 | D26: ='WPB-2.1.C Plant Detail'!E1135 -> 4481951.301 | E26: ='WPB-2.1.C Plant Detail'!F1135 -> -45236.45 | F26: 865997291.4 | H26: ='WPB-2.1.C Plant Detail'!J1135 -> 190783105.4 | I26: ='WPB-2.1.C Plant Detail'!L1135+'WPB-2.1.C Plant Detail'!P1135 -> 2226710.06 | J26: ='WPB-2.1.C Plant Detail'!M1135 -> 0 | K26: ='WPB-2.1.C Plant Detail'!N1135 -> -45236.45 | L26: ='WPB-2.1.C Plant Detail'!O1135 -> -306731.95 | M26: 192657847.1 | N26: Base Period - Actuals
A27: =IF(ISBLANK($B27),"",COUNTA($B$17:B27)) -> 11 | B27: NOVEMBER 2025 | C27: ='WPB-2.1.C Plant Detail'!D1251 -> 865997291.4 | D27: ='WPB-2.1.C Plant Detail'!E1251 -> 4035682.42 | E27: ='WPB-2.1.C Plant Detail'!F1251 -> -51421.28 | F27: 869981552.5 | H27: ='WPB-2.1.C Plant Detail'!J1251 -> 192657847.1 | I27: ='WPB-2.1.C Plant Detail'!L1251+'WPB-2.1.C Plant Detail'!P1251 -> 2556401.24 | J27: ='WPB-2.1.C Plant Detail'!M1251 -> 0 | K27: ='WPB-2.1.C Plant Detail'!N1251 -> -51421.28 | L27: ='WPB-2.1.C Plant Detail'!O1251 -> -565475.89 | M27: 194597351.2 | N27: Base Period - Actuals
A28: =IF(ISBLANK($B28),"",COUNTA($B$17:B28)) -> 12 | B28: DECEMBER 2025 | C28: ='WPB-2.1.C Plant Detail'!D1367 -> 869981552.5 | D28: ='WPB-2.1.C Plant Detail'!E1367 -> 8575688.59 | E28: ='WPB-2.1.C Plant Detail'!F1367 -> -625655.39 | F28: 877931585.7 | H28: ='WPB-2.1.C Plant Detail'!J1367 -> 194597351.2 | I28: ='WPB-2.1.C Plant Detail'!L1367+'WPB-2.1.C Plant Detail'!P1367 -> 2196916.261 | J28: ='WPB-2.1.C Plant Detail'!M1367 -> 0 | K28: ='WPB-2.1.C Plant Detail'!N1367 -> -625655.39 | L28: ='WPB-2.1.C Plant Detail'!O1367 -> -684083.59 | M28: 195484528.4 | N28: Base Period - Actuals
A29: =IF(ISBLANK($B29),"",COUNTA($B$17:B29)) -> 13 | B29: JANUARY 2026 | C29: ='WPB-2.1.C Plant Detail'!D1483 -> 877931585.7 | D29: ='WPB-2.1.C Plant Detail'!E1483 -> 2454940.45 | E29: ='WPB-2.1.C Plant Detail'!F1483 -> -192213.4 | F29: 880194312.7 | H29: ='WPB-2.1.C Plant Detail'!J1483 -> 195484528.4 | I29: ='WPB-2.1.C Plant Detail'!L1483+'WPB-2.1.C Plant Detail'!P1483 -> 2814675.992 | J29: ='WPB-2.1.C Plant Detail'!M1483 -> 0 | K29: ='WPB-2.1.C Plant Detail'!N1483 -> -192213.4 | L29: ='WPB-2.1.C Plant Detail'!O1483 -> -241521.36 | M29: 197865469.7 | N29: Base Period - Actuals
A30: =IF(ISBLANK($B30),"",COUNTA($B$17:B30)) -> 14 | B30: FEBRUARY 2026 | C30: ='WPB-2.1.C Plant Detail'!D1599 -> 880194312.7 | D30: ='WPB-2.1.C Plant Detail'!E1599 -> 4463914.26 | E30: ='WPB-2.1.C Plant Detail'!F1599 -> -544182.9 | F30: 884114044.1 | H30: ='WPB-2.1.C Plant Detail'!J1599 -> 197865469.7 | I30: ='WPB-2.1.C Plant Detail'!L1599 -> 2871186.909 | J30: ='WPB-2.1.C Plant Detail'!M1599 -> 0 | K30: ='WPB-2.1.C Plant Detail'!N1599 -> -544182.9 | L30: ='WPB-2.1.C Plant Detail'!O1599 -> -123073.66 | M30: 200069400 | N30: Base Period - Actuals
A31: =IF(ISBLANK($B31),"",COUNTA($B$17:B31)) -> 15 | B31: MARCH 2026 | C31: ='WPB-2.1.C Plant Detail'!D1715 -> 884114044.1 | D31: ='WPB-2.1.C Plant Detail'!E1715 -> 1847037.734 | E31: ='WPB-2.1.C Plant Detail'!F1715 -> -709107.4912 | F31: 885251974.3 | H31: ='WPB-2.1.C Plant Detail'!J1715 -> 200068337.8 | I31: ='WPB-2.1.C Plant Detail'!L1715 -> 2461443.637 | J31: ='WPB-2.1.C Plant Detail'!M1715 -> 0 | K31: ='WPB-2.1.C Plant Detail'!N1715 -> -709107.4912 | L31: ='WPB-2.1.C Plant Detail'!O1715 -> -388699.6369 | M31: 201431974.3 | N31: Base Period - Forecasted
A32: =IF(ISBLANK($B32),"",COUNTA($B$17:B32)) -> 16 | B32: APRIL 2026 | C32: ='WPB-2.1.C Plant Detail'!D1831 -> 885251974.3 | D32: ='WPB-2.1.C Plant Detail'!E1831 -> 2680525.322 | E32: ='WPB-2.1.C Plant Detail'!F1831 -> -898464.3398 | F32: 887034035.3 | H32: ='WPB-2.1.C Plant Detail'!J1831 -> 201431974.3 | I32: ='WPB-2.1.C Plant Detail'!L1831 -> 2462219.307 | J32: ='WPB-2.1.C Plant Detail'!M1831 -> 0 | K32: ='WPB-2.1.C Plant Detail'!N1831 -> -898464.3398 | L32: ='WPB-2.1.C Plant Detail'!O1831 -> -176219.4245 | M32: 202819509.9 | N32: Base Period - Forecasted
A33: =IF(ISBLANK($B33),"",COUNTA($B$17:B33)) -> 17 | B33: MAY 2026 | C33: ='WPB-2.1.C Plant Detail'!D1947 -> 887034035.3 | D33: ='WPB-2.1.C Plant Detail'!E1947 -> 3308401.957 | E33: ='WPB-2.1.C Plant Detail'!F1947 -> -1733300.687 | F33: 888609136.6 | H33: ='WPB-2.1.C Plant Detail'!J1947 -> 202819509.9 | I33: ='WPB-2.1.C Plant Detail'!L1947 -> 2466288.977 | J33: ='WPB-2.1.C Plant Detail'!M1947 -> 0 | K33: ='WPB-2.1.C Plant Detail'!N1947 -> -1782773.305 | L33: ='WPB-2.1.C Plant Detail'!O1947 -> -296506.004 | M33: 203206519.5 | N33: Base Period - Forecasted
A34: =IF(ISBLANK($B34),"",COUNTA($B$17:B34)) -> 18 | B34: JUNE 2026 | C34: ='WPB-2.1.C Plant Detail'!D2063 -> 888668556.7 | D34: ='WPB-2.1.C Plant Detail'!E2063 -> -1489209.5 | E34: ='WPB-2.1.C Plant Detail'!F2063 -> -111209.5002 | F34: 887068137.7 | H34: ='WPB-2.1.C Plant Detail'!J2063 -> 203206519.5 | I34: ='WPB-2.1.C Plant Detail'!L2063 -> 2462503.697 | J34: ='WPB-2.1.C Plant Detail'!M2063 -> 0 | K34: ='WPB-2.1.C Plant Detail'!N2063 -> -111209.5002 | L34: ='WPB-2.1.C Plant Detail'!O2063 -> -296403.971 | M34: 205261409.8 | N34: Base Period - Forecasted
A35: =IF(ISBLANK($B35),"",COUNTA($B$17:B35)) -> 19 | B35: JULY 2026 | C35: ='WPB-2.1.C Plant Detail'!D2179 -> 887068137.7 | D35: ='WPB-2.1.C Plant Detail'!E2179 -> 998920.0947 | E35: ='WPB-2.1.C Plant Detail'!F2179 -> -1272367.181 | F35: 886794690.6 | H35: ='WPB-2.1.C Plant Detail'!J2179 -> 205261409.8 | I35: ='WPB-2.1.C Plant Detail'!L2179 -> 2454350.887 | J35: ='WPB-2.1.C Plant Detail'!M2179 -> 0 | K35: ='WPB-2.1.C Plant Detail'!N2179 -> -1272367.181 | L35: ='WPB-2.1.C Plant Detail'!O2179 -> -277964.5706 | M35: 206165428.9 | N35: Base Period - Forecasted
A36: =IF(ISBLANK($B36),"",COUNTA($B$17:B36)) -> 20 | B36: AUGUST 2026 | C36: ='WPB-2.1.C Plant Detail'!D2295 -> 886794690.6 | D36: ='WPB-2.1.C Plant Detail'!E2295 -> 244765.0339 | E36: ='WPB-2.1.C Plant Detail'!F2295 -> -509289.055 | F36: 886530166.6 | H36: ='WPB-2.1.C Plant Detail'!J2295 -> 206165428.9 | I36: ='WPB-2.1.C Plant Detail'!L2295 -> 2455967.947 | J36: ='WPB-2.1.C Plant Detail'!M2295 -> 0 | K36: ='WPB-2.1.C Plant Detail'!N2295 -> -509289.055 | L36: ='WPB-2.1.C Plant Detail'!O2295 -> -378768.6008 | M36: 207733339.2 | N36: Base Period - Forecasted
A37: =IF(ISBLANK($B37),"",COUNTA($B$17:B37)) -> 21 | B37: SEPTEMBER 2026 | C37: ='WPB-2.1.C Plant Detail'!D2411 -> 886530166.6 | D37: ='WPB-2.1.C Plant Detail'!E2411 -> 4038242.927 | E37: ='WPB-2.1.C Plant Detail'!F2411 -> -1190596.527 | F37: 889377813 | H37: ='WPB-2.1.C Plant Detail'!J2411 -> 207733339.2 | I37: ='WPB-2.1.C Plant Detail'!L2411 -> 2463058.097 | J37: ='WPB-2.1.C Plant Detail'!M2411 -> 0 | K37: ='WPB-2.1.C Plant Detail'!N2411 -> -1190596.527 | L37: ='WPB-2.1.C Plant Detail'!O2411 -> -342174.0744 | M37: 208663626.7
A38: =IF(ISBLANK($B38),"",COUNTA($B$17:B38)) -> 22 | B38: OCTOBER 2026 | C38: ='WPB-2.1.C Plant Detail'!D2527 -> 889377813 | D38: ='WPB-2.1.C Plant Detail'!E2527 -> 3078487.597 | E38: ='WPB-2.1.C Plant Detail'!F2527 -> -991876.1301 | F38: 891464424.4 | H38: ='WPB-2.1.C Plant Detail'!J2527 -> 208663626.7 | I38: ='WPB-2.1.C Plant Detail'!L2527 -> 2479335.437 | J38: ='WPB-2.1.C Plant Detail'!M2527 -> 0 | K38: ='WPB-2.1.C Plant Detail'!N2527 -> -991876.1301 | L38: ='WPB-2.1.C Plant Detail'!O2527 -> -311622.6458 | M38: 209839463.4
A39: =IF(ISBLANK($B39),"",COUNTA($B$17:B39)) -> 23 | B39: NOVEMBER 2026 | C39: ='WPB-2.1.C Plant Detail'!D2643 -> 891464424.4 | D39: ='WPB-2.1.C Plant Detail'!E2643 -> 3453706.176 | E39: ='WPB-2.1.C Plant Detail'!F2643 -> -1155009.044 | F39: 893763121.6 | H39: ='WPB-2.1.C Plant Detail'!J2643 -> 209839463.4 | I39: ='WPB-2.1.C Plant Detail'!L2643 -> 2497457.457 | J39: ='WPB-2.1.C Plant Detail'!M2643 -> 0 | K39: ='WPB-2.1.C Plant Detail'!N2643 -> -1115451.964 | L39: ='WPB-2.1.C Plant Detail'!O2643 -> -444424.3731 | M39: 210777044.5
A40: =IF(ISBLANK($B40),"",COUNTA($B$17:B40)) -> 24 | B40: DECEMBER 2026 | C40: ='WPB-2.1.C Plant Detail'!D2759 -> 893763121.6 | D40: ='WPB-2.1.C Plant Detail'!E2759 -> 7745056.968 | E40: ='WPB-2.1.C Plant Detail'!F2759 -> -1491345.341 | F40: 900016833.2 | H40: ='WPB-2.1.C Plant Detail'!J2759 -> 210777044.5 | I40: ='WPB-2.1.C Plant Detail'!L2759 -> 2523263.047 | J40: ='WPB-2.1.C Plant Detail'!M2759 -> 0 | K40: ='WPB-2.1.C Plant Detail'!N2759 -> -1498676.021 | L40: ='WPB-2.1.C Plant Detail'!O2759 -> -206831.8969 | M40: 211594799.6
A41: =IF(ISBLANK($B41),"",COUNTA($B$17:B41)) -> 25 | B41: JANUARY 2027 | C41: ='WPB-2.1.C Plant Detail'!D2875 -> 900016833.2 | D41: ='WPB-2.1.C Plant Detail'!E2875 -> 2648234.58 | E41: ='WPB-2.1.C Plant Detail'!F2875 -> -940074.1007 | F41: 901724993.7 | H41: ='WPB-2.1.C Plant Detail'!J2875 -> 211594799.6 | I41: ='WPB-2.1.C Plant Detail'!L2875 -> 2939961.602 | J41: ='WPB-2.1.C Plant Detail'!M2875 -> 0 | K41: ='WPB-2.1.C Plant Detail'!N2875 -> -946735.3107 | L41: ='WPB-2.1.C Plant Detail'!O2875 -> -454271.51 | M41: 213133754.4 | N41: Forecasted Period
A42: =IF(ISBLANK($B42),"",COUNTA($B$17:B42)) -> 26 | B42: FEBRUARY 2027 | C42: ='WPB-2.1.C Plant Detail'!D2991 -> 901724993.7 | D42: ='WPB-2.1.C Plant Detail'!E2991 -> 2606705.016 | E42: ='WPB-2.1.C Plant Detail'!F2991 -> -741857.9806 | F42: 903589840.7 | H42: ='WPB-2.1.C Plant Detail'!J2991 -> 213133754.4 | I42: ='WPB-2.1.C Plant Detail'!L2991 -> 3043155.067 | J42: ='WPB-2.1.C Plant Detail'!M2991 -> 0 | K42: ='WPB-2.1.C Plant Detail'!N2991 -> -741857.9806 | L42: ='WPB-2.1.C Plant Detail'!O2991 -> -282491.905 | M42: 215152559.6 | N42: Forecasted Period
A43: =IF(ISBLANK($B43),"",COUNTA($B$17:B43)) -> 27 | B43: MARCH 2027 | C43: ='WPB-2.1.C Plant Detail'!D3107 -> 903589840.7 | D43: ='WPB-2.1.C Plant Detail'!E3107 -> 2253613.335 | E43: ='WPB-2.1.C Plant Detail'!F3107 -> -1002208.543 | F43: 904841245.5 | H43: ='WPB-2.1.C Plant Detail'!J3107 -> 215152559.6 | I43: ='WPB-2.1.C Plant Detail'!L3107 -> 3047215.377 | J43: ='WPB-2.1.C Plant Detail'!M3107 -> 0 | K43: ='WPB-2.1.C Plant Detail'!N3107 -> -1002208.543 | L43: ='WPB-2.1.C Plant Detail'!O3107 -> -422671.91 | M43: 216774894.5 | N43: Forecasted Period
A44: =IF(ISBLANK($B44),"",COUNTA($B$17:B44)) -> 28 | B44: APRIL 2027 | C44: ='WPB-2.1.C Plant Detail'!D3223 -> 904841245.5 | D44: ='WPB-2.1.C Plant Detail'!E3223 -> 3097018.621 | E44: ='WPB-2.1.C Plant Detail'!F3223 -> -1565811.954 | F44: 906372452.2 | H44: ='WPB-2.1.C Plant Detail'!J3223 -> 216774894.5 | I44: ='WPB-2.1.C Plant Detail'!L3223 -> 3051542.152 | J44: ='WPB-2.1.C Plant Detail'!M3223 -> 0 | K44: ='WPB-2.1.C Plant Detail'!N3223 -> -1565811.954 | L44: ='WPB-2.1.C Plant Detail'!O3223 -> -177461.12 | M44: 218083163.6 | N44: Forecasted Period
A45: =IF(ISBLANK($B45),"",COUNTA($B$17:B45)) -> 29 | B45: MAY 2027 | C45: ='WPB-2.1.C Plant Detail'!D3339 -> 906372452.2 | D45: ='WPB-2.1.C Plant Detail'!E3339 -> 3925162.432 | E45: ='WPB-2.1.C Plant Detail'!F3339 -> -1117577.361 | F45: 909180037.2 | H45: ='WPB-2.1.C Plant Detail'!J3339 -> 218083163.6 | I45: ='WPB-2.1.C Plant Detail'!L3339 -> 3061744.977 | J45: ='WPB-2.1.C Plant Detail'!M3339 -> 0 | K45: ='WPB-2.1.C Plant Detail'!N3339 -> -1104370.351 | L45: ='WPB-2.1.C Plant Detail'!O3339 -> -309843.02 | M45: 219730695.2 | N45: Forecasted Period
A46: =IF(ISBLANK($B46),"",COUNTA($B$17:B46)) -> 30 | B46: JUNE 2027 | C46: ='WPB-2.1.C Plant Detail'!D3455 -> 909180037.2 | D46: ='WPB-2.1.C Plant Detail'!E3455 -> -1670478.893 | E46: ='WPB-2.1.C Plant Detail'!F3455 -> -78379.06315 | F46: 907431179.3 | H46: ='WPB-2.1.C Plant Detail'!J3455 -> 219730695.2 | I46: ='WPB-2.1.C Plant Detail'!L3455 -> 3069030.68 | J46: ='WPB-2.1.C Plant Detail'!M3455 -> 0 | K46: ='WPB-2.1.C Plant Detail'!N3455 -> -78379.06315 | L46: ='WPB-2.1.C Plant Detail'!O3455 -> -313568.19 | M46: 222407778.6 | N46: Forecasted Period
A47: =IF(ISBLANK($B47),"",COUNTA($B$17:B47)) -> 31 | B47: JULY 2027 | C47: ='WPB-2.1.C Plant Detail'!D3571 -> 907431179.3 | D47: ='WPB-2.1.C Plant Detail'!E3571 -> 1126607.898 | E47: ='WPB-2.1.C Plant Detail'!F3571 -> 70215.99481 | F47: 908628003.2 | H47: ='WPB-2.1.C Plant Detail'!J3571 -> 222407778.6 | I47: ='WPB-2.1.C Plant Detail'!L3571 -> 3073076.97 | J47: ='WPB-2.1.C Plant Detail'!M3571 -> 0 | K47: ='WPB-2.1.C Plant Detail'!N3571 -> 70215.99481 | L47: ='WPB-2.1.C Plant Detail'!O3571 -> -356780.39 | M47: 225194291.2 | N47: Forecasted Period
A48: =IF(ISBLANK($B48),"",COUNTA($B$17:B48)) -> 32 | B48: AUGUST 2027 | C48: ='WPB-2.1.C Plant Detail'!D3687 -> 908628003.2 | D48: ='WPB-2.1.C Plant Detail'!E3687 -> 8040532.516 | E48: ='WPB-2.1.C Plant Detail'!F3687 -> -1321713.118 | F48: 915346822.6 | H48: ='WPB-2.1.C Plant Detail'!J3687 -> 225194291.2 | I48: ='WPB-2.1.C Plant Detail'!L3687 -> 3090309.16 | J48: ='WPB-2.1.C Plant Detail'!M3687 -> 0 | K48: ='WPB-2.1.C Plant Detail'!N3687 -> -1321713.118 | L48: ='WPB-2.1.C Plant Detail'!O3687 -> -409702.94 | M48: 226553184.3 | N48: Forecasted Period
A49: =IF(ISBLANK($B49),"",COUNTA($B$17:B49)) -> 33 | B49: SEPTEMBER 2027 | C49: ='WPB-2.1.C Plant Detail'!D3803 -> 915346822.6 | D49: ='WPB-2.1.C Plant Detail'!E3803 -> 4501621.755 | E49: ='WPB-2.1.C Plant Detail'!F3803 -> -1100878.099 | F49: 918747566.2 | H49: ='WPB-2.1.C Plant Detail'!J3803 -> 226553184.3 | I49: ='WPB-2.1.C Plant Detail'!L3803 -> 3110295.255 | J49: ='WPB-2.1.C Plant Detail'!M3803 -> 0 | K49: ='WPB-2.1.C Plant Detail'!N3803 -> -1067524.929 | L49: ='WPB-2.1.C Plant Detail'!O3803 -> -366416.93 | M49: 228229537.7 | N49: Forecasted Period
A50: =IF(ISBLANK($B50),"",COUNTA($B$17:B50)) -> 34 | B50: OCTOBER 2027 | C50: ='WPB-2.1.C Plant Detail'!D3919 -> 918747566.2 | D50: ='WPB-2.1.C Plant Detail'!E3919 -> 3388272.82 | E50: ='WPB-2.1.C Plant Detail'!F3919 -> -1271717.824 | F50: 920864121.2 | H50: ='WPB-2.1.C Plant Detail'!J3919 -> 228229537.7 | I50: ='WPB-2.1.C Plant Detail'!L3919 -> 3123553.3 | J50: ='WPB-2.1.C Plant Detail'!M3919 -> 0 | K50: ='WPB-2.1.C Plant Detail'!N3919 -> -1271717.824 | L50: ='WPB-2.1.C Plant Detail'!O3919 -> -337890.55 | M50: 229743482.6 | N50: Forecasted Period
